Workbook

Sheet Explanation of height
B5: The Height sheet has a down load of 1000 samples of 24 channels
B6: The State4 sheet has the LQR model.
B7: Definition of columns of height data:
B9: Column
B11: A-Y | C11: Down load of ADC data and floating point flight computer data in integer format
B13: BZ | C13: time at 75 Hz
B14: CA | C14: heightS | D14: Height sensor ToughSonic 14 Starboard
B15: CB | C15: heightP | D15: Height sensor ToughSonic 14 Port
B16: CC | C16: heightsm(t) = gainS*merrS + gainP*merP + heightsm(t-1) + .0133*(high pass integrated accelerometer) Estimated height calculated on sheet
B17: CD | C17: Sensor heightsm The flight computer's estmate height to be compared with the Excel calculations to verify that the flight computer is operating properly
B18: CE | C18: merrS = heightS - heightsm Height measurement error Starboard
B19: CF | C19: merrP = heightP - heightsm Height measurement error Port
B20: CG | C20: mnoiseS = merrS^2 +mnoise Measurement noise = (measurement error)^2+ constant
B21: CH | C21: mnoiseP = merrP^2 +mnoise Measurement noise = (measurement error)^2+ constant
B22: CI | C22: mn11 = mnoiseS + system noise
B23: CJ | C23: mn12 = mnoiseS
B24: CK | C24: mn21 = mnoiseS
B25: CL | C25: mn22 = mnoiseP + system noise
B26: CM | C26: Determinant of CI - CL
B27: CN | C27: Inverse of mn matrix
B28: CO | C28: Inverse of mn matrix
B29: CP | C29: Inverse of mn matrix
B30: CQ | C30: Inverse of mn matrix
B31: CR | C31: minfo
B32: CS | C32: gainS = minfo / mnoiseS Used in CC
B33: CT | C33: gainP = minfo / mnoiseP Used in CC
B36: The height measurements are read
B37: Measurement errors are calculated
B38: Measurement noise is calculated - squared error plus a constant
B39: The KF matrix is formed plus plant noise
B40: It is inverted and the KF gains calculated
B41: They are used in CC to update the height estimate
B43: The values in CG6 and CI6 control the height gain values and how they respond to outlying signals.
B44: Lower values of measurement noise increase the gains.
B45: Lower values of sysem noise decrease the gains
B46: An appropriate choice of these can produce small gains for oulyers and large gains for near expected signals.
B47: Too low a gain can cause divergence.

Sheet State4
L2: Highlight the cell A6, StartSim4
L3: Go to View, Macros, View Macros and highlight sim4x, and run
L4: Wait for the output to be placed on your sheet
A5: Simulation | L5: Graphs below show dynamics
A6: StartSim4 | AG6: Tools, Solver
A7: Time increment | B7: =1/75 -> 0.01333333333 | C7: =1/B7 -> 75 | L7: In the Excel Basic: View, Macros, View Macros and highlight sim4, and edit | AC7: 0.212473659 | AD7: 0.178474644 | AE7: 2.014813247 | AF7: -0.1097755585 | AG7: g1 | AI7: g2 | AK7: g3 | AM7: g4
A8: Speed | B8: 29 | C8: height | D8: =B8*6080/3600 -> 48.97777778 | E8: deg. | G8: Lift | L8: ABMatrix4 computes the A and B matrixes from hydrofoil information. | AG8: 0.4428053157 | AH8: =SUM(AH12:AH20) -> 9.754855562e-07 | AI8: 0.1236110462 | AJ8: =SUM(AJ12:AJ20) -> 0.0001672269336 | AK8: 1.487969865 | AL8: =SUM(AL12:AL20) -> 0.1218147588 | AM8: 0.1523134838 | AN8: =SUM(AN12:AN20) -> 0.005631373109
A9: LiftSlope | B9: 25725.43481 | C9: Lift at .1 Rad | D9: 2618.814636 | E9: 1/Coef foil to acc | G9: =F25*B9 -> 1500 | L9: sim4 has the Q and R matrixes, the max control, and the actuator delay | AE9: Q 4 4 4 4 | AF9: R 20 | AG9: -0.0007486550645 | AH9: f/s | AI9: 1.880493206 | AJ9: f/s | AK9: 0.2503090317 | AL9: s/f | AM9: -47.69329802 | AN9: s/f
A10: k | B10: 548.809276 | C10: Span | D10: 56 | E10: 0.2290840849 | L10: Kalman4 has the initial noise, additive system noise and measurement noise matrixes | AA10: Knots | AB10: f/s | AC10: g1 | AD10: g2 | AE10: g3 | AF10: g4 | AM10: s/f
A11: Time increment | B11: 0.01333333333 | C11: Cord | D11: 7.125 | I11: spd * (1 - Exp(-k / spd * dt)) | AA11: 5 | AB11: =AA11*6080/3600 -> 8.444444444
A12: Speed ft/sec | B12: 48.94555556 | F12: Rad/sec | I12: =D8*(1-EXP(-B10/D8*B7)) -> 6.797065297 | L12: Red are input cells | AA12: 10 | AB12: 16.88888889 | AC12: 0.4307015621 | AD12: 0.2295149829 | AE12: 5.525947021 | AF12: -2.709611772 | AG12: =$AG$8+$AG$9*AB12 -> 0.4301613635 | AH12: =(AG12-AC12)^2 -> 2.918144778e-07 | AI12: =$AI$8+$AI$9/AB12 -> 0.2349560386 | AJ12: =(AI12-AD12)^2 -> 2.96050875e-05 | AK12: =$AK$8+$AK$9*AB12 -> 5.71541129 | AL12: =(AK12-AE12)^2 -> 0.03589670921 | AM12: =$AM$8+$AM$9/AB12 -> -2.671631794 | AN12: =(AM12-AF12)^2 -> 0.001442478796
A13: A matrix | B13: height | C13: dheight/dt | D13: Foil alpha | E13: Constant | F13: B matrix | I13: =(1-EXP(-B10/D8*B7)) -> 0.1387785564 | L13: Yellow are inputs in the Basic code | AA13: 15 | AB13: 25.33333333 | AC13: 0.423965737 | AD13: 0.2008985638 | AE13: 7.785831982 | AF13: -1.696822513 | AG13: 0.4238393874 | AH13: 1.596421845e-08 | AI13: =$AI$8+$AI$9/AB13 -> 0.1978410411 | AJ13: 9.348444758e-06 | AK13: =$AK$8+$AK$9*AB13 -> 7.829132002 | AL13: 0.001874891757 | AM13: -1.730316701 | AN13: 0.001121860604
A14: height | B14: 1 | C14: 0.01238451983 | D14: 0.04644020419 | E14: -0.002707837857 | F14: 0.0002088205503 | H14: 0.0583 | J14: 1 | AA14: 20 | AB14: 33.77777778 | AC14: 0.4173634531 | AD14: 0.1844819638 | AE14: 9.998922613 | AF14: -1.225778075 | AG14: 0.4175174113 | AH14: 2.370312069e-08 | AI14: 0.1792835424 | AJ14: 2.702358491e-05 | AK14: 9.942852715 | AL14: 0.003143833458 | AM14: -1.259659155 | AN14: 0.00114792755
A15: dheight/dt | B15: 0 | C15: 0.861136741 | D15: 6.79673936 | E15: -0.3963046345 | F15: 0.04644161547 | H15: =D15*H14 -> 0.3962499047 | J15: =J14*D8 -> 48.97777778 | AA15: 25 | AB15: 42.22222222 | AC15: 0.4108800267 | AD15: 0.173011729 | AE15: 12.17038512 | AF15: -0.9548718821 | AG15: 0.4111954352 | AH15: 9.948253296e-08 | AI15: 0.1681490432 | AJ15: 2.364571401e-05 | AK15: 12.05657343 | AL15: 0.01295310226 | AM15: -0.9772646272 | AN15: 0.0005014350326
A16: Foil alpha | B16: 0 | C16: 0 | D16: 1 | E16: 0 | F16: 0.01333333333 | H16: =H15+E15 -> -5.472976746e-05 | J16: =J15*B7 -> 0.653037037 | AA16: 30 | AB16: 50.66666667 | AC16: 0.4045098288 | AD16: 0.1640680046 | AE16: 14.30201502 | AF16: -0.7792497802 | AG16: 0.4048734591 | AH16: 1.322270074e-07 | AI16: 0.1607260437 | AJ16: 1.116870303e-05 | AK16: 14.17029414 | AL16: 0.01735039016 | AM16: -0.7890016087 | AN16: 9.509815788e-05
A17: Constant | B17: 0 | C17: 0 | D17: 0 | E17: 1 | F17: 0 | AA17: 35 | AB17: 59.11111111 | AC17: 0.3982500221 | AD17: 0.1566132053 | AE17: 16.39460883 | AF17: -0.6562776837 | AG17: 0.398551483 | AH17: 9.08786944e-08 | AI17: 0.1554239012 | AJ17: 1.414444363e-06 | AK17: 16.28401485 | AL17: 0.01223102742 | AM17: -0.654528024 | AN17: 3.061309115e-06
A18: Q matrix | B18: 4 | C18: 0 | D18: 0 | E18: 0 | I18: =C15*F16 -> 0.01148182321 | AA18: 40 | AB18: 67.55555556 | AC18: 0.3920988295 | AD18: 0.1501278371 | AE18: 18.4486067 | AF18: -0.5654141933 | AG18: 0.3922295069 | AH18: 1.707659612e-08 | AI18: 0.1514472943 | AJ18: 1.740967143e-06 | AK18: 18.39773556 | AL18: 0.002587872705 | AM18: -0.5536728356 | AN18: 0.0001378594809
A19: dheight/dt | B19: 0 | C19: 4 | D19: 0 | E19: 0 | AA19: 45 | AB19: 76 | AC19: 0.3860549228 | AD19: 0.1443224801 | AE19: 20.46431527 | AF19: -0.4955592797 | AG19: 0.3859075308 | AH19: 2.172440574e-08 | AI19: 0.1483543778 | AJ19: 1.625619952e-05 | AK19: 20.51145628 | AL19: 0.00222227487 | AM19: -0.4752299112 | AN19: 0.0004132832253
A20: Foil alpha | B20: 0 | C20: 0 | D20: 0.1 | E20: 0 | AA20: 50 | AB20: 84.44444444 | AC20: 0.3801171697 | AD20: 0.1390226553 | AE20: 22.44199769 | AF20: -0.4401950405 | AG20: 0.3795855547 | AH20: 2.826145026e-07 | AI20: 0.1458800447 | AJ20: 4.702378834e-05 | AK20: 22.62517699 | AL20: 0.03355465695 | AM20: -0.4124755717 | AN20: 0.0007683689536
A21: Constant | B21: 0 | C21: 0 | D21: 0 | E21: 0.1
A22: R matrix | B22: 20
A23: iteration | B23: 1000
A24: Control Gain | B24: height | C24: dheight/dt | D24: Foil alpha | E24: Constant
A25: g | B25: 0.4058132783 | C25: 0.1657436109 | D25: 13.87426949 | E25: -0.8089816317 | F25: =-E25/D25 -> 0.05830805235 | G25: 332.0790258 | H25: 17.85170514 | I25: 671.875723 | J25: -39.18469943
F26: =-E26/D26 ->  | G26: 17.85170514 | H26: 14.56590272 | I26: 288.9712951 | J26: -16.85015024
G27: 671.875723 | H27: 288.9712951 | I27: 21912.11483 | J27: -1277.649823
A28: C | B28: height | C28: dheight/dt | D28: Foil alpha | E28: Constant | G28: -39.18469943 | H28: -16.85015024 | I28: -1277.649823 | J28: 174.9374253
A29: height | B29: 1 | C29: 0 | D29: 0 | E29: 0
A30: Acceleration | B30: 0 | C30: 0 | D30: 1 | E30: 0
A31: Measurement error matrix
A32: height | B32: 0.002809 | C32: 0 | G32: =B32^0.5 -> 0.053 | H32: feet
A33: Foil alpha | B33: 0 | C33: 8.41e-06 | G33: =C33^0.5 -> 0.0029 | H33: Radians
A34: Additive System noise matrix
A35: height | B35: 0.0001777777778 | C35: 0 | D35: 0 | E35: 0 | G35: =B35^0.5 -> 0.01333333333 | H35: feet | I35: =G35/$B$7 -> 1
A36: dheight/dt | B36: 0 | C36: 0.0007111111111 | D36: 0 | E36: 0 | G36: =C36^0.5 -> 0.02666666667 | H36: ft/s | I36: =G36/$B$7 -> 2
A37: Foil alpha | B37: 0 | C37: 0 | D37: 1e-06 | E37: 0 | G37: =D37^0.5 -> 0.001 | H37: Radians | I37: 0.075
A38: Constant | B38: 0 | C38: 0 | D38: 0 | E38: 1.777777778e-12 | G38: =E38^0.5 -> 1.333333333e-06 | H38: ft/s^2 | I38: 0.0001
A39: Kalman iteration | B39: 100
A40: Kalman gain H matrix | F40: height | G40: Acceleration
A41: height | B41: 0.2320391998 | C41: 0.06845926904 | E41: height | F41: 0.4927392394 | G41: 0.1276794492 | I41: =B35/(B35+B32) -> 0.05952159518
A42: dheight/dt | B42: 0.2187539076 | C42: 3.534939485 | E42: dheight/dt | F42: 0.5823788953 | G42: 2.183704776
A43: Foil alpha | B43: 0.0002049634933 | C43: 0.2904255125 | E43: Foil alpha | F43: -0.03737860035 | G43: 0.6790835834 | I43: =D37/(D37+C33) -> 0.1062699256
A44: Constant | B44: -0.06411997309 | C44: 0.02021579113 | E44: Constant | F44: -0.1194389819 | G44: -0.02429116811
B45: Rad/sec | C45: Deg./sec | D45: Actuator
A46: maxcontrol | B46: 0.6981311111 | C46: =B46*180/3.14159 -> 40 | D46: Hz
A47: ndelay | B47: 3 | C47: =B47*B7 -> 0.04 | D47: =1/C47 -> 25
I48: 0.002281555822
B49: 0.05312589531 | C49: 0.05410190969 | D49: 0.002281555822 | F49: 0.03797005168 | G49: 1.06799317 | H49: 0.03200902542
B50: =STDEV(B53:B552) -> 0.04448795773 | C50: 0.05939356602 | D50: 0.002001690368 | E50: =STDEV(E53:E552) -> 0.01133339447 | F50: =STDEV(F53:F552) -> 0.03011458013 | G50: 0.975884031 | H50: 0.04891216545 | I50: 0.002871312974 | O50: 1.7 | S50: =E10*D8^2 -> 549.5321067
B51: 0.01069073281 | C51: 0.06458516595 | D51: 0.002989774988 | E51: 7.121056008e-05 | F51: 0.05213036179 | G51: 1.493845382 | H51: 0.02451591393 | I51: 1.565457508 | P51: x
B52: Height | C52: dH/dt | D52: Angle(Rad) | E52: 32 | F52: control(Rad) | G52: Acc. | H52: y(1, 1) | I52: y(2, 1) | J52: HXS(1) | K52: HXS(2) | L52: HXS(3) | M52: HXS(4) | O52: Height | P52: heightS | S52: AoA
A53: 0.01333333333 | B53: 0.007980792948 | C53: 0.00469314059 | D53: 0.05477020625 | E53: 0.9977627275 | G53: 32.35198554 | H53: 0.03463480922 | I53: 0.05418432571 | J53: 0.007980792948 | K53: 0.00469314059 | L53: -0.0002297937531 | M53: -0.002237272536 | O53: =B53+$O$50 -> 1.707980793 | P53: 1.7202 | S53: =C53/$D$8+(G53)/$S$50 -> 0.05896769692
A54: 0.02666666667 | B54: 0.008807884636 | C54: -0.01277562358 | D54: 0.05515147976 | E54: 0.9983394819 | G54: 30.68984269 | H54: 0.002297247811 | I54: 0.05677574484 | J54: -0.001763343353 | K54: 0.006273307085 | L54: 0.0006624141137 | M54: 0.0005767544154 | O54: =B54+$O$50 -> 1.708807885 | P54: 1.7202 | S54: =C54/$D$8+(G54)/$S$50 -> 0.05558637874
A55: 0.04 | B55: 0.01388606426 | C55: -0.03628935665 | D55: 0.05452236602 | E55: 0.9978204515 | G55: 30.23647002 | H55: 0.01985932521 | I55: 0.05352737888 | J55: 0.001680015885 | K55: -0.003274801859 | L55: -0.0004050328915 | M55: -0.0005190304172 | O55: 1.713886064 | P55: 1.70845 | S55: 0.05428127311
A56: 0.05333333333 | B56: 0.01631562153 | C56: -0.06105133644 | D56: 0.05464848176 | E56: 0.9976730312 | F56: 0.04325854809 | G56: 30.14285152 | H56: 0.01771525192 | I56: 0.05261277785 | J56: 0.0002423846405 | K56: -0.006905166348 | L56: -0.0005966535427 | M56: -0.0001474202839 | O56: 1.716315622 | P56: 1.7108 | S56: 0.05360533691
A57: 0.06666666667 | B57: 0.01652203849 | C57: -0.07863537168 | D57: 0.05515023009 | E57: 0.9972786159 | F57: 0.04099493164 | G57: 30.68119736 | H57: 0.0210992864 | I57: 0.05403825024 | J57: 0.001314723956 | K57: -0.001519809514 | L57: -0.0002297033026 | M57: -0.0003944152358 | O57: 1.716522038 | P57: 1.76015 | S57: 0.05422596025
A58: 0.08 | B58: 0.006007367152 | C58: -0.07348043971 | D58: 0.05645160413 | E58: 0.9968955306 | F58: 0.05113999747 | G58: 32.3866199 | H58: 0.01099854599 | I58: 0.05745857119 | J58: 0.001723652617 | K58: 0.009891486185 | L58: 0.0006931744064 | M58: -0.0003830853766 | O58: 1.706007367 | P58: 1.7625 | S58: 0.05743461905
A59: 0.09333333333 | B59: 0.01323455311 | C59: -0.07161073629 | D59: 0.05679345957 | E59: 0.9939626338 | F59: 0.060728221 | G59: 32.14022776 | H59: 0.04803135801 | I59: 0.0546766887 | J59: 0.01035463534 | K59: 0.003414460978 | L59: -0.0005219282077 | M59: -0.002932896726 | O59: 1.713234553 | P59: 1.7625 | S59: 0.05702442643
A60: 0.1066666667 | B60: 0.009954148873 | C60: -0.07027402053 | D60: 0.05704746909 | E60: 0.9937426939 | F60: 0.05584206671 | G60: 32.10025368 | H60: 0.01226709072 | I60: 0.05503731057 | J60: 0.000543454413 | K60: -0.005674593675 | L60: -0.0005171747288 | M60: -0.0002199399063 | O60: 1.709954149 | P60: 1.76015 | S60: 0.0569789767
A61: 0.12 | B61: 0.00601889277 | C61: -0.07590429891 | D61: 0.05708460328 | E61: 0.9938098187 | F61: 0.0428448284 | G61: 31.57772912 | H61: 0.004804875792 | I61: 0.05487476108 | J61: -0.000570012802 | K61: -0.008553142602 | L61: -0.0006711749604 | M61: 6.712478808e-05 | O61: 1.706018893 | P61: 1.8142 | S61: 0.05591316737
A62: 0.1333333333 | B62: 0.01122335684 | C62: -0.07734853676 | D62: 0.05710718547 | E62: 0.9943662632 | F62: 0.03433473979 | G62: 31.89168216 | H62: 0.004276641042 | I62: 0.05552745696 | J62: -0.002237967647 | K62: -0.007606199123 | L62: -0.0004618524628 | M62: 0.0005564444726 | O62: 1.711223357 | P62: 1.81185 | S62: 0.05645498948
A63: 0.1466666667 | B63: 0.01102786864 | C63: -0.0661306227 | D63: 0.05788405713 | E63: 0.9937629545 | F63: 0.03080037975 | G63: 32.84134355 | H63: 0.01852037881 | I63: 0.05858743222 | J63: 0.00240601713 | K63: 0.007726791401 | L63: 0.0004588352336 | M63: -0.0006033086532 | O63: 1.711027869 | P63: 1.80245 | S63: 0.0584121576
A64: 0.16 | B64: 0.0147626287 | C64: -0.05150982144 | D64: 0.05812736854 | E64: 0.9928182158 | F64: 0.03036412577 | G64: 33.09656009 | H64: 0.02603625696 | I64: 0.05757606579 | J64: 0.003390219761 | K64: 0.002494571047 | L64: -5.570283144e-05 | M64: -0.0009447387372 | O64: 1.714762629 | P64: 1.80245 | S64: 0.05917510185
A65: 0.1733333333 | B65: -0.001365100094 | C65: -0.03797114356 | D65: 0.05905466564 | E65: 0.9943116444 | F65: 0.02698778999 | G65: 33.01540084 | H65: -0.01887467226 | I65: 0.06026338963 | J65: -0.00509233354 | K65: 0.002848121772 | L65: 0.0006354777183 | M65: 0.001493428621 | O65: 1.6986349 | P65: 1.8048 | S65: 0.05930383884
A66: 0.1866666667 | B66: 0.006564017193 | C66: -0.02442558093 | D66: 0.05913010411 | E66: 0.9930445731 | F66: 0.01325990472 | G66: 33.0159172 | H66: 0.02165888303 | I66: 0.05863059385 | J66: 0.00452171005 | K66: 0.002704165526 | L66: -0.000126417187 | M66: -0.001267071355 | O66: 1.706564017 | P66: 1.80245 | S66: 0.05958134395
A67: 0.2 | B67: 0.005187127783 | C67: -0.01451612344 | D67: 0.05941503597 | E67: 0.994634348 | F67: 0.005096842929 | G67: 32.74320931 | H67: -0.01380726424 | I67: 0.0595454237 | J67: -0.005714548055 | K67: -0.004442060069 | L67: 7.404496812e-05 | M67: 0.00158977492 | O67: 1.705187128 | P67: 1.75545 | S67: 0.05928741484
A68: 0.2133333333 | B68: 0.0120293458 | C68: 0.02023789968 | D68: 0.06070230695 | E68: 0.9926930068 | F68: -0.002910537865 | G68: 34.60655173 | H68: 0.03589144115 | I68: 0.0632277745 | J68: 0.007522952237 | K68: 0.01928549406 | L68: 0.001026843963 | M68: -0.001941341166 | O68: 1.712029346 | P68: 1.7578 | S68: 0.06338778233
A69: 0.2266666667 | B69: 0.02155331783 | C69: 0.04470265102 | D69: 0.06094506205 | E69: 0.9909506027 | F69: -0.01309141787 | G69: 33.83485635 | H69: 0.04261988706 | I69: 0.06191143045 | J69: 0.006464618746 | K69: 0.00999471462 | L69: 0.0003320383507 | M69: -0.001742404136 | O69: 1.721553318 | P69: 1.71315 | S69: 0.06248301234
A70: 0.24 | B70: 0.02356971734 | C70: 0.04850167913 | D70: 0.06018121212 | E70: 0.9920287706 | F70: -0.01841582284 | G70: 32.28492711 | H70: 0.01039526456 | I70: 0.05934692206 | J70: -0.004117925723 | K70: -0.009180767857 | L70: -0.0004469672304 | M70: 0.001078167922 | O70: 1.723569717 | P70: 1.71315 | S70: 0.05974012614
A71: 0.2533333333 | B71: 0.03057630915 | C71: 0.05037864778 | D71: 0.05964298035 | E71: 0.9934624255 | F71: -0.04792679903 | G71: 32.14077265 | H71: 0.01332191568 | I71: 0.05990414243 | J71: -0.005264486535 | K71: -0.006833708675 | L71: -0.0001611646725 | M71: 0.001433654851 | O71: 1.730576309 | P71: 1.71315 | S71: 0.05951612682
A72: 0.2666666667 | B72: 0.0312224579 | C72: 0.05580129568 | D72: 0.05906235216 | E72: 0.9934138052 | F72: -0.06258684477 | G72: 32.40669859 | H72: 0.03197082621 | I72: 0.06052168285 | J72: 0.0003006959995 | K72: 0.00334049437 | L72: 0.0002560431016 | M72: -4.862022724e-05 | O72: 1.731222458 | P72: 1.7249 | S72: 0.06011075671 | AD72: bdt | AE72: adt(1,1) | AF72: adt(1,2) | AG72: adt(1,3) | AH72: adt(1,4) | AI72: adt(2,1) | AJ72: adt(2,2) | AK72: adt(2,3) | AL72: adt(2,4) | AM72: adt(3,1) | AN72: adt(3,2) | AO72: adt(3,3) | AP72: adt(3,4) | AQ72: u(1,1) | AR72: b(1,1) | AS72: b(2,1) | AT72: b(3,1) | AU72: b(4,1)
A73: 0.28 | B73: 0.03265103109 | C73: 0.05336860082 | D73: 0.05850673318 | E73: 0.993166173 | F73: -0.05359111163 | G73: 31.81754789 | H73: 0.03560628187 | I73: 0.05913136324 | J73: 0.0008783490552 | K73: 0.0003921182876 | L73: -3.569893596e-05 | M73: -0.0002476322043 | O73: 1.732651031 | P73: 1.8142 | S73: 0.0589889922 | AD73: 0.013 | AE73: 1 | AF73: 0.01209693715 | AG73: 0.04420091269 | AH73: -0.002577269131 | AI73: 0 | AJ73: 0.8643613042 | AK73: 6.638911322 | AL73: -0.3871019889 | AM73: 0 | AN73: 0 | AO73: 1 | AP73: 0 | AQ73: 0.0006666666667 | AR73: 2.946727513e-05 | AS73: 0.004425940881 | AT73: 0.0006666666667 | AU73: 0
A74: 0.2933333333 | B74: 0.04318262432 | C74: 0.05848521299 | D74: 0.05796538968 | E74: 0.9908374741 | F74: -0.05380710401 | G74: 32.38374591 | H74: 0.07131002198 | I74: 0.05959659442 | J74: 0.00861103649 | K74: 0.01262394817 | L74: 0.0003846133151 | M74: -0.002328698974 | O74: 1.743182624 | P74: 1.8142 | S74: 0.0601237877 | AD74: 0.01233333333 | AE74: 1 | AF74: 0.01151853718 | AG74: 0.03988065041 | AH74: -0.002325363052 | AI74: 0 | AJ74: 0.8708466994 | AK74: 6.32148005 | AL74: -0.3685931897 | AM74: 0 | AN74: 0 | AO74: 1 | AP74: 0 | AQ74: 0.0006666666667 | AR74: 5.60543754e-05 | AS74: 0.008640260915 | AT74: 0.001333333333 | AU74: 0
A75: 0.3066666667 | B75: 0.03974958687 | C75: 0.04813599625 | D75: 0.05716950817 | E75: 0.9906249746 | F75: -0.04977768202 | G75: 31.22380874 | H75: 0.04225093602 | I75: 0.05761135189 | J75: 0.0007248519904 | K75: -0.0003984959679 | L75: -8.987682657e-05 | M75: -0.0002124994092 | O75: 1.739749587 | P75: 1.80245 | S75: 0.05780171104 | AD75: 0.01166666667 | AE75: 1 | AF75: 0.01093579741 | AG75: 0.03577280189 | AH75: -0.002085842406 | AI75: 0 | AJ75: 0.8773807552 | AK75: 6.001667058 | AL75: -0.3499455171 | AM75: 0 | AN75: 0 | AO75: 1 | AP75: 0 | AQ75: 0.0006666666667 | AR75: 7.990290999e-05 | AS75: 0.01264137229 | AT75: 0.002 | AU75: 0
A76: 0.32 | B76: 0.04327950738 | C76: 0.03775296677 | D76: 0.05652469703 | E76: 0.9899494002 | F76: -0.04071160578 | G76: 31.22127279 | H76: 0.05122561855 | I76: 0.05643740668 | J76: 0.002319450009 | K76: -0.0008848289744 | L76: -0.0002549389976 | M76: -0.0006755743967 | O76: 1.743279507 | P76: 1.80245 | S76: 0.05758510158 | AD76: 0.011 | AE76: 1 | AF76: 0.01034868528 | AG76: 0.0318789609 | AH76: -0.001858800122 | AI76: 0 | AJ76: 0.8839638367 | AK76: 5.679454475 | AL76: -0.3311579289 | AM76: 0 | AN76: 0 | AO76: 1 | AP76: 0 | AQ76: 0.0006666666667 | AR76: 0.0001011555506 | AS76: 0.01642767527 | AT76: 0.002666666667 | AU76: 0
A77: 0.3333333333 | B77: 0.03745390334 | C77: 0.02148555916 | D77: 0.05612908214 | E77: 0.9905436127 | F77: -0.04024827844 | G77: 30.77994443 | H77: 0.03040815256 | I77: 0.05692374246 | J77: -0.002099232568 | K77: -0.0007263054272 | L77: 0.000102960994 | M77: 0.0005942124412 | O77: 1.737453903 | P77: 1.8048 | S77: 0.05644986463 | AD77: 0.01033333333 | AE77: 1 | AF77: 0.009757167983 | AG77: 0.02820073317 | AH77: -0.001644329826 | AI77: 0 | AJ77: 0.8905963118 | AK77: 5.354824297 | AL77: -0.3122293755 | AM77: 0 | AN77: 0 | AO77: 1 | AP77: 0 | AQ77: 0.0006666666667 | AR77: 0.0001199560394 | AS77: 0.01999755813 | AT77: 0.003333333333 | AU77: 0
A78: 0.3466666667 | B78: 0.03804870137 | C78: 0.01517890654 | D78: 0.05626892696 | E78: 0.9906272496 | F78: -0.0254926618 | G78: 31.52700105 | H78: 0.0373417592 | I78: 0.0577916465 | J78: -6.663296896e-05 | K78: 0.005721346055 | L78: 0.0004838966238 | M78: 8.3636895e-05 | O78: 1.738048701 | P78: 1.77425 | S78: 0.05768054031 | AD78: 0.009666666667 | AE78: 1 | AF78: 0.00916121247 | AG78: 0.02473973645 | AH78: -0.001442525848 | AI78: 0 | AJ78: 0.8972785511 | AK78: 5.027758383 | AL78: -0.293158799 | AM78: 0 | AN78: 0 | AO78: 1 | AP78: 0 | AQ78: 0.0006666666667 | AR78: 0.000136449197 | AS78: 0.02334939706 | AT78: 0.004 | AU78: 0
A79: 0.36 | B79: 0.04064177924 | C79: -0.002018337568 | D79: 0.05517649424 | E79: 0.9895804408 | F79: -0.01505678408 | G79: 30.71020669 | H79: 0.05279405509 | I79: 0.05378696249 | J79: 0.003471471051 | K79: -0.004489441406 | L79: -0.0006463857083 | M79: -0.001046808773 | O79: 1.740641779 | P79: 1.7719 | S79: 0.05584307179 | AD79: 0.009 | AE79: 1 | AF79: 0.00856078544 | AG79: 0.02149760066 | AH79: -0.001253483225 | AI79: 0 | AJ79: 0.9040109279 | AK79: 4.698238459 | AL79: -0.2739451341 | AM79: 0 | AN79: 0 | AO79: 1 | AP79: 0 | AQ79: 0.0006666666667 | AR79: 0.0001507809308 | AS79: 0.02648155603 | AT79: 0.004666666667 | AU79: 0
A80: 0.3733333333 | B80: 0.04559343994 | C80: -0.01868377234 | D80: 0.05489584276 | E80: 0.9887757309 | F80: -0.003937566506 | G80: 30.75009239 | H80: 0.05519017204 | I80: 0.05477397623 | J80: 0.002877817536 | K80: 0.001872754298 | L80: -6.776467976e-05 | M80: -0.0008047099569 | O80: 1.74559344 | P80: 1.7719 | S80: 0.05557538776 | AD80: 0.008333333333 | AE80: 1 | AF80: 0.007955853341 | AG80: 0.01847596793 | AH80: -0.001077297705 | AI80: 0 | AJ80: 0.9107938185 | AK80: 4.366246112 | AL80: -0.2545873069 | AM80: 0 | AN80: 0 | AO80: 1 | AP80: 0 | AQ80: 0.0006666666667 | AR80: 0.0001630982427 | AS80: 0.02939238677 | AT80: 0.005333333333 | AU80: 0
A81: 0.3866666667 | B81: 0.03766819686 | C81: -0.0453084872 | D81: 0.05454554419 | E81: 0.990386725 | F81: -0.002161764346 | G81: 30.00314639 | H81: 0.01812965434 | I81: 0.05358174487 | J81: -0.006029065157 | K81: -0.01056424224 | L81: -0.0004136613162 | M81: 0.001610994114 | O81: 1.737668197 | P81: 1.7766 | S81: 0.05367253972 | AD81: 0.007666666667 | AE81: 1 | AF81: 0.007346382372 | AG81: 0.01567649272 | AH81: -0.0009140657585 | AI81: 0 | AJ81: 0.9176276018 | AK81: 4.031762791 | AL81: -0.2350842359 | AM81: 0 | AN81: 0 | AO81: 1 | AP81: 0 | AQ81: 0.0006666666667 | AR81: 0.0001735492379 | AS81: 0.03208022863 | AT81: 0.006 | AU81: 0
A82: 0.4 | B82: 0.0381682559 | C82: -0.05967546661 | D82: 0.05515021983 | E82: 0.9911347968 | F82: 0.01595786962 | G82: 30.92247654 | H82: 0.02928847838 | I82: 0.05527960475 | J82: -0.002639327331 | K82: -0.0008263324735 | L82: 0.00013671668 | M82: 0.0007480718246 | O82: 1.738168256 | P82: 1.77895 | S82: 0.05505213559 | AD82: 0.007 | AE82: 1 | AF82: 0.006732338478 | AG82: 0.01310084191 | AH82: -0.000763884576 | AI82: 0 | AJ82: 0.9245126598 | AK82: 3.694769806 | AL82: -0.2154348313 | AM82: 0 | AN82: 0 | AO82: 1 | AP82: 0 | AQ82: 0.0006666666667 | AR82: 0.0001822831325 | AS82: 0.0345434085 | AT82: 0.006666666667 | AU82: 0
A83: 0.4133333333 | B83: 0.04140573181 | C83: -0.0634430645 | D83: 0.05560538571 | E83: 0.9907726259 | F83: 0.02209692623 | G83: 31.71743016 | H83: 0.04578863858 | I83: 0.05551315979 | J83: 0.001351263961 | K83: 0.002269551226 | L83: 8.449894616e-05 | M83: -0.0003621708571 | O83: 1.741405732 | P83: 1.77895 | S83: 0.05642181181 | AD83: 0.006333333333 | AE83: 1 | AF83: 0.006113687346 | AG83: 0.01075069487 | AH83: -0.0006268520793 | AI83: 0 | AJ83: 0.931449377 | AK83: 3.355248326 | AL83: -0.1956379951 | AM83: 0 | AN83: 0 | AO83: 1 | AP83: 0 | AQ83: 0.0006666666667 | AR83: 0.0001894502624 | AS83: 0.03678024072 | AT83: 0.007333333333 | AU83: 0
A84: 0.4266666667 | B84: 0.04748422489 | C84: -0.06646336146 | D84: 0.05576509128 | E84: 0.9906121421 | F84: 0.0362316986 | G84: 31.77347773 | H84: 0.04948068892 | I84: 0.05561619686 | J84: 0.0006475706079 | K84: 0.002247638834 | L84: 0.0001375503321 | M84: -0.0001604838541 | O84: 1.747484225 | P84: 1.7437 | S84: 0.05646213657 | AD84: 0.005666666667 | AE84: 1 | AF84: 0.005490394409 | AG84: 0.008627743578 | AH84: -0.0005030669243 | AI84: 0 | AJ84: 0.9384381412 | AK84: 3.013179381 | AL84: -0.1756926211 | AM84: 0 | AN84: 0 | AO84: 1 | AP84: 0 | AQ84: 0.0006666666667 | AR84: 0.0001952020915 | AS84: 0.03878902697 | AT84: 0.008 | AU84: 0
A85: 0.44 | B85: 0.03956025122 | C85: -0.05894207807 | D85: 0.05781274221 | E85: 0.9924181753 | F85: 0.03411871198 | G85: 32.56409625 | H85: 0.01875392226 | I85: 0.06076088294 | J85: -0.005857633888 | K85: 0.01109475281 | L85: 0.0013851553 | M85: 0.001806033243 | O85: 1.739560251 | P85: 1.74605 | S85: 0.05805441395 | AD85: 0.005 | AE85: 1 | AF85: 0.004862424838 | AG85: 0.006733692711 | AH85: -0.0003926285072 | AI85: 0 | AJ85: 0.9454793428 | AK85: 2.668543855 | AL85: -0.1555975948 | AM85: 0 | AN85: 0 | AO85: 1 | AP85: 0 | AQ85: 0.0006666666667 | AR85: 0.0001996912199 | AS85: 0.04056805621 | AT85: 0.008666666667 | AU85: 0
A86: 0.4533333333 | B86: 0.04427917218 | C86: -0.04554860172 | D86: 0.05838093089 | E86: 0.9913140087 | F86: 0.02800471365 | G86: 33.00451073 | H86: 0.05758941719 | I86: 0.05837807678 | J86: 0.004070453881 | K86: 0.005667084905 | L86: 0.0001566833111 | M86: -0.001104166637 | O86: 1.744279172 | P86: 1.74605 | S86: 0.0591293096 | AD86: 0.004333333333 | AE86: 1 | AF86: 0.004229743545 | AG86: 0.005070259734 | AH86: -0.00029563697 | AI86: 0 | AJ86: 0.9525733753 | AK86: 2.321322493 | AL86: -0.1353517934 | AM86: 0 | AN86: 0 | AO86: 1 | AP86: 0 | AQ86: 0.0006666666667 | AR86: 0.0002030713931 | AS86: 0.04211560454 | AT86: 0.009333333333 | AU86: 0
A87: 0.4666666667 | B87: 0.03848476915 | C87: -0.05145483786 | D87: 0.05742242931 | E87: 0.9912993568 | F87: 0.02641774282 | G87: 31.55703229 | H87: 0.0378728497 | I87: 0.05387571688 | J87: -0.0005845788909 | K87: -0.01617590369 | L87: -0.001307828021 | M87: -1.465191555e-05 | O87: 1.738484769 | P87: 1.8048 | S87: 0.05637469971 | AD87: 0.003666666667 | AE87: 1 | AF87: 0.003592315176 | AG87: 0.003639174995 | AH87: -0.0002121932062 | AI87: 0 | AJ87: 0.9597206351 | AK87: 1.971495891 | AL87: -0.1149540856 | AM87: 0 | AN87: 0 | AO87: 1 | AP87: 0 | AQ87: 0.0006666666667 | AR87: 0.0002054975097 | AS87: 0.04342993513 | AT87: 0.01 | AU87: 0
A88: 0.48 | B88: 0.0404786427 | C88: -0.03499051462 | D88: 0.05810569922 | E88: 0.9911691755 | F88: 0.001030853212 | G88: 33.23482424 | H88: 0.04241867083 | I88: 0.05964841384 | J88: 0.0007818530627 | K88: 0.008352176837 | L88: 0.0006378378017 | M88: -0.0001301812992 | O88: 1.740478643 | P88: 1.80715 | S88: 0.05976398692 | AD88: 0.003 | AE88: 1 | AF88: 0.002950104115 | AG88: 0.00244218183 | AH88: -0.000142398866 | AI88: 0 | AJ88: 0.9669215216 | AK88: 1.619044503 | AL88: -0.09440333167 | AM88: 0 | AN88: 0 | AO88: 1 | AP88: 0 | AQ88: 0.0006666666667 | AR88: 0.000207125631 | AS88: 0.04450929814 | AT88: 0.01066666667 | AU88: 0
A89: 0.4933333333 | B89: 0.02988924228 | C89: -0.03247857678 | D89: 0.05780512158 | E89: 0.9911832824 | F89: -0.01305909421 | G89: 32.18839534 | H89: 0.02954675231 | I89: 0.05725917636 | J89: -0.0001947834817 | K89: -0.003705886822 | L89: -0.0002948758181 | M89: 1.410695317e-05 | O89: 1.729889242 | P89: 1.8095 | S89: 0.05791105626 | AD89: 0.002333333333 | AE89: 1 | AF89: 0.002303074475 | AG89: 0.001481036652 | AH89: -8.635636265e-05 | AI89: 0 | AJ89: 0.974176437 | AK89: 1.263948635 | AL89: -0.07369838319 | AM89: 0 | AN89: 0 | AO89: 1 | AP89: 0 | AQ89: 0.0006666666667 | AR89: 0.0002081129887 | AS89: 0.04535193056 | AT89: 0.01133333333 | AU89: 0
A90: 0.5066666667 | B90: 0.02666436838 | C90: -0.02174213804 | D90: 0.05812776597 | E90: 0.9916248802 | F90: 0.00325200425 | G90: 32.8052329 | H90: 0.02156103892 | I90: 0.05884710859 | J90: -0.001446114656 | K90: 0.002360357291 | L90: 0.0003102789903 | M90: 0.0004415978105 | O90: 1.726664368 | P90: 1.8048 | S90: 0.05925274443 | AD90: 0.001666666667 | AE90: 1 | AF90: 0.001651190102 | AG90: 0.0007575090539 | AH90: -4.416887758e-05 | AI90: 0 | AJ90: 0.9814857869 | AK90: 0.9061884445 | AL90: -0.05283808327 | AM90: 0 | AN90: 0 | AO90: 1 | AP90: 0 | AQ90: 0.0006666666667 | AR90: 0.0002086179948 | AS90: 0.04595605619 | AT90: 0.012 | AU90: 0
A91: 0.52 | B91: 0.03344716331 | C91: -0.008741250424 | D91: 0.05827180217 | E91: 0.9906772298 | F91: -0.01476506928 | G91: 32.97506657 | H91: 0.04514457206 | I91: 0.05987260508 | J91: 0.003710211882 | K91: 0.01037961999 | L91: 0.0005790738085 | M91: -0.0009476504243 | O91: 1.733447163 | P91: 1.80715 | S91: 0.05982724045 | AD91: 0.001 | AE91: 1 | AF91: 0.0009944145714 | AG91: 0.0002733819056 | AH91: -1.594036647e-05 | AI91: 0 | AJ91: 0.9888499796 | AK91: 0.545743941 | AL91: -0.03182126628 | AM91: 0 | AN91: 0 | AO91: 1 | AP91: 0 | AQ91: 0.0006666666667 | AR91: 0.0002088002494 | AS91: 0.04631988548 | AT91: 0.01266666667 | AU91: 0
A92: 0.5333333333 | B92: 0.03171034065 | C92: 0.0009116297842 | D92: 0.05814803525 | E92: 0.9900326119 | F92: -0.009418533308 | G92: 32.72396602 | H92: 0.03960997198 | I92: 0.05899517155 | J92: 0.002477194339 | K92: 0.005874762456 | L92: 0.0002983262512 | M92: -0.0006446179493 | O92: 1.731710341 | P92: 1.8048 | S92: 0.0595673922 | AD92: 0.0003333333333 | AE92: 1 | AF92: 0.0003327111838 | AG92: 3.045145447e-05 | AH92: -1.775565002e-06 | AI92: 0 | AJ92: 0.9962694267 | AK92: 0.1825949839 | AL92: -0.01064675788 | AM92: 0 | AN92: 0 | AO92: 1 | AP92: 0 | AQ92: 0.0006666666667 | AR92: 0.0002088205503 | AS92: 0.04644161547 | AT92: 0.01333333333 | AU92: 0
A93: 0.5466666667 | B93: 0.04364038989 | C93: 0.004594401756 | D93: 0.05816896097 | E93: 0.9900028637 | F93: -0.01086421384 | G93: 32.2762079 | H93: 0.04408040511 | I93: 0.05864650562 | J93: 0.000174076616 | K93: 0.001791842056 | L93: 0.0001363445571 | M93: -2.974821143e-05 | O93: 1.74364039 | P93: 1.7766 | S93: 0.05882778608
A94: 0.56 | B94: 0.0448131291 | C94: 0.006624435061 | D94: 0.0579188711 | E94: 0.9904935511 | F94: -0.0220097995 | G94: 32.1522525 | H94: 0.03900349916 | I94: 0.05847009296 | J94: -0.001724579079 | K94: -0.0003727494403 | L94: 0.0001033214744 | M94: 0.0004906874861 | O94: 1.744813129 | P94: 1.7766 | S94: 0.05864366879
A95: 0.5733333333 | B95: 0.05427913124 | C95: 0.005758168906 | D95: 0.05761849481 | E95: 0.9903158692 | F95: -0.02067852096 | G95: 31.93503004 | H95: 0.05641369538 | I95: 0.05790246865 | J95: 0.0006447625996 | K95: 0.0006510280659 | L95: 4.182444053e-06 | M95: -0.0001776819408 | O95: 1.754279131 | P95: 1.7766 | S95: 0.05823069566
A96: 0.5866666667 | B96: 0.05887518585 | C96: 0.01806370718 | D96: 0.05784891894 | E96: 0.989122933 | F96: -0.02672337139 | G96: 32.92291537 | H96: 0.07353687986 | I96: 0.05970650052 | J96: 0.004617443392 | K96: 0.01171483296 | L96: 0.0006200300083 | M96: -0.0011929362 | O96: 1.758875186 | P96: 1.7907 | S96: 0.06027962751
A97: 0.6 | B97: 0.05360624797 | C97: 0.01700108198 | D97: 0.05703525598 | E97: 0.9885543764 | F97: -0.02581753947 | G97: 31.92030311 | H97: 0.06032503729 | I97: 0.0569847756 | J97: 0.001979087532 | K97: -5.598610394e-05 | L97: -0.0001590438316 | M97: -0.0005685566011 | O97: 1.753606248 | P97: 1.79305 | S97: 0.05843344794
A98: 0.6133333333 | B98: 0.05924439506 | C98: 0.007361387054 | D98: 0.05659502106 | E98: 0.9880372325 | F98: -0.02523499685 | G98: 31.27702288 | H98: 0.06528208969 | I98: 0.0562705369 | J98: 0.001739860534 | K98: -0.001584553222 | L98: -0.0002682790022 | M98: -0.0005171438574 | O98: 1.759244395 | P98: 1.7954 | S98: 0.05706603395
A99: 0.6266666667 | B99: 0.04830667659 | C99: 0.005615337242 | D99: 0.0569651611 | E99: 0.9885770847 | F99: -0.03446701142 | G99: 31.86904626 | H99: 0.04232730754 | I99: 0.05938426717 | J99: -0.001562855436 | K99: 0.008102840115 | L99: 0.0007998522811 | M99: 0.0005398521477 | O99: 1.748306677 | P99: 1.7719 | S99: 0.05810770676
A100: 0.64 | B100: 0.03862450739 | C100: 0.004052016929 | D100: 0.05696649545 | E100: 0.9893822107 | F100: -0.02114903647 | G100: 31.88275098 | H100: 0.02918505592 | I100: 0.05806438321 | J100: -0.002751274735 | K100: 0.001384444814 | L100: 0.0003304216777 | M100: 0.0008051260246 | O100: 1.738624507 | P100: 1.7719 | S100: 0.05810072666
A101: 0.6533333333 | B101: 0.0317713593 | C101: 0.001503597564 | D101: 0.05766942469 | E101: 0.9902038938 | F101: -0.0160374773 | G101: 31.80886855 | H101: 0.02225469816 | I101: 0.05919830189 | J101: -0.002711574371 | K101: 0.00386305603 | L101: 0.0005347082713 | M101: 0.0008216830757 | O101: 1.731771359 | P101: 1.7719 | S101: 0.05791424844
A102: 0.6666666667 | B102: 0.0190547416 | C102: -0.003868464611 | D102: 0.05718639742 | E102: 0.9905552855 | F102: -0.01778777923 | G102: 31.59709534 | H102: 0.0147587178 | I102: 0.05705232825 | J102: -0.001345949439 | K102: -0.003090212404 | L102: -0.0001535773916 | M102: 0.0003513917531 | O102: 1.719054742 | P102: 1.8001 | S102: 0.05741919474
A103: 0.68 | B103: 0.01286449102 | C103: -0.02635737356 | D103: 0.05597480616 | E103: 0.9908689616 | F103: -0.01039935899 | G103: 30.31333183 | H103: 0.008416751141 | I103: 0.05328305766 | J103: -0.001700283715 | K103: -0.01545210421 | L103: -0.001160248675 | M103: 0.0003136760961 | O103: 1.712864491 | P103: 1.8048 | S103: 0.05462392635
A104: 0.6933333333 | B104: 0.01340977842 | C104: -0.03363958287 | D104: 0.05658254391 | E104: 0.9905013861 | F104: -0.01529841187 | G104: 31.4538343 | H104: 0.01806944823 | I104: 0.0578232653 | J104: 0.001537359045 | K104: 0.006526066642 | L104: 0.0004261229875 | M104: -0.0003675754998 | O104: 1.713409778 | P104: 1.8048 | S104: 0.05655064884
A105: 0.7066666667 | B105: 0.020983201 | C105: -0.04437082968 | D105: 0.05637940756 | E105: 0.991540698 | F105: -0.002598944494 | G105: 31.19515649 | H105: 0.008349195347 | I105: 0.05565429734 | J105: -0.003913401736 | K105: -0.007421791908 | L105: -0.000315747301 | M105: 0.001039311828 | O105: 1.720983201 | P105: 1.82125 | S105: 0.05586082069
A106: 0.72 | B106: 0.01548191771 | C106: -0.03932760802 | D106: 0.05724408898 | E106: 0.9901447683 | F106: 0.02212851971 | G106: 32.37824162 | H106: 0.03238995614 | I106: 0.05773594365 | J106: 0.005209585089 | K106: 0.008782081705 | L106: 0.0003284652396 | M106: -0.001395929693 | O106: 1.715481918 | P106: 1.8236 | S106: 0.05811668566
A107: 0.7333333333 | B107: 0.01742279489 | C107: -0.03222397478 | D107: 0.05749858099 | E107: 0.9885940905 | F107: 0.01344053317 | G107: 32.53277249 | H107: 0.03610041725 | I107: 0.0577559011 | J107: 0.005699756764 | K107: 0.007532834887 | L107: 0.000185710863 | M107: -0.001550677821 | O107: 1.717422795 | P107: 1.8236 | S107: 0.05854292798
A108: 0.7466666667 | B108: 0.02238897783 | C108: -0.0254886528 | D108: 0.05806595965 | E108: 0.9871734431 | F108: 0.01825303279 | G108: 32.50514915 | H108: 0.03929562969 | I108: 0.05739094683 | J108: 0.005055831681 | K108: 0.002677314239 | L108: -0.000170322786 | M108: -0.001420647389 | O108: 1.722388978 | P108: 1.77425 | S108: 0.05863017887
A109: 0.76 | B109: 0.02775045264 | C109: -0.008891182374 | D109: 0.05785837148 | E109: 0.9851685593 | F109: 0.01129031304 | G109: 33.24481028 | H109: 0.05172284375 | I109: 0.05754774597 | J109: 0.0072246569 | K109: 0.006059326835 | L109: -5.651119481e-05 | M109: -0.002004883776 | O109: 1.727750453 | P109: 1.7766 | S109: 0.06031503992
A110: 0.7733333333 | B110: 0.03295839458 | C110: -0.0159097184 | D110: 0.0572058734 | E110: 0.9841873895 | F110: 0.002865132826 | G110: 31.4736098 | H110: 0.04410110093 | I110: 0.05468010869 | J110: 0.003054798967 | K110: -0.009272087415 | L110: -0.001014046672 | M110: -0.0009811698301 | O110: 1.732958395 | P110: 1.7766 | S110: 0.05694863304
A111: 0.7866666667 | B111: 0.03676822821 | C111: -0.01593643929 | D111: 0.05713432153 | E111: 0.9829889773 | F111: -0.008360071634 | G111: 31.99799593 | H111: 0.05107725317 | I111: 0.05705391536 | J111: 0.004299315411 | K111: 0.003133392342 | L111: -7.315845213e-05 | M111: -0.001198412183 | O111: 1.736768228 | P111: 1.8471 | S111: 0.05790232859
A112: 0.8 | B112: 0.03764960033 | C112: -0.00267487007 | D112: 0.05725277556 | E112: 0.9824347838 | F112: -0.01337075426 | G112: 32.99461769 | H112: 0.04462295014 | I112: 0.05878983563 | J112: 0.002277095406 | K112: 0.00880155396 | L112: 0.0005588148802 | M112: -0.0005541935047 | O112: 1.7376496 | P112: 1.8471 | S112: 0.05998667806
A113: 0.8133333333 | B113: 0.04285920705 | C113: 0.0005999152914 | D113: 0.05682676742 | E113: 0.9813240498 | F113: -0.007685885107 | G113: 32.2456089 | H113: 0.0560730033 | I113: 0.05655392171 | J113: 0.003945350533 | K113: 0.001901018473 | L113: -0.0001486624006 | M113: -0.001110733922 | O113: 1.742859207 | P113: 1.84475 | S113: 0.05869054706
A114: 0.8266666667 | B114: 0.04404749192 | C114: 0.004286564984 | D114: 0.05650751021 | E114: 0.9810560211 | F114: -0.01136821044 | G114: 32.27649873 | H114: 0.04740047464 | I114: 0.05723202761 | J114: 0.001084478891 | K114: 0.003828985032 | L114: 0.0002357832666 | M114: -0.000268028698 | O114: 1.744047492 | P114: 1.80245 | S114: 0.05882203008
A115: 0.84 | B115: 0.0476747299 | C115: -0.002368938443 | D115: 0.05638255808 | E115: 0.9803562221 | F115: -0.01698162019 | G115: 31.50083724 | H115: 0.05605522517 | I115: 0.05658835916 | J115: 0.002528783738 | K115: 0.002294080574 | L115: -5.289716152e-06 | M115: -0.0006997990958 | O115: 1.74767473 | P115: 1.80715 | S115: 0.05727464747
A116: 0.8533333333 | B116: 0.03730807032 | C116: -0.01467876088 | D116: 0.05645013799 | E116: 0.9829371261 | F116: -0.01353064831 | G116: 31.07676332 | H116: 0.00644644227 | I116: 0.05683027834 | J116: -0.009301630225 | K116: -0.007832482509 | L116: 7.014711118e-05 | M116: 0.002580904023 | O116: 1.73730807 | P116: 1.80715 | S116: 0.05625161262
A117: 0.8666666667 | B117: 0.03575752781 | C117: -0.02756061195 | D117: 0.05513842785 | E117: 0.9829233531 | F117: -0.0111211291 | G117: 31.03386117 | H117: 0.03547948008 | I117: 0.05346726445 | J117: -0.0003133069069 | K117: -0.009194539133 | L117: -0.0007448618497 | M117: -1.377294377e-05 | O117: 1.735757528 | P117: 1.76015 | S117: 0.0559105281
A118: 0.88 | B118: 0.03253241104 | C118: -0.04497395215 | D118: 0.05452853435 | E118: 0.9832375722 | F118: -0.01140461879 | G118: 30.69399949 | H118: 0.02851381043 | I118: 0.05362916617 | J118: -0.001347168845 | K118: -0.006417770399 | L118: -0.0004318958861 | M118: 0.0003142190945 | O118: =B118+$O$50 -> 1.732532411 | P118: 1.76015 | S118: =C118/$D$8+(G118)/$S$50 -> 0.0549365361
A119: 0.8933333333 | B119: 0.03017513489 | C119: -0.05086191293 | D119: 0.05461125462 | E119: 0.9822564388 | F119: -0.003341882132 | G119: 31.55840294 | H119: 0.04201659493 | I119: 0.05501951544 | J119: 0.003623774222 | K119: 0.005210601289 | L119: 0.0001533286769 | M119: -0.0009811334665 | O119: 1.730175135 | P119: 1.76015 | S119: 0.05638929992
A120: 0.9066666667 | B120: 0.03602724106 | C120: -0.05129664275 | D120: 0.05552141126 | E120: 0.9800084643 | F120: 0.01807479985 | G120: 31.96739526 | H120: 0.063097655 | I120: 0.05588745767 | J120: 0.008257633516 | K120: 0.01078920528 | L120: 0.0002586658998 | M120: -0.002247974461 | O120: 1.736027241 | P120: 1.8424 | S120: 0.05712467941
A121: 0.92 | B121: 0.03983801257 | C121: -0.05910054191 | D121: 0.05499271876 | E121: 0.9788036231 | F121: 0.03093112026 | G121: 31.41470756 | H121: 0.05390243255 | I121: 0.05310800478 | J121: 0.004067014566 | K121: -0.003348405219 | L121: -0.000597365895 | M121: -0.001204841163 | O121: 1.739838013 | P121: 1.8424 | S121: 0.05595960157
A122: 0.9333333333 | B122: 0.04024282477 | C122: -0.0489575472 | D122: 0.0563639059 | E122: 0.9781310428 | F122: 0.03247649688 | G122: 32.7607246 | H122: 0.04888086094 | I122: 0.0583366113 | J122: 0.002914560195 | K122: 0.0145252414 | L122: 0.0009879910892 | M122: -0.0006725803509 | O122: 1.740242825 | P122: 1.84475 | S122: 0.05861608283
A123: 0.9466666667 | B123: 0.03245601064 | C123: -0.05023764331 | D123: 0.05642736345 | E123: 0.9784475051 | F123: 0.01985590495 | G123: 31.90399279 | H123: 0.02845393836 | I123: 0.05531515632 | J123: -0.001314576382 | K123: -0.005389417669 | L123: -0.0003483966533 | M123: 0.0003164622837 | O123: 1.732456011 | P123: 1.88235 | S123: 0.05703092608
A124: 0.96 | B124: 0.02662367554 | C124: -0.03917356173 | D124: 0.05710949938 | E124: 0.9776299919 | F124: 0.02844176129 | G124: 32.82980612 | H124: 0.03662928079 | I124: 0.05762746861 | J124: 0.003138039529 | K124: 0.007359560723 | L124: 0.0003710150859 | M124: -0.0008175131484 | O124: 1.726623676 | P124: 1.8847 | S124: 0.05894155629
A125: 0.9733333333 | B125: 0.02727780428 | C125: -0.02888336993 | D125: 0.05759880882 | E125: 0.976706062 | F125: 0.007325927486 | G125: 32.77176438 | H125: 0.03850813154 | I125: 0.05817640806 | J125: 0.003478917701 | K125: 0.006597143893 | L125: 0.0002806375015 | M125: -0.0009239298887 | O125: 1.727277804 | P125: 1.8847 | S125: 0.05904603521
A126: 0.9866666667 | B126: 0.03627381127 | C126: -0.008485624592 | D126: 0.05849922847 | E126: 0.975738822 | F126: 0.007640770984 | G126: 33.5298309 | H126: 0.0484517728 | I126: 0.06082509428 | J126: 0.003985465566 | K126: 0.01564713257 | L126: 0.0009983330655 | M126: -0.0009672399842 | O126: 1.736273811 | P126: 1.84475 | S126: 0.0608419809
A127: 1 | B127: 0.04100518666 | C127: 0.009817837093 | D127: 0.05895486379 | E127: 0.9752561519 | F127: -0.0002965654954 | G127: 33.37275963 | H127: 0.04703926046 | I127: 0.05999133161 | J127: 0.001953096367 | K127: 0.006899115748 | L127: 0.0004249100928 | M127: -0.0004826701923 | O127: 1.741005187 | P127: 1.84475 | S127: 0.06092986313
A128: 1.013333333 | B128: 0.02386829301 | C128: 0.0228319741 | D128: 0.0592683568 | E128: 0.9767092776 | F128: -0.0138743565 | G128: 32.97606028 | H128: 0.006745796136 | I128: 0.06059622198 | J128: -0.005031425045 | K128: 0.0008240236575 | L128: 0.000461372784 | M128: 0.001453125762 | O128: 1.723868293 | P128: 1.8471 | S128: 0.0604736926
A129: 1.026666667 | B129: 0.03060182921 | C129: 0.03684732681 | D129: 0.05946698611 | E129: 0.9759228216 | F129: -0.03412030273 | G129: 33.05115145 | H129: 0.04010749455 | I129: 0.06024301327 | J129: 0.00291064024 | K129: 0.004326824143 | L129: 0.0001350049859 | M129: -0.0007864560068 | O129: 1.730601829 | P129: 1.786 | S129: 0.06089649564
A130: 1.04 | B130: 0.05493225631 | C130: 0.06533199681 | D130: 0.05971550894 | E130: 0.9731434442 | F130: -0.04731621745 | G130: 34.13635025 | H130: 0.08871577717 | I130: 0.0623198694 | J130: 0.01045376643 | K130: 0.01955149631 | L130: 0.0008205103816 | M130: -0.00277937745 | O130: 1.754932256 | P130: 1.786 | S130: 0.06345284788
A131: 1.053333333 | B131: 0.05253731332 | C131: 0.07124060311 | D131: 0.05895017125 | E131: 0.9737888698 | F131: -0.04831020645 | G131: 32.44314547 | H131: 0.04473486319 | I131: 0.05926006122 | J131: -0.002402811421 | K131: -0.003910216863 | L131: -0.000139756114 | M131: 0.0006454256192 | O131: 1.752537313 | P131: 1.786 | S131: 0.06049231105
A132: 1.066666667 | B132: 0.06424354669 | C132: 0.08432117716 | D132: 0.05807188021 | E132: 0.9710958681 | F132: -0.06066064475 | G132: 32.98104305 | H132: 0.09657731915 | I132: 0.05914661695 | J132: 0.009800308697 | K132: 0.01058202712 | L132: 0.0001210100858 | M132: -0.002693001667 | O132: 1.764243547 | P132: 1.83065 | S132: 0.06173821097
A133: 1.08 | B133: 0.05864446342 | C133: 0.08086065237 | D133: 0.05788066806 | E133: 0.9735885549 | F133: -0.08349575341 | G133: 31.74046064 | H133: 0.02945255284 | I133: 0.06163873037 | J133: -0.008494303048 | K133: 0.004889404114 | L133: 0.0010716075 | M133: 0.002492686803 | O133: 1.758644463 | P133: 1.83065 | S133: 0.05941003108
A134: 1.093333333 | B134: 0.0577312258 | C134: 0.08768725903 | D134: 0.05779045022 | E134: 0.9735735241 | F134: -0.07255414223 | G134: 32.5119955 | H134: 0.05864552374 | I134: 0.06169579528 | J134: 0.0006408138299 | K134: 0.01497467916 | L134: 0.00120293665 | M134: -1.503082531e-05 | O134: 1.757731226 | P134: 1.83065 | S134: 0.06095339783
A135: 1.106666667 | B135: 0.06278647031 | C135: 0.07740969241 | D135: 0.05603999774 | E135: 0.9720857865 | F135: -0.07184647468 | G135: 31.2291825 | H135: 0.08029532801 | I135: 0.05566669097 | J135: 0.005119100035 | K135: -0.001662272935 | L135: -0.0005383465385 | M135: -0.001487737618 | O135: 1.76278647 | P135: 1.7296 | S135: 0.05840918326
A136: 1.12 | B136: 0.05042801969 | C136: 0.04408017781 | D136: 0.05409472158 | E136: 0.9740096579 | F136: -0.06873324456 | G136: 29.5002864 | H136: 0.02695110182 | I136: 0.0531821479 | J136: -0.007328456669 | K136: -0.01588515364 | L136: -0.000757510464 | M136: 0.001923871397 | O136: 1.75042802 | P136: 1.72725 | S136: 0.05458255656
A137: 1.133333333 | B137: 0.04487674038 | C137: 0.02357686299 | D137: 0.05357473252 | E137: 0.9734546704 | F137: -0.0661453194 | G137: 30.46225139 | H137: 0.05186620079 | I137: 0.05579739539 | J137: 0.002276364867 | K137: 0.00871255085 | L137: 0.0005514250534 | M137: -0.0005549874939 | O137: 1.74487674 | P137: 1.73195 | S137: 0.05591444814
A138: 1.146666667 | B138: 0.04531781441 | C138: 0.003007307146 | D138: 0.05345857749 | E138: 0.9736649498 | F138: -0.04327424795 | G138: 30.45728331 | H138: 0.0432106124 | I138: 0.05567970271 | J138: -0.0004329330999 | K138: 0.007630465446 | L138: 0.0006722005106 | M138: 0.000210279378 | O138: 1.745317814 | P138: 1.79775 | S138: 0.05548543027
A139: 1.16 | B139: 0.02677960914 | C139: -0.03028417139 | D139: 0.05352534072 | E139: 0.9757370591 | F139: -0.00358906329 | G139: 29.50313911 | H139: 0.001994185419 | I139: 0.05370789166 | J139: -0.007473045831 | K139: -0.006418740706 | L139: 4.581254868e-05 | M139: 0.002072109394 | O139: 1.726779609 | P139: 1.79775 | S139: 0.05306941935
A140: 1.173333333 | B140: 0.02193981276 | C140: -0.06011752506 | D140: 0.05330343125 | E140: 0.9771043322 | F140: 0.009326387102 | G140: 29.76249847 | H140: 0.005436177459 | I140: 0.05266889415 | J140: -0.005050631418 | K140: -0.007278288262 | L140: -0.0002150419166 | M140: 0.001367273084 | O140: 1.721939813 | P140: 1.8001 | S140: 0.05293226314
A141: 1.186666667 | B141: 0.01002324796 | C141: -0.0904111117 | D141: 0.05247873512 | E141: 0.9773348144 | F141: 0.01874725561 | G141: 29.727981 | H141: 0.006660944846 | I141: 0.04978669495 | J141: -0.001321656266 | K141: -0.01319443043 | L141: -0.001000882426 | M141: 0.0002304821878 | O141: 1.710023248 | P141: 1.86825 | S141: 0.05225093369
A142: 1.2 | B142: 0.02070964209 | C142: -0.1082871982 | D142: 0.05261396112 | E142: 0.9763547562 | F142: 0.04018837124 | G142: 30.65929351 | H142: 0.03228223627 | I142: 0.05143311227 | J142: 0.003418546715 | K142: 8.325875146e-05 | L142: -0.0002596643998 | M142: -0.0009800582413 | O142: 1.720709642 | P142: 1.86825 | S142: 0.05358068729
A143: 1.213333333 | B143: 0.01956954404 | C143: -0.1218764216 | D143: 0.05360510723 | E143: 0.976797087 | F143: 0.0537717856 | G143: 30.98080825 | H143: 0.01427111138 | I143: 0.05293272425 | J143: -0.001592104881 | K143: -0.00128984163 | L143: 1.6256881e-05 | M143: 0.0004423308488 | O143: 1.719569544 | P143: 1.8706 | S143: 0.05388830034
A144: 1.226666667 | B144: 0.01029519679 | C144: -0.1243979665 | D144: 0.05446550406 | E144: 0.9774096048 | F144: 0.07707324989 | G144: 31.81088413 | H144: 0.002844641051 | I144: 0.05303790578 | J144: -0.002296818091 | K144: -0.004131176869 | L144: -0.0001665106085 | M144: 0.0006125178204 | O144: 1.710295197 | P144: 1.85415 | S144: 0.05534733078
A145: 1.24 | B145: 0.01587072906 | C145: -0.1156972775 | D145: 0.0556549615 | E145: 0.9755712959 | F145: 0.07716366069 | G145: 32.65255168 | H145: 0.03791869906 | I145: 0.05481133621 | J145: 0.006690668458 | K145: 0.007242316904 | L145: 8.411704476e-05 | M145: -0.00183830898 | O145: 1.715870729 | P145: 1.8518 | S145: 0.05705658402
A146: 1.253333333 | B146: 0.02545747846 | C146: -0.0901902391 | D146: 0.05706383916 | E146: 0.9725006233 | F146: 0.06910357135 | G146: 33.91302788 | H146: 0.0623757861 | I146: 0.05676790308 | J146: 0.01123903463 | K146: 0.01370277558 | L146: 0.0002699062689 | M146: -0.003070672526 | O146: 1.725457478 | P146: 1.85415 | S146: 0.05987109824
A147: 1.266666667 | B147: 0.0201687169 | C147: -0.09717180146 | D147: 0.05680888912 | E147: 0.9749379364 | F147: 0.06633517197 | G147: 31.47638282 | H147: -0.009800537634 | I147: 0.05281143231 | J147: -0.009443119577 | K147: -0.02416701059 | L147: -0.001285511763 | M147: 0.002437313019 | O147: 1.720168717 | P147: 1.85415 | S147: 0.05529451688
A148: 1.28 | B148: 0.01926995034 | C148: -0.07872179153 | D148: 0.05750571758 | E148: 0.9746894652 | F148: 0.0446578808 | G148: 33.38375074 | H148: 0.02224394096 | I148: 0.05693968838 | J148: 0.0009052031775 | K148: 0.001001109317 | L148: 1.316026704e-05 | M148: -0.000248471176 | O148: 1.71926995 | P148: 1.85415 | S148: 0.05914211296
A149: 1.293333333 | B149: 0.02023041586 | C149: -0.0575201754 | D149: 0.05794415357 | E149: 0.9749524314 | F149: 0.01295479318 | G149: 33.59012121 | H149: 0.01739959811 | I149: 0.05908542535 | J149: -0.0006895253814 | K149: 0.005772973469 | L149: 0.0005367989215 | M149: 0.0002629662596 | O149: 1.720230416 | P149: 1.85415 | S149: 0.05995053382
A150: 1.306666667 | B150: 0.02380246492 | C150: -0.02854254135 | D150: 0.05866915249 | E150: 0.9740969073 | F150: 0.02123350824 | G150: 34.17332255 | H150: 0.03431321143 | I150: 0.05948076973 | J150: 0.00331504738 | K150: 0.008493238643 | L150: 0.000452063055 | M150: -0.000855524181 | O150: 1.723802465 | P150: 1.739 | S150: 0.06160345135
A151: 1.32 | B151: 0.01845298721 | C151: -0.02053469627 | D151: 0.05839510064 | E151: 0.9757890288 | F151: 0.00449249035 | G151: 32.60058838 | H151: -0.001886610092 | I151: 0.05804552115 | J151: -0.006182397253 | K151: -0.007271783216 | L151: -0.0001262252286 | M151: 0.001692121579 | O151: 1.718452987 | P151: 1.73665 | S151: 0.05890499952
A152: 1.333333333 | B152: 0.02249398356 | C152: -0.0008896310007 | D152: 0.05850336342 | E152: 0.9752982097 | F152: -0.01139303636 | G152: 33.47337989 | H152: 0.02872669963 | I152: 0.06009110374 | J152: 0.00206309309 | K152: 0.008975684306 | L152: 0.0005900753751 | M152: -0.0004908191679 | O152: 1.722493984 | P152: 1.73665 | S152: 0.06089434593
A153: 1.346666667 | B153: 0.01657648336 | C153: 0.009527477969 | D153: 0.05853867191 | E153: 0.9756838332 | F153: -0.0268005049 | G153: 32.78128317 | H153: 0.01199410542 | I153: 0.05902232035 | J153: -0.001370540786 | K153: -0.0006802929075 | L153: 4.997628265e-05 | M153: 0.0003856235695 | O153: 1.716576483 | P153: 1.8236 | S153: 0.05984760736
A154: 1.36 | B154: 0.03068853675 | C154: 0.01516200008 | D154: 0.05767549388 | E154: 0.9744313623 | F154: -0.02401290675 | G154: 32.42258916 | H154: 0.0453591373 | I154: 0.05662228256 | J154: 0.004259152292 | K154: -0.00268270108 | L154: -0.0005566529046 | M154: -0.001252470932 | O154: 1.730688537 | P154: 1.82125 | S154: 0.05930992356
A155: 1.373333333 | B155: 0.04147725186 | C155: 0.01937569372 | D155: 0.05691648941 | E155: 0.9729950465 | F155: -0.03387026264 | G155: 32.31602702 | H155: 0.05859310751 | I155: 0.05697995318 | J155: 0.005121225473 | K155: 0.002951975558 | L155: -0.000152442544 | M155: -0.001436315834 | O155: 1.741477252 | P155: 1.8236 | S155: 0.05920204202
A156: 1.386666667 | B156: 0.02904577486 | C156: -0.001239056515 | D156: 0.05606060371 | E156: 0.9745644954 | F156: -0.03634348359 | G156: 30.45389373 | H156: 0.009798352873 | I156: 0.05467975262 | J156: -0.006052904491 | K156: -0.0148552013 | L156: -0.0007708224105 | M156: 0.001569448931 | O156: 1.729045775 | P156: 1.8189 | S156: 0.05539256234
A157: 1.4 | B157: 0.03763745323 | C157: -0.009703275363 | D157: 0.05547906654 | E157: 0.9745176029 | F157: -0.03150411761 | G157: 31.36518359 | H157: 0.03825209526 | I157: 0.0560886808 | J157: 0.0002075616543 | K157: 0.001123595779 | L157: 7.782135305e-05 | M157: -4.689253883e-05 | O157: 1.737637453 | P157: 1.8142 | S157: 0.05687804619
A158: 1.413333333 | B158: 0.04171528252 | C158: -0.02093211057 | D158: 0.05502713856 | E158: 0.97521084 | F158: -0.02911226096 | G158: 31.15783736 | H158: 0.03333095697 | I158: 0.05505983783 | J158: -0.002580098749 | K158: -0.004181884506 | L158: -0.0001486587079 | M158: 0.0006932371484 | O158: 1.741715283 | P158: 1.8142 | S158: 0.05627146819
A159: 1.426666667 | B159: 0.04240306299 | C159: -0.01596425504 | D159: 0.05637548338 | E159: 0.9752295403 | F159: -0.007982964012 | G159: 32.37258916 | H159: 0.04292326903 | I159: 0.05951553475 | J159: 0.0005378179468 | K159: 0.0153449284 | L159: 0.001241948245 | M159: 1.870024863e-05 | O159: 1.742403063 | P159: 1.78835 | S159: 0.05858341917
A160: 1.44 | B160: 0.04992401841 | C160: -0.0179676891 | D160: 0.05655482062 | E160: 0.9749769361 | F160: -0.00110332649 | G160: 31.84974245 | H160: 0.05298503366 | I160: 0.05671319494 | J160: 0.0009429671129 | K160: 0.001595622576 | L160: 5.995721462e-05 | M160: -0.0002526041184 | O160: 1.749924018 | P160: 1.78835 | S160: 0.0575910744
A161: 1.453333333 | B161: 0.04007148624 | C161: -0.03051071825 | D161: 0.05598821006 | E161: 0.9765449238 | F161: 0.006395014607 | G161: 31.05927281 | H161: 0.02088026639 | I161: 0.05423208195 | J161: -0.006008779737 | K161: -0.0138618887 | L161: -0.0006911544171 | M161: 0.001567987654 | O161: 1.740071486 | P161: 1.7907 | S161: 0.05589653686
A162: 1.466666667 | B162: 0.05357129464 | C162: -0.01495592824 | D162: 0.05613392526 | E162: 0.9726861988 | F162: -0.009326512092 | G162: 33.16660925 | H162: 0.1000075721 | I162: 0.05713915635 | J162: 0.0141423483 | K162: 0.01770157157 | L162: 0.0003780368908 | M162: -0.003858725024 | O162: 1.753571295 | P162: 1.833 | S162: 0.06004890868
A163: 1.48 | B163: 0.06448983432 | C163: 0.003786049321 | D163: 0.05675077818 | E163: 0.9694314654 | F163: -0.01341288026 | G163: 33.40564832 | H163: 0.1039893421 | I163: 0.05902315556 | J163: 0.01219826552 | K163: 0.02179079932 | L163: 0.0008718079961 | M163: -0.003254733405 | O163: 1.764489834 | P163: 1.83065 | S163: 0.0608665581
A164: 1.493333333 | B164: 0.06030174283 | C164: -0.002171815326 | D164: 0.05666261061 | E164: 0.9694702388 | F164: 0.003239589107 | G164: 31.55316015 | H164: 0.05967587013 | I164: 0.05596254889 | J164: -0.0002714485743 | K164: -0.003469423823 | L164: -0.0002691116676 | M164: 3.877344385e-05 | O164: 1.760301743 | P164: 1.833 | S164: 0.05737388577
A165: 1.506666667 | B165: 0.06216093188 | C165: -0.00711928092 | D165: 0.05611227157 | E165: 0.9695309439 | F165: -0.0129909256 | G165: 31.62894008 | H165: 0.06126140201 | I165: 0.05556996818 | J165: -0.0003625356228 | K165: -0.003842504067 | L165: -0.0002932225739 | M165: 6.070510507e-05 | O165: 1.762160932 | P165: 1.82595 | S165: 0.05741077028
A166: 1.52 | B166: 0.05579652077 | C166: -0.03074562966 | D166: 0.05415321267 | E166: 0.9701964694 | F166: -0.03250731923 | G166: 30.22802384 | H166: 0.0469741022 | I166: 0.05108235708 | J166: -0.003108295811 | K166: -0.02008112673 | L166: -0.001437736245 | M166: 0.0006655254441 | O166: 1.755796521 | P166: 1.8236 | S166: 0.05437909198
A167: 1.533333333 | B167: 0.05073681513 | C167: -0.05403973266 | D167: 0.05335802952 | E167: 0.9715771412 | F167: -0.02535549393 | G167: 30.25294227 | H167: 0.03397796891 | I167: 0.05276932689 | J167: -0.005182278252 | K167: -0.009440261731 | L167: -0.0003856643393 | M167: 0.001380671793 | O167: 1.750736815 | P167: 1.8236 | S167: 0.05394883124
A168: 1.546666667 | B168: 0.04974082206 | C168: -0.05769716349 | D168: 0.05422306632 | E168: 0.9707875093 | F168: -0.02073410057 | G168: 31.72569269 | H168: 0.05974872709 | I168: 0.05672853564 | J168: 0.003302953195 | K168: 0.01402888859 | L168: 0.0009161688942 | M168: -0.0007896318769 | O168: 1.749740822 | P168: 1.76955 | S168: 0.05655416387
A169: 1.56 | B169: 0.05708277745 | C169: -0.0630715195 | D169: 0.05468400805 | E169: 0.9698238828 | F169: 0.00972126524 | G169: 31.5969233 | H169: 0.06883375909 | I169: 0.0554162951 | J169: 0.003659848408 | K169: 0.007681171401 | L169: 0.0003572253039 | M169: -0.0009636265099 | O169: 1.757082777 | P169: 1.7672 | S169: 0.05621010787
A170: 1.573333333 | B170: 0.05811500961 | C170: -0.05847919352 | D170: 0.05534090589 | E170: 0.968384685 | F170: 0.02916360772 | G170: 32.34442445 | H170: 0.07560105542 | I170: 0.05598909119 | J170: 0.00541611821 | K170: 0.01020092699 | L170: 0.0004310700577 | M170: -0.001439197755 | O170: 1.75811501 | P170: 1.7672 | S170: 0.05766412151
A171: 1.586666667 | B171: 0.05589987183 | C171: -0.07606421605 | D171: 0.05453606974 | E171: 0.9700526518 | F171: 0.0184243164 | G171: 30.68112331 | H171: 0.0354439712 | I171: 0.05235543579 | J171: -0.006423367892 | K171: -0.01554615986 | L171: -0.0007997398494 | M171: 0.001667966828 | O171: 1.755899872 | P171: 1.80715 | S171: 0.05427832187
A172: 1.6 | B172: 0.06911598202 | C172: -0.08261427024 | D172: 0.0534691476 | E172: 0.9680689501 | F172: 0.01503178675 | G172: 31.50874594 | H172: 0.09226546011 | I172: 0.05078633779 | J172: 0.006684463343 | K172: -0.005809241074 | L172: -0.001007410388 | M172: -0.001983701785 | O172: 1.769115982 | P172: 1.80715 | S172: 0.05565063628
A173: 1.613333333 | B173: 0.06053706927 | C173: -0.1029233659 | D173: 0.05345886875 | E173: 0.9713306151 | F173: 0.00732142944 | G173: 30.47681783 | H173: 0.02145770338 | I173: 0.0533182173 | J173: -0.01181407715 | K173: -0.01139914752 | L173: -3.231329294e-05 | M173: 0.003261664995 | O173: 1.760537069 | P173: 1.80245 | S173: 0.05335814646
A174: 1.626666667 | B174: 0.06194853257 | C174: -0.1102240931 | D174: 0.05381897663 | E174: 0.9725364897 | F174: 0.02158059603 | G174: 31.45244546 | H174: 0.04766915088 | I174: 0.05422067345 | J174: -0.004227012585 | K174: -0.0006316276167 | L174: 0.0002768394389 | M174: 0.001205874613 | O174: 1.761948533 | P174: 1.84945 | S174: 0.05498446318
A175: 1.64 | B175: 0.07303933029 | C175: -0.09889433873 | D175: 0.05477305133 | E175: 0.9705840764 | F175: 0.02984695352 | G175: 32.84973158 | H175: 0.09663249863 | I175: 0.05524917246 | J175: 0.007241159554 | K175: 0.01113245515 | L175: 0.000366665481 | M175: -0.001952413251 | O175: 1.77303933 | P175: 1.84945 | S175: 0.05775847089
A176: 1.653333333 | B176: 0.07434896164 | C176: -0.09474052436 | D176: 0.05511689215 | E176: 0.9704281241 | F176: 0.0379893876 | G176: 32.31153608 | H176: 0.07612540328 | I176: 0.05426890749 | J176: 0.0004963094119 | K176: -0.001199836606 | L176: -0.0001390989859 | M176: -0.0001559522677 | O176: 1.774348962 | P176: 1.8471 | S176: 0.05686391064
A177: 1.666666667 | B177: 0.06795014336 | C177: -0.09768245783 | D177: 0.05539492961 | E177: 0.9713100399 | F177: 0.03735471641 | G177: 31.77935499 | H177: 0.05726253104 | I177: 0.05442101072 | J177: -0.003287044681 | K177: -0.005440172664 | L177: -0.0001988000167 | M177: 0.0008819157624 | O177: 1.767950143 | P177: 1.88 | S177: 0.0558354181
A178: 1.68 | B178: 0.07158036622 | C178: -0.09487929318 | D178: 0.05519110678 | E178: 0.9707731059 | F178: 0.0177530587 | G178: 32.21023735 | H178: 0.07768044751 | I178: 0.0536165685 | J178: 0.001676386385 | K178: -0.004954882567 | L178: -0.0005453205573 | M178: -0.0005369339992 | O178: 1.771580366 | P178: 1.87765 | S178: 0.05667674101
A179: 1.693333333 | B179: 0.07808040356 | C179: -0.1043187017 | D179: 0.05418055507 | E179: 0.9703796573 | F179: 0.01320605853 | G179: 31.29204436 | H179: 0.08208072153 | I179: 0.05110561913 | J179: 0.0008454686202 | K179: -0.01337585149 | L179: -0.001185087311 | M179: -0.0003934486573 | O179: 1.778080404 | P179: 1.87765 | S179: 0.0548131494
A180: 1.706666667 | B180: 0.0749696774 | C180: -0.1067324583 | D180: 0.05370218514 | E180: 0.9699480609 | F180: 0.0130239305 | G180: 31.81896825 | H180: 0.07988966234 | I180: 0.05252007958 | J180: 0.001360863484 | K180: -0.003642914239 | L180: -0.0004109401155 | M180: -0.0004315963743 | O180: 1.774969677 | P180: 1.8142 | S180: 0.05572272585
A181: 1.72 | B181: 0.07590423878 | C181: -0.1175127995 | D181: 0.05391229502 | E181: 0.9710142316 | F181: 0.009700995703 | G181: 31.19147442 | H181: 0.06296651249 | I181: 0.05310716735 | J181: -0.003993853951 | K181: -0.007087280942 | L181: -0.0002814841929 | M181: 0.001066170703 | O181: 1.775904239 | P181: 1.8095 | S181: 0.05436074978
A182: 1.733333333 | B182: 0.07736398844 | C182: -0.1203263846 | D182: 0.05385065306 | E182: 0.9708387626 | F182: 0.02145355376 | G182: 31.78898111 | H182: 0.07926770775 | I182: 0.05277397604 | J182: 0.0004772962173 | K182: -0.003414465631 | L182: -0.0003229119435 | M182: -0.0001754690292 | O182: =B182+$O$50 -> 1.777363988 | P182: 1.81185 | S182: =C182/$D$8+(G182)/$S$50 -> 0.05539060442
A183: 1.746666667 | B183: 0.0820975253 | C183: -0.1051165259 | D183: 0.05502805132 | E183: 0.9688473607 | F183: 0.02936876307 | G183: 33.1407394 | H183: 0.106325971 | I183: 0.05619766397 | J183: 0.007519424522 | K183: 0.01475626155 | L183: 0.0006481625453 | M183: -0.001991401882 | O183: 1.782097525 | P183: 1.8941 | S183: 0.0581609855
A184: 1.76 | B184: 0.07912228787 | C184: -0.09667857413 | D184: 0.05583874627 | E184: 0.9686762745 | F184: 0.02808309958 | G184: 32.63284638 | H184: 0.08132410058 | I184: 0.05611167624 | J184: 0.0007484548906 | K184: 0.003874741107 | L184: 0.0002658199268 | M184: -0.0001710862168 | O184: 1.779122288 | P184: 1.8941 | S184: 0.05740903862
A185: 1.773333333 | B185: 0.07999937765 | C185: -0.08587660153 | D185: 0.0558906149 | E185: 0.9662908093 | F185: 0.03093590237 | G185: 32.81014795 | H185: 0.1081490504 | I185: 0.0537773405 | J185: 0.00829463653 | K185: -0.0004620117773 | L185: -0.0006855987574 | M185: -0.002385465202 | O185: 1.779999378 | P185: 1.8941 | S185: 0.05795222801
A186: 1.786666667 | B186: 0.08047689358 | C186: -0.06344112945 | D186: 0.05642810581 | E186: 0.9649695733 | F186: 0.01007331902 | G186: 33.68266041 | H186: 0.09669339308 | I186: 0.05790027235 | J186: 0.005102819249 | K186: 0.01268902241 | L186: 0.0006636824747 | M186: -0.001321235943 | O186: 1.780476894 | P186: 1.833 | S186: 0.05999803954
A187: 1.8 | B187: 0.07443387547 | C187: -0.06328033778 | D187: 0.05542967678 | E187: 0.9658852769 | F187: -0.001751873056 | G187: 32.01205938 | H187: 0.06302397615 | I187: 0.05364630623 | J187: -0.003674978051 | K187: -0.01231607335 | L187: -0.0007438430864 | M187: 0.0009157035584 | O187: 1.774433875 | P187: 1.833 | S187: 0.05696127986
A188: 1.813333333 | B188: 0.07089185099 | C188: -0.06370213398 | D188: 0.05537916254 | E188: 0.9670678514 | F188: -0.005997660858 | G188: 31.96836528 | H188: 0.05676998545 | I188: 0.05562838194 | J188: -0.004246507197 | K188: -0.003194016063 | L188: 6.396733069e-05 | M188: 0.001182574557 | O188: 1.770891851 | P188: 1.833 | S188: 0.05687315643
A189: 1.826666667 | B189: 0.06225387186 | C189: -0.07373391905 | D189: 0.05495397568 | E189: 0.9693723147 | F189: -0.022457859 | G189: 31.24761612 | H189: 0.03453133289 | I189: 0.0547426532 | J189: -0.008442874992 | K189: -0.01049377782 | L189: -0.0002194998012 | M189: 0.002304463279 | O189: 1.762253872 | P189: 1.8706 | S189: 0.05535676443
A190: 1.84 | B190: 0.06058106251 | C190: -0.06322089529 | D190: 0.05582155018 | E190: 0.96939228 | F190: -0.007718482069 | G190: 32.78847678 | H190: 0.06086789661 | I190: 0.05806675705 | J190: 0.0003553338773 | K190: 0.01081320091 | L190: 0.00087701583 | M190: 1.996528581e-05 | O190: 1.760581063 | P190: 1.87295 | S190: 0.05837536349
A191: 1.853333333 | B191: 0.06002612734 | C191: -0.05483728183 | D191: 0.05581908795 | E191: 0.9687839346 | F191: -0.005372112931 | G191: 32.62877101 | H191: 0.06736509147 | I191: 0.0561001111 | J191: 0.00224368069 | K191: 0.003148937462 | L191: 8.847204212e-05 | M191: -0.0006083453803 | O191: 1.760026127 | P191: 1.8048 | S191: 0.0582559139
A192: 1.866666667 | B192: 0.06495239104 | C192: -0.06005614724 | D192: 0.05618166633 | E192: 0.9706211963 | F192: 0.004386351597 | G192: 31.60858509 | H192: 0.04285167227 | I192: 0.05574077768 | J192: -0.006726234802 | K192: -0.008240292059 | L192: -0.000164842666 | M192: 0.001837261732 | O192: 1.764952391 | P192: 1.7907 | S192: 0.05629289532
A193: 1.88 | B193: 0.06712727369 | C193: -0.05246596995 | D193: 0.05614336329 | E193: 0.9704305766 | F193: -0.005856732457 | G193: 32.5692633 | H193: 0.06952956286 | I193: 0.05670304016 | J193: 0.0007860657675 | K193: 0.003099609843 | L193: 0.0001980319619 | M193: -0.0001906197766 | O193: 1.767127274 | P193: 1.7907 | S193: 0.05819604201
A194: 1.893333333 | B194: 0.06790024213 | C194: -0.04879651362 | D194: 0.05551047822 | E194: 0.9691114834 | F194: -0.007026726233 | G194: 32.27520922 | H194: 0.08352065963 | I194: 0.05486560251 | J194: 0.004626997581 | K194: 0.0007701873172 | L194: -0.0002964432311 | M194: -0.001319093143 | O194: 1.767900242 | P194: 1.7907 | S194: 0.05773586387
A195: 1.906666667 | B195: 0.06547976576 | C195: -0.05233422681 | D195: 0.0553086041 | E195: 0.9692449164 | F195: -0.00982391226 | G195: 31.73467151 | H195: 0.06379227042 | I195: 0.0550664803 | J195: -0.0005574279938 | K195: -0.002352574926 | L195: -0.0001533609352 | M195: 0.0001334329492 | O195: 1.765479766 | P195: 1.88705 | S195: 0.05668000025
A196: 1.92 | B196: 0.0576382276 | C196: -0.05384457206 | D196: 0.05558447333 | E196: 0.9704615218 | F196: -0.01356189708 | G196: 31.88672411 | H196: 0.04328578461 | I196: 0.05665137953 | J196: -0.00422660308 | K196: 0.0003304224737 | L196: 0.0003573013125 | M196: 0.001216605477 | O196: 1.757638228 | P196: 1.8894 | S196: 0.05692585754
A197: 1.933333333 | B197: 0.07148008127 | C197: -0.02863031269 | D197: 0.05680890941 | E197: 0.9690121328 | F197: -0.006995613528 | G197: 33.89106945 | H197: 0.08972282144 | I197: 0.06050115615 | J197: 0.005964362904 | K197: 0.0232490581 | L197: 0.001480034228 | M197: -0.001449389003 | O197: 1.771480081 | P197: 1.88 | S197: 0.06108803488
A198: 1.946666667 | B198: 0.06755319403 | C198: -0.02632948831 | D198: 0.05708311296 | E198: 0.9697641891 | F198: -0.003057418168 | G198: 32.17256183 | H198: 0.05855135993 | I198: 0.05714612678 | J198: -0.002717601981 | K198: -0.002464943565 | L198: 5.720708389e-06 | M198: 0.0007520562779 | O198: 1.767553194 | P198: 1.88 | S198: 0.05800779209
A199: 1.96 | B199: 0.07012950545 | C199: -0.01669548755 | D199: 0.05735250137 | E199: 0.9690854796 | F199: -0.003188740659 | G199: 32.72255006 | H199: 0.07841369072 | I199: 0.05802471506 | J199: 0.002582252683 | K199: 0.005525033607 | L199: 0.0002608707149 | M199: -0.0006787094793 | O199: 1.770129505 | P199: 1.88235 | S199: 0.05920532358
A200: 1.973333333 | B200: 0.07242540325 | C200: -0.009253654675 | D200: 0.05699838424 | E200: 0.9688213818 | F200: -0.02987993813 | G200: 32.55813747 | H200: 0.07566608644 | I200: 0.05768748766 | J200: 0.001013917215 | K200: 0.0023819062 | L200: 0.0001202110407 | M200: -0.0002640978068 | O200: 1.772425403 | P200: 1.88 | S200: 0.05905808012
A201: 1.986666667 | B201: 0.06914110967 | C201: -0.005754204549 | D201: 0.05630701476 | E201: 0.9695495418 | F201: -0.03110450094 | G201: 32.26245876 | H201: 0.0605646011 | I201: 0.05728836985 | J201: -0.002522452993 | K201: 0.0003821127899 | L201: 0.000228710493 | M201: 0.0007281599973 | O201: 1.76914111 | P201: 1.84005 | S201: 0.05859147449
... 851 more rows

Sheet Height
A1: 33 | B1: 29434 | C1: 28994 | D1: 0.01333333333 | E1: 75 | G1: 0.02004634994 | Z1: =AVERAGE(Z11:Z1010) -> 0.01769238391 | AB1: =AVERAGE(AB11:AB1010) -> 0.03553196 | AC1: =AVERAGE(AC11:AC1010) -> 1.0151685 | AD1: =AVERAGE(AD11:AD1010) -> 1.013699784 | AE1: =AVERAGE(AE11:AE1010) -> 0.01769238391 | AF1: =AVERAGE(AF11:AF1010) -> 0.03606843476 | AG1: 5.244 | AH1: 6.52 | AI1: =AVERAGE(AI11:AI1010) -> 0.03137891193 | AJ1: 0.1077484929 | AK1: 0.03142374146 | AL1: 0.1077118652 | AM1: -0.03840739316 | AN1: 0.03788073056 | AO1: 49.34191736 | AP1: 49.34191736 | AQ1: 29.23484241 | AR1: 3472.002787 | AS1: 0.04156180197 | AT1: 0.04156180197 | AU1: 0.0417075946 | AV1: 0.1654216521 | AW1: -3.709380377e-05 | AX1: -3.617405463e-05 | AY1: 0.03603226071 | AZ1: 0.009247142857 | BA1: -0.03212571429 | BB1: gr1=(float)1.479-0.010*spdfstrun+76.28/spdfstrun; | BG1: =AVERAGE(BG11:BG1010) -> -1.16351373e-16 | BH1: =AVERAGE(BH11:BH1010) -> 6.461498003e-17 | BI1: =AVERAGE(BI11:BI1010) -> 0.001958252955 | BJ1: =AVERAGE(BJ11:BJ1010) -> -0.002268813276 | BK1: =AVERAGE(BK11:BK1010) -> 0.0005636088308 | BN1: Integrated | BO1: =AVERAGE(BO11:BO1010) -> 4.991149902 | BP1: =AVERAGE(BP11:BP1010) -> 0.07980260108 | BU1: =AVERAGE(BU11:BU1010) -> -0.1230327693 | BV1: =AVERAGE(BV11:BV1010) -> -7.049264379 | BW1: =AVERAGE(BW11:BW1010) -> 0.1591012041 | BX1: =AVERAGE(BX11:BX1010) -> 0.0001143436631 | BY1: =AVERAGE(BY11:BY1010) -> 0.0303777568 | BZ1: 2000 | CA1: =AVERAGE(CA11:CA1010) -> 1.80190245 | CB1: =AVERAGE(CB11:CB1010) -> 1.58690565 | CC1: =AVERAGE(CC11:CC1010) -> 1.819895042 | CD1: =AVERAGE(CD11:CD1010) -> 1.814271 | CG1: =AVERAGE(CG11:CG1010) -> 0.4027651609 | CH1: 1.433905353 | CI1: 0.4627651609 | CJ1: 0.06 | CK1: 0.06 | CL1: 1.493905353 | CU1: =AVERAGE(CU11:CU1010) -> 49.34191736 | CV1: =AVERAGE(CV11:CV1010) -> 3472.002787 | CW1: =AVERAGE(CW11:CW1010) -> 30.54561995 | CX1: =AVERAGE(CX11:CX1010) -> 30.55312902 | CY1: -1.931124101 | CZ1: =AVERAGE(CZ11:CZ1010) -> -0.004016770903 | DA1: -0.001945573865 | DB1: =AVERAGE(DB11:DB1010) -> -0.19728 | DC1: -0.004216355549 | DD1: -0.063628 | DE1: 0.05731104656 | DF1: 0.0558181 | DG1: gh1 = (float)0.4355 -.0007*spdfsh; | DK1: =AVERAGE(DK11:DK1010) -> -0.02377657697 | DL1: =AVERAGE(DL11:DL1010) -> 0.00707 | DN1: =AVERAGE(DN11:DN1010) -> 2.2122e-05 | DO1: 0.011407323 | DP1: 0.0005073545301 | DQ1: 0.000615 | DR1: 0.01452724006 | DS1: =AVERAGE(DS11:DS1010) -> -0.04907434571 | DV1: =AVERAGE(DV11:DV1010) -> 0.1198950422 | DW1: -0.063628 | DX1: 0.0558181 | DY1: 0.00707 | EB1: height | EC1: Foil alpha | EG1: A matrix | EH1: height | EI1: dheight/dt | EJ1: Foil alpha | EK1: Constant | EL1: B matrix | EW1: Height
Z2: =STDEV(Z11:Z1010) -> 0.02062657998 | AB2: =STDEV(AB11:AB1010) -> 0.0514846986 | AC2: =STDEV(AC11:AC1010) -> 1.19402008 | AD2: =STDEV(AD11:AD1010) -> 1.181816977 | AE2: =STDEV(AE11:AE1010) -> 0.02062657998 | AF2: =STDEV(AF11:AF1010) -> 0.02159556941 | AG2: 3.408 | AH2: 3.365 | AI2: =STDEV(AI11:AI1010) -> 0.01597434264 | AJ2: 0.01497221809 | AK2: 0.01580658565 | AL2: 0.01486411373 | AM2: 0.01544296533 | AN2: 0.01521252796 | AO2: 0.2448105784 | AP2: 0.2448105784 | AQ2: 0.145049059 | AR2: 7.49743572 | AS2: 0.007311904248 | AT2: 0.007311904248 | AU2: 0.006873858382 | AV2: 0.02678624964 | AW2: 0.0005551386089 | AX2: 0.000240863569 | AY2: 0.02169046337 | AZ2: 0.1500323845 | BA2: 0.1473597857 | BB2: gr2=(float)1.900-0.013*spdfstrun+12.58/spdfstrun; | BG2: =STDEV(BG11:BG1010) -> 4.191950038 | BH2: =STDEV(BH11:BH1010) -> 3.993885836 | BI2: =STDEV(BI11:BI1010) -> 1.907223518 | BJ2: =STDEV(BJ11:BJ1010) -> 1.805961166 | BK2: =STDEV(BK11:BK1010) -> 0.2829697469 | BN2: RollRate | BO2: =STDEV(BO11:BO1010) -> 0.001635603393 | BP2: =STDEV(BP11:BP1010) -> 0.02215431053 | BU2: =STDEV(BU11:BU1010) -> 0.03418777169 | BV2: =STDEV(BV11:BV1010) -> 1.958816683 | BW2: =STDEV(BW11:BW1010) -> 0.04228332304 | BX2: =STDEV(BX11:BX1010) -> 0.02837994251 | BY2: =STDEV(BY11:BY1010) -> 0.01880551161 | CA2: =STDEV(CA11:CA1010) -> 0.05312589531 | CB2: =STDEV(CB11:CB1010) -> 0.9932536577 | CC2: =STDEV(CC11:CC1010) -> 0.03200902542 | CD2: =STDEV(CD11:CD1010) -> 0.02422573932 | CG2: =STDEV(CG11:CG1010) -> 0.006379472877 | CH2: 3.904025797 | CI2: 0.006379472877 | CJ2: 7.636602551e-16 | CK2: 7.636602551e-16 | CL2: 3.904025797 | CN2: ft/s | CO2: hvel | CP2: acc | CQ2: bow | CS2: =AVERAGE(CS11:CS1010) -> 0.115801923 | CT2: =AVERAGE(CT11:CT1010) -> 0.1069959682 | CU2: =STDEV(CU11:CU1010) -> 0.2448105784 | CV2: 7.49743572 | CW2: =STDEV(CW11:CW1010) -> 1.311768669 | CX2: =STDEV(CX11:CX1010) -> 1.312058143 | CY2: 1.329615614 | CZ2: =STDEV(CZ11:CZ1010) -> 1.290129461 | DA2: 0.9562028599 | DB2: =STDEV(DB11:DB1010) -> 1.06799317 | DC2: 0.05603711606 | DD2: 0.05410190969 | DE2: 0.002281555822 | DF2: 0.002610597175 | DG2: gh2 = (float)0.2322 -.0012*spdfsh; | DK2: =STDEV(DK11:DK1010) -> 0.01291733671 | DL2: =STDEV(DL11:DL1010) -> 0.03797005168 | DN2: =STDEV(DN11:DN1010) -> 0.04229239077 | DO2: 0.007825779899 | DP2: 0.007792295921 | DQ2: 0.007476005997 | DR2: 0.01675359259 | DS2: =STDEV(DS11:DS1010) -> 0.07167358267 | DV2: =STDEV(DV11:DV1010) -> 0.03200902542 | DW2: 0.05410190969 | DX2: 0.002610597175 | DY2: 0.03797005168 | EA2: height | EB2: 0.07520902633 | EC2: 0.0255323367 | EG2: height | EH2: 1 | EI2: 0.01238451983 | EJ2: 0.04644020419 | EK2: -0.002707837857 | EL2: 0.0002088205503 | EM2: =--EK2/EJ2 -> -0.05830805236 | EN2: 1 | EO2: 0.01238451983 | EP2: 0.04644020419 | EQ2: -0.002707837857 | ER2: 0.0002088205503 | EV2: p | EW2: 7.517181637 | EZ2: =SUM(EZ3:EZ13) -> 0.05557484083 | FA2: =SUM(FA3:FA13) -> 1.268062556 | FW2: 0.0133 | GC2: 0.4187874864
B3: Contd | D3: Q 8 4 .1 R .1 | E3: 2018-03-29 | AG3: 2.62 | AH3: =2.583+0.45 -> 3.033 | AM3: 170 | BB3: gr3=(float)1.910+0.00099*spdfstrun; | BN3: + | BO3: =BO2/BO1 -> 0.0003277007152 | CA3: =CA2*12 -> 0.6375107437 | CB3: =CB2*12 -> 11.91904389 | CC3: =CC2*12 -> 0.384108305 | CD3: =CD2*12 -> 0.2907088718 | CM3: =CN3*3600/6080 -> 8.881578947 | CN3: 15 | CO3: 0 | CP3: 32 | CQ3: =CO3/CN3+CP3/(0.229*CN3*CN3) -> 0.621057739 | CR3: =CQ3*180/3.14159 -> 35.58401733 | DG3: gh3 = (float)1.4818 +0.2498*spdfsh; | DK3: =DK375 -> -0.005916703871 | EA3: dheight/dt | EB3: 0.05927141361 | EC3: 2.176218205 | EG3: dheight/dt | EH3: 0 | EI3: 0.861136741 | EJ3: 6.79673936 | EK3: -0.3963046345 | EL3: 0.04644161547 | EM3: =--EK3/EJ3 -> -0.05830805236 | EN3: 0 | EO3: 0.861136741 | EP3: 6.79673936 | EQ3: -0.3963046345 | ER3: 0.04644161547 | EV3: q | EW3: 1.436562942 | EX3: =-(1-EY3)*$D$1*10 -> -0.1333333333 | EY3: 0 | EZ3: =EY3^$EW$2*(1-EY3)^$EW$3 -> 0 | FA3: =$EW$4*EZ3/$EZ$2 -> 0 | FB3: =FA3 -> 0 | FX3: A | FZ3: B | GC3: =1-GC2 -> 0.5812125136
AC4: 1 | AG4: 41.284 | AH4: 29.705 | AM4: 0 | AR4: =4*1.985 -> 7.94 | AS4: 1.2097 | BK4: =AVERAGE(BK11:BK1010) -> 0.0005636088308 | BM4: =AVERAGE(BM11:BM1010) -> 0.001922543622 | BN4: Roll | BO4: 1.217023833 | BP4: 0.0007557269278 | BX4: =D1 -> 0.01333333333 | CA4: 0 | CB4: =CA4 -> 0 | CG4: Measurement | CI4: System | CM4: =CN4*3600/6080 -> 13.02631579 | CN4: 22 | CO4: 0 | CP4: 32 | CQ4: =CO4/CN4+CP4/(0.229*CN4*CN4) -> 0.288714858 | CR4: =CQ4*180/3.14159 -> 16.54215682 | CV4: =4*1.985 -> 7.94 | CW4: accelfs2 = (float).09885*(adcacc-1095)+32 | DF4: =DF1*180/3.14159 -> 3.198144252 | DG4: gh4 = (float)0.1500 -47.4820/spdfsh; | DK4: =DK510 -> -0.009856981506 | DL4: =DL1*-200 -> -1.414 | DN4: -0.001229 | DO4: -0.000799 | DP4: 0.997 | DR4: 0.005 | DX4: 0.4927392394 | DY4: 0.1276794492 | EA4: Foil alpha | EB4: 6.383083202e-05 | EC4: 0.6794264906 | EG4: Foil alpha | EH4: 0 | EI4: 0 | EJ4: 1 | EK4: 0 | EL4: 0.01333333333 | EN4: 0 | EO4: 0 | EP4: 1 | EQ4: 0 | ER4: 0.01333333333 | EV4: Gain | EW4: 1.268062556 | EX4: =-(1-EY4)*$D$1*10 -> -0.12 | EY4: 0.1 | EZ4: =EY4^$EW$2*(1-EY4)^$EW$3 -> 2.612671738e-08 | FA4: 5.96138676e-07 | FB4: =FB3+FA4 -> 5.96138676e-07 | FX4: 1 | FY4: =GC2 -> 0.4187874864 | FZ4: 0
B5: 1 | C5: 2 | D5: 3 | E5: 4 | F5: 5 | G5: 6 | H5: 7 | I5: 8 | J5: 9 | K5: 10 | L5: 11 | M5: 12 | N5: 13 | O5: 14 | P5: 15 | Q5: 16 | R5: 17 | S5: 18 | T5: 19 | U5: 20 | V5: 21 | W5: 22 | X5: 23 | Y5: 24 | AB5: -0.00116 | AC5: =-0.0433 -> -0.0433 | AF5: 0.25 | AG5: -51.185 | AH5: -22.831 | AM5: 40 | AO5: =1.12*0.016 -> 0.01792 | AR5: 0.1 | AS5: -0.4317 | AZ5: -700 | BA5: -700 | BB5: 1.256916004 | BC5: 1.246699752 | BD5: 2.688198118 | BG5: =H7+BG4 -> -2.236 | BH5: =I7 -> -8.4 | BK5: =STDEV(BK11:BK1010) -> 0.2829697469 | BM5: =STDEV(BM11:BM1010) -> 0.1658439342 | BN5: Acc | BO5: 0.2921242518 | BP5: 10 | BT5: 1 | BX5: -0.0117 | BY5: 0.03988167557 | CA5: 0.00235 | CB5: 0.00235 | CC5: =D1*1 -> 0.01333333333 | CG5: mnoise | CI5: hnoise | CM5: =CN5*3600/6080 -> 20.72368421 | CN5: 35 | CO5: 0 | CP5: 32 | CQ5: =CO5/CN5+CP5/(0.229*CN5*CN5) -> 0.1140718296 | CR5: =CQ5*180/3.14159 -> 6.535839918 | CS5: Max gain | CT5: Max gain | CV5: 0.1 | CW5: =0.09885 -> 0.09885 | DE5: 0.229 | DG5: 0.2216028017 | DH5: 0.1865933611 | DI5: 2.011601061 | DJ5: -0.1172892853 | DK5: flying height | DL5: =DL4+2370 -> 2368.586 | DN5: 2006.775 | DO5: 1914.1 | DP5: 0.0064 | DS5: 0.01 | DX5: 0.5823788953 | DY5: 2.183704776 | EA5: Constant | EB5: -0.01069682107 | EC5: 0.0004357801367 | EG5: Constant | EH5: 0 | EI5: 0 | EJ5: 0 | EK5: 1 | EL5: 0 | EN5: 0 | EO5: 0 | EP5: 0 | EQ5: 1 | ER5: 0 | EV5: Delay | EW5: -0.03198874092 | EX5: -0.1066666667 | EY5: 0.2 | EZ5: 4.041086857e-06 | FA5: 9.22063087e-05 | FB5: =FB4+FA5 -> 9.280244738e-05 | FD5: Delay | FR5: =SUM(FR11:FR1010) -> 6.710985618 | FX5: 0 | FY5: =GC3 -> 0.5812125136 | FZ5: =FW2 -> 0.0133
Z6: 1 | AB6: 2060 | AC6: 4 | AD6: 0.5 | AF6: =D1 -> 0.01333333333 | AG6: 58.476 | AH6: 58.826 | AK6: 0.5 | AL6: 0.5 | AM6: =AM5*(3600/6076) -> 23.6998025 | AO6: 0.04 | AP6: 15 | AU6: 0.1 | AX6: 0.1 | AZ6: 2043 | BA6: 2024 | BB6: 0.05136244839 | BC6: 0.02226415927 | BD6: 0.213512548 | BG6: 0.00122 | BH6: 0.00122 | BI6: 0.5 | BJ6: =BI6 -> 0.5 | BL6: 0.015 | BN6: + | BO6: -1.132931601 | BP6: 0.5 | BQ6: 0.02 | BR6: =SUM(BR11:BR1010) -> 10.92712355 | BS6: =SUM(BS11:BS1010) -> 10.91921903 | BT6: 0.5 | BX6: 1 | BY6: 1.815 | BZ6: 1.815 | CA6: 0 | CB6: 0 | CD6: =CD1*12 -> 21.771252 | CG6: 0.4 | CI6: 0.06 | CM6: =CN6*3600/6080 -> 26.64473684 | CN6: 45 | CO6: 0 | CP6: 32 | CQ6: =CO6/CN6+CP6/(0.229*CN6*CN6) -> 0.06900641544 | CR6: =CQ6*180/3.14159 -> 3.953779704 | CS6: =MAX(CS11:CS610) -> 0.1300165644 | CT6: =MAX(CT11:CT610) -> 0.1159609965 | CU6: 10 | CW6: 1095 | CZ6: 0.96 | DA6: 0.5 | DC6: 0.98 | DE6: bowfoilr=hvelocity/spdfstrun+(accelfs+32)/(.229*spdfstrun*spdfstrun); | DG6: 0.4355 | DH6: 0.2322 | DI6: 1.4818 | DJ6: 0.15 | DK6: 1.7 | DS6: 0 | DX6: -0.03737860035 | DY6: 0.6790835834 | EV6: Delay | EW6: =EW5/D1 -> -2.399155569 | EX6: -0.09333333333 | EY6: 0.3 | EZ6: 7.029089646e-05 | FA6: 0.00160384182 | FB6: 0.001696644267 | FD6: =(FA2/2-FB9)*(EX10-EX9)/(FB10-FB9)+EX9 -> -0.03198874092 | FE6: =FD6/D1 -> -2.399155569
B7: =AVERAGE(B11:B1010) -> 2029.369 | C7: =AVERAGE(C11:C1010) -> -19.445 | D7: -18.857 | E7: 112.827 | F7: 2036.527 | G7: 2046.488 | H7: -2.236 | I7: -8.4 | J7: 437.33 | K7: 34.803 | L7: 115.537 | M7: 766.767 | N7: 675.279 | O7: 1080.287 | P7: -63.628 | Q7: 7.07 | R7: 558.181 | S7: 1814.271 | T7: -19.728 | U7: 2006.757 | V7: 1899.823 | W7: 0.615 | X7: 2754.341 | Y7: 2044.375 | BB7: 424.090976 | BC7: 166.4674794 | BK7: 7.5 | BN7: YawRoll | BX7: 1 | BY7: 5.056 | BZ7: 5.056 | CA7: 0 | CB7: 0 | CZ7: 1.7 | DG7: -0.0007 | DH7: -0.0012 | DI7: 0.2498 | DJ7: -47.482 | DN7: pitch=(float)-.001229*(adcPitch-2006.775) | DT7: 0.5 | DX7: -0.1194389819 | DY7: -0.02429116811 | EL7: 0.0582 | EM7: =EL7*EJ3 -> 0.3955702308 | EN7: 0.01 | EX7: -0.08 | EY7: 0.4 | EZ7: 0.0004896806937 | FA7: 0.01117314495 | FB7: 0.01286978922 | FC7: 0.5 | FE7: =FC7 -> 0.5
B8: =STDEV(B11:B1010) -> 44.38336087 | C8: =STDEV(C11:C1010) -> 27.57552147 | D8: 21.72746266 | E8: 31.58560941 | F8: 105.0226691 | G8: 103.15185 | H8: 107.3757694 | I8: 102.3024036 | J8: 2.817274754 | K8: 6.183722942 | L8: 29.66716656 | M8: 22.60676396 | N8: 422.6611309 | O8: 13.27029509 | P8: 54.10190969 | Q8: 37.97005168 | R8: 26.10597175 | S8: 24.22573932 | T8: 106.799317 | U8: 34.4120348 | V8: 9.794467959 | W8: 7.476005997 | X8: 25.68942712 | Y8: 0.6699431497 | BB8: 1 | BC8: 1 | BD8: 1 | BN8: AngleRad | BX8: 0.5 | BY8: 15.75 | BZ8: 31.48 | DG8: 1 | DH8: 1 | DI8: 1 | DJ8: 1 | DO8: pitchRate =(float)-.000799*(adcPitchRate- 1914.1) | EA8: X(t|t) = X(t|t-1) + H (Y(t) - C X(t|t-1)) | EF8: Delay | EH8: X(t|t-1) = A X(t-1|t-1) + B U(t-1) | EX8: -0.06666666667 | EY8: 0.5 | EZ8: 0.002016760414 | FA8: 0.04601683653 | FB8: 0.05888662575 | FF8: =SUM(FF11:FF1010) -> 6.839445534 | GF8: =SUM(GF11:GF20) -> 4.861165637e-06
Z9: HP | AB9: rad | AC9: deg/sec | AD9: Smoothed | AE9: rad/sec | AF9: Smoothed | AG9: deg | AH9: deg | AI9: rad | AJ9: rad | AK9: Smoothed | AL9: Smoothed | AM9: Flapdown | AN9: Flapdown | AO9: ft/sec | AP9: ft/sec | AQ9: Speed | AR9: x | AS9: rad | AT9: rad | AU9: Smoothed | AV9: rad | AW9: rad | AX9: rad | AY9: Roll+ | AZ9: rad | BA9: rad | BB9: g1 | BC9: g2 | BD9: g3 | BE9: Calculated | BF9: Calculated | BG9: AccS | BH9: AccP | BI9: Smoothed | BJ9: Smoothed | BK9: Roll Acc | BL9: Flap dif | BM9: drroll/dt | BN9: Est Roll | BO9: Five | BP9: Yaw | BQ9: =BJ9 -> Smoothed | BT9: Roll | BU9: YawRoll | BV9: Roll | BW9: Roll | BX9: Integrated | BY9: Flap | CA9: x | CB9: x | CC9: Cal | CD9: Sensor | CU9: ft/sec | CV9: x | CW9: Vertical | CX9: Pitch Adj | CY9: Turn Adj | CZ9: HP | DA9: Smoothed | DB9: Sensor | DC9: Acc Cal | DD9: Sensor | DE9: Cal | DF9: Sensor | DG9: height | DH9: dh/dt | DI9: bowfoil | DJ9: x | DK9: calculated | DL9: Sensor | DM9: Cal | DN9: Pitch | DO9: Pitch | DP9: HP Pitch | DQ9: Sensor HP | DR9: Smoothed | DS9: Integrate | DV9: Measurements | EA9: Update | EB9: Update | EC9: Update | ED9: Update G | EF9: t = t + 1 | EH9: Project forward | EK9: G | EN9: using dh/dt | EO9: hvelocity=(float).01*((heightsm-heightsmLast)/.017-hvelocity)+hvelocity+.017*accelfs | ET9: Sensor | EX9: -0.05333333333 | EY9: 0.6 | EZ9: 0.005763108336 | FA9: 0.1314980264 | FB9: 0.1903846522 | FC9: Sensor | FE9: Sensor | FX9: flap | FY9: Control | FZ9: flap | GA9: Control
B10: Roll | C10: Roll Rate | D10: FlapS | E10: FlapP | F10: Us | G10: Up | H10: AccS | I10: AccP | J10: RPM | K10: Rudder | L10: YawRate | M10: Height S | N10: Height P | O10: Height Acc | P10: Hvelocity | Q10: Hcontrol | R10: Bowfoil | S10: HeightSm | T10: H AccSm | U10: Pitch | V10: PitchRate | W10: PitchRatehp | X10: speed | Y10: fivevolt | Z10: Roll Rate | AB10: Roll | AC10: Roll Rate | AD10: Roll Rate | AE10: rrRad | AF10: Roll | AG10: flapS | AH10: flapP | AI10: flapS | AJ10: flapP | AK10: flapS | AL10: flapP | AM10: flapS | AN10: flapP | AO10: spdfs | AP10: spdfstrun | AQ10: Knots | AR10: RPM | AS10: Rudder | AT10: Rudder | AU10: RudderRad | AV10: turnroll | AW10: dRud/dt | AX10: sdturnroll | AY10: Rudder | AZ10: urollS | BA10: urollP | BE10: urollS | BF10: urollP | BG10: g | BH10: g | BI10: AccS | BJ10: AccP | BK10: Rad | BL10: rad | BM10: rad | BN10: Sensor | BO10: Volt | BP10: Rad | BQ10: =BJ10 -> AccP | BR10: Error^2 | BT10: Acc | BU10: AngleRad | BV10: AngleDeg | BW10: Roll-Yaw | BX10: RollRate | BY10: from Acc | CA10: heightS | CB10: heightP | CC10: heightsm | CD10: heightsm | CE10: merrS | CF10: merrP | CG10: mnoiseS | CH10: mnoiseP | CI10: mn11 | CJ10: mn12 | CK10: mn21 | CL10: mn22 | CM10: det | CN10: invmn11 | CO10: invmn12 | CP10: invmn21 | CQ10: invmn22 | CR10: minfo | CS10: hgainS | CT10: hgainP | CU10: spdfsh | CV10: RPM | CW10: Acceleration | CX10: Acceleration | CY10: Acceleration | CZ10: Acceleration | DA10: vertical Acc | DB10: =T10 -> H AccSm | DC10: hvelocity | DD10: hvelocity | DE10: bowfoilr | DF10: bowfoilr | DG10: gh1 | DH10: gh2 | DI10: gh3 | DJ10: gh4 | DK10: uheightr | DL10: uheightr | DM10: flying height | DO10: Rate | DP10: Rate | DQ10: Pitch Rate | DR10: Pitch | DS10: acceleration | DT10: dh/dt | DV10: =CD10 -> heightsm | DW10: =DD10 -> hvelocity | DX10: =DF10 -> bowfoilr | DY10: =DL10 -> uheightr | EA10: height | EB10: dheight/dt | EC10: Foil alpha | ED10: Constant | EH10: height | EI10: dheight/dt | EJ10: Foil alpha | EK10: Constant | EN10: hvelocity | ET10: dbowfoilr/dt | EX10: -0.04 | EY10: 0.7 | EZ10: 0.01214578537 | FA10: 0.277132879 | FB10: 0.4675175312 | FC10: uheightr | FE10: dbowfoilr/dt | FR10: Error | FX10: t+1 | FY10: t+1 | FZ10: t | GA10: t | GB10: u | GE10: Tfunction
A11: 0 | B11: 2066 | C11: 22 | D11: 0 | E11: 94 | F11: 1990 | G11: 1974 | H11: 15 | I11: -29 | J11: 432 | K11: 37 | L11: 117 | M11: 732 | N11: 737 | O11: 1072 | P11: -43 | Q11: 24 | R11: 554 | S11: 1777 | T11: -24 | U11: 1964 | V11: 1888 | W11: 14 | X11: 2724 | Y11: 2044 | Z11: =AE11 -> -0.0136030847 | AA11: =A11 -> 0 | AB11: =$AB$5*(B11-$AB$6) -> -0.00696 | AC11: =$AC$5*(C11-$AC$6) -> -0.7794 | AD11: =AC11 -> -0.7794 | AE11: =AD11*3.14159/180 -> -0.0136030847 | AF11: =AVERAGE(AB11:AB11) -> -0.00696 | AG11: =AG$3+AG$4*D11/1000+AG$5*(D11/1000)*(D11/1000)+AG$6*(D11/1000)*(D11/1000)*(D11/1000) -> 2.62 | AH11: =AH$3+AH$4*E11/1000+AH$5*(E11/1000)*(E11/1000)+AH$6*(E11/1000)*(E11/1000)*(E11/1000) -> 5.672395218 | AI11: =AG11*3.14159/180 -> 0.04572758778 | AJ11: =AH11*3.14159/180 -> 0.09900188941 | AK11: =AI11 -> 0.04572758778 | AL11: =AJ11 -> 0.09900188941 | AM11: =IF(AP11<$AM$5,AK11-($AM$3/$AM$5^2+AM$4),AK11-($AM$3/AP11^2+AM$4)) -> -0.02561661744 | AN11: =IF(AP11<$AM$5,AL11-($AM$3/$AM$5^2+$AM$4),AL11-($AM$3/AP11^2+$AM$4)) -> 0.02765768419 | AO11: =$AO$5*X11 -> 48.81408 | AP11: =IF(AO11<$AP$6,$AP$6,AO11) -> 48.81408 | AQ11: =AO11*3600/6076 -> 28.92210138 | AR11: =$AR$4*J11 -> 3430.08 | AS11: =$AS$4*(K11/1000)+$AS$5*(K11/1000)*(K11/1000) -> 0.0441679027 | AT11: =AS11 -> 0.0441679027 | AU11: =AT11 -> 0.0441679027 | AV11: =ATAN(AO11*AO11*TAN(AU11)/(19*32)) -> 0.1715094877 | AW11: 0 | AX11: 0 | AY11: =AF11+AX11 -> -0.00696 | AZ11: =(F11-$AZ$6)/$AZ$5 -> 0.07571428571 | BA11: =(G11-$BA$6)/$BA$5 -> 0.07142857143 | BB11: =$BB$8*($BB$5+$BB$6*AP11+$BB$7/AP11) -> 12.45200885 | BC11: =$BC$8*($BC$5+$BC$6*AP11+$BC$7/AP11) -> 5.743739107 | BD11: =$BD$8*($BD$5+$BD$6*AP11) -> 13.11061672 | BE11: =-($BB11*AY11+$BC11*AE11+$BD11*AM11) -> 0.500648204 | BF11: =-($BB11*AY11+$BC11*AE11-$BD11*AN11) -> 0.5274078479 | BG11: =$BG$6*32*(H11-$BG$5) -> 0.67289344 | BH11: =$BH$6*32*(I11-$BH$5) -> -0.804224 | BI11: =BG11 -> 0.67289344 | BJ11: =BH11 -> -0.804224 | BK11: =(BI11-BJ11)/$BK$7 -> 0.196948992 | BL11: =(AK11-AL11)/2-$BL$6 -> -0.04163715082 | BM11: 0 | BN11: =$BO$4*BX11+$BO$5*BT11+$BO$6*BU11 -> 0.1276152007 | BO11: =10*Y11/4096 -> 4.990234375 | BP11: =$BP$4*(L11-$BP$5) -> 0.08086278127 | BQ11: =$BQ$6*BJ11 -> -0.01608448 | BR11: =(AY11-BN11)^2 -> 0.01811048464 | BS11: =(BN11-AF11)^2 -> 0.01811048464 | BT11: 0 | BU11: =-AP11*BP11/32 -> -0.1233513211 | BV11: =BU11*(180/3.14159) -> -7.067516064 | BW11: =AF11-BU11 -> 0.1163913211 | BX11: -0.009969738207 | BY11: =$BY$5+(BK11+$BY$6*AE11-$BY$7*AF11)/$BY$8 -> 0.05305305038 | BZ11: =AA11 -> 0 | CA11: =$CA$5*M11+$CA$4 -> 1.7202 | CB11: =$CB$5*N11+$CB$4 -> 1.73195 | CC11: =CD11 -> 1.777 | CD11: =S11/1000 -> 1.777 | CE11: =CA11-CC11 -> -0.0568 | CF11: =CB11-CC11 -> -0.04505 | CG11: =CE11*CE11+$CG$6 -> 0.40322624 | CH11: =CF11*CF11+$CG$6 -> 0.4020295025 | CI11: =CG11+$CI$6 -> 0.46322624 | CJ11: =$CI$6 -> 0.06 | CK11: =$CI$6 -> 0.06 | CL11: =CH11+$CI$6 -> 0.4620295025 | CM11: =CI11*CL11-CJ11*CK11 -> 0.2104241892 | CN11: =CL11/CM11 -> 2.195705276 | CO11: =-CK11/CM11 -> -0.285138321 | CP11: =-CJ11/CM11 -> -0.285138321 | CQ11: =CI11/CM11 -> 2.201392538 | CR11: =$CI$6*(1-$CI$6*SUM(CN11:CQ11)) -> 0.04622344378 | CS11: =CR11/CG11 -> 0.1146340173 | CT11: =CR11/CH11 -> 0.114975253 | CU11: =IF(AO11<$CU$6,$CU$6,AO11) -> 48.81408 | CV11: =CV4*J11 -> 3430.08 | CW11: =$CW$5*(O11-$CW$6)+32 -> 29.72645 | CX11: =CW11/(1-DR11*DR11/2) -> 29.76758366 | CY11: =(CX11*CX11-(CU11*CU11*AU11/19)^2)^0.5-32 -> -2.752319466 | CZ11: =CY11+CZ7 -> -1.052319466 | DA11: =CZ11+CZ7 -> 0.6476805341 | DB11: =T11/100 -> -0.24 | DC11: =DD11 -> -0.043 | DD11: =P11/1000 -> -0.043 | DE11: =DC11/AP11+(DA11+32)/($DE$5*AP11*AP11) -> 0.05895015774 | DF11: =R11/10000 -> 0.0554 | DG11: =$DG$8*($DG$6+$DG$7*CU11) -> 0.401330144 | DH11: =$DH$8*($DH$6+$DH$7*CU11) -> 0.173623104 | DI11: =$DI$8*($DI$6+$DI$7*CU11) -> 13.67555718 | DJ11: =$DJ$8*($DJ$6+$DJ$7/CU11) -> -0.8227111522 | DK11: =-(DG11*(CC11-DM11)+DH11*DC11+DI11*DE11+DJ11) -> -0.006901728536 | DL11: =Q11/1000 -> 0.024 | DM11: =IF(CU11<25,$DK$6*(CU11-10)/15,$DK$6) -> 1.7 | DN11: =$DN$4*(U11-$DN$5) -> 0.052570475 | DO11: =$DO$4*(V11-$DO$5) -> 0.0208539 | DP11: =DO11-DP5 -> 0.0144539 | DQ11: =W11/1000 -> 0.014 | DR11: =DN11 -> 0.052570475 | DS11: =DD11+DS6 -> -0.043 | DT11: 0 | DU11: =BZ11 -> 0 | DV11: =CC11-DM11 -> 0.077 | DW11: =DD11 -> -0.043 | DX11: =DF11 -> 0.0554 | DY11: =DL11 -> 0.024 | EA11: =DV11 -> 0.077 | EB11: =DW11 -> -0.043 | EC11: 0.0554 | ED11: 1 | EH11: =$EH$2*$EA11+$EI$2*$EB11+$EJ$2*$EC11+$EK$2*$ED11+$EL$2*$DY11 -> 0.0763374268 | EI11: =$EH$3*$EA11+$EI$3*$EB11+$EJ$3*$EC11+$EK$3*$ED11+$EL$3*$DY11 -> -0.055679555 | EJ11: =$EH$4*$EA11+$EI$4*$EB11+$EJ$4*$EC11+$EK$4*$ED11+$EL$4*$DY11 -> 0.05572 | EK11: =$EH$5*$EA11+$EI$5*$EB11+$EJ$5*$EC11+$EK$5*$ED11+$EL$5*$DY11 -> 1 | EN11: 0 | ET11: 0 | EX11: -0.02666666667 | EY11: 0.8 | EZ11: 0.0185095314 | FA11: 0.4223357792 | FB11: 0.8898533104 | FC11: =DL11 -> 0.024 | FD11: =FC11*$FA$13 -> 0 | FE11: =ET11 -> 0 | FF11: =(FD11-FE11)^2 -> 0 | FR11: =(DC11-DD11)^2 -> 0 | FW11: 0 | FZ11: =$FX$4*$FX11+$FY$4*$FY11+$FZ$4*$GB11 -> 0 | GA11: =$FX$5*$FX11+$FY$5*$FY11+$FZ$5*$GB11 -> 0.0133 | GB11: 1 | GD11: =FA13 -> 0 | GE11: =$FZ$5*GD11/$FA$2 -> 0 | GF11: =(FZ12-GE12)^2 -> 2.569762894e-06 | GH11: =GE11 -> 0
A12: 0.01333333333 | B12: 2023 | C12: 14 | D12: 1 | E12: 92 | F12: 2043 | G12: 2028 | H12: 53 | I12: -39 | J12: 436 | K12: 38 | L12: 125 | M12: 732 | N12: 738 | O12: 1058 | P12: -76 | Q12: 81 | R12: 520 | S12: 1772 | T12: -149 | U12: 2012 | V12: 1890 | W12: 13 | X12: 2726 | Y12: 2045 | Z12: =$Z$6*(Z11+AE12-AE11) -> -0.01058017699 | AA12: =A12 -> 0.01333333333 | AB12: =$AB$5*(B12-$AB$6) -> 0.04292 | AC12: =$AC$4*(AC11+$AC$5*(C12-C11)) -> -0.433 | AD12: =$AD$6*(AC12-AD11)+AD11 -> -0.6062 | AE12: =AD12*3.14159/180 -> -0.01058017699 | AF12: =$AF$5*(AB12-(AF11+$AF$6*AE12))+AF11+$AF$6*AE12 -> 0.00540419823 | AG12: =AG$3+AG$4*D12/1000+AG$5*(D12/1000)*(D12/1000)+AG$6*(D12/1000)*(D12/1000)*(D12/1000) -> 2.661232873 | AH12: 5.618425516 | AI12: =AG12*3.14159/180 -> 0.04644723657 | AJ12: 0.09805994121 | AK12: =$AK$6*(AI12-AK11)+AK11 -> 0.04608741217 | AL12: =$AL$6*(AJ12-AL11)+AL11 -> 0.09853091531 | AM12: =IF(AP12<$AM$5,AK12-($AM$3/$AM$5^2+AM$4),AK12-($AM$3/AP12^2+AM$4)) -> -0.02525260267 | AN12: =IF(AP12<$AM$5,AL12-($AM$3/$AM$5^2+$AM$4),AL12-($AM$3/AP12^2+$AM$4)) -> 0.02719090046 | AO12: =$AO$6*($AO$5*X12-AO11)+AO11 -> 48.8155136 | AP12: =IF(AO12<$AP$6,$AP$6,AO12) -> 48.8155136 | AQ12: =AO12*3600/6076 -> 28.92295078 | AR12: =$AR$5*($AR$4*J12-AR11)+AR11 -> 3433.256 | AS12: =$AS$4*(K12/1000)+$AS$5*(K12/1000)*(K12/1000) -> 0.0453452252 | AT12: =AS12 -> 0.0453452252 | AU12: =$AU$6*(AT12-AU11)+AU11 -> 0.04428563495 | AV12: =ATAN(AO12*AO12*TAN(AU12)/(19*32)) -> 0.1719681976 | AW12: =0.01*(AV12-AV11)/0.016 -> 0.0002866936597 | AX12: =$AX$6*(AW12-AX11)+AX11 -> 2.866936597e-05 | AY12: =AF12+AX12 -> 0.005432867596 | AZ12: =(F12-$AZ$6)/$AZ$5 -> 0 | BA12: =(G12-$BA$6)/$BA$5 -> -0.005714285714 | BB12: =$BB$8*($BB$5+$BB$6*AP12+$BB$7/AP12) -> 12.45182734 | BC12: =$BC$8*($BC$5+$BC$6*AP12+$BC$7/AP12) -> 5.743670874 | BD12: =$BD$8*($BD$5+$BD$6*AP12) -> 13.11092281 | BE12: =-($BB12*AY12+$BC12*AE12+$BD12*AM12) -> 0.3242048494 | BF12: =-($BB12*AY12+$BC12*AE12-$BD12*AN12) -> 0.3496177221 | BG12: =$BG$6*32*(H12-$BG$5) -> 2.15641344 | BH12: =$BH$6*32*(I12-$BH$5) -> -1.194624 | BI12: =$BI$6*(BG12-BI11)+BI11 -> 1.41465344 | BJ12: =$BJ$6*(BH12-BJ11)+BJ11 -> -0.999424 | BK12: =(BI12-BJ12)/$BK$7 -> 0.321876992 | BL12: =(AK12-AL12)/2-$BL$6 -> -0.04122175157 | BM12: =(AE12-AE11)/$D$1 -> 0.2267180783 | BN12: =$BO$4*BX12+$BO$5*BT12+$BO$6*BU12 -> 0.1313982713 | BO12: =10*Y12/4096 -> 4.992675781 | BP12: =$BP$6*($BP$4*(L12-$BP$5)-BP11)+BP11 -> 0.08388568898 | BQ12: =$BQ$6*BJ12 -> -0.01998848 | BR12: =(AY12-BN12)^2 -> 0.01586728292 | BS12: =(BN12-AF12)^2 -> 0.01587450644 | BT12: =$BT$6*(-$BT$5*((AE12-AE11)/$D$1)/32-BT11)+BT11 -> -0.003542469974 | BU12: =-AP12*BP12/32 -> -0.1279663435 | BV12: =BU12*(180/3.14159) -> -7.331937594 | BW12: =AF12-BU12 -> 0.1333705417 | BX12: =BX11+$BX$4*(Z11+$BX$5) -> -0.01030711267 | BY12: =$BY$5+(BK12+$BY$6*AE12-$BY$7*AF12)/$BY$8 -> 0.05736423713 | BZ12: =AA12 -> 0.01333333333 | CA12: =$CA$5*M12+$CA$4 -> 1.7202 | CB12: =$CB$5*N12+$CB$4 -> 1.7343 | CC12: =CS11*CE11+CT11*CF11+CC11+$CC$5*DC11 -> 1.764735819 | CD12: =S12/1000 -> 1.772 | CE12: =CA12-CC12 -> -0.04453581933 | CF12: =CB12-CC12 -> -0.03043581933 | CG12: =CE12*CE12+$CG$6 -> 0.4019834392 | CH12: 0.4009263391 | CI12: =CG12+$CI$6 -> 0.4619834392 | CJ12: =$CI$6 -> 0.06 | CK12: 0.06 | CL12: =CH12+$CI$6 -> 0.4609263391 | CM12: =CI12*CL12-CJ12*CK12 -> 0.2093403354 | CN12: =CL12/CM12 -> 2.201803768 | CO12: =-CK12/CM12 -> -0.2866146168 | CP12: =-CJ12/CM12 -> -0.2866146168 | CQ12: =CI12/CM12 -> 2.20685344 | CR12: =$CI$6*(1-$CI$6*SUM(CN12:CQ12)) -> 0.04619245929 | CS12: =CR12/CG12 -> 0.114911349 | CT12: =CR12/CH12 -> 0.1152143294 | CU12: =IF(AO12<$CU$6,$CU$6,AO12) -> 48.8155136 | CV12: =$CV$5*($CV$4*J12-CV11)+CV11 -> 3433.256 | CW12: 28.34255 | CX12: 28.38158356 | CY12: =(CX12*CX12-(CU12*CU12*AU12/19)^2)^0.5-32 -> -4.167201855 | CZ12: =$CZ$6*(CY12-CY11+CZ11) -> -2.36851378 | DA12: =$DA$6*(CZ12-DA11)+DA11 -> -0.8604166232 | DB12: -1.49 | DC12: =$DC$6*DC11+$D$1*DA12 -> -0.05361222164 | DD12: =P12/1000 -> -0.076 | DE12: 0.05596565637 | DF12: =R12/10000 -> 0.052 | DG12: 0.4013291405 | DH12: 0.1736213837 | DI12: 13.6759153 | DJ12: -0.8226825859 | DK12: =-($DG$5*(CC12-DM12)+$DH$5*DC12+$DI$5*DE12+$DJ$5) -> 0.0003667572889 | DL12: 0.081 | DM12: 1.7 | DN12: -0.006421525 | DO12: 0.0192559 | DP12: =$DP$4*(DP11+DO12-DO11) -> 0.0128173323 | DQ12: 0.013 | DR12: =$DR$4*(DN12-DR11)+DR11+DP12*$D$1 -> 0.05244641276 | DS12: =DS11+(CZ12+$DS$5)*$D$1 -> -0.0744468504 | DT12: =$DT$7*((DV12-DV11)/$D$1-DT11)+DT11 -> -0.459906775 | DU12: =BZ12 -> 0.01333333333 | DV12: =CC12-DM12 -> 0.06473581933 | DW12: =DD12 -> -0.076 | DX12: =DF12 -> 0.052 | DY12: =DL12 -> 0.081 | EA12: =EH11+$EB$2*($DV12-$EH11)+$EC$2*($DX12-$EJ11) -> 0.0753699009 | EB12: =EI11+$EB$3*($DV12-$EH11)+$EC$3*($DX12-$EJ11) -> -0.0644627304 | EC12: =EJ11+$EB$4*($DV12-$EH11)+$EC$4*($DX12-$EJ11) -> 0.05319179291 | ED12: =EK11+$EB$5*($DV12-$EH11)+$EC$5*($DX12-$EJ11) -> 1.000122479 | EF12: 0.07492722543 | EG12: 0.0239656879 | EH12: =$EH$2*$EA12+$EI$2*$EB12+$EJ$2*$EC12+$EK$2*$ED12+$EL$2*$DY12 -> 0.07435054362 | EI12: =$EH$3*$EA12+$EI$3*$EB12+$EJ$3*$EL$7+$EK$3*$ED12+$EL$3*$DY12 -> -0.0525323975 | EJ12: =$EH$4*$EA12+$EI$4*$EB12+$EJ$4*$EC12+$EK$4*$ED12+$EL$4*$DY12 -> 0.05427179291 | EK12: =$EH$5*$EA12+$EI$5*$EB12+$EJ$5*$EC12+$EK$5*$ED12+$EL$5*$DY12 -> 1.000122479 | EN12: =$EN$7*((DV12-DV11)/$D$1-EN11)+EN11+$D$1*CZ12 -> -0.04077831924 | ET12: =(DF12-DF11)/$D$1 -> -0.255 | EX12: -0.01333333333 | EY12: 0.9 | EZ12: 0.01657561651 | FA12: 0.3782092459 | FB12: 1.268062556 | FC12: =$FC$7*(DL12-FC11)+FC11 -> 0.0525 | FD12: =FC12*$FA$13+FC11*$FA$12 -> 0.009077021901 | FE12: =$FC$7*(ET12-FE11)+FE11 -> -0.1275 | FF12: 0.01865328291 | FR12: 0.0005012126198 | FW12: =FW11+$FW$2 -> 0.0133 | FX12: =FZ11 -> 0 | FY12: =GA11 -> 0.0133 | FZ12: =$FX$4*$FX12+$FY$4*$FY12+$FZ$4*$GB12 -> 0.005569873569 | GA12: =$FX$5*$FX12+$FY$5*$FY12+$FZ$5*$GB12 -> 0.007730126431 | GB12: 0 | GD12: =GD11+FA12 -> 0.3782092459 | GE12: =$FZ$5*GD12/$FA$2 -> 0.003966825568 | GF12: 1.686614178e-07 | GH12: =GE12-GE11 -> 0.003966825568
A13: 0.02666666667 | B13: 1991 | C13: 18 | D13: 1 | E13: 92 | F13: 2137 | G13: 2123 | H13: 151 | I13: 67 | J13: 436 | K13: 35 | L13: 122 | M13: 727 | N13: 737 | O13: 1059 | P13: -117 | Q13: 98 | R13: 514 | S13: 1766 | T13: -205 | U13: 2064 | V13: 1889 | W13: 14 | X13: 2699 | Y13: 2045 | Z13: -0.01058017699 | AA13: 0.02666666667 | AB13: 0.08004 | AC13: -0.6062 | AD13: -0.6062 | AE13: -0.01058017699 | AF13: =$AF$5*(AB13-(AF12+$AF$6*AE13))+AF12+$AF$6*AE13 -> 0.0239573469 | AG13: 2.661232873 | AH13: 5.618425516 | AI13: 0.04644723657 | AJ13: 0.09805994121 | AK13: =$AK$6*(AI13-AK12)+AK12 -> 0.04626732437 | AL13: =$AL$6*(AJ13-AL12)+AL12 -> 0.09829542826 | AM13: -0.02512526445 | AN13: 0.02690283944 | AO13: 48.79753626 | AP13: 48.79753626 | AQ13: 28.9122993 | AR13: 3436.1144 | AS13: 0.0418106675 | AT13: 0.0418106675 | AU13: =$AU$6*(AT13-AU12)+AU12 -> 0.04403813821 | AV13: 0.1709010824 | AW13: =0.01*(AV13-AV12)/0.016 -> -0.0006669469769 | AX13: -4.089226831e-05 | AY13: =AF13+AX13 -> 0.02391645463 | AZ13: -0.1342857143 | BA13: -0.1414285714 | BB13: 12.45410457 | BC13: 5.74452694 | BD13: 13.10708442 | BE13: 0.09223904709 | BF13: 0.1155378725 | BG13: 5.98233344 | BH13: 2.943616 | BI13: 3.69849344 | BJ13: 0.972096 | BK13: 0.3635196587 | BL13: -0.04101405194 | BM13: =(AE13-AE12)/$D$1 -> 0 | BN13: 0.1321535706 | BO13: 4.992675781 | BP13: 0.08426355245 | BQ13: 0.01944192 | BR13: 0.01171527326 | BS13: 0.01170642281 | BT13: -0.001771234987 | BU13: -0.1284954299 | BV13: -7.362252036 | BW13: 0.1524527768 | BX13: =BX12+$BX$4*(Z12+$BX$5) -> -0.0106041817 | BY13: 0.05405236074 | BZ13: 0.02666666667 | CA13: 1.70845 | CB13: =$CB$5*N13+$CB$4 -> 1.73195 | CC13: 1.755396676 | CD13: 1.766 | CE13: =CA13-CC13 -> -0.04694667612 | CF13: =CB13-CC13 -> -0.02344667612 | CG13: 0.4022039904 | CH13: 0.4005497466 | CI13: 0.4622039904 | CJ13: 0.06 | CK13: 0.06 | CL13: 0.4605497466 | CM13: =CI13*CL13-CJ13*CK13 -> 0.2092679307 | CN13: =CL13/CM13 -> 2.200766 | CO13: =-CK13/CM13 -> -0.2867137827 | CP13: =-CJ13/CM13 -> -0.2867137827 | CQ13: =CI13/CM13 -> 2.208670908 | CR13: 0.04619036637 | CS13: =CR13/CG13 -> 0.114843133 | CT13: =CR13/CH13 -> 0.1153174275 | CU13: 48.79753626 | CV13: 3436.1144 | CW13: 28.4414 | CX13: 28.47992491 | CY13: -4.059970389 | CZ13: =$CZ$6*(CY13-CY12+CZ12) -> -2.170831022 | DA13: =$DA$6*(CZ13-DA12)+DA12 -> -1.515623823 | DB13: -2.05 | DC13: =$DC$6*DC12+$D$1*DA13 -> -0.07274829485 | DD13: -0.117 | DE13: 0.0544135872 | DF13: 0.0514 | DG13: 0.4013417246 | DH13: 0.1736429565 | DI13: 13.67142456 | DJ13: -0.8230409288 | DK13: =-($DG$5*(CC13-DM13)+$DH$5*DC13+$DI$5*DE13+$DJ$5) -> 0.009129145788 | DL13: 0.098 | DM13: 1.7 | DN13: -0.070329525 | DO13: 0.0200549 | DP13: =$DP$4*(DP12+DO13-DO12) -> 0.0135754833 | DQ13: 0.014 | DR13: 0.05201353952 | DS13: =DS12+(CZ13+$DS$5)*$D$1 -> -0.1032579307 | DT13: =$DT$7*((DV13-DV12)/$D$1-DT12)+DT12 -> -0.5801712581 | DU13: 0.02666666667 | DV13: 0.05539667612 | DW13: -0.117 | DX13: 0.0514 | DY13: 0.098 | EA13: =EH12+$EB$2*($DV13-$EH12)+$EC$2*($DX13-$EJ12) -> 0.07285171811 | EB13: =EI12+$EB$3*($DV13-$EH12)+$EC$3*($DX13-$EJ12) -> -0.05990546804 | EC13: =EJ12+$EB$4*($DV13-$EH12)+$EC$4*($DX13-$EJ12) -> 0.05231941089 | ED13: =EK12+$EB$5*($DV13-$EH12)+$EC$5*($DX13-$EJ12) -> 1.000323974 | EF13: 0.0575311166 | EG13: 2.042728758 | EH13: =$EH$2*$EA13+$EI$2*$EB13+$EJ$2*$EC13+$EK$2*$ED13+$EL$2*$DY13 -> 0.07185129107 | EI13: =$EH$3*$EA13+$EI$3*$EB13+$EJ$3*$EC13+$EK$3*$ED13+$EL$3*$DY13 -> -0.0878671487 | EJ13: =$EH$4*$EA13+$EI$4*$EB13+$EJ$4*$EC13+$EK$4*$ED13+$EL$4*$DY13 -> 0.05362607756 | EK13: =$EH$5*$EA13+$EI$5*$EB13+$EJ$5*$EC13+$EK$5*$ED13+$EL$5*$DY13 -> 1.000323974 | EN13: =$EN$7*((DV13-DV12)/$D$1-EN12)+EN12+$D$1*CZ13 -> -0.07631930709 | ET13: -0.045 | EX13: 0 | EY13: 1 | EZ13: 0 | FA13: 0 | FB13: 1.268062556 | FC13: 0.07525 | FD13: =FC13*$FA$13+FC12*$FA$12+FC11*$FA$11 -> 0.02999204411 | FE13: =$FC$7*(ET13-FE12)+FE12 -> -0.08625 | FF13: 0.01351221282 | FR13: 0.001958213409 | FW13: =FW12+$FW$2 -> 0.0266 | FX13: =FZ12 -> 0.005569873569 | FY13: =GA12 -> 0.007730126431 | FZ13: 0.008807153787 | GA13: 0.004492846213 | GB13: 0 | GD13: =GD12+FA11 -> 0.8005450251 | GE13: 0.008396469702 | GF13: 3.775612696e-07 | GH13: =GE13-GE12 -> 0.004429644134
A14: 0.04 | B14: 2080 | C14: 22 | D14: -1 | E14: 90 | F14: 2020 | G14: 2016 | H14: -144 | I14: -131 | J14: 435 | K14: 36 | L14: 120 | M14: 728 | N14: 775 | O14: 1084 | P14: -130 | Q14: 49 | R14: 560 | S14: 1765 | T14: -98 | U14: 1986 | V14: 1904 | W14: 2 | X14: 2760 | Y14: 2043 | Z14: -0.01209163084 | AA14: 0.04 | AB14: -0.0232 | AC14: -0.7794 | AD14: -0.6928 | AE14: -0.01209163084 | AF14: 0.01204709387 | AG14: 2.578664757 | AH14: 5.564403054 | AI14: 0.04500615229 | AJ14: 0.09711707217 | AK14: 0.04563673833 | AL14: 0.09770625021 | AM14: -0.02567847038 | AN14: 0.0263910415 | AO14: 48.82400281 | AP14: 48.82400281 | AQ14: 28.9279806 | AR14: 3437.89296 | AS14: 0.0429897168 | AT14: 0.0429897168 | AU14: 0.04393329606 | AV14: 0.1706829815 | AW14: -0.0001363130562 | AX14: -5.04343471e-05 | AY14: 0.01199665952 | AZ14: 0.03285714286 | BA14: 0.01142857143 | BB14: 12.45075282 | BC14: 5.743266947 | BD14: 13.11273536 | BE14: 0.2567930079 | BF14: 0.2661367644 | BG14: -5.53446656 | BH14: -4.786304 | BI14: -0.91798656 | BJ14: -1.907104 | BK14: 0.1318823253 | BL14: -0.04103475594 | BM14: -0.1133590392 | BN14: 0.1316673731 | BO14: 4.987792969 | BP14: 0.08369675725 | BQ14: -0.03814208 | BR14: 0.01432107969 | BS14: 0.0143090112 | BT14: 0.0008856174935 | BU14: -0.1277003347 | BV14: -7.316696402 | BW14: 0.1397474286 | BX14: -0.01090125072 | BY14: 0.04299443168 | BZ14: 0.04 | CA14: 1.7108 | CB14: 1.82125 | CC14: 1.746331385 | CD14: 1.765 | CE14: -0.03553138511 | CF14: 0.07491861489 | CG14: 0.4012624793 | CH14: 0.4056127989 | CI14: 0.4612624793 | CJ14: 0.06 | CK14: 0.06 | CL14: 0.4656127989 | CM14: 0.211169714 | CN14: 2.20492224 | CO14: -0.2841316535 | CP14: -0.2841316535 | CQ14: 2.184321182 | CR14: 0.04624447158 | CS14: 0.1152474352 | CT14: 0.1140113717 | CU14: 48.82400281 | CV14: 3437.89296 | CW14: 30.91265 | CX14: 30.95434312 | CY14: -1.540362278 | CZ14: 0.3348260057 | DA14: -0.5903989085 | DB14: -0.98 | DC14: -0.0791653144 | DD14: -0.13 | DE14: 0.05591727459 | DF14: 0.056 | DG14: 0.401323198 | DH14: 0.1736111966 | DI14: 13.6780359 | DJ14: -0.8225134621 | DK14: 0.009310593767 | DL14: 0.049 | DM14: 1.7 | DN14: 0.025532475 | DO14: 0.0080699 | DP14: 0.001585711853 | DQ14: 0.002 | DR14: 0.05190227702 | DS14: -0.09866025063 | DT14: -0.6300340419 | DU14: 0.04 | DV14: 0.04633138511 | DW14: -0.13 | DX14: 0.056 | DY14: 0.049 | EA14: 0.06999257558 | EB14: -0.08421357637 | EC14: 0.0552373544 | ED14: 1.00059799 | EF14: 5.991420983e-05 | EG14: 0.6794267248 | EH14: 0.06881563998 | EI14: -0.09135148555 | EJ14: 0.05589068773 | EK14: 1.00059799 | EN14: -0.07789073553 | ET14: 0.345 | FC14: 0.062125 | FD14: =FC14*$FA$13+FC13*$FA$12+FC12*$FA$11+FC11*$FA$10 -> 0.05728406326 | FE14: =$FC$7*(ET14-FE13)+FE13 -> 0.129375 | FF14: 0.005197103161 | FR14: 0.00258416526 | FW14: 0.0399 | FX14: 0.008807153787 | FY14: 0.004492846213 | FZ14: 0.01068870156 | GA14: 0.002611298441 | GB14: 0 | GD14: =GD13+FA10 -> 1.077677904 | GE14: 0.0113031617 | GF14: 8.101627253e-07 | GH14: 0.002906692003
A15: 0.05333333333 | B15: 2086 | C15: 16 | D15: 3 | E15: 88 | F15: 1940 | G15: 1932 | H15: -58 | I15: -136 | J15: 440 | K15: 36 | L15: 116 | M15: 749 | N15: 776 | O15: 1077 | P15: -134 | Q15: 71 | R15: 545 | S15: 1765 | T15: -82 | U15: 1990 | V15: 1906 | W15: 0 | X15: 2762 | Y15: 2045 | Z15: -0.01058017699 | AA15: 0.05333333333 | AB15: -0.03016 | AC15: -0.5196 | AD15: -0.6062 | AE15: -0.01058017699 | AF15: 0.001389518632 | AG15: 2.743392914 | AH15: 5.510325008 | AI15: 0.04788119858 | AJ15: 0.09617323301 | AK15: 0.04675896846 | AL15: 0.09693974161 | AM15: -0.02447789236 | AN15: 0.02570288079 | AO15: 48.85084429 | AP15: 48.85084429 | AQ15: 28.94388404 | AR15: 3443.463664 | AS15: 0.0429897168 | AT15: 0.0429897168 | AU15: 0.04383893814 | AV15: 0.1705067083 | AW15: -0.0001101707783 | AX15: -5.640799022e-05 | AY15: 0.001333110641 | AZ15: 0.1471428571 | BA15: 0.1314285714 | BB15: 12.44735881 | BC15: 5.74199115 | BD15: 13.11846635 | BE15: 0.3652699835 | BF15: 0.381339953 | BG15: -2.17702656 | BH15: -4.981504 | BI15: -1.54750656 | BJ15: -3.444304 | BK15: 0.2529063253 | BL15: -0.04009038658 | BM15: 0.1133590392 | BN15: 0.1276098349 | BO15: 4.992675781 | BP15: 0.0819019058 | BQ15: -0.06888608 | BR15: 0.01594581108 | BS15: 0.01593156823 | BT15: -0.00132842624 | BU15: -0.125030539 | BV15: -7.163728245 | BW15: 0.1264200576 | BX15: -0.01121847247 | BY15: 0.05427392306 | BZ15: 0.05333333333 | CA15: 1.76015 | CB15: 1.8236 | CC15: 1.749722521 | CD15: 1.765 | CE15: 0.01042747937 | CF15: 0.07387747937 | CG15: 0.4001087323 | CH15: 0.405457882 | CI15: 0.4601087323 | CJ15: 0.06 | CK15: 0.06 | CL15: 0.465457882 | CM15: 0.210561236 | CN15: 2.210558272 | CO15: -0.2849527346 | CP15: -0.2849527346 | CQ15: 2.185154025 | CR15: 0.04622709542 | CS15: 0.1155363322 | CT15: 0.1140120774 | CU15: 48.85084429 | CV15: 3443.463664 | CW15: 30.2207 | CX15: 30.26121395 | CY15: -2.24394132 | CZ15: -0.354002915 | DA15: -0.4722009118 | DB15: -0.82 | DC15: -0.08387802027 | DD15: -0.134 | DE15: 0.05597476837 | DF15: 0.0545 | DG15: 0.401304409 | DH15: 0.1735789868 | DI15: 13.6847409 | DJ15: -0.8219791067 | DK15: 0.009322813727 | DL15: 0.071 | DM15: 1.7 | DN15: 0.020616475 | DO15: 0.0064719 | DP15: -1.225128237e-05 | DQ15: 0 | DR15: 0.05174568466 | DS15: -0.1032469562 | DT15: -0.1878494388 | DU15: 0.05333333333 | DV15: 0.04972252063 | DW15: -0.134 | DX15: 0.0545 | DY15: 0.071 | EA15: 0.06734415755 | EB15: -0.09550960167 | EC15: 0.05494459892 | ED15: 1.00080162 | EF15: -0.01037211327 | EG15: 0.0003965159224 | EH15: 0.06601777314 | EI15: -0.1021276745 | EJ15: 0.05589126558 | EK15: 1.00080162 | EN15: -0.0792885154 | ET15: -0.1125 | FC15: 0.0665625 | FD15: =FC15*$FA$13+FC14*$FA$12+FC13*$FA$11+FC12*$FA$10+FC11*$FA$9 -> 0.07298244557 | FE15: 0.0084375 | FF15: 0.004166049998 | FR15: 0.002512212853 | FW15: 0.0532 | FX15: 0.01068870156 | FY15: 0.002611298441 | FZ15: 0.01178228067 | GA15: 0.00151771933 | GB15: 0 | GD15: =GD14+FA9 -> 1.209175931 | GE15: 0.01268237107 | GF15: 5.582083698e-07 | GH15: 0.001379209364
A16: 0.06666666667 | B16: 2007 | C16: 14 | D16: 1 | E16: 90 | F16: 2027 | G16: 2019 | H16: 167 | I16: 107 | J16: 437 | K16: 36 | L16: 107 | M16: 750 | N16: 777 | O16: 1072 | P16: -139 | Q16: 78 | R16: 534 | S16: 1766 | T16: -102 | U16: 2017 | V16: 1895 | W16: 9 | X16: 2735 | Y16: 2044 | Z16: -0.009068723133 | AA16: 0.06666666667 | AB16: 0.06148 | AC16: -0.433 | AD16: -0.5196 | AE16: -0.009068723133 | AF16: 0.01632145174 | AG16: 2.661232873 | AH16: 5.564403054 | AI16: 0.04644723657 | AJ16: 0.09711707217 | AK16: 0.04660310251 | AL16: 0.09702840689 | AM16: -0.02461505486 | AN16: 0.02581024952 | AO16: 48.85725852 | AP16: 48.85725852 | AQ16: 28.94768444 | AR16: 3446.095298 | AS16: 0.0429897168 | AT16: 0.0429897168 | AU16: 0.043754016 | AV16: 0.1702261806 | AW16: -0.0001753298049 | AX16: -6.830017169e-05 | AY16: 0.01625315157 | AZ16: 0.02285714286 | BA16: 0.007142857143 | BB16: 12.44654853 | BC16: 5.741686581 | BD16: 13.11983587 | BE16: 0.1727196059 | BF16: 0.1884003636 | BG16: 6.60697344 | BH16: 4.505216 | BI16: 2.52973344 | BJ16: 0.530456 | BK16: 0.2665703253 | BL16: -0.04021265219 | BM16: 0.1133590392 | BN16: 0.119508709 | BO16: 4.990234375 | BP16: 0.0776037089 | BQ16: 0.01060912 | BR16: 0.01066171013 | BS16: 0.01064761005 | BT16: -0.002435448107 | BU16: -0.1184845146 | BV16: -6.788668359 | BW16: 0.1348059664 | BX16: -0.01151554149 | BY16: 0.05052226813 | BZ16: 0.06666666667 | CA16: 1.7625 | CB16: 1.82595 | CC16: 1.758231825 | CD16: 1.766 | CE16: 0.004268175355 | CF16: 0.06771817535 | CG16: 0.4000182173 | CH16: 0.4045857513 | CI16: 0.4600182173 | CJ16: 0.06 | CK16: 0.06 | CL16: 0.4645857513 | CM16: 0.2101179091 | CN16: 2.211071647 | CO16: -0.2855539552 | CP16: -0.2855539552 | CQ16: 2.18933369 | CR16: 0.04621452926 | CS16: 0.1155310615 | CT16: 0.1142267841 | CU16: 48.85725852 | CV16: 3446.095298 | CW16: 29.72645 | CX16: 29.76598598 | CY16: -2.745985547 | CZ16: -0.8218052564 | DA16: -0.6470030841 | DB16: -1.02 | DC16: -0.09082716765 | DD16: -0.139 | DE16: 0.0554978316 | DF16: 0.0534 | DG16: 0.401299919 | DH16: 0.1735712898 | DI16: 13.68634318 | DJ16: -0.8218515004 | DK16: 0.009693199394 | DL16: 0.078 | DM16: 1.7 | DN16: -0.012566525 | DO16: 0.0152609 | DP16: 0.008750418471 | DQ16: 0.009 | DR16: 0.05154079586 | DS16: -0.1140710262 | DT16: 0.2251741811 | DU16: 0.06666666667 | DV16: 0.05823182465 | DW16: -0.139 | DX16: 0.0534 | DY16: 0.078 | EA16: 0.0653685917 | EB16: -0.1080106962 | EC16: 0.05419813677 | ED16: 1.000883819 | EH16: 0.06385396054 | EI16: -0.1176738196 | EJ16: 0.05523813677 | EK16: 1.000883819 | EN16: -0.08307105566 | ET16: -0.0825 | FC16: 0.07228125 | FD16: =FC16*$FA$13+FC15*$FA$12+FC14*$FA$11+FC13*$FA$10+FC12*$FA$9+FC11*$FA$8 -> 0.08027446282 | FE16: -0.03703125 | FF16: 0.01376063026 | FR16: 0.002320621777 | FW16: 0.0665 | FX16: 0.01178228067 | FY16: 0.00151771933 | FZ16: 0.01241788253 | GA16: 0.000882117467 | GB16: 0 | GD16: =GD15+FA8 -> 1.255192767 | GE16: 0.01316501597 | GF16: 2.4492854e-07 | GH16: 0.0004826449002
A17: 0.08 | B17: 2068 | C17: 23 | D17: 1 | E17: 90 | F17: 1957 | G17: 1948 | H17: -153 | I17: 91 | J17: 433 | K17: 35 | L17: 106 | M17: 750 | N17: 783 | O17: 1104 | P17: -122 | Q17: -15 | R17: 601 | S17: 1767 | T17: 61 | U17: 1991 | V17: 1896 | W17: 8 | X17: 2742 | Y17: 2044 | Z17: -0.01171376738 | AA17: 0.08 | AB17: -0.00928 | AC17: -0.8227 | AD17: -0.67115 | AE17: -0.01171376738 | AF17: 0.009803951133 | AG17: 2.661232873 | AH17: 5.564403054 | AI17: 0.04644723657 | AJ17: 0.09711707217 | AK17: 0.04652516954 | AL17: 0.09707273953 | AM17: -0.02466041914 | AN17: 0.02588715084 | AO17: 48.86843378 | AP17: 48.86843378 | AQ17: 28.95430573 | AR17: 3445.287768 | AS17: 0.0418106675 | AT17: 0.0418106675 | AU17: 0.04355968115 | AV17: 0.1695596656 | AW17: -0.0004165718376 | AX17: -0.0001031273383 | AY17: 0.009700823795 | AZ17: 0.1228571429 | BA17: 0.1085714286 | BB17: 12.44513752 | BC17: 5.741156224 | BD17: 13.12222193 | BE17: 0.2701219752 | BF17: 0.2862194207 | BG17: -5.88582656 | BH17: 3.880576 | BI17: -1.67804656 | BJ17: 2.205516 | BK17: -0.5178083413 | BL17: -0.04027378499 | BM17: -0.1983783185 | BN17: 0.1160916053 | BO17: 4.990234375 | BP17: 0.07507674698 | BQ17: 0.04411032 | BR17: 0.01131899838 | BS17: 0.01129706542 | BT17: 0.001881937174 | BU17: -0.1146525949 | BV17: -6.569115349 | BW17: 0.1244565461 | BX17: -0.0117924578 | BY17: 0.002507859312 | BZ17: 0.08 | CA17: 1.7625 | CB17: 1.84005 | CC17: 1.765249132 | CD17: 1.767 | CE17: -0.002749131969 | CF17: 0.07480086803 | CG17: 0.4000075577 | CH17: 0.4055951699 | CI17: 0.4600075577 | CJ17: 0.06 | CK17: 0.06 | CL17: 0.4655951699 | CM17: 0.210577297 | CN17: 2.21104163 | CO17: -0.2849310009 | CP17: -0.2849310009 | CQ17: 2.184506898 | CR17: 0.04622752851 | CS17: 0.1155666377 | CT17: 0.1139745538 | CU17: 48.86843378 | CV17: 3445.287768 | CW17: 32.88965 | CX17: 32.93329947 | CY17: 0.4750067505 | CZ17: 2.303219559 | DA17: 0.8281082376 | DB17: 0.61 | DC17: -0.07796918113 | DD17: -0.122 | DE17: 0.05843246129 | DF17: 0.0601 | DG17: 0.4012920964 | DH17: 0.1735578795 | DI17: 13.68913476 | DJ17: -0.8216292569 | DK17: -0.000164374692 | DL17: -0.015 | DM17: 1.7 | DN17: 0.019387475 | DO17: 0.0144619 | DP17: 0.007927564216 | DQ17: 0.008 | DR17: 0.05148573011 | DS17: -0.08322809879 | DT17: 0.3757361152 | DU17: 0.08 | DV17: 0.06524913197 | DW17: -0.122 | DX17: 0.0601 | DY17: -0.015 | EA17: 0.06408302475 | EB17: -0.1070106505 | EC17: 0.0585415045 | ED17: 1.000871014 | EH17: 0.06276309992 | EI17: -0.09160590057 | EJ17: 0.0583415045 | EK17: 1.000871014 | EN17: -0.04626777048 | ET17: 0.5025 | FC17: 0.028640625 | FD17: =FC17*$FA$13+FC16*$FA$12+FC15*$FA$11+FC14*$FA$10+FC13*$FA$9+FC12*$FA$8+FC11*$FA$7 -> 0.08524530835 | FE17: 0.232734375 | FF17: 0.02175302478 | FR17: 0.001938713011 | FW17: 0.0798 | FX17: 0.01241788253 | FY17: 0.000882117467 | FZ17: 0.01278730229 | GA17: 0.0005126977103 | GB17: 0 | GD17: =GD16+FA7 -> 1.266365912 | GE17: 0.01328220485 | GF17: 8.821670545e-08 | GH17: 0.0001171888777
A18: 0.09333333333 | B18: 2072 | C18: 23 | D18: 0 | E18: 89 | F18: 1899 | G18: 1896 | H18: -12 | I18: 44 | J18: 437 | K18: 41 | L18: 120 | M18: 749 | N18: 783 | O18: 1111 | P18: -90 | Q18: -44 | R18: 621 | S18: 1768 | T18: 180 | U18: 2022 | V18: 1902 | W18: 3 | X18: 2710 | Y18: 2044 | Z18: -0.0130362895 | AA18: 0.09333333333 | AB18: -0.01392 | AC18: -0.8227 | AD18: -0.746925 | AE18: -0.0130362895 | AF18: 0.003742600455 | AG18: 2.62 | AH18: 5.537371155 | AI18: 0.04572758778 | AJ18: 0.09664527693 | AK18: 0.04612637866 | AL18: 0.09685900823 | AM18: -0.02509479356 | AN18: 0.02563783601 | AO18: 48.85622443 | AP18: 48.85622443 | AQ18: 28.94707175 | AR18: 3447.736991 | AS18: 0.0488720123 | AT18: 0.0488720123 | AU18: 0.04409091427 | AV18: 0.1715059754 | AW18: 0.001216443627 | AX18: 2.882975823e-05 | AY18: 0.003771430213 | AZ18: 0.2057142857 | BA18: 0.1828571429 | BB18: 12.44667914 | BC18: 5.741735675 | BD18: 13.11961508 | BE18: 0.3571431787 | BF18: 0.3642676867 | BG18: -0.38118656 | BH18: 2.045696 | BI18: -1.02961656 | BJ18: 2.125606 | BK18: -0.4206963413 | BL18: -0.04036631479 | BM18: -0.09918915927 | BN18: 0.1228219495 | BO18: 4.990234375 | BP18: 0.07910335452 | BQ18: 0.04251212 | BR18: 0.01417302613 | BS18: 0.01417989136 | BT18: 0.0024907992 | BU18: -0.1207716013 | BV18: -6.919708884 | BW18: 0.1245142018 | BX18: -0.01210464137 | BY18: 0.01046708543 | BZ18: 0.09333333333 | CA18: 1.76015 | CB18: 1.84005 | CC18: 1.772417231 | CD18: 1.768 | CE18: -0.01226723051 | CF18: 0.06763276949 | CG18: 0.4001504849 | CH18: 0.4045741915 | CI18: 0.4601504849 | CJ18: 0.06 | CK18: 0.06 | CL18: 0.4645741915 | CM18: 0.2101740395 | CN18: 2.210426143 | CO18: -0.2854776933 | CP18: -0.2854776933 | CQ18: 2.189378317 | CR18: 0.04621614334 | CS18: 0.115496907 | CT18: 0.1142340374 | CU18: 48.85622443 | CV18: 3447.736991 | CW18: 33.5816 | CX18: 33.62563317 | CY18: 1.166279983 | CZ18: 2.87471308 | DA18: 1.851410659 | DB18: 1.8 | DC18: -0.05172432205 | DD18: -0.09 | DE18: 0.0608713529 | DF18: 0.0621 | DG18: 0.4013006429 | DH18: 0.1735725307 | DI18: 13.68608486 | DJ18: -0.8218720706 | DK18: -0.01155603882 | DL18: -0.044 | DM18: 1.7 | DN18: -0.018711525 | DO18: 0.0096679 | DP18: 0.003124163523 | DQ18: 0.003 | DR18: 0.05117639935 | DS18: -0.04476525772 | DT18: 0.4566717528 | DU18: 0.09333333333 | DV18: 0.07241723051 | DW18: -0.09 | DX18: 0.0621 | DY18: -0.044 | EA18: 0.06358514085 | EB18: -0.08285438027 | EC18: 0.06089574214 | ED18: 1.000769383 | EH18: 0.06266793051 | EI18: -0.05610943927 | EJ18: 0.06030907547 | EK18: 1.000769383 | EN18: -0.002099511142 | ET18: 0.15 | FC18: -0.0076796875 | FD18: =FC18*$FA$13+FC17*$FA$12+FC16*$FA$11+FC15*$FA$10+FC14*$FA$9+FC13*$FA$8+FC12*$FA$7+FC11*$FA$6 -> 0.07206292864 | FE18: 0.1913671875 | FF18: 0.01423350618 | FR18: 0.001465027522 | FW18: 0.0931 | FX18: 0.01278730229 | FY18: 0.0005126977103 | FZ18: 0.01300201368 | GA18: 0.0002979863249 | GB18: 0 | GD18: =GD17+FA6 -> 1.267969754 | GE18: 0.01329902665 | GF18: 2.999378143e-08 | GH18: 1.682180118e-05
A19: 0.1066666667 | B19: 1982 | C19: 29 | D19: -2 | E19: 86 | F19: 2020 | G19: 2033 | H19: 127 | I19: 55 | J19: 436 | K19: 36 | L19: 109 | M19: 772 | N19: 783 | O19: 1083 | P19: -63 | Q19: 11 | R19: 572 | S19: 1772 | T19: 88 | U19: 2027 | V19: 1894 | W19: 9 | X19: 2722 | Y19: 2044 | Z19: -0.01596473135 | AA19: 0.1066666667 | AB19: 0.09048 | AC19: -1.0825 | AD19: -0.9147125 | AE19: -0.01596473135 | AF19: 0.02526730303 | AG19: 2.537226792 | AH19: 5.456188554 | AI19: 0.04428292399 | AJ19: 0.09522837445 | AK19: 0.04520465132 | AL19: 0.09604369134 | AM19: -0.02602561644 | AN19: 0.02481342358 | AO19: 48.85310505 | AP19: 48.85310505 | AQ19: 28.94522353 | AR19: 3449.147292 | AS19: 0.0429897168 | AT19: 0.0429897168 | AU19: 0.04398079452 | AV19: 0.1710639833 | AW19: -0.0002762450879 | AX19: -1.677726382e-06 | AY19: 0.0252656253 | AZ19: 0.03285714286 | BA19: -0.01285714286 | BB19: 12.44707318 | BC19: 5.741883788 | BD19: 13.11894905 | BE19: 0.1186132811 | BF19: 0.1027105847 | BG19: 5.04537344 | BH19: 2.475136 | BI19: 2.00787844 | BJ19: 2.300371 | BK19: -0.038999008 | BL19: -0.04041952001 | BM19: -0.2196331384 | BN19: 0.1193436385 | BO19: 4.990234375 | BP19: 0.07696016018 | BQ19: 0.04600742 | BR19: 0.008850672563 | BS19: 0.008850356891 | BT19: 0.004677167387 | BU19: -0.1174919622 | BV19: -6.731799247 | BW19: 0.1427592652 | BX19: -0.01243445856 | BY19: 0.02745459751 | BZ19: 0.1066666667 | CA19: 1.8142 | CB19: 1.84005 | CC19: 1.77803671 | CD19: 1.772 | CE19: 0.03616328998 | CF19: 0.06201328998 | CG19: 0.4013077835 | CH19: 0.4038456481 | CI19: 0.4613077835 | CJ19: 0.06 | CK19: 0.06 | CL19: 0.4638456481 | CM19: 0.2103756078 | CN19: 2.204845195 | CO19: -0.285204167 | CP19: -0.285204167 | CQ19: 2.192781703 | CR19: 0.04622201317 | CS19: 0.1151784617 | CT19: 0.1144546521 | CU19: 48.85310505 | CV19: 3449.147292 | CW19: 30.8138 | CX19: 30.85380389 | CY19: -1.644819282 | CZ19: 0.06106926288 | DA19: 0.9562399608 | DB19: 0.88 | DC19: -0.03793996947 | DD19: -0.063 | DE19: 0.05952345858 | DF19: 0.0572 | DG19: 0.4013028265 | DH19: 0.1735762739 | DI19: 13.68530564 | DJ19: -0.8219341268 | DK19: -0.01266197426 | DL19: 0.011 | DM19: 1.7 | DN19: -0.024856525 | DO19: 0.0160599 | DP19: 0.009487615033 | DQ19: 0.009 | DR19: 0.05092273626 | DS19: -0.04381766755 | DT19: 0.4390663581 | DU19: 0.1066666667 | DV19: 0.07803671002 | DW19: -0.063 | DX19: 0.0572 | DY19: 0.011 | EA19: 0.06374441949 | EB19: -0.06196453662 | EC19: 0.05819766824 | ED19: 1.000603631 | EH19: 0.06297255469 | EI19: -0.05383855535 | EJ19: 0.0583443349 | EK19: 1.000603631 | EN19: 0.002950350443 | ET19: -0.3675 | FC19: 0.00166015625 | FD19: =FC19*$FA$13+FC18*$FA$12+FC17*$FA$11+FC16*$FA$10+FC15*$FA$9+FC14*$FA$8+FC13*$FA$7+FC12*$FA$6+FC11*$FA$5 -> 0.04176176993 | FE19: -0.08806640625 | FF19: 0.01685535533 | FR19: 0.0006280051303 | FW19: 0.1064 | FX19: 0.01300201368 | FY19: 0.0002979863249 | FZ19: 0.01312680662 | GA19: 0.0001731933809 | GB19: 0 | GD19: =GD18+FA5 -> 1.26806196 | GE19: 0.01329999375 | GF19: 1.013287051e-08 | GH19: 9.671004791e-07
A20: 0.12 | B20: 2102 | C20: 24 | D20: -2 | E20: 83 | F20: 1886 | G20: 1914 | H20: -171 | I20: -70 | J20: 434 | K20: 36 | L20: 117 | M20: 771 | N20: 780 | O20: 1096 | P20: -35 | Q20: -32 | R20: 603 | S20: 1776 | T20: 113 | U20: 1958 | V20: 1901 | W20: 4 | X20: 2730 | Y20: 2045 | Z20: -0.01553963495 | AA20: 0.12 | AB20: -0.04872 | AC20: -0.866 | AD20: -0.89035625 | AE20: -0.01553963495 | AF20: 0.006615080921 | AG20: 2.537226792 | AH20: 5.374868183 | AI20: 0.04428292399 | AJ20: 0.09380906742 | AK20: 0.04474378766 | AL20: 0.09492637938 | AM20: -0.02647849125 | AN20: 0.02370410047 | AO20: 48.85584485 | AP20: 48.85584485 | AQ20: 28.94684685 | AR20: 3448.828563 | AS20: 0.0429897168 | AT20: 0.0429897168 | AU20: 0.04388168675 | AV20: 0.1707042431 | AW20: -0.0002248376311 | AX20: -2.399371685e-05 | AY20: 0.006591087204 | AZ20: 0.2242857143 | BA20: 0.1571428571 | BB20: 12.44672709 | BC20: 5.741753697 | BD20: 13.11953403 | BE20: 0.35457276 | BF20: 0.3181740457 | BG20: -6.58854656 | BH20: -2.404864 | BI20: -2.29033406 | BJ20: -0.0522465 | BK20: -0.2984116747 | BL20: -0.04009129586 | BM20: 0.03188222977 | BN20: 0.1214486845 | BO20: 4.992675781 | BP20: 0.07891147073 | BQ20: -0.00104493 | BR20: 0.01319226765 | BS20: 0.01318675651 | BT20: 0.001840423854 | BU20: -0.1204777053 | BV20: -6.902869872 | BW20: 0.1270927863 | BX20: -0.01280332165 | BY20: 0.01702059867 | BZ20: 0.12 | CA20: 1.81185 | CB20: 1.833 | CC20: 1.788793785 | CD20: 1.776 | CE20: 0.0230562146 | CF20: 0.0442062146 | CG20: 0.400531589 | CH20: 0.4019541894 | CI20: 0.460531589 | CJ20: 0.06 | CK20: 0.06 | CL20: 0.4619541894 | CM20: 0.2091444969 | CN20: 2.208780036 | CO20: -0.2868829966 | CP20: -0.2868829966 | CQ20: 2.201978038 | CR20: 0.04618682851 | CS20: 0.1153138224 | CT20: 0.1149057025 | CU20: 48.85584485 | CV20: 3448.828563 | CW20: 32.09885 | CX20: 32.14068112 | CY20: -0.3356076299 | CZ20: 1.315469678 | DA20: 1.135854819 | DB20: 1.13 | DC20: -0.02203643915 | DD20: -0.035 | DE20: 0.06017086332 | DF20: 0.0603 | DG20: 0.4013009086 | DH20: 0.1735729862 | DI20: 13.68599004 | DJ20: -0.8218796215 | DK20: -0.01931558555 | DL20: -0.032 | DM20: 1.7 | DN20: 0.059944475 | DO20: 0.0104669 | DP20: 0.003882931188 | DQ20: 0.004 | DR20: 0.05101961737 | DS20: -0.02614473851 | DT20: 0.6229235059 | DU20: 0.12 | DV20: 0.0887937854 | DW20: -0.035 | DX20: 0.0603 | DY20: -0.032 | EA20: 0.06496447701 | EB20: -0.04805214052 | EC20: 0.05967471377 | ED20: 1.000328279 | EH20: 0.06442527117 | EI20: -0.03370685227 | EJ20: 0.0592480471 | EK20: 1.000328279 | EN20: 0.02852824918 | ET20: 0.2325 | FC20: -0.01516992188 | FD20: =FC20*$FA$13+FC19*$FA$12+FC18*$FA$11+FC17*$FA$10+FC16*$FA$9+FC15*$FA$8+FC14*$FA$7+FC13*$FA$6+FC12*$FA$5+FC11*$FA$4 -> 0.01870925177 | FE20: 0.07221679687 | FF20: 0.002863057383 | FR20: 0.0001680539098 | FW20: 0.1197 | FX20: 0.01312680662 | FY20: 0.0001731933809 | FZ20: 0.01319933784 | GA20: 0.0001006621603 | GB20: 0 | GD20: =GD19+FA4 -> 1.268062556 | GE20: 0.0133 | GF20: 3.53706243e-09 | GH20: 6.25256566e-09
A21: 0.1333333333 | B21: 2084 | C21: 24 | D21: 5 | E21: 81 | F21: 1839 | G21: 1855 | H21: -48 | I21: -146 | J21: 441 | K21: 36 | L21: 107 | M21: 767 | N21: 780 | O21: 1089 | P21: -13 | Q21: -27 | R21: 593 | S21: 1779 | T21: 87 | U21: 2002 | V21: 1898 | W21: 6 | X21: 2760 | Y21: 2044 | Z21: -0.01532708675 | AA21: 0.1333333333 | AB21: -0.02784 | AC21: -0.866 | AD21: -0.878178125 | AE21: -0.01532708675 | AF21: -0.002151960177 | AG21: 2.825147685 | AH21: 5.320573357 | AI21: 0.0493080873 | AJ21: 0.09286144474 | AK21: 0.04702593748 | AL21: 0.09389391206 | AM21: -0.02412602762 | AN21: 0.02274194696 | AO21: 48.87997906 | AP21: 48.87997906 | AQ21: 28.96114625 | AR21: 3454.099706 | AS21: 0.0429897168 | AT21: 0.0429897168 | AU21: 0.04379248975 | AV21: 0.1705286166 | AW21: -0.0001097665417 | AX21: -3.257099933e-05 | AY21: -0.002184531176 | AZ21: 0.2914285714 | BA21: 0.2414285714 | BB21: 12.44368075 | BC21: 5.74060868 | BD21: 13.12468699 | BE21: 0.4318169766 | BF21: 0.4136513512 | BG21: -1.78662656 | BH21: -5.371904 | BI21: -2.03848031 | BJ21: -2.71207525 | BK21: 0.08981265867 | BL21: -0.03843398729 | BM21: 0.01594111488 | BN21: 0.1158818124 | BO21: 4.990234375 | BP21: 0.07610849136 | BQ21: -0.054241505 | BR21: 0.01393966149 | BS21: 0.01393197148 | BT21: 0.0006711320068 | BU21: -0.1162556707 | BV21: -6.660964904 | BW21: 0.1141037106 | BX21: -0.01316651678 | BY21: 0.04450861569 | BZ21: 0.1333333333 | CA21: 1.80245 | CB21: 1.833 | CC21: 1.796238213 | CD21: 1.779 | CE21: 0.006211787409 | CF21: 0.03676178741 | CG21: 0.4000385863 | CH21: 0.401351429 | CI21: 0.4600385863 | CJ21: 0.06 | CK21: 0.06 | CL21: 0.461351429 | CM21: 0.2086394592 | CN21: 2.211237658 | CO21: -0.2875774325 | CP21: -0.2875774325 | CQ21: 2.204945259 | CR21: 0.04617229902 | CS21: 0.1154196135 | CT21: 0.1150420696 | CU21: 48.87997906 | CV21: 3454.099706 | CW21: 31.4069 | CX21: 31.44760112 | CY21: -1.038321308 | CZ21: 0.5882457595 | DA21: 0.8620502894 | DB21: 0.87 | DC21: -0.01010170651 | DD21: -0.013 | DE21: 0.05985497164 | DF21: 0.0593 | DG21: 0.4012840147 | DH21: 0.1735440251 | DI21: 13.69201877 | DJ21: -0.8213997616 | DK21: -0.02255678531 | DL21: -0.027 | DM21: 1.7 | DN21: 0.005868475 | DO21: 0.0128639 | DP21: 0.006261091394 | DQ21: 0.006 | DR21: 0.05087734288 | DS21: -0.01816812839 | DT21: 0.5906277725 | DU21: 0.1333333333 | DV21: 0.09623821259 | DW21: -0.013 | DX21: 0.0593 | DY21: -0.027 | EA21: 0.066819218 | EB21: -0.03170819342 | EC21: 0.05928537592 | ED21: 0.9999880038 | EH21: 0.06646630869 | EI21: -0.02191164627 | EJ21: 0.05892537592 | EK21: 0.9999880038 | EN21: 0.04166956387 | ET21: -0.075 | FC21: -0.02108496094 | FD21: =FC21*$FA$13+FC20*$FA$12+FC19*$FA$11+FC18*$FA$10+FC17*$FA$9+FC16*$FA$8+FC15*$FA$7+FC14*$FA$6+FC13*$FA$5+FC12*$FA$4+FC11*$FA$3 -> 0.0007781058488 | FE21: -0.001391601563 | FF21: 4.707630251e-06 | FR21: 8.400105142e-06 | FW21: 0.133 | FX21: 0.01319933784 | FY21: 0.0001006621603 | FZ21: 0.01324149389 | GA21: 5.850610719e-05 | GB21: 0 | GD21: =GD20+FA5 -> 1.268154763 | GE21: 0.0133009671 | GF21: =(FZ22-GE22)^2 -> 0 | GH21: =GE21-GE20 -> 9.671004791e-07
A22: 0.1466666667 | B22: 1989 | C22: 22 | D22: 6 | E22: 79 | F22: 1998 | G22: 2008 | H22: 73 | I22: 148 | J22: 439 | K22: 39 | L22: 111 | M22: 767 | N22: 781 | O22: 1093 | P22: 9 | Q22: -60 | R22: 605 | S22: 1783 | T22: 96 | U22: 2044 | V22: 1885 | W22: 17 | X22: 2757 | Y22: 2045 | Z22: -0.01446508573 | AA22: 0.1466666667 | AB22: 0.08236 | AC22: -0.7794 | AD22: -0.8287890625 | AE22: -0.01446508573 | AF22: 0.01883137901 | AG22: 2.865873971 | AH22: 5.266210241 | AI22: 0.05001889449 | AJ22: 0.09191263018 | AK22: 0.04852241598 | AL22: 0.09290327112 | AM22: -0.02256839773 | AN22: 0.0218124574 | AO22: 48.90099749 | AP22: 48.90099749 | AQ22: 28.97359957 | AR22: 3457.255736 | AS22: 0.0465216843 | AT22: 0.0465216843 | AU22: 0.04406540921 | AV22: 0.1717167448 | AW22: 0.0007425801317 | AX22: 4.494411377e-05 | AY22: 0.01887632312 | AZ22: 0.06428571429 | BA22: 0.02285714286 | BB22: 12.44103116 | BC22: 5.73961284 | BD22: 13.12917469 | BE22: 0.144487504 | BF22: 0.1345626313 | BG22: 2.93721344 | BH22: 6.105856 | BI22: 0.449366565 | BJ22: 1.696890375 | BK22: -0.166336508 | BL22: -0.03719042757 | BM22: 0.06465007702 | BN22: 0.1152971417 | BO22: 4.992675781 | BP22: 0.07621845553 | BQ22: 0.0339378075 | BR22: 0.009296974263 | BS22: 0.009305643379 | BT22: -0.0006745914501 | BU22: -0.1164737032 | BV22: -6.673457256 | BW22: 0.1353050822 | BX22: -0.01352687793 | BY22: 0.02160852694 | BZ22: 0.1466666667 | CA22: 1.80245 | CB22: 1.83535 | CC22: 1.801049637 | CD22: 1.783 | CE22: 0.001400362623 | CF22: 0.03430036262 | CG22: 0.400001961 | CH22: 0.4011765149 | CI22: 0.460001961 | CJ22: 0.06 | CK22: 0.06 | CL22: 0.4611765149 | CM22: 0.2085421012 | CN22: 2.211431227 | CO22: -0.2877116882 | CP22: -0.2877116882 | CQ22: 2.205799013 | CR22: 0.04616949529 | CS22: 0.1154231724 | CT22: 0.1150852395 | CU22: 48.90099749 | CV22: 3457.255736 | CW22: 31.8023 | CX22: 31.84308989 | CY22: -0.6435925296 | CZ22: 0.9436555568 | DA22: 0.9028529231 | DB22: 0.96 | DC22: 0.002138366593 | DD22: 0.009 | DE22: 0.06012825425 | DF22: 0.0605 | DG22: 0.4012693018 | DH22: 0.173518803 | DI22: 13.69726917 | DJ22: -0.8209822383 | DK22: -0.02645666249 | DL22: -0.06 | DM22: 1.7 | DN22: -0.045749525 | DO22: 0.0232509 | DP22: 0.01659814712 | DQ22: 0.017 | DR22: 0.05061551717 | DS22: -0.005452720963 | DT22: 0.4757423157 | DU22: 0.1466666667 | DV22: 0.1010496374 | DW22: 0.009 | DX22: 0.0605 | DY22: -0.06 | EA22: 0.069107491 | EB22: -0.01643511791 | EC22: 0.05999742472 | ED22: 0.9996187583 | EH22: 0.06897090786 | EI22: -0.005306069346 | EJ22: 0.05919742472 | EK22: 0.9996187583 | EN22: 0.05744351091 | ET22: 0.09 | FC22: -0.04054248047 | FD22: -0.01269301908 | FE22: 0.04430419922 | FF22: 0.003248682894 | FR22: 4.708201302e-05
A23: 0.16 | B23: 2045 | C23: 17 | D23: 11 | E23: 74 | F23: 2029 | G23: 2031 | H23: -19 | I23: -42 | J23: 434 | K23: 36 | L23: 101 | M23: 768 | N23: 751 | O23: 1096 | P23: 25 | Q23: -69 | R23: 614 | S23: 1783 | T23: 116 | U23: 1963 | V23: 1893 | W23: 10 | X23: 2759 | Y23: 2045 | Z23: -0.01214476789 | AA23: 0.16 | AB23: 0.0174 | AC23: -0.5629 | AD23: -0.6958445313 | AE23: -0.01214476789 | AF23: 0.01835208658 | AG23: 3.068008447 | AH23: 5.129985151 | AI23: 0.05354680364 | AJ23: 0.08953505584 | AK23: 0.05103460981 | AL23: 0.09121916348 | AM23: -0.01999340981 | AN23: 0.02019114386 | AO23: 48.92260879 | AP23: 48.92260879 | AQ23: 28.98640416 | AR23: 3456.126162 | AS23: 0.0429897168 | AT23: 0.0429897168 | AU23: 0.04395783997 | AV23: 0.1714536917 | AW23: -0.0001644082303 | AX23: 2.400887936e-05 | AY23: 0.01837609546 | AZ23: 0.02 | BA23: -0.01 | BB23: 12.43831016 | BC23: 5.738590222 | BD23: 13.13378897 | BE23: 0.1037154967 | BF23: 0.106312494 | BG23: -0.65446656 | BH23: -1.311744 | BI23: -0.1025499975 | BJ23: 0.1925731875 | BK23: -0.039349758 | BL23: -0.03509227683 | BM23: 0.1740238375 | BN23: 0.1077854935 | BO23: 4.992675781 | BP23: 0.07249480298 | BQ23: 0.00385146375 | BR23: 0.007994040456 | BS23: 0.007998334272 | BT23: -0.003056418186 | BU23: -0.1108323402 | BV23: -6.35023069 | BW23: 0.1291844268 | BX23: -0.01387574574 | BY23: 0.03009242722 | BZ23: 0.16 | CA23: 1.8048 | CB23: 1.76485 | CC23: 1.805187249 | CD23: 1.783 | CE23: -0.0003872486751 | CF23: -0.04033724868 | CG23: 0.40000015 | CH23: 0.4016270936 | CI23: 0.46000015 | CJ23: 0.06 | CK23: 0.06 | CL23: 0.4616270936 | CM23: 0.2087485323 | CN23: 2.211402823 | CO23: -0.2874271706 | CP23: -0.2874271706 | CQ23: 2.203609026 | CR23: 0.04617543297 | CS23: 0.1154385391 | CT23: 0.1149709113 | CU23: 48.92260879 | CV23: 3456.126162 | CW23: 32.09885 | CX23: 32.14026755 | CY23: -0.3403323545 | CZ23: 1.197039103 | DA23: 1.049946013 | DB23: 1.16 | DC23: 0.01609487943 | DD23: 0.025 | DE23: 0.06062881221 | DF23: 0.0614 | DG23: 0.4012541738 | DH23: 0.1734928694 | DI23: 13.70266768 | DJ23: -0.8205533121 | DK23: -0.03098468432 | DL23: -0.069 | DM23: 1.7 | DN23: 0.053799475 | DO23: 0.0168589 | DP23: 0.01017552868 | DQ23: 0.01 | DR23: 0.05076711067 | DS23: 0.01064113374 | DT23: 0.3930315815 | DU23: 0.16 | DV23: 0.1051872487 | DW23: 0.025 | DX23: 0.0614 | DY23: -0.069 | EA23: 0.07175094048 | EB23: 0.0016338088 | EC23: 0.06069622443 | ED23: 0.9992323185 | EH23: 0.07186975176 | EI23: 0.01473848021 | EJ23: 0.05977622443 | EK23: 0.9992323185 | EN23: 0.07593280565 | ET23: 0.0675 | FC23: -0.05477124023 | FD23: -0.02813553808 | FE23: 0.05590209961 | FF23: 0.007062324549 | FR23: 7.930117234e-05
A24: 0.1733333333 | B24: 2019 | C24: 8 | D24: 13 | E24: 71 | F24: 2116 | G24: 2114 | H24: 49 | I24: -50 | J24: 434 | K24: 36 | L24: 105 | M24: 767 | N24: 750 | O24: 1084 | P24: 33 | Q24: -42 | R24: 592 | S24: 1783 | T24: 61 | U24: 1996 | V24: 1891 | W24: 12 | X24: 2730 | Y24: 2044 | Z24: -0.007583837803 | AA24: 0.1733333333 | AB24: 0.04756 | AC24: -0.1732 | AD24: -0.4345222656 | AE24: -0.007583837803 | AF24: 0.02557822656 | AG24: 3.148170207 | AH24: 5.048018401 | AI24: 0.05494588911 | AJ24: 0.08810446739 | AK24: 0.05299024946 | AL24: 0.08966181543 | AM24: -0.01803788733 | AN24: 0.01863367865 | AO24: 48.92256844 | AP24: 48.92256844 | AQ24: 28.98638025 | AR24: 3455.109546 | AS24: 0.0429897168 | AT24: 0.0429897168 | AU24: 0.04386102765 | AV24: 0.1710826642 | AW24: -0.0002318921598 | AX24: -1.581224556e-06 | AY24: 0.02557664533 | AZ24: -0.1042857143 | BA24: -0.1285714286 | BB24: 12.43831524 | BC24: 5.73859213 | BD24: 13.13378036 | BE24: -0.03770417515 | BF24: -0.02987918282 | BG24: 2.00025344 | BH24: -1.624064 | BI24: 0.9488517212 | BJ24: -0.7157454062 | BK24: 0.2219462837 | BL24: -0.03333578299 | BM24: 0.3420697569 | BN24: 0.1056766647 | BO24: 4.990234375 | BP24: 0.07214443056 | BQ24: -0.01431490812 | BR24: 0.006416013105 | BS24: 0.006415759795 | BT24: -0.006873049044 | BU24: -0.1102965888 | BV24: -6.319534371 | BW24: 0.1358748154 | BX24: -0.01419367598 | BY24: 0.04488853935 | BZ24: 0.1733333333 | CA24: 1.80245 | CB24: 1.7625 | CC24: 1.800719533 | CD24: 1.783 | CE24: 0.001730466595 | CF24: -0.03821953341 | CG24: 0.4000029945 | CH24: 0.4014607327 | CI24: 0.4600029945 | CJ24: 0.06 | CK24: 0.06 | CL24: 0.4614607327 | CM24: 0.2086733189 | CN24: 2.211402661 | CO24: -0.2875307697 | CP24: -0.2875307697 | CQ24: 2.204416918 | CR24: 0.04617327106 | CS24: 0.1154323135 | CT24: 0.1150131689 | CU24: 48.92256844 | CV24: 3455.109546 | CW24: 30.91265 | CX24: 30.95248804 | CY24: -1.544634534 | CZ24: -0.006972553823 | DA24: 0.5214867295 | DB24: 0.61 | DC24: 0.02272613824 | DD24: 0.033 | DE24: 0.05980027923 | DF24: 0.0592 | DG24: 0.4012542021 | DH24: 0.1734929179 | DI24: 13.7026576 | DJ24: -0.8205541126 | DK24: -0.02956529713 | DL24: -0.042 | DM24: 1.7 | DN24: 0.013242475 | DO24: 0.0184569 | DP24: 0.01173820809 | DQ24: 0.012 | DR24: 0.05073599693 | DS24: 0.01068149969 | DT24: 0.02897646815 | DU24: 0.1733333333 | DV24: 0.1007195334 | DW24: 0.033 | DX24: 0.0592 | DY24: -0.042 | EA24: 0.07402480339 | EB24: 0.01519445745 | EC24: 0.05938656379 | ED24: 0.9989234664 | EH24: 0.07425721036 | EI24: 0.01889095411 | EJ24: 0.05882656379 | EK24: 0.9989234664 | EN24: 0.07172972375 | ET24: -0.165 | FC24: -0.04838562012 | FD24: -0.04563245188 | FE24: -0.0545489502 | FF24: 7.950394216e-05 | FR24: 0.0001055522355
A25: 0.1866666667 | B25: 2027 | C25: 8 | D25: 12 | E25: 74 | F25: 2154 | G25: 2146 | H25: 131 | I25: 121 | J25: 437 | K25: 36 | L25: 123 | M25: 747 | N25: 751 | O25: 1068 | P25: 20 | Q25: -2 | R25: 557 | S25: 1782 | T25: -52 | U25: 2064 | V25: 1878 | W25: 22 | X25: 2733 | Y25: 2044 | Z25: -0.005303372757 | AA25: 0.1866666667 | AB25: 0.03828 | AC25: -0.1732 | AD25: -0.3038611328 | AE25: -0.005303372757 | AF25: 0.02870063619 | AG25: 3.108138407 | AH25: 5.129985151 | AI25: 0.05424720298 | AJ25: 0.08953505584 | AK25: 0.05361872622 | AL25: 0.08959843563 | AM25: -0.01740327934 | AN25: 0.01857643008 | AO25: 48.9246801 | AP25: 48.9246801 | AQ25: 28.9876314 | AR25: 3456.576591 | AS25: 0.0429897168 | AT25: 0.0429897168 | AU25: 0.04377389657 | AV25: 0.1707634068 | AW25: -0.0001995358798 | AX25: -2.137669008e-05 | AY25: 0.0286792595 | AZ25: -0.1585714286 | BA25: -0.1742857143 | BB25: 12.43804955 | BC25: 5.73849228 | BD25: 13.13423123 | BE25: -0.09770199212 | BF25: -0.08229355906 | BG25: 5.20153344 | BH25: 5.051776 | BI25: 3.075192581 | BJ25: 2.168015297 | BK25: 0.1209569712 | BL25: -0.03298985471 | BM25: 0.1710348784 | BN25: 0.1170700959 | BO25: 4.990234375 | BP25: 0.0787707867 | BQ25: 0.04336030594 | BR25: 0.007812939955 | BS25: 0.007809161405 | BT25: -0.006108944497 | BU25: -0.1204323607 | BV25: -6.900271811 | BW25: 0.1491329968 | BX25: -0.01445079382 | BY25: 0.03773697291 | BZ25: 0.1866666667 | CA25: 1.75545 | CB25: 1.76485 | CC25: 1.796826551 | CD25: 1.782 | CE25: -0.04137655069 | CF25: -0.03197655069 | CG25: 0.4017120189 | CH25: 0.4010224998 | CI25: 0.4617120189 | CJ25: 0.06 | CK25: 0.06 | CL25: 0.4610224998 | CM25: 0.2092596292 | CN25: 2.203112476 | CO25: -0.2867251569 | CP25: -0.2867251569 | CQ25: 2.206407518 | CR25: 0.04619014915 | CS25: 0.1149832392 | CT25: 0.1151809417 | CU25: 48.9246801 | CV25: 3456.576591 | CW25: 29.33105 | CX25: 29.3683869 | CY25: -3.154015278 | CZ25: -1.551699166 | DA25: -0.515106218 | DB25: -0.52 | DC25: 0.01540353256 | DD25: 0.02 | DE25: 0.05775435631 | DF25: 0.0557 | DG25: 0.4012527239 | DH25: 0.1734903839 | DI25: 13.70318509 | DJ25: -0.820512222 | DK25: -0.02322067093 | DL25: -0.002 | DM25: 1.7 | DN25: -0.070329525 | DO25: 0.0288439 | DP25: 0.02205883247 | DQ25: 0.022 | DR25: 0.05042478709 | DS25: -0.009874489187 | DT25: -0.1314986176 | DU25: 0.1866666667 | DV25: 0.09682655069 | DW25: 0.02 | DX25: 0.0557 | DY25: -0.002 | EA25: 0.07587479999 | EB25: 0.01342458577 | EC25: 0.05670373415 | ED25: 0.9986806837 | EH25: 0.07596970702 | EI25: 0.001086239255 | EJ25: 0.05667706748 | EK25: 0.9986806837 | EN25: 0.04740336727 | ET25: -0.2625 | FC25: -0.02519281006 | FD25: -0.05612918412 | FE25: -0.1585244751 | FF25: 0.01048479561 | FR25: 2.112751289e-05
A26: 0.2 | B26: 2113 | C26: 14 | D26: 15 | E26: 68 | F26: 2005 | G26: 1999 | H26: -132 | I26: -109 | J26: 434 | K26: 36 | L26: 106 | M26: 748 | N26: 776 | O26: 1078 | P26: 15 | Q26: -11 | R26: 577 | S26: 1783 | T26: -54 | U26: 1978 | V26: 1898 | W26: 6 | X26: 2707 | Y26: 2044 | Z26: -0.006430321017 | AA26: 0.2 | AB26: -0.06148 | AC26: -0.433 | AD26: -0.3684305664 | AE26: -0.006430321017 | AF26: 0.006091173932 | AG26: 3.227940732 | AH26: 4.965866233 | AI26: 0.05633814624 | AJ26: 0.08667064277 | AK26: 0.05497843623 | AL26: 0.0881345392 | AM26: -0.0160918169 | AN26: 0.01706428608 | AO26: 48.9080705 | AP26: 48.9080705 | AQ26: 28.97779029 | AR26: 3455.514932 | AS26: 0.0429897168 | AT26: 0.0429897168 | AU26: 0.04369547859 | AV26: 0.170349514 | AW26: -0.0002586829832 | AX26: -4.510731939e-05 | AY26: 0.006046066613 | AZ26: 0.05428571429 | BA26: 0.03571428571 | BB26: 12.44014025 | BC26: 5.739278009 | BD26: 13.13068487 | BE26: 0.17298806 | BF26: 0.1857572463 | BG26: -5.06598656 | BH26: -3.927424 | BI26: -0.9953969897 | BJ26: -0.8797043516 | BK26: -0.01542568508 | BL26: -0.03157805149 | BM26: -0.08452111953 | BN26: 0.1126399607 | BO26: 4.990234375 | BP26: 0.07566028588 | BQ26: -0.01759408703 | BR26: 0.01136225825 | BS26: 0.01135264395 | BT26: -0.001733829756 | BU26: -0.1156374561 | BV26: -6.625543786 | BW26: 0.1217286301 | BX26: -0.01467750546 | BY26: 0.03620588553 | BZ26: 0.2 | CA26: 1.7578 | CB26: 1.8236 | CC26: 1.788591232 | CD26: 1.783 | CE26: -0.03079123208 | CF26: 0.03500876792 | CG26: 0.4009481 | CH26: 0.4012256138 | CI26: 0.4609481 | CJ26: 0.06 | CK26: 0.06 | CL26: 0.4612256138 | CM26: 0.2090010704 | CN26: 2.206809817 | CO26: -0.2870798695 | CP26: -0.2870798695 | CQ26: 2.205482006 | CR26: 0.0461827245 | CS26: 0.1151837969 | CT26: 0.1151041282 | CU26: 48.9080705 | CV26: 3455.514932 | CW26: 30.31955 | CX26: 30.35815365 | CY26: -2.144411419 | CZ26: -0.520411495 | DA26: -0.5177588565 | DB26: -0.54 | DC26: 0.008192010493 | DD26: 0.015 | DE26: 0.05764119058 | DF26: 0.0577 | DG26: 0.4012643506 | DH26: 0.1735103154 | DI26: 13.69903601 | DJ26: -0.8208418164 | DK26: -0.01982243482 | DL26: -0.011 | DM26: 1.7 | DN26: 0.035364475 | DO26: 0.0128639 | DP26: 0.006060595971 | DQ26: 0.006 | DR26: 0.05043029348 | DS26: -0.01667997579 | DT26: -0.3745737567 | DU26: 0.2 | DV26: 0.08859123208 | DW26: 0.015 | DX26: 0.0577 | DY26: -0.011 | EA26: 0.07694507749 | EB26: 0.004060459259 | EC26: 0.05737288057 | ED26: 0.9985461193 | EH26: 0.07695357461 | EI26: -0.002794186307 | EJ26: 0.05722621391 | EK26: 0.9985461193 | EN26: 0.03381402471 | ET26: 0.15 | FC26: -0.01809640503 | FD26: -0.05161108728 | FE26: -0.004262237549 | FF26: 0.002241913571 | FR26: 4.634872113e-05
A27: 0.2133333333 | B27: 2106 | C27: 13 | D27: 14 | E27: 69 | F27: 1893 | G27: 1889 | H27: -89 | I27: -86 | J27: 441 | K27: 35 | L27: 113 | M27: 729 | N27: 776 | O27: 1054 | P27: -12 | Q27: 68 | R27: 524 | S27: 1781 | T27: -186 | U27: 1983 | V27: 1901 | W27: 4 | X27: 2702 | Y27: 2045 | Z27: -0.006615931684 | AA27: 0.2133333333 | AB27: -0.05336 | AC27: -0.3897 | AD27: -0.3790652832 | AE27: -0.006615931684 | AF27: -0.008837778868 | AG27: 3.188104198 | AH27: 4.993271479 | AI27: 0.05564286815 | AJ27: 0.08714895415 | AK27: 0.05531065219 | AL27: 0.08764174668 | AM27: -0.01581639231 | AN27: 0.01651470217 | AO27: 48.88854128 | AP27: 48.88854128 | AQ27: 28.96621932 | AR27: 3460.117439 | AS27: 0.0418106675 | AT27: 0.0418106675 | AU27: 0.04350699748 | AV27: 0.1694949812 | AW27: -0.0005340830128 | AX27: -9.400488873e-05 | AY27: -0.008931783757 | AZ27: 0.2142857143 | BA27: 0.1928571429 | BB27: 12.44260101 | BC27: 5.740202856 | BD27: 13.12651513 | BE27: 0.3567255245 | BF27: 0.3658918995 | BG27: -3.38726656 | BH27: -3.029504 | BI27: -2.191331775 | BJ27: -1.954604176 | BK27: -0.03156367987 | BL27: -0.03116554724 | BM27: -0.01392079998 | BN27: 0.1144965107 | BO27: 4.992675781 | BP27: 0.07675007972 | BQ27: -0.03909208352 | BR27: 0.01523454387 | BS27: 0.01521134698 | BT27: -0.0006494023783 | BU27: -0.1172562325 | BV27: -6.71829292 | BW27: 0.1084184537 | BX27: -0.01491924307 | BY27: 0.03995229234 | BZ27: 0.2133333333 | CA27: 1.71315 | CB27: 1.8236 | CC27: 1.789183462 | CD27: 1.781 | CE27: -0.07603346158 | CF27: 0.03441653842 | CG27: 0.4057810873 | CH27: 0.4011844981 | CI27: 0.4657810873 | CJ27: 0.06 | CK27: 0.06 | CL27: 0.4611844981 | CM27: 0.211211017 | CN27: 2.183524821 | CO27: -0.2840760906 | CP27: -0.2840760906 | CQ27: 2.205287839 | CR27: 0.04624562227 | CS27: 0.1139669238 | CT27: 0.1152727049 | CU27: 48.88854128 | CV27: 3460.117439 | CW27: 27.94715 | CX27: 27.98265205 | CY27: -4.557771882 | CZ27: -2.81642108 | DA27: -1.667089968 | DB27: -1.86 | DC27: -0.01419969596 | DD27: -0.012 | DE27: 0.05512928354 | DF27: 0.0524 | DG27: 0.4012780211 | DH27: 0.1735337505 | DI27: 13.69415761 | DJ27: -0.8212296329 | DK27: -0.01072257589 | DL27: 0.068 | DM27: 1.7 | DN27: 0.029219475 | DO27: 0.0104669 | DP27: 0.003652605183 | DQ27: 0.004 | DR27: 0.05037294079 | DS27: -0.05409892352 | DT27: -0.1650782722 | DU27: 0.2133333333 | DV27: 0.08918346158 | DW27: -0.012 | DX27: 0.0524 | DY27: 0.068 | EA27: 0.07775014798 | EB27: -0.01257219819 | EC27: 0.05394793697 | ED27: 0.9984131952 | EH27: 0.0774104593 | EI27: -0.03667406166 | EJ27: 0.05485460364 | EK27: 0.9984131952 | EN27: -0.003632224478 | ET27: -0.3975 | FC27: 0.02495179749 | FD27: -0.04022101264 | FE27: -0.2008811188 | FF27: 0.0258116697 | FR27: 4.838662311e-06
A28: 0.2266666667 | B28: 2016 | C28: 16 | D28: 11 | E28: 68 | F28: 1971 | G28: 1979 | H28: 113 | I28: 93 | J28: 438 | K28: 36 | L28: 109 | M28: 729 | N28: 777 | O28: 1061 | P28: -44 | Q28: 59 | R28: 531 | S28: 1780 | T28: -213 | U28: 2035 | V28: 1895 | W28: 8 | X28: 2760 | Y28: 2045 | Z28: -0.007842327408 | AA28: 0.2266666667 | AB28: 0.05104 | AC28: -0.5196 | AD28: -0.4493326416 | AE28: -0.007842327408 | AF28: 0.006053242575 | AG28: 3.068008447 | AH28: 4.965866233 | AI28: 0.05354680364 | AJ28: 0.08667064277 | AK28: 0.05442872792 | AL28: 0.08715619472 | AM28: -0.0166319438 | AN28: 0.016095523 | AO28: 48.91136763 | AP28: 48.91136763 | AQ28: 28.97974382 | AR28: 3461.877695 | AS28: 0.0429897168 | AT28: 0.0429897168 | AU28: 0.04345526941 | AV28: 0.1694521603 | AW28: -2.676309209e-05 | AX28: -8.728070907e-05 | AY28: 0.005965961866 | AZ28: 0.1028571429 | BA28: 0.06428571429 | BB28: 12.43972507 | BC28: 5.739121973 | BD28: 13.13138884 | BE28: 0.1891936695 | BF28: 0.1821497194 | BG28: 4.49881344 | BH28: 3.958656 | BI28: 1.153740833 | BJ28: 1.002025912 | BK28: 0.02022865606 | BL28: -0.0313637334 | BM28: -0.09197967936 | BN28: 0.1131022612 | BO28: 4.992675781 | BP28: 0.07578352279 | BQ28: 0.02004051824 | BR28: 0.01147818664 | BS28: 0.01145949239 | BT28: 0.001112481301 | BU28: -0.115833617 | BV28: -6.636782984 | BW28: 0.1218868596 | BX28: -0.01516345549 | BY28: 0.03831911286 | BZ28: 0.2266666667 | CA28: 1.71315 | CB28: 1.82595 | CC28: 1.78429612 | CD28: 1.78 | CE28: -0.07114612005 | CF28: 0.04165387995 | CG28: 0.4050617704 | CH28: 0.4017350457 | CI28: 0.4650617704 | CJ28: 0.06 | CK28: 0.06 | CL28: 0.4617350457 | CM28: 0.2111353178 | CN28: 2.186915247 | CO28: -0.2841779415 | CP28: -0.2841779415 | CQ28: 2.20267161 | CR28: 0.04624356849 | CS28: 0.1141642383 | CT28: 0.1151096201 | CU28: 48.91136763 | CV28: 3461.877695 | CW28: 28.6391 | CX28: 28.67502974 | CY28: -3.851825365 | CZ28: -2.02605558 | DA28: -1.846572774 | DB28: -2.13 | DC28: -0.03853667236 | DD28: -0.044 | DE28: 0.0542525127 | DF28: 0.0531 | DG28: 0.4012620427 | DH28: 0.1735063588 | DI28: 13.69985963 | DJ28: -0.8207763717 | DK28: -0.003334695932 | DL28: 0.059 | DM28: 1.7 | DN28: -0.034688525 | DO28: 0.0152609 | DP28: 0.008421265367 | DQ28: 0.008 | DR28: 0.050059917 | DS28: -0.08097966459 | DT28: -0.2658144434 | DU28: 0.2266666667 | DV28: 0.08429612005 | DW28: -0.044 | DX28: 0.0531 | DY28: 0.059 | EA28: 0.07788352401 | EB28: -0.0400843392 | EC28: 0.05366291896 | ED28: 0.9983387759 | EH28: 0.07718819651 | EI28: -0.06269145206 | EJ28: 0.05444958563 | EK28: 0.9983387759 | EN28: -0.03427548278 | ET28: 0.0525 | FC28: 0.04197589874 | FD28: -0.01455872928 | FE28: -0.07419055939 | FF28: 0.003555955162 | FR28: 2.984794889e-05
A29: 0.24 | B29: 2061 | C29: 16 | D29: 15 | E29: 69 | F29: 1960 | G29: 1959 | H29: -138 | I29: 31 | J29: 433 | K29: 37 | L29: 121 | M29: 729 | N29: 790 | O29: 1076 | P29: -62 | Q29: 27 | R29: 556 | S29: 1780 | T29: -145 | U29: 2007 | V29: 1895 | W29: 8 | X29: 2768 | Y29: 2044 | Z29: -0.008455525271 | AA29: 0.24 | AB29: -0.00116 | AC29: -0.5196 | AD29: -0.4844663208 | AE29: -0.008455525271 | AF29: 0.004165376679 | AG29: 3.227940732 | AH29: 4.993271479 | AI29: 0.05633814624 | AJ29: 0.08714895415 | AK29: 0.05538343708 | AL29: 0.08715257444 | AM29: -0.01559696704 | AN29: 0.01617217032 | AO29: 48.93901532 | AP29: 48.93901532 | AQ29: 28.99612495 | AR29: 3459.491926 | AS29: 0.0441679027 | AT29: 0.0441679027 | AU29: 0.04352653274 | AV29: 0.1699133528 | AW29: 0.0002882453179 | AX29: -4.972810637e-05 | AY29: 0.004115648572 | AZ29: 0.1185714286 | BA29: 0.09285714286 | BB29: 12.43624674 | BC29: 5.737814774 | BD29: 13.13729197 | BE29: 0.2022349265 | BF29: 0.2097915401 | BG29: -5.30022656 | BH29: 1.538176 | BI29: -2.073242864 | BJ29: 1.270100956 | BK29: -0.445779176 | BL29: -0.03088456868 | BM29: -0.04598983968 | BN29: 0.1199258332 | BO29: 4.990234375 | BP29: 0.07983460588 | BQ29: 0.02540201912 | BR29: 0.01341199886 | BS29: 0.01340048329 | BT29: 0.001274831895 | BU29: -0.1220945938 | BV29: -6.995510834 | BW29: 0.1262599705 | BX29: -0.01542401986 | BY29: 0.009266685168 | BZ29: 0.24 | CA29: 1.71315 | CB29: 1.8565 | CC29: 1.780454717 | CD29: 1.78 | CE29: -0.06730471745 | CF29: 0.07604528255 | CG29: 0.404529925 | CH29: 0.405782885 | CI29: 0.464529925 | CJ29: 0.06 | CK29: 0.06 | CL29: 0.465782885 | CM29: 0.2127700886 | CN29: 2.189137054 | CO29: -0.2819945246 | CP29: -0.2819945246 | CQ29: 2.183248256 | CR29: 0.04628977346 | CS29: 0.1144285518 | CT29: 0.1140752239 | CU29: 48.93901532 | CV29: 3459.491926 | CW29: 30.12185 | CX29: 30.15942902 | CY29: -2.3438485 | CZ29: -0.4973555658 | DA29: -1.17196417 | DB29: -1.45 | DC29: -0.05339212785 | DD29: -0.062 | DE29: 0.05511723812 | DF29: 0.0556 | DG29: 0.4012426893 | DH29: 0.1734731816 | DI29: 13.70676603 | DJ29: -0.8202279395 | DK29: -0.001450983563 | DL29: 0.027 | DM29: 1.7 | DN29: -0.000276525 | DO29: 0.0152609 | DP29: 0.008396001571 | DQ29: 0.008 | DR29: 0.04992018147 | DS29: -0.0874777388 | DT29: -0.2769598195 | DU29: 0.24 | DV29: 0.08045471745 | DW29: -0.062 | DX29: 0.0556 | DY29: 0.027 | EA29: 0.07746324114 | EB29: -0.05999428806 | EC29: 0.05523141613 | ED29: 0.9983043358 | EH29: 0.07658759081 | EI29: -0.07064845702 | EJ29: 0.05559141613 | EK29: 0.9983043358 | EN29: -0.04344518745 | ET29: 0.1875 | FC29: 0.03448794937 | FD29: 0.0151802991 | FE29: 0.05665472031 | FF29: 0.001720127614 | FR29: 7.4095463e-05
A30: 0.2533333333 | B30: 2073 | C30: 14 | D30: 15 | E30: 67 | F30: 1929 | G30: 1927 | H30: 93 | I30: 0 | J30: 436 | K30: 36 | L30: 111 | M30: 734 | N30: 790 | O30: 1072 | P30: -76 | Q30: 45 | R30: 546 | S30: 1780 | T30: -133 | U30: 2020 | V30: 1896 | W30: 8 | X30: 2735 | Y30: 2044 | Z30: -0.008006397274 | AA30: 0.2533333333 | AB30: -0.01508 | AC30: -0.433 | AD30: -0.4587331604 | AE30: -0.008006397274 | AF30: -0.0007260314638 | AG30: 3.227940732 | AH30: 4.938439325 | AI30: 0.05633814624 | AJ30: 0.08619195333 | AK30: 0.05586079166 | AL30: 0.08667226388 | AM30: -0.01511123755 | AN30: 0.01570023468 | AO30: 48.94190271 | AP30: 48.94190271 | AQ30: 28.99783571 | AR30: 3459.726733 | AS30: 0.0429897168 | AT30: 0.0429897168 | AU30: 0.04347285115 | AV30: 0.1697271845 | AW30: -0.0001163551937 | AX30: -5.639081511e-05 | AY30: -0.000782422279 | AZ30: 0.1628571429 | BA30: 0.1385714286 | BB30: 12.4358838 | BC30: 5.737678382 | BD30: 13.13790847 | BE30: 0.2541983009 | BF30: 0.2619364912 | BG30: 3.71801344 | BH30: 0.327936 | BI30: 0.8223852881 | BJ30: 0.799018478 | BK30: 0.003115574682 | BL30: -0.03040573611 | BM30: 0.03368459974 | BN30: 0.1162293122 | BO30: 4.990234375 | BP30: 0.0780815128 | BQ30: 0.01598036956 | BR30: 0.01369174601 | BS30: 0.01367855242 | BT30: 0.0001110940768 | BU30: -0.1194205563 | BV30: -6.842299645 | BW30: 0.1186945249 | BX30: -0.0156927602 | BY30: 0.03938991549 | BZ30: 0.2533333333 | CA30: 1.7249 | CB30: 1.8565 | CC30: 1.780716124 | CD30: 1.78 | CE30: -0.0558161237 | CF30: 0.0757838763 | CG30: 0.4031154397 | CH30: 0.4057431959 | CI30: 0.4631154397 | CJ30: 0.06 | CK30: 0.06 | CL30: 0.4657431959 | CM30: 0.2120928649 | CN30: 2.195939953 | CO30: -0.282894948 | CP30: -0.282894948 | CQ30: 2.183550304 | CR30: 0.0462706787 | CS30: 0.1147827003 | CT30: 0.1140393213 | CU30: 48.94190271 | CV30: 3459.726733 | CW30: 29.72645 | CX30: 29.76319454 | CY30: -2.745751871 | CZ30: -0.8632885798 | DA30: -1.017626375 | DB30: -1.33 | DC30: -0.06589263696 | DD30: -0.076 | DE30: 0.05513662353 | DF30: 0.0546 | DG30: 0.4012406681 | DH30: 0.1734697167 | DI30: 13.7074873 | DJ30: -0.8201706997 | DK30: 0.0007846043743 | DL30: 0.045 | DM30: 1.7 | DN30: -0.016253525 | DO30: 0.0144619 | DP30: 0.007574210567 | DQ30: 0.008 | DR30: 0.04969030241 | DS30: -0.09885491986 | DT30: -0.1286771753 | DU30: 0.2533333333 | DV30: 0.0807161237 | DW30: -0.076 | DX30: 0.0546 | DY30: 0.045 | EA30: 0.07687278058 | EB30: -0.07256129088 | EC30: 0.05491808528 | ED30: 0.9982597416 | EH30: 0.07583082233 | EI30: -0.08274637107 | EJ30: 0.05551808528 | EK30: 0.9982597416 | EN30: -0.05432519529 | ET30: -0.075 | FC30: 0.03974397469 | FD30: =FC30*$FA$13+FC29*$FA$12+FC28*$FA$11+FC27*$FA$10+FC26*$FA$9+FC25*$FA$8+FC24*$FA$7+FC23*$FA$6+FC22*$FA$5+FC21*$FA$4+FC20*$FA$3 -> 0.03351539894 | FE30: -0.009172639847 | FF30: =(FD30-FE30)^2 -> 0.001822268655 | FR30: 0.0001021587877
A31: 0.2666666667 | B31: 1975 | C31: 10 | D31: 16 | E31: 65 | F31: 2109 | G31: 2108 | H31: 138 | I31: 77 | J31: 437 | K31: 36 | L31: 118 | M31: 772 | N31: 791 | O31: 1061 | P31: -86 | Q31: 80 | R31: 522 | S31: 1784 | T31: -187 | U31: 2011 | V31: 1899 | W31: 5 | X31: 2744 | Y31: 2044 | Z31: -0.006270379421 | AA31: 0.2666666667 | AB31: 0.0986 | AC31: -0.2598 | AD31: -0.3592665802 | AE31: -0.006270379421 | AF31: 0.02404277261 | AG31: 3.267680158 | AH31: 4.883519115 | AI31: 0.05703172948 | AJ31: 0.08523341565 | AK31: 0.05644626057 | AL31: 0.08595283977 | AM31: -0.01449902687 | AN31: 0.01500755233 | AO31: 48.9511258 | AP31: 48.9511258 | AQ31: 29.00330034 | AR31: 3460.73206 | AS31: 0.0429897168 | AT31: 0.0429897168 | AU31: 0.04342453771 | AV31: 0.1696046095 | AW31: -7.660932472e-05 | AX31: -5.841266607e-05 | AY31: 0.02398435994 | AZ31: -0.09428571429 | BA31: -0.12 | BB31: 12.43472487 | BC31: 5.737242867 | BD31: 13.13987771 | BE31: -0.07174878745 | BF31: -0.06506682512 | BG31: 5.47481344 | BH31: 3.334016 | BI31: 3.148599364 | BJ31: 2.066517239 | BK31: 0.1442776167 | BL31: -0.0297532896 | BM31: 0.130201339 | BN31: 0.1183894426 | BO31: 4.990234375 | BP31: 0.0798500105 | BQ31: 0.04133034478 | BR31: 0.008912319623 | BS31: 0.00890129413 | BT31: -0.001978848884 | BU31: -0.1221483722 | BV31: -6.998592111 | BW31: 0.1461911448 | BX31: -0.01595551216 | BY31: 0.04060146095 | BZ31: 0.2666666667 | CA31: 1.8142 | CB31: 1.85885 | CC31: 1.782073172 | CD31: 1.784 | CE31: 0.03212682837 | CF31: 0.07677682837 | CG31: 0.4010321331 | CH31: 0.4058946814 | CI31: 0.4610321331 | CJ31: 0.06 | CK31: 0.06 | CL31: 0.4658946814 | CM31: 0.2111924188 | CN31: 2.206019914 | CO31: -0.2841011072 | CP31: -0.2841011072 | CQ31: 2.182995658 | CR31: 0.04624507191 | CS31: 0.1153151284 | CT31: 0.113933673 | CU31: 48.9511258 | CV31: 3460.73206 | CW31: 28.6391 | CX31: 28.67420779 | CY31: -3.85363959 | CZ31: -1.892329247 | DA31: -1.454977811 | DB31: -1.87 | DC31: -0.08397448836 | DD31: -0.086 | DE31: 0.0539491881 | DF31: 0.0522 | DG31: 0.4012342119 | DH31: 0.173458649 | DI31: 13.70979123 | DJ31: -0.8199879057 | DK31: 0.006246478542 | DL31: 0.08 | DM31: 1.7 | DN31: -0.005192525 | DO31: 0.0120649 | DP31: 0.005161678935 | DQ31: 0.005 | DR31: 0.04948471066 | DS31: -0.1239526431 | DT31: -0.01344929024 | DU31: =BZ31 -> 0.2666666667 | DV31: 0.08207317163 | DW31: -0.086 | DX31: =DF31 -> 0.0522 | DY31: 0.08 | EA31: =EH30+$EB$2*($DV31-$EH30)+$EC$2*($DX31-$EJ30) -> 0.07621558488 | EB31: =EI30+$EB$3*($DV31-$EH30)+$EC$3*($DX31-$EJ30) -> -0.08959725579 | EC31: =EJ30+$EB$4*($DV31-$EH30)+$EC$4*($DX31-$EJ30) -> 0.0532640887 | ED31: =EK30+$EB$5*($DV31-$EH30)+$EC$5*($DX31-$EJ30) -> 0.9981915224 | EH31: 0.07489332589 | EI31: -0.1070059579 | EJ31: 0.05433075536 | EK31: 0.9981915224 | EN31: -0.07799521401 | ET31: -0.18 | FC31: 0.05987198734 | FD31: 0.04331414792 | FE31: -0.09458631992 | FF31: 0.01901653903 | FR31: 4.102697404e-06
A32: 0.28 | B32: 2090 | C32: 9 | D32: 18 | E32: 65 | F32: 2024 | G32: 2018 | H32: -129 | I32: -150 | J32: 440 | K32: 36 | L32: 117 | M32: 772 | N32: 850 | O32: 1083 | P32: -69 | Q32: 17 | R32: 569 | S32: 1793 | T32: -94 | U32: 1960 | V32: 1909 | W32: -2 | X32: 2708 | Y32: 2044 | Z32: -0.00502450703 | AA32: 0.28 | AB32: -0.0348 | AC32: -0.2165 | AD32: -0.2878832901 | AE32: -0.00502450703 | AF32: 0.009281834386 | AG32: 3.346869092 | AH32: 4.883519115 | AI32: 0.05841383595 | AJ32: 0.08523341565 | AK32: 0.05743004826 | AL32: 0.08559312771 | AM32: -0.01356439811 | AN32: 0.01459868134 | AO32: 48.93417517 | AP32: 48.93417517 | AQ32: 28.99325718 | AR32: 3464.018854 | AS32: 0.0429897168 | AT32: 0.0429897168 | AU32: 0.04338105562 | AV32: 0.1693227102 | AW32: -0.0001761870591 | AX32: -7.019010537e-05 | AY32: 0.00921164428 | AZ32: 0.02714285714 | BA32: 0.008571428571 | BB32: 12.43685527 | BC32: 5.738043462 | BD32: 13.13625854 | BE32: 0.09245239345 | BF32: 0.1060390055 | BG32: -4.94886656 | BH32: -5.528064 | BI32: -0.900133598 | BJ32: -1.73077338 | BK32: 0.110751971 | BL32: -0.02908153973 | BM32: 0.09344042931 | BN32: 0.1187897473 | BO32: 4.990234375 | BP32: 0.08035639588 | BQ32: -0.03461546761 | BR32: 0.01200736065 | BS32: 0.01199198298 | BT32: -0.00244943115 | BU32: -0.122880436 | BV32: -7.040536315 | BW32: 0.1321622704 | BX32: -0.01619511722 | BY32: 0.04335491596 | BZ32: 0.28 | CA32: 1.8142 | CB32: 1.9975 | CC32: 1.793405687 | CD32: 1.793 | CE32: 0.02079431282 | CF32: 0.2040943128 | CG32: 0.4004324034 | CH32: 0.4416544885 | CI32: 0.4604324034 | CJ32: 0.06 | CK32: 0.06 | CL32: 0.5016544885 | CM32: 0.2273779819 | CN32: 2.206257987 | CO32: -0.2638777929 | CP32: -0.2638777929 | CQ32: 2.024964773 | CR32: 0.04666751817 | CS32: 0.1165428116 | CT32: 0.1056652188 | CU32: 48.93417517 | CV32: 3464.018854 | CW32: 30.8138 | CX32: 30.85157737 | CY32: -1.636721007 | CZ32: 0.3116057631 | DA32: -0.5716860238 | DB32: -0.94 | DC32: -0.08991747891 | DD32: -0.069 | DE32: 0.05547652542 | DF32: 0.0569 | DG32: 0.4012460774 | DH32: 0.1734789898 | DI32: 13.70555696 | DJ32: -0.8203239062 | DK32: 0.00177169057 | DL32: 0.017 | DM32: 1.7 | DN32: 0.057486475 | DO32: 0.0040749 | DP32: -0.002819836102 | DQ32: -0.002 | DR32: 0.04948712167 | DS32: -0.1196645663 | DT32: 0.4182446882 | DU32: 0.28 | DV32: 0.09340568718 | DW32: -0.069 | DX32: 0.0569 | DY32: 0.017 | EA32: 0.07635122138 | EB32: -0.1003174671 | EC32: 0.05607754989 | ED32: 0.9979946186 | EH32: 0.07501423293 | EI32: -0.09996295119 | EJ32: 0.05630421656 | EK32: 0.9979946186 | EN32: -0.06456113169 | ET32: 0.3525 | FC32: 0.03843599367 | FD32: 0.05540804388 | FE32: 0.12895684 | FF32: 0.005409425417 | FR32: 0.0004375409239
A33: 0.2933333333 | B33: 2088 | C33: 4 | D33: 20 | E33: 61 | F33: 1969 | G33: 1963 | H33: -50 | I33: -185 | J33: 440 | K33: 36 | L33: 123 | M33: 767 | N33: 850 | O33: 1098 | P33: -39 | Q33: -41 | R33: 605 | S33: 1801 | T33: 33 | U33: 1995 | V33: 1907 | W33: 0 | X33: 2717 | Y33: 2045 | Z33: -0.002512253515 | AA33: 0.2933333333 | AB33: -0.03248 | AC33: 8.326672685e-17 | AD33: -0.1439416451 | AE33: -0.002512253515 | AF33: -0.001183746746 | AG33: 3.425673808 | AH33: 4.773403233 | AI33: 0.05978923655 | AJ33: 0.08331153258 | AK33: 0.0586096424 | AL33: 0.08445233014 | AM33: -0.01241331064 | AN33: 0.0134293771 | AO33: 48.92435376 | AP33: 48.92435376 | AQ33: 28.98743804 | AR33: 3466.976968 | AS33: 0.0429897168 | AT33: 0.0429897168 | AU33: 0.04334192174 | AV33: 0.169106062 | AW33: -0.0001354051467 | AX33: -7.671160951e-05 | AY33: -0.001260458355 | AZ33: 0.1057142857 | BA33: 0.08714285714 | BB33: 12.43809061 | BC33: 5.738507711 | BD33: 13.13416155 | BE33: 0.1931327086 | BF33: 0.2064778897 | BG33: -1.86470656 | BH33: -6.894464 | BI33: -1.382420079 | BJ33: -4.31261869 | BK33: 0.3906931482 | BL33: -0.02792134387 | BM33: 0.1884190136 | BN33: 0.1223537568 | BO33: 4.992675781 | BP33: 0.08287676936 | BQ33: -0.0862523738 | BR33: 0.01528047419 | BS33: 0.01526151479 | BT33: -0.004168762663 | BU33: -0.126709137 | BV33: -7.259904906 | BW33: 0.1255253902 | BX33: -0.01641811065 | BY33: 0.06477808392 | BZ33: 0.2933333333 | CA33: 1.80245 | CB33: 1.9975 | CC33: 1.816195885 | CD33: 1.801 | CE33: -0.01374588537 | CF33: 0.1813041146 | CG33: 0.4001889494 | CH33: 0.432871182 | CI33: 0.4601889494 | CJ33: 0.06 | CK33: 0.06 | CL33: 0.492871182 | CM33: 0.2232138714 | CN33: 2.208066994 | CO33: -0.2688004989 | CP33: -0.2688004989 | CQ33: 2.06165032 | CR33: 0.04656438126 | CS33: 0.1163559897 | CT33: 0.1075709893 | CU33: 48.92435376 | CV33: 3466.976968 | CW33: 32.29655 | CX33: 32.33583927 | CY33: -0.1284886118 | CZ33: 1.747044632 | DA33: 0.5876793039 | DB33: 0.33 | DC33: -0.08028340528 | DD33: -0.039 | DE33: 0.05781120596 | DF33: 0.0605 | DG33: 0.4012529524 | DH33: 0.1734907755 | DI33: 13.70310357 | DJ33: -0.8205186956 | DK33: -0.00977278124 | DL33: -0.041 | DM33: 1.7 | DN33: 0.014471475 | DO33: 0.0056729 | DP33: -0.001218170594 | DQ33: 0 | DR33: 0.04929580116 | DS33: -0.09623730455 | DT33: 1.063754776 | DU33: 0.2933333333 | DV33: 0.1161958854 | DW33: -0.039 | DX33: 0.0605 | DY33: -0.041 | EA33: 0.07821859306 | EB33: -0.08839111612 | EC33: 0.05915757164 | ED33: 0.9975559343 | EH33: 0.07716141987 | EI33: -0.07127838819 | EJ33: 0.05861090497 | EK33: 0.9975559343 | EN33: -0.02352894331 | ET33: 0.27 | FC33: -0.001282003164 | FD33: 0.05755140258 | FE33: 0.19947842 | FF33: 0.02014327828 | FR33: 0.001704319552
A34: 0.3066666667 | B34: 1996 | C34: -2 | D34: 19 | E34: 59 | F34: 2110 | G34: 2112 | H34: 96 | I34: 111 | J34: 436 | K34: 36 | L34: 121 | M34: 767 | N34: 851 | O34: 1086 | P34: -10 | Q34: -36 | R34: 588 | S34: 1809 | T34: 31 | U34: 2046 | V34: 1893 | W34: 10 | X34: 2716 | Y34: 2045 | Z34: 0.001011054026 | AA34: 0.3066666667 | AB34: 0.07424 | AC34: 0.2598 | AD34: 0.05792917747 | AE34: 0.001011054026 | AF34: 0.01768230048 | AG34: 3.386319302 | AH34: 4.718201914 | AI34: 0.05910237142 | AJ34: 0.08234808862 | AK34: 0.05885600691 | AL34: 0.08340020938 | AM34: -0.01219641108 | AN34: 0.01234779138 | AO34: 48.91420841 | AP34: 48.91420841 | AQ34: 28.98142697 | AR34: 3466.463272 | AS34: 0.0429897168 | AT34: 0.0429897168 | AU34: 0.04330670125 | AV34: 0.1689023303 | AW34: -0.0001273323168 | AX34: -8.177368023e-05 | AY34: 0.0176005268 | AZ34: -0.09571428571 | BA34: -0.1257142857 | BB34: 12.43936742 | BC34: 5.738987559 | BD34: 13.13199539 | BE34: -0.06457863198 | BF34: -0.06259070659 | BG34: 3.83513344 | BH34: 4.661376 | BI34: 1.226356681 | BJ34: 0.1743786549 | BK34: 0.1402637368 | BL34: -0.02727210123 | BM34: 0.2642480656 | BN34: 0.1223697255 | BO34: 4.992675781 | BP34: 0.08338122917 | BQ34: 0.003487573098 | BR34: 0.01097658499 | BS34: 0.01095945695 | BT34: -0.006213257356 | BU34: -0.1274539632 | BV34: -7.30258034 | BW34: 0.1451362637 | BX34: -0.01660760736 | BY34: 0.04322752246 | BZ34: 0.3066666667 | CA34: 1.80245 | CB34: 1.99985 | CC34: 1.833029087 | CD34: 1.809 | CE34: -0.03057908683 | CF34: 0.1668209132 | CG34: 0.4009350806 | CH34: 0.4278292171 | CI34: 0.4609350806 | CJ34: 0.06 | CK34: 0.06 | CL34: 0.4878292171 | CM34: 0.2212575995 | CN34: 2.204802087 | CO34: -0.2711771263 | CP34: -0.2711771263 | CQ34: 2.083250843 | CR34: 0.04651548476 | CS34: 0.1160174976 | CT34: 0.108724423 | CU34: 48.91420841 | CV34: 3466.463272 | CW34: 31.11035 | CX34: 31.14765244 | CY34: -1.333469306 | CZ34: 0.5203813796 | DA34: 0.5540303417 | DB34: 0.31 | DC34: -0.07129066595 | DD34: -0.01 | DE34: 0.05795796361 | DF34: 0.0588 | DG34: 0.4012600541 | DH34: 0.1735029499 | DI34: 13.70056926 | DJ34: -0.820719992 | DK34: -0.01547626914 | DL34: -0.036 | DM34: 1.7 | DN34: -0.048207525 | DO34: 0.0168589 | DP34: 0.009937925918 | DQ34: 0.01 | DR34: 0.04894079021 | DS34: -0.08916555283 | DT34: 1.163122443 | DU34: 0.3066666667 | DV34: 0.1330290868 | DW34: -0.01 | DX34: 0.0588 | DY34: -0.036 | EA34: 0.08136800075 | EB34: -0.06755552055 | EC34: 0.05874294722 | ED34: 0.9969584102 | EH34: 0.08055227326 | EI34: -0.05568517578 | EJ34: 0.05826294722 | EK34: 0.9969584102 | EN34: -0.003730334388 | ET34: -0.1275 | FC34: -0.01864100158 | FD34: 0.03966114459 | FE34: 0.03598921001 | FF34: 1.348310356e-05 | FR34: 0.003756545733
A35: 0.32 | B35: 2061 | C35: 4 | D35: 18 | E35: 57 | F35: 2071 | G35: 2085 | H35: -18 | I35: -67 | J35: 433 | K35: 34 | L35: 121 | M35: 768 | N35: 801 | O35: 1075 | P35: -5 | Q35: -2 | R35: 568 | S35: 1812 | T35: -28 | U35: 1971 | V35: 1903 | W35: 2 | X35: 2695 | Y35: 2045 | Z35: 0.000505527013 | AA35: 0.32 | AB35: -0.00116 | AC35: 5.551115123e-17 | AD35: 0.02896458874 | AE35: 0.000505527013 | AF35: 0.01297678063 | AG35: 3.346869092 | AH35: 4.662901244 | AI35: 0.05841383595 | AJ35: 0.08138291067 | AK35: 0.05863492143 | AL35: 0.08239156002 | AM35: -0.01248957769 | AN35: 0.0112670609 | AO35: 48.88941608 | AP35: 48.88941608 | AQ35: 28.96673764 | AR35: 3463.618944 | AS35: 0.0406307548 | AT35: 0.0406307548 | AU35: 0.0430391066 | AV35: 0.1677099995 | AW35: -0.0007452067391 | AX35: -0.0001481169861 | AY35: 0.01282866364 | AZ35: -0.04 | BA35: -0.08714285714 | BB35: 12.44249072 | BC35: 5.740161405 | BD35: 13.12670191 | BE35: 0.001424628392 | BF35: -0.01462298511 | BG35: -0.61542656 | BH35: -2.287744 | BI35: 0.3054650603 | BJ35: -1.056682673 | BK35: 0.1816196977 | BL35: -0.0268783193 | BM35: -0.03791452597 | BN35: 0.1236402497 | BO35: 4.992675781 | BP35: 0.08363345908 | BQ35: -0.02113365345 | BR35: 0.0122792076 | BS35: 0.01224640339 | BT35: -0.00251421421 | BU35: -0.1277747181 | BV35: -7.320958259 | BW35: 0.1407514987 | BX35: -0.01675012664 | BY35: 0.04730558835 | BZ35: 0.32 | CA35: 1.8048 | CB35: 1.88235 | CC35: 1.846668343 | CD35: 1.812 | CE35: -0.04186834301 | CF35: 0.03568165699 | CG35: 0.4017529581 | CH35: 0.4012731806 | CI35: 0.4617529581 | CJ35: 0.06 | CK35: 0.06 | CL35: 0.4612731806 | CM35: 0.2093942557 | CN35: 2.202893194 | CO35: -0.2865408118 | CP35: -0.2865408118 | CQ35: 2.205184458 | CR35: 0.0461940143 | CS35: 0.1149811429 | CT35: 0.1151186188 | CU35: 48.88941608 | CV35: 3463.618944 | CW35: 30.023 | CX35: 30.05900018 | CY35: -2.432632035 | CZ35: -0.5556300948 | DA35: -0.0007998765488 | DB35: -0.28 | DC35: -0.06987551765 | DD35: -0.005 | DE35: 0.05703277996 | DF35: 0.0568 | DG35: 0.4012774087 | DH35: 0.1735327007 | DI35: 13.69437614 | DJ35: -0.8212122543 | DK35: -0.0169017234 | DL35: -0.002 | DM35: 1.7 | DN35: 0.043967475 | DO35: 0.0088689 | DP35: 0.00194208214 | DQ35: 0.002 | DR35: 0.04894181806 | DS35: -0.09644062076 | DT35: 1.093033328 | DU35: 0.32 | DV35: 0.146668343 | DW35: -0.005 | DX35: 0.0568 | DY35: -0.002 | EA35: 0.08548744603 | EB35: -0.05495007524 | EC35: 0.05727320237 | ED35: 0.9962505409 | EH35: 0.08476859238 | EI35: -0.05296008957 | EJ35: 0.0572465357 | EK35: 0.9962505409 | EN35: -0.0008719901745 | ET35: -0.15 | FC35: -0.01032050079 | FD35: 0.01321713427 | FE35: -0.057005395 | FF35: 0.004931203617 | FR35: 0.004208832791
A36: 0.3333333333 | B36: 2032 | C36: -2 | D36: 21 | E36: 57 | F36: 2121 | G36: 2132 | H36: 27 | I36: -36 | J36: 438 | K36: 37 | L36: 112 | M36: 755 | N36: 801 | O36: 1070 | P36: -12 | Q36: 13 | R36: 556 | S36: 1813 | T36: -85 | U36: 1980 | V36: 1903 | W36: 2 | X36: 2753 | Y36: 2044 | Z36: 0.00251994429 | AA36: 0.3333333333 | AB36: 0.03248 | AC36: 0.2598 | AD36: 0.1443822944 | AE36: 0.00251994429 | AF36: 0.01787778492 | AG36: 3.464932961 | AH36: 4.662901244 | AI36: 0.06047443745 | AJ36: 0.08138291067 | AK36: 0.05955467944 | AL36: 0.08188723535 | AM36: -0.01151813322 | AN36: 0.01081442269 | AO36: 48.90718983 | AP36: 48.90718983 | AQ36: 28.9772685 | AR36: 3465.02905 | AS36: 0.0441679027 | AT36: 0.0441679027 | AU36: 0.04315198621 | AV36: 0.168262143 | AW36: 0.0003450896661 | AX36: -9.879632091e-05 | AY36: 0.0177789886 | AZ36: -0.1114285714 | BA36: -0.1542857143 | BB36: 12.44025116 | BC36: 5.739319691 | BD36: 13.13049683 | BE36: -0.08439903757 | BF36: -0.09363910645 | BG36: 1.14137344 | BH36: -1.077504 | BI36: 0.7234192501 | BJ36: -1.067093336 | BK36: 0.2387350115 | BL36: -0.02616627795 | BM36: 0.1510812958 | BN36: 0.1175187359 | BO36: 4.990234375 | BP36: 0.08035880286 | BQ36: -0.02134186673 | BR36: 0.009948017198 | BS36: 0.009928319119 | BT36: -0.003617752351 | BU36: -0.1228163508 | BV36: -7.036864501 | BW36: 0.1406941357 | BX36: -0.01689938628 | BY36: 0.04959079493 | BZ36: 0.3333333333 | CA36: 1.77425 | CB36: 1.88235 | CC36: 1.845030223 | CD36: 1.813 | CE36: -0.07078022258 | CF36: 0.03731977742 | CG36: 0.4050098399 | CH36: 0.4013927658 | CI36: 0.4650098399 | CJ36: 0.06 | CK36: 0.06 | CL36: 0.4613927658 | CM36: 0.2109521762 | CN36: 2.187191307 | CO36: -0.2844246554 | CP36: -0.2844246554 | CQ36: 2.204337724 | CR36: 0.04623835301 | CS36: 0.1141659991 | CT36: 0.1151947841 | CU36: 48.90718983 | CV36: 3465.02905 | CW36: 29.52875 | CX36: 29.56407883 | CY36: -2.939310582 | CZ36: -1.019816296 | DA36: -0.5103080863 | DB36: -0.85 | DC36: -0.07528211512 | DD36: -0.012 | DE36: 0.05595007963 | DF36: 0.0556 | DG36: 0.4012649671 | DH36: 0.1735113722 | DI36: 13.69881602 | DJ36: -0.8208592982 | DK36: -0.01335191499 | DL36: 0.013 | DM36: 1.7 | DN36: 0.032906475 | DO36: 0.0088689 | DP36: 0.001936255894 | DQ36: 0.002 | DR36: 0.04888745809 | DS36: -0.109904838 | DT36: 0.4850871478 | DU36: 0.3333333333 | DV36: 0.1450302226 | DW36: -0.012 | DX36: 0.0556 | DY36: 0.013 | EA36: 0.08925877101 | EB36: -0.05297151853 | EC36: 0.05613168228 | ED36: 0.9956052155 | EH36: 0.08851628814 | EI36: -0.05806252655 | EJ36: 0.05630501561 | EK36: 0.9956052155 | EN36: -0.01568941121 | ET36: -0.09 | FC36: 0.001339749604 | FD36: -0.003818715488 | FE36: -0.0735026975 | FF36: 0.004855857349 | FR36: 0.004004626094
A37: 0.3466666667 | B37: 2038 | C37: -6 | D37: 25 | E37: 58 | F37: 2165 | G37: 2158 | H37: 138 | I37: 117 | J37: 436 | K37: 37 | L37: 112 | M37: 754 | N37: 803 | O37: 1080 | P37: -15 | Q37: -17 | R37: 575 | S37: 1814 | T37: -59 | U37: 2041 | V37: 1896 | W37: 7 | X37: 2757 | Y37: 2044 | Z37: 0.005038606784 | AA37: 0.3466666667 | AB37: 0.02552 | AC37: 0.433 | AD37: 0.2886911472 | AE37: 0.005038606784 | AF37: 0.01983872475 | AG37: 3.621023062 | AH37: 4.690564175 | AI37: 0.06319872135 | AJ37: 0.08186571947 | AK37: 0.0613767004 | AL37: 0.08187647741 | AM37: -0.00963822236 | AN37: 0.01086155465 | AO37: 48.92711984 | AP37: 48.92711984 | AQ37: 28.98907693 | AR37: 3464.710145 | AS37: 0.0441679027 | AT37: 0.0441679027 | AU37: 0.04325357786 | AV37: 0.1687861884 | AW37: 0.0003275283619 | AX37: -5.616385262e-05 | AY37: 0.0197825609 | AZ37: -0.1742857143 | BA37: -0.1914285714 | BB37: 12.43774262 | BC37: 5.738376933 | BD37: 13.13475214 | BE37: -0.148368164 | BF37: -0.1322999976 | BG37: 5.47481344 | BH37: 4.895616 | BI37: 3.099116345 | BJ37: 1.914261332 | BK37: 0.1579806684 | BL37: -0.02524988851 | BM37: 0.188899687 | BN37: 0.1142564533 | BO37: 4.990234375 | BP37: 0.07872147474 | BQ37: 0.03828522664 | BR37: 0.008925316345 | BS37: 0.008914707463 | BT37: -0.004760433786 | BU37: -0.1203629697 | BV37: -6.896295996 | BW37: 0.1402016944 | BX37: -0.01702178702 | BY37: 0.0441242881 | BZ37: 0.3466666667 | CA37: 1.7719 | CB37: 1.88705 | CC37: 1.84024481 | CD37: 1.814 | CE37: -0.06834480992 | CF37: 0.04680519008 | CG37: 0.404671013 | CH37: 0.4021907258 | CI37: 0.464671013 | CJ37: 0.06 | CK37: 0.06 | CL37: 0.4621907258 | CM37: 0.2111666328 | CN37: 2.188748855 | CO37: -0.2841357993 | CP37: -0.2841357993 | CQ37: 2.200494495 | CR37: 0.04624450169 | CS37: 0.1142767834 | CT37: 0.1149815218 | CU37: 48.92711984 | CV37: 3464.710145 | CW37: 30.51725 | CX37: 30.55323304 | CY37: -1.93670871 | CZ37: -0.01652584741 | DA37: -0.2634169668 | DB37: -0.59 | DC37: -0.07728869904 | DD37: -0.015 | DE37: 0.05631324025 | DF37: 0.0575 | DG37: 0.4012510161 | DH37: 0.1734874562 | DI37: 13.70379454 | DJ37: -0.8204638277 | DK37: -0.01264757319 | DL37: -0.017 | DM37: 1.7 | DN37: -0.042062525 | DO37: 0.0144619 | DP37: 0.007506668126 | DQ37: 0.007 | DR37: 0.04853279709 | DS37: -0.1099918493 | DT37: 0.0630905993 | DU37: 0.3466666667 | DV37: 0.1402448099 | DW37: -0.015 | DX37: 0.0575 | DY37: -0.017 | EA37: 0.09243725064 | EB37: -0.05239595716 | EC37: 0.05712022154 | ED37: 0.9950524055 | EH37: 0.0917430361 | EI37: -0.05202221313 | EJ37: 0.05689355487 | EK37: 0.9950524055 | EN37: -0.01934192122 | ET37: 0.1425 | FC37: -0.007830125198 | FD37: -0.006682017069 | FE37: 0.03449865125 | FF37: 0.001695847443 | FR37: 0.003879882028
A38: 0.36 | B38: 2113 | C38: -6 | D38: 20 | E38: 58 | F38: 2025 | G38: 2025 | H38: -132 | I38: -66 | J38: 440 | K38: 36 | L38: 119 | M38: 754 | N38: 784 | O38: 1088 | P38: -18 | Q38: -31 | R38: 590 | S38: 1813 | T38: -3 | U38: 1968 | V38: 1904 | W38: 1 | X38: 2728 | Y38: 2043 | Z38: 0.006297938031 | AA38: 0.36 | AB38: -0.06148 | AC38: 0.433 | AD38: 0.3608455736 | AE38: 0.006297938031 | AF38: -0.0004279770536 | AG38: 3.425673808 | AH38: 4.690564175 | AI38: 0.05978923655 | AJ38: 0.08186571947 | AK38: 0.06058296847 | AL38: 0.08187109844 | AM38: -0.01043675704 | AN38: 0.01085137293 | AO38: 48.92546545 | AP38: 48.92546545 | AQ38: 28.98809671 | AR38: 3467.59913 | AS38: 0.0429897168 | AT38: 0.0429897168 | AU38: 0.04322719175 | AV38: 0.1686738477 | AW38: -7.02129431e-05 | AX38: -5.756876167e-05 | AY38: -0.0004855458153 | AZ38: 0.02571428571 | BA38: -0.001428571429 | BB38: 12.43795074 | BC38: 5.738455149 | BD38: 13.13439891 | BE38: 0.1069792903 | BF38: 0.1124250207 | BG38: -5.06598656 | BH38: -2.248704 | BI38: -0.9834351075 | BJ38: -0.1672213341 | BK38: -0.1088285031 | BL38: -0.02564406498 | BM38: 0.09444984352 | BN38: 0.117571544 | BO38: 4.987792969 | BP38: 0.08054785494 | BQ38: -0.003344426681 | BR38: 0.01393747645 | BS38: 0.01392388697 | BT38: -0.003855995698 | BU38: -0.1231512904 | BV38: -7.056055143 | BW38: 0.1227233134 | BX38: -0.0171106056 | BY38: 0.03383507915 | BZ38: 0.36 | CA38: 1.7719 | CB38: 1.8424 | CC38: 1.836785801 | CD38: 1.813 | CE38: -0.06488580088 | CF38: 0.00561419912 | CG38: 0.4042101672 | CH38: 0.4000315192 | CI38: 0.4642101672 | CJ38: 0.06 | CK38: 0.06 | CL38: 0.4600315192 | CM38: 0.2099513084 | CN38: 2.191134328 | CO38: -0.2857805481 | CP38: -0.2857805481 | CQ38: 2.211037267 | CR38: 0.0462098022 | CS38: 0.1143212268 | CT38: 0.1155154031 | CU38: 48.92546545 | CV38: 3467.59913 | CW38: 31.30805 | CX38: 31.34498135 | CY38: -1.131739194 | CZ38: 0.7569059215 | DA38: 0.2467444773 | DB38: -0.03 | DC38: -0.07245299869 | DD38: -0.018 | DE38: 0.05734662419 | DF38: 0.059 | DG38: 0.4012521742 | DH38: 0.1734894415 | DI38: 13.70338127 | DJ38: -0.8204966435 | DK38: -0.01486211291 | DL38: -0.031 | DM38: 1.7 | DN38: 0.047654475 | DO38: 0.0080699 | DP38: 0.001111324122 | DQ38: 0.001 | DR38: 0.04854322313 | DS38: -0.09976643705 | DT38: -0.09816753949 | DU38: 0.36 | DV38: 0.1367858009 | DW38: -0.018 | DX38: 0.059 | DY38: -0.031 | EA38: 0.09518444105 | EB38: -0.04476838054 | EC38: 0.05832760461 | ED38: 0.9945715091 | EH38: 0.0946391402 | EI38: -0.03770715973 | EJ38: 0.05791427128 | EK38: 0.9945715091 | EN38: -0.01165067984 | ET38: 0.1125 | FC38: -0.0194150626 | FD38: -0.007236838968 | FE38: 0.07349932563 | FF38: 0.006518328273 | FR38: 0.002965129067
A39: 0.3733333333 | B39: 2104 | C39: -4 | D39: 18 | E39: 60 | F39: 1922 | G39: 1928 | H39: -118 | I39: -137 | J39: 440 | K39: 36 | L39: 109 | M39: 756 | N39: 784 | O39: 1092 | P39: -13 | Q39: -41 | R39: 599 | S39: 1813 | T39: 46 | U39: 1985 | V39: 1907 | W39: 0 | X39: 2734 | Y39: 2045 | Z39: 0.006171876727 | AA39: 0.3733333333 | AB39: -0.05104 | AC39: 0.3464 | AD39: 0.3536227868 | AE39: 0.006171876727 | AF39: -0.01301926402 | AG39: 3.346869092 | AH39: 4.745814816 | AI39: 0.05841383595 | AJ39: 0.08283002427 | AK39: 0.05949840221 | AL39: 0.08235056135 | AM39: -0.01151344884 | AN39: 0.0113387103 | AO39: 48.92817803 | AP39: 48.92817803 | AQ39: 28.9897039 | AR39: 3470.199217 | AS39: 0.0429897168 | AT39: 0.0429897168 | AU39: 0.04320344426 | AV39: 0.1686011589 | AW39: -4.543046165e-05 | AX39: -5.635493167e-05 | AY39: -0.01307561895 | AZ39: 0.1728571429 | BA39: 0.1371428571 | BB39: 12.43760951 | BC39: 5.738326909 | BD39: 13.13497808 | BE39: 0.2784420945 | BF39: 0.2761469075 | BG39: -4.51942656 | BH39: -5.020544 | BI39: -2.751430834 | BJ39: -2.593882667 | BK39: -0.02100642223 | BL39: -0.02642607957 | BM39: -0.009454597821 | BN39: 0.1131342989 | BO39: 4.992675781 | BP39: 0.07768241039 | BQ39: -0.05187765334 | BR39: 0.01592894338 | BS39: 0.01591472145 | BT39: -0.001780269758 | BU39: -0.1187768377 | BV39: -6.805417251 | BW39: 0.1057575736 | BX39: -0.01718263309 | BY39: 0.0434385602 | BZ39: 0.3733333333 | CA39: 1.7766 | CB39: 1.8424 | CC39: 1.829050463 | CD39: 1.813 | CE39: -0.05245046301 | CF39: 0.01334953699 | CG39: 0.4027510511 | CH39: 0.4001782101 | CI39: 0.4627510511 | CJ39: 0.06 | CK39: 0.06 | CL39: 0.4601782101 | CM39: 0.2093479504 | CN39: 2.198150062 | CO39: -0.2866041912 | CP39: -0.2866041912 | CQ39: 2.210439845 | CR39: 0.04619262651 | CS39: 0.1146927522 | CT39: 0.1154301392 | CU39: 48.92817803 | CV39: 3470.199217 | CW39: 31.70345 | CX39: 31.74065366 | CY39: -0.7296183198 | CZ39: 1.112665724 | DA39: 0.6797051007 | DB39: 0.46 | DC39: -0.06194120404 | DD39: -0.013 | DE39: 0.05834478445 | DF39: 0.0599 | DG39: 0.4012502754 | DH39: 0.1734861864 | DI39: 13.70405887 | DJ39: -0.8204428391 | DK39: -0.01711727168 | DL39: -0.041 | DM39: 1.7 | DN39: 0.026761475 | DO39: 0.0056729 | DP39: -0.00128181885 | DQ39: 0 | DR39: 0.04841722347 | DS39: -0.08479756073 | DT39: -0.3391589398 | DU39: 0.3733333333 | DV39: 0.129050463 | DW39: -0.013 | DX39: 0.0599 | DY39: -0.041 | EA39: 0.09727788258 | EB39: -0.03134617298 | EC39: 0.05926562448 | ED39: 0.9942042827 | EH39: 0.09694127734 | EI39: -0.02009220971 | EJ39: 0.05871895781 | EK39: 0.9942042827 | EN39: -0.002500133455 | ET39: 0.0675 | FC39: -0.0302075313 | FD39: -0.01244066944 | FE39: 0.07049966281 | FF39: 0.006879098714 | FR39: 0.002395241453
A40: 0.3866666667 | B40: 2019 | C40: -5 | D40: 17 | E40: 64 | F40: 2016 | G40: 2020 | H40: 134 | I40: 110 | J40: 436 | K40: 39 | L40: 116 | M40: 757 | N40: 784 | O40: 1081 | P40: -12 | Q40: -18 | R40: 578 | S40: 1812 | T40: 11 | U40: 2013 | V40: 1899 | W40: 5 | X40: 2706 | Y40: 2044 | Z40: 0.006486709538 | AA40: 0.3866666667 | AB40: 0.04756 | AC40: 0.3897 | AD40: 0.3716613934 | AE40: 0.006486709538 | AF40: 0.002190419078 | AG40: 3.307322828 | AH40: 4.856025107 | AI40: 0.05772362401 | AJ40: 0.08475355509 | AK40: 0.05861101311 | AL40: 0.08355205822 | AM40: -0.01245156455 | AN40: 0.01248948056 | AO40: 48.91071171 | AP40: 48.91071171 | AQ40: 28.97935519 | AR40: 3469.363296 | AS40: 0.0465216843 | AT40: 0.0465216843 | AU40: 0.04353526826 | AV40: 0.1697540798 | AW40: 0.000720575562 | AX40: 2.13381177e-05 | AY40: 0.002211757196 | AZ40: 0.03857142857 | BA40: 0.005714285714 | BB40: 12.43980766 | BC40: 5.739153012 | BD40: 13.1312488 | BE40: 0.09876253936 | BF40: 0.09926042386 | BG40: 5.31865344 | BH40: 4.622336 | BI40: 1.283611303 | BJ40: 1.014226666 | BK40: 0.03591795155 | BL40: -0.02747052255 | BM40: 0.02361246088 | BN40: 0.1152481149 | BO40: 4.990234375 | BP40: 0.07889473237 | BQ40: 0.02028453333 | BR40: 0.01277721816 | BS40: 0.01278204258 | BT40: -0.00125907958 | BU40: -0.1205874222 | BV40: -6.90915619 | BW40: 0.1227778413 | BX40: -0.0172563414 | BY40: 0.04220653719 | BZ40: 0.3866666667 | CA40: 1.77895 | CB40: 1.8424 | CC40: 1.823749831 | CD40: 1.812 | CE40: -0.04479983125 | CF40: 0.01865016875 | CG40: 0.4020070249 | CH40: 0.4003478288 | CI40: 0.4620070249 | CJ40: 0.06 | CK40: 0.06 | CL40: 0.4603478288 | CM40: 0.2090839308 | CN40: 2.201737011 | CO40: -0.2869660991 | CP40: -0.2869660991 | CQ40: 2.209672561 | CR40: 0.04618508145 | CS40: 0.1148862547 | CT40: 0.1153623877 | CU40: 48.91071171 | CV40: 3469.363296 | CW40: 30.6161 | CX40: 30.65171276 | CY40: -1.842394281 | CZ40: -0.000105827798 | DA40: 0.3397996365 | DB40: 0.11 | DC40: -0.05617171814 | DD40: -0.012 | DE40: 0.05788441296 | DF40: 0.0578 | DG40: 0.4012625018 | DH40: 0.173507146 | DI40: 13.69969578 | DJ40: -0.8207893903 | DK40: -0.01609310083 | DL40: -0.018 | DM40: 1.7 | DN40: -0.007650525 | DO40: 0.0120649 | DP40: 0.005094850606 | DQ40: 0.005 | DR40: 0.04820481607 | DS40: -0.08466563843 | DT40: -0.3683531611 | DU40: 0.3866666667 | DV40: 0.1237498312 | DW40: -0.012 | DX40: 0.0578 | DY40: -0.018 | EA40: 0.09893405944 | EB40: -0.02050308154 | EC40: 0.05809630474 | ED40: 0.9939171159 | EH40: 0.09868301771 | EI40: -0.01752042407 | EJ40: 0.05785630474 | EK40: 0.9939171159 | EN40: -0.006452016982 | ET40: -0.1575 | FC40: -0.02410376565 | FD40: -0.02229992574 | FE40: -0.04350016859 | FF40: 0.000449450297 | FR40: 0.001951140684
A41: 0.4 | B41: 2073 | C41: -4 | D41: 20 | E41: 64 | F41: 1992 | G41: 1985 | H41: -77 | I41: 24 | J41: 432 | K41: 36 | L41: 113 | M41: 757 | N41: 819 | O41: 1072 | P41: -9 | Q41: -3 | R41: 561 | S41: 1815 | T41: -54 | U41: 1997 | V41: 1891 | W41: 11 | X41: 2710 | Y41: 2045 | Z41: 0.00626626248 | AA41: 0.4 | AB41: -0.01508 | AC41: 0.3464 | AD41: 0.3590306967 | AE41: 0.00626626248 | AF41: -0.002064523067 | AG41: 3.425673808 | AH41: 4.856025107 | AI41: 0.05978923655 | AJ41: 0.08475355509 | AK41: 0.05920012483 | AL41: 0.08415280665 | AM41: -0.01190286216 | AN41: 0.01304981967 | AO41: 48.89681124 | AP41: 48.89681124 | AQ41: 28.97111923 | AR41: 3465.434966 | AS41: 0.0429897168 | AT41: 0.0429897168 | AU41: 0.04348071312 | AV41: 0.1694506273 | AW41: -0.0001896578262 | AX41: 2.385233107e-07 | AY41: -0.002064284543 | AZ41: 0.07285714286 | BA41: 0.05571428571 | BB41: 12.44155862 | BC41: 5.739811082 | BD41: 13.12828087 | BE41: 0.1459798719 | BF41: 0.1610374523 | BG41: -2.91878656 | BH41: 1.264896 | BI41: -0.8175876284 | BJ41: 1.139561333 | BK41: -0.2609531949 | BL41: -0.02747634091 | BM41: -0.01653352935 | BN41: 0.1144710038 | BO41: 4.992675781 | BP41: 0.07836730296 | BQ41: 0.02279122666 | BR41: 0.01358047344 | BS41: 0.01358052903 | BT41: -0.000371203394 | BU41: -0.1197472256 | BV41: -6.861016433 | BW41: 0.1176827026 | BX41: -0.01732585194 | BY41: 0.02469807558 | BZ41: 0.4 | CA41: 1.77895 | CB41: 1.92465 | CC41: 1.820005518 | CD41: 1.815 | CE41: -0.04105551818 | CF41: 0.1046444818 | CG41: 0.4016855556 | CH41: 0.4109504676 | CI41: 0.4616855556 | CJ41: 0.06 | CK41: 0.06 | CL41: 0.4709504676 | CM41: 0.2138310283 | CN41: 2.20244214 | CO41: -0.2805953864 | CP41: -0.2805953864 | CQ41: 2.159113948 | CR41: 0.04631868487 | CS41: 0.1153108052 | CT41: 0.1127111137 | CU41: 48.89681124 | CV41: 3465.434966 | CW41: 29.72645 | CX41: 29.76098734 | CY41: -2.746293087 | CZ41: -0.8678444481 | DA41: -0.2640224058 | DB41: -0.54 | DC41: -0.05856858252 | DD41: -0.009 | DE41: 0.05676579661 | DF41: 0.0561 | DG41: 0.4012722321 | DH41: 0.1735238265 | DI41: 13.69622345 | DJ41: -0.821065368 | DK41: -0.01256590176 | DL41: -0.003 | DM41: 1.7 | DN41: 0.012013475 | DO41: 0.0184569 | DP41: 0.01145239005 | DQ41: 0.011 | DR41: 0.0481765579 | DS41: -0.0961035644 | DT41: -0.3245883205 | DU41: 0.4 | DV41: 0.1200055182 | DW41: -0.009 | DX41: 0.0561 | DY41: -0.003 | EA41: 0.1002418196 | EB41: -0.02007871168 | EC41: 0.05666438581 | ED41: 0.9936882676 | EH41: 0.09993328692 | EI41: -0.0261000455 | EJ41: 0.05662438581 | EK41: 0.9936882676 | EN41: -0.02076699092 | ET41: -0.1275 | FC41: -0.01355188282 | FD41: -0.02836784043 | FE41: -0.0855000843 | FF41: 0.003264093289 | FR41: 0.002457044373
A42: 0.4133333333 | B42: 2072 | C42: -5 | D42: 18 | E42: 63 | F42: 1972 | G42: 1969 | H42: 26 | I42: -14 | J42: 438 | K42: 40 | L42: 115 | M42: 742 | N42: 819 | O42: 1079 | P42: -11 | Q42: -15 | R42: 575 | S42: 1817 | T42: -50 | U42: 2018 | V42: 1898 | W42: 6 | X42: 2684 | Y42: 2044 | Z42: 0.006533902415 | AA42: 0.4133333333 | AB42: -0.01392 | AC42: 0.3897 | AD42: 0.3743653483 | AE42: 0.006533902415 | AF42: -0.004963053276 | AG42: 3.346869092 | AH42: 4.828508026 | AI42: 0.05841383595 | AJ42: 0.08427329183 | AK42: 0.05880698039 | AL42: 0.08421304924 | AM42: -0.01238910859 | AN42: 0.01301696026 | AO42: 48.86482999 | AP42: 48.86482999 | AQ42: 28.9521705 | AR42: 3466.66347 | AS42: 0.04769728 | AT42: 0.04769728 | AU42: 0.0439023698 | AV42: 0.1708448573 | AW42: 0.0008713937319 | AX42: 8.735404417e-05 | AY42: -0.004875699232 | AZ42: 0.1014285714 | BA42: 0.07857142857 | BB42: 12.44559245 | BC42: 5.741327214 | BD42: 13.12145247 | BE42: 0.1857307933 | BF42: 0.1939691192 | BG42: 1.10233344 | BH42: -0.218624 | BI42: 0.1423729058 | BJ42: 0.4604686666 | BK42: -0.04241276811 | BL42: -0.02770303443 | BM42: 0.02007299512 | BN42: 0.1151078836 | BO42: 4.990234375 | BP42: 0.07885931519 | BQ42: 0.009209373332 | BR42: 0.01439606016 | BS42: 0.01441702989 | BT42: -0.0004992422457 | BU42: -0.1204202197 | BV42: -6.899576184 | BW42: 0.1154571664 | BX42: -0.01739830177 | BY42: 0.03953497475 | BZ42: 0.4133333333 | CA42: 1.7437 | CB42: 1.92465 | CC42: 1.826285055 | CD42: 1.817 | CE42: -0.08258505497 | CF42: 0.09836494503 | CG42: 0.4068202913 | CH42: 0.4096756624 | CI42: 0.4668202913 | CJ42: 0.06 | CK42: 0.06 | CL42: 0.4696756624 | CM42: 0.2156541295 | CN42: 2.177911749 | CO42: -0.2782232834 | CP42: -0.2782232834 | CQ42: 2.164671237 | CR42: 0.04636990889 | CS42: 0.1139813079 | CT42: 0.1131868772 | CU42: 48.86482999 | CV42: 3466.66347 | CW42: 30.4184 | CX42: 30.45340137 | CY42: -2.050559626 | CZ42: -0.1652265481 | DA42: -0.2146244769 | DB42: -0.5 | DC42: -0.06025887057 | DD42: -0.011 | DE42: 0.05689665898 | DF42: 0.0575 | DG42: 0.401294619 | DH42: 0.173562204 | DI42: 13.68823453 | DJ42: -0.8217009147 | DK42: -0.01390531105 | DL42: -0.015 | DM42: 1.7 | DN42: -0.013795525 | DO42: 0.0128639 | DP42: 0.005841811884 | DQ42: 0.006 | DR42: 0.04794458831 | DS42: -0.09817325171 | DT42: 0.07318846941 | DU42: 0.4133333333 | DV42: 0.126285055 | DW42: -0.011 | DX42: 0.0575 | DY42: -0.015 | EA42: 0.1019375342 | EB42: -0.02263261141 | EC42: 0.05722098334 | ED42: 0.993406769 | EH42: 0.1016214776 | EI42: -0.02496199422 | EJ42: 0.05702098334 | EK42: 0.993406769 | EN42: -0.01805268906 | ET42: 0.105 | FC42: -0.01427594141 | FD42: -0.02659349297 | FE42: 0.009749957852 | FF42: 0.001320846418 | FR42: 0.002426436329
A43: 0.4266666667 | B43: 1990 | C43: -4 | D43: 17 | E43: 61 | F43: 2115 | G43: 2123 | H43: 165 | I43: 44 | J43: 435 | K43: 36 | L43: 113 | M43: 743 | N43: 820 | O43: 1064 | P43: -23 | Q43: 21 | R43: 543 | S43: 1818 | T43: -129 | U43: 2042 | V43: 1887 | W43: 15 | X43: 2691 | Y43: 2044 | Z43: 0.006289858919 | AA43: 0.4266666667 | AB43: 0.0812 | AC43: 0.3464 | AD43: 0.3603826742 | AE43: 0.006289858919 | AF43: 0.01664060863 | AG43: 3.307322828 | AH43: 4.773403233 | AI43: 0.05772362401 | AJ43: 0.08331153258 | AK43: 0.0582653022 | AL43: 0.08376229091 | AM43: -0.0130056902 | AN43: 0.01249129851 | AO43: 48.83914559 | AP43: 48.83914559 | AQ43: 28.93695262 | AR43: 3465.387123 | AS43: 0.0429897168 | AT43: 0.0429897168 | AU43: 0.0438111045 | AV43: 0.1703203654 | AW43: -0.0003278074458 | AX43: 4.583789517e-05 | AY43: 0.01668644653 | AZ43: -0.1028571429 | BA43: -0.1414285714 | BB43: 12.44883743 | BC43: 5.742546945 | BD43: 13.11596853 | BE43: -0.07326444669 | BF43: -0.080011192 | BG43: 6.52889344 | BH43: 2.045696 | BI43: 3.335633173 | BJ43: 1.253082333 | BK43: 0.2776734453 | BL43: -0.02774849435 | BM43: -0.01830326223 | BN43: 0.114227447 | BO43: 4.990234375 | BP43: 0.07834959438 | BQ43: 0.02506164667 | BR43: 0.009514246767 | BS43: 0.009523191016 | BT43: 3.636734955e-05 | BU43: -0.1195789765 | BV43: -6.851376457 | BW43: 0.1362195851 | BX43: -0.01746718307 | BY43: 0.05289466744 | BZ43: 0.4266666667 | CA43: 1.74605 | CB43: 1.927 | CC43: 1.827202072 | CD43: 1.818 | CE43: -0.08115207174 | CF43: 0.09979792826 | CG43: 0.4065856587 | CH43: 0.4099596265 | CI43: 0.4665856587 | CJ43: 0.06 | CK43: 0.06 | CL43: 0.4699596265 | CM43: 0.2156764219 | CN43: 2.17900326 | CO43: -0.2781945262 | CP43: -0.2781945262 | CQ43: 2.163359604 | CR43: 0.04637049428 | CS43: 0.114048524 | CT43: 0.1131099047 | CU43: 48.83914559 | CV43: 3465.387123 | CW43: 28.93565 | CX43: 28.96858234 | CY43: -3.558336868 | CZ43: -1.606083638 | DA43: -0.9103540576 | DB43: -1.29 | DC43: -0.07119174726 | DD43: -0.023 | DE43: 0.05545960739 | DF43: 0.0543 | DG43: 0.4013125981 | DH43: 0.1735930253 | DI43: 13.68181857 | DJ43: -0.8222119301 | DK43: -0.009177747831 | DL43: 0.021 | DM43: 1.7 | DN43: -0.043291525 | DO43: 0.0216529 | DP43: 0.01458691945 | DQ43: 0.015 | DR43: 0.0476829 | DS43: -0.1194543669 | DT43: 0.07098236342 | DU43: 0.4266666667 | DV43: 0.1272020717 | DW43: -0.023 | DX43: 0.0543 | DY43: 0.021 | EA43: 0.1034758961 | EB43: -0.02936724972 | EC43: 0.05517390801 | ED43: 0.9931319522 | EH43: 0.1029896293 | EI43: -0.04289406686 | EJ43: 0.05545390801 | EK43: 0.9931319522 | EN43: -0.0385988481 | ET43: -0.24 | FC43: 0.003362029294 | FD43: -0.02275463561 | FE43: -0.1151250211 | FF43: 0.00853228811 | FR43: 0.002322444504
A44: 0.44 | B44: 2100 | C44: -6 | D44: 17 | E44: 60 | F44: 2010 | G44: 2025 | H44: -178 | I44: -75 | J44: 440 | K44: 35 | L44: 117 | M44: 743 | N44: 762 | O44: 1076 | P44: -50 | Q44: 16 | R44: 561 | S44: 1813 | T44: -103 | U44: 1957 | V44: 1905 | W44: 0 | X44: 2750 | Y44: 2044 | Z44: 0.006923564098 | AA44: 0.44 | AB44: -0.0464 | AC44: 0.433 | AD44: 0.3966913371 | AE44: 0.006923564098 | AF44: 0.0009496921153 | AG44: 3.307322828 | AH44: 4.745814816 | AI44: 0.05772362401 | AJ44: 0.08283002427 | AK44: 0.05799446311 | AL44: 0.08329615759 | AM44: -0.01322509003 | AN44: 0.01207660445 | AO44: 48.85677977 | AP44: 48.85677977 | AQ44: 28.94740078 | AR44: 3468.20841 | AS44: 0.0418106675 | AT44: 0.0418106675 | AU44: 0.0436110608 | AV44: 0.169676685 | AW44: -0.000402300253 | AX44: 1.024080357e-06 | AY44: 0.0009507161956 | AZ44: 0.04714285714 | BA44: -0.001428571429 | BB44: 12.446609 | BC44: 5.74170931 | BD44: 13.11973365 | BE44: 0.1219233735 | BF44: 0.1068555486 | BG44: -6.86182656 | BH44: -2.600064 | BI44: -1.763096694 | BJ44: -0.6734908333 | BK44: -0.1452807814 | BL44: -0.02765084724 | BM44: 0.04752788847 | BN44: 0.1161398905 | BO44: 4.990234375 | BP44: 0.07960618782 | BQ44: -0.01346981667 | BR44: 0.01326854588 | BS44: 0.0132687818 | BT44: -0.0007244395825 | BU44: -0.1215406871 | BV44: -6.963774291 | BW44: 0.1224903792 | BX44: -0.01753931829 | BY44: 0.03115049107 | BZ44: 0.44 | CA44: 1.74605 | CB44: 1.7907 | CC44: 1.828285709 | CD44: 1.813 | CE44: -0.08223570859 | CF44: -0.03758570859 | CG44: 0.4067627118 | CH44: 0.4014126855 | CI44: 0.4667627118 | CJ44: 0.06 | CK44: 0.06 | CL44: 0.4614126855 | CM44: 0.2117702363 | CN44: 2.178836335 | CO44: -0.283325934 | CP44: -0.283325934 | CQ44: 2.204099688 | CR44: 0.04626137704 | CS44: 0.113730624 | CT44: 0.1152464252 | CU44: 48.85677977 | CV44: 3468.20841 | CW44: 30.12185 | CX44: 30.15623348 | CY44: -2.345655261 | CZ44: -0.3776659497 | DA44: -0.6440100037 | DB44: -1.03 | DC44: -0.07835471236 | DD44: -0.05 | DE44: 0.05575969917 | DF44: 0.0561 | DG44: 0.4013002542 | DH44: 0.1735718643 | DI44: 13.68622359 | DJ44: -0.8218610237 | DK44: -0.008684988001 | DL44: 0.016 | DM44: 1.7 | DN44: 0.061173475 | DO44: 0.0072709 | DP44: 0.0002043046902 | DQ44: 0 | DR44: 0.04775307694 | DS44: -0.1243565796 | DT44: 0.07612756367 | DU44: 0.44 | DV44: 0.1282857086 | DW44: -0.05 | DX44: 0.0561 | DY44: 0.016 | EA44: 0.104908619 | EB44: -0.03998869533 | EC44: 0.05589449469 | ED44: 0.9928616461 | EH44: 0.1043239628 | EI44: -0.04726802857 | EJ44: 0.05610782803 | EK44: 0.9928616461 | EN44: -0.04243567798 | ET44: 0.135 | FC44: 0.009681014647 | FD44: -0.01330238343 | FE44: 0.009937489463 | FF44: 0.0005400916922 | FR44: 0.000803989713
A45: 0.4533333333 | B45: 2098 | C45: -4 | D45: 17 | E45: 59 | F45: 1929 | G45: 1949 | H45: -5 | I45: -160 | J45: 440 | K45: 37 | L45: 105 | M45: 768 | N45: 760 | O45: 1065 | P45: -75 | Q45: 57 | R45: 534 | S45: 1811 | T45: -150 | U45: 1991 | V45: 1904 | W45: 1 | X45: 2762 | Y45: 2044 | Z45: 0.00648468976 | AA45: 0.4533333333 | AB45: -0.04408 | AC45: 0.3464 | AD45: 0.3715456685 | AE45: 0.00648468976 | AF45: -0.01024288402 | AG45: 3.307322828 | AH45: 4.718201914 | AI45: 0.05772362401 | AJ45: 0.08234808862 | AK45: 0.05785904356 | AL45: 0.0828221231 | AM45: -0.01328613545 | AN45: 0.01167694409 | AO45: 48.88231018 | AP45: 48.88231018 | AQ45: 28.96252742 | AR45: 3470.747569 | AS45: 0.0441679027 | AT45: 0.0441679027 | AU45: 0.04366674499 | AV45: 0.1700636595 | AW45: 0.0002418590952 | AX45: 2.510758184e-05 | AY45: -0.01021777643 | AZ45: 0.1628571429 | BA45: 0.1071428571 | BB45: 12.44338673 | BC45: 5.740498171 | BD45: 13.12518471 | BE45: 0.264301376 | BF45: 0.2431804421 | BG45: -0.10790656 | BH45: -5.918464 | BI45: -0.9355016268 | BJ45: -3.295977417 | BK45: 0.3147301053 | BL45: -0.02748153977 | BM45: -0.03291557535 | BN45: 0.1096304205 | BO45: 4.990234375 | BP45: 0.07570012298 | BQ45: -0.06591954833 | BR45: 0.01436359031 | BS45: 0.01436960914 | BT45: 0.0001520860736 | BU45: -0.1156374029 | BV45: -6.625540735 | BW45: 0.1053945189 | BX45: -0.0176030041 | BY45: 0.06389995105 | BZ45: 0.4533333333 | CA45: 1.8048 | CB45: 1.786 | CC45: 1.813556642 | CD45: 1.811 | CE45: -0.00875664208 | CF45: -0.02755664208 | CG45: 0.4000766788 | CH45: 0.4007593685 | CI45: 0.4600766788 | CJ45: 0.06 | CK45: 0.06 | CL45: 0.4607593685 | CM45: 0.20838464 | CN45: 2.211100437 | CO45: -0.2879290911 | CP45: -0.2879290911 | CQ45: 2.207824333 | CR45: 0.04616496028 | CS45: 0.1153902807 | CT45: 0.1151937145 | CU45: 48.88231018 | CV45: 3470.747569 | CW45: 29.0345 | CX45: 29.06746398 | CY45: -3.456006833 | CZ45: -1.428496821 | DA45: -1.036253412 | DB45: -1.5 | DC45: -0.09060433028 | DD45: -0.075 | DE45: 0.05473320749 | DF45: 0.0534 | DG45: 0.4012823829 | DH45: 0.1735412278 | DI45: 13.69260108 | DJ45: -0.821353437 | DK45: -0.00107039646 | DL45: 0.057 | DM45: 1.7 | DN45: 0.019387475 | DO45: 0.0080699 | DP45: 0.001000294776 | DQ45: 0.001 | DR45: 0.04762458619 | DS45: -0.1432698705 | DT45: -0.5142762122 | DU45: 0.4533333333 | DV45: 0.1135566421 | DW45: -0.075 | DX45: 0.0534 | DY45: 0.057 | EA45: 0.1049492064 | EB45: -0.05261361926 | EC45: 0.05426864726 | ED45: 0.9927617058 | EH45: 0.1041415241 | EI45: -0.06724656259 | EJ45: 0.05502864726 | EK45: 0.9927617058 | EN45: -0.07210474536 | ET45: -0.2025 | FC45: 0.03334050732 | FD45: -0.002135576127 | FE45: -0.09628125527 | FF45: 0.008863408901 | FR45: 0.0002434951235
A46: 0.4666666667 | B46: 2007 | C46: -7 | D46: 18 | E46: 57 | F46: 2058 | G46: 2082 | H46: 111 | I46: 119 | J46: 436 | K46: 38 | L46: 111 | M46: 769 | N46: 761 | O46: 1049 | P46: -113 | Q46: 110 | R46: 494 | S46: 1809 | T46: -260 | U46: 2053 | V46: 1892 | W46: 11 | X46: 2726 | Y46: 2045 | Z46: 0.007398842983 | AA46: 0.4666666667 | AB46: 0.06148 | AC46: 0.4763 | AD46: 0.4239228343 | AE46: 0.007398842983 | AF46: 0.007761825418 | AG46: 3.346869092 | AH46: 4.662901244 | AI46: 0.05841383595 | AJ46: 0.08138291067 | AK46: 0.05813643975 | AL46: 0.08210251689 | AM46: -0.01301251076 | AN46: 0.01095356637 | AO46: 48.88101457 | AP46: 48.88101457 | AQ46: 28.96175978 | AR46: 3469.856812 | AS46: 0.0453452252 | AT46: 0.0453452252 | AU46: 0.04383459301 | AV46: 0.1706967014 | AW46: 0.0003956511749 | AX46: 6.216194115e-05 | AY46: 0.007823987359 | AZ46: -0.02142857143 | BA46: -0.08285714286 | BB46: 12.44355014 | BC46: 5.740559589 | BD46: 13.12490809 | BE46: 0.03095632965 | BF46: 0.003932873795 | BG46: 4.42073344 | BH46: 4.973696 | BI46: 1.742615907 | BJ46: 0.8388592917 | BK46: 0.120500882 | BL46: -0.02698303857 | BM46: 0.0685614917 | BN46: 0.1097508222 | BO46: 4.992675781 | BP46: 0.07601427134 | BQ46: 0.01677718583 | BR46: 0.01038907965 | BS46: 0.01040175546 | BT46: -0.000995230271 | BU46: -0.1161142095 | BV46: -6.652859767 | BW46: 0.1238760349 | BX46: -0.01767254157 | BY46: 0.04589348463 | BZ46: 0.4666666667 | CA46: 1.80715 | CB46: 1.78835 | CC46: 1.808163801 | CD46: 1.809 | CE46: -0.001013800995 | CF46: -0.01981380099 | CG46: 0.4000010278 | CH46: 0.4003925867 | CI46: 0.4600010278 | CJ46: 0.06 | CK46: 0.06 | CL46: 0.4603925867 | CM46: 0.2081810631 | CN46: 2.211500796 | CO46: -0.2882106524 | CP46: -0.2882106524 | CQ46: 2.209619939 | CR46: 0.04615908205 | CS46: 0.1153974086 | CT46: 0.1152845572 | CU46: 48.88101457 | CV46: 3469.856812 | CW46: 27.4529 | CX46: 27.48357052 | CY46: -5.074924993 | CZ46: -2.925518382 | DA46: -1.980885897 | DB46: -2.6 | DC46: -0.1152040556 | DD46: -0.113 | DE46: 0.05250647881 | DF46: 0.0494 | DG46: 0.4012832898 | DH46: 0.1735427825 | DI46: 13.69227744 | DJ46: -0.8213791831 | DK46: 0.009194107454 | DL46: 0.11 | DM46: 1.7 | DN46: -0.056810525 | DO46: 0.0176579 | DP46: 0.01055652989 | DQ46: 0.011 | DR46: 0.04724316437 | DS46: -0.1821434489 | DT46: -0.4593696468 | DU46: 0.4666666667 | DV46: 0.108163801 | DW46: -0.113 | DX46: 0.0494 | DY46: 0.11 | EA46: 0.1043003231 | EB46: -0.07925732119 | EC46: 0.05120465195 | ED46: 0.9927162274 | EH46: 0.1030315694 | EI46: -0.1085361818 | EJ46: 0.05267131862 | EK46: 0.9927162274 | EN46: -0.1144352405 | ET46: -0.3 | FC46: 0.07167025366 | FD46: 0.01480962513 | FE46: -0.1981406276 | FF46: 0.04534781015 | FR46: 4.857861239e-06
A47: 0.48 | B47: 2075 | C47: -10 | D47: 19 | E47: 58 | F47: 2026 | G47: 2046 | H47: -79 | I47: -6 | J47: 432 | K47: 34 | L47: 105 | M47: 770 | N47: 769 | O47: 1079 | P47: -133 | Q47: 47 | R47: 550 | S47: 1807 | T47: -152 | U47: 1980 | V47: 1904 | W47: 1 | X47: 2737 | Y47: 2045 | Z47: 0.008989509986 | AA47: 0.48 | AB47: -0.0174 | AC47: 0.6062 | AD47: 0.5150614171 | AE47: 0.008989509986 | AF47: 0.001561264163 | AG47: 3.386319302 | AH47: 4.690564175 | AI47: 0.05910237142 | AJ47: 0.08186571947 | AK47: 0.05861940559 | AL47: 0.08198411818 | AM47: -0.01251021615 | AN47: 0.01085449644 | AO47: 48.88765559 | AP47: 48.88765559 | AQ47: 28.96569455 | AR47: 3465.879131 | AS47: 0.0406307548 | AT47: 0.0406307548 | AU47: 0.04351420919 | AV47: 0.169516551 | AW47: -0.0007375939587 | AX47: -1.781364884e-05 | AY47: 0.001543450514 | AZ47: 0.02428571429 | BA47: -0.03142857143 | BB47: 12.44271267 | BC47: 5.740244825 | BD47: 13.12632603 | BE47: 0.09340647638 | BF47: 0.0716729597 | BG47: -2.99686656 | BH47: 0.093696 | BI47: -0.6271253267 | BJ47: 0.4662776458 | BK47: -0.145787063 | BL47: -0.0266823563 | BM47: 0.1193000252 | BN47: 0.105647504 | BO47: 4.992675781 | BP47: 0.07390416474 | BQ47: 0.009325552917 | BR47: 0.01083765394 | BS47: 0.01083394532 | BT47: -0.00236167803 | BU47: -0.1129062923 | BV47: -6.469059491 | BW47: 0.1144675564 | BX47: -0.01772989033 | BY47: 0.03116009754 | BZ47: 0.48 | CA47: 1.8095 | CB47: 1.80715 | CC47: 1.804226532 | CD47: 1.807 | CE47: 0.005273468362 | CF47: 0.002923468362 | CG47: 0.4000278095 | CH47: 0.4000085467 | CI47: 0.4600278095 | CJ47: 0.06 | CK47: 0.06 | CL47: 0.4600085467 | CM47: 0.2080167241 | CN47: 2.211401745 | CO47: -0.2884383468 | CP47: -0.2884383468 | CQ47: 2.211494348 | CR47: 0.04615433016 | CS47: 0.1153778039 | CT47: 0.11538336 | CU47: 48.88765559 | CV47: 3465.879131 | CW47: 30.4184 | CX47: 30.45229894 | CY47: -2.043668126 | CZ47: 0.1015089461 | DA47: -0.9396884755 | DB47: -1.52 | DC47: -0.1254291542 | DD47: -0.133 | DE47: 0.05418512779 | DF47: 0.055 | DG47: 0.4012786411 | DH47: 0.1735348133 | DI47: 13.69393637 | DJ47: -0.8212472286 | DK47: 0.008597780814 | DL47: 0.047 | DM47: 1.7 | DN47: 0.032906475 | DO47: 0.0080699 | DP47: 0.0009656243021 | DQ47: 0.001 | DR47: 0.04718435591 | DS47: -0.180656663 | DT47: -0.3773324243 | DU47: 0.48 | DV47: 0.1042265316 | DW47: -0.133 | DX47: 0.055 | DY47: 0.047 | EA47: 0.103180898 | EB47: -0.1033976359 | EC47: 0.05425356271 | ED47: 0.9927044598 | EH47: 0.1017416463 | EI47: -0.1115228003 | EJ47: 0.05488022938 | EK47: 0.9927044598 | EN47: -0.1148903875 | ET47: 0.42 | FC47: 0.05933512683 | FD47: 0.04346246307 | FE47: 0.1109296862 | FF47: 0.004551826195 | FR47: 5.731770621e-05
A48: 0.4933333333 | B48: 2044 | C48: -9 | D48: 19 | E48: 57 | F48: 2057 | G48: 2078 | H48: -1 | I48: -121 | J48: 437 | K48: 36 | L48: 111 | M48: 768 | N48: 768 | O48: 1082 | P48: -144 | Q48: 49 | R48: 554 | S48: 1805 | T48: -82 | U48: 1979 | V48: 1909 | W48: -2 | X48: 2704 | Y48: 2044 | Z48: 0.009406980024 | AA48: 0.4933333333 | AB48: 0.01856 | AC48: 0.5629 | AD48: 0.5389807086 | AE48: 0.009406980024 | AF48: 0.005905017923 | AG48: 3.386319302 | AH48: 4.662901244 | AI48: 0.05910237142 | AJ48: 0.08138291067 | AK48: 0.0588608885 | AL48: 0.08168351442 | AM48: -0.01231904051 | AN48: 0.01050358542 | AO48: 48.87037656 | AP48: 48.87037656 | AQ48: 28.95545682 | AR48: 3466.269218 | AS48: 0.0429897168 | AT48: 0.0429897168 | AU48: 0.04346175995 | AV48: 0.1691984644 | AW48: -0.0001988041303 | AX48: -3.591269699e-05 | AY48: 0.005869105226 | AZ48: -0.02 | BA48: -0.07714285714 | BB48: 12.44489232 | BC48: 5.741064059 | BD48: 13.12263674 | BE48: 0.03461183605 | BF48: 0.01078827839 | BG48: 0.04825344 | BH48: -4.395904 | BI48: -0.2894359433 | BJ48: -1.964813177 | BK48: 0.2233836312 | BL48: -0.02641131296 | BM48: 0.03131025282 | BN48: 0.1078575859 | BO48: 4.990234375 | BP48: 0.07511629222 | BQ48: -0.03929626354 | BR48: 0.01040165019 | BS48: 0.01039432612 | BT48: -0.001670061715 | BU48: -0.1147175465 | BV48: -6.572836801 | BW48: 0.1206225644 | BX48: -0.0177660302 | BY48: 0.05325320124 | BZ48: 0.4933333333 | CA48: 1.8048 | CB48: 1.8048 | CC48: 1.803499904 | CD48: 1.805 | CE48: 0.001300096283 | CF48: 0.001300096283 | CG48: 0.4000016903 | CH48: 0.4000016903 | CI48: 0.4600016903 | CJ48: 0.06 | CK48: 0.06 | CL48: 0.4600016903 | CM48: 0.208001555 | CN48: 2.211530054 | CO48: -0.2884593819 | CP48: -0.2884593819 | CQ48: 2.211530054 | CR48: 0.04615389116 | CS48: 0.1153842403 | CT48: 0.1153842403 | CU48: 48.87037656 | CV48: 3466.269218 | CW48: 30.71495 | CX48: 30.74902634 | CY48: -1.740185986 | CZ48: 0.3887914428 | DA48: -0.2754485163 | DB48: -0.82 | DC48: -0.126593218 | DD48: -0.144 | DE48: 0.05541504066 | DF48: 0.0554 | DG48: 0.4012907364 | DH48: 0.1735555481 | DI48: 13.68962007 | DJ48: -0.821590631 | DK48: 0.00650191614 | DL48: 0.049 | DM48: 1.7 | DN48: 0.034135475 | DO48: 0.0040749 | DP48: -0.003020287571 | DQ48: -0.002 | DR48: 0.04707884101 | DS48: -0.1753394437 | DT48: -0.2159147592 | DU48: 0.4933333333 | DV48: 0.1034999037 | DW48: -0.144 | DX48: 0.0554 | DY48: 0.049 | EA48: 0.1018871541 | EB48: -0.1102874516 | EC48: 0.05523348754 | ED48: 0.9926858786 | EH48: 0.1004085512 | EI48: -0.110695333 | EJ48: 0.05588682087 | EK48: 0.9926858786 | EN48: -0.1091025686 | ET48: 0.03 | FC48: 0.05416756342 | FD48: 0.06319401829 | FE48: 0.07046484309 | FF48: 5.286489335e-05 | FR48: 0.0003029960598
A49: 0.5066666667 | B49: 2046 | C49: -3 | D49: 19 | E49: 57 | F49: 2066 | G49: 2088 | H49: 147 | I49: 99 | J49: 434 | K49: 36 | L49: 104 | M49: 769 | N49: 770 | O49: 1075 | P49: -155 | Q49: 60 | R49: 538 | S49: 1803 | T49: -84 | U49: 2077 | V49: 1892 | W49: 10 | X49: 2710 | Y49: 2044 | Z49: 0.007348534259 | AA49: 0.5066666667 | AB49: 0.01624 | AC49: 0.3031 | AD49: 0.4210403543 | AE49: 0.007348534259 | AF49: 0.008562248785 | AG49: 3.386319302 | AH49: 4.662901244 | AI49: 0.05910237142 | AJ49: 0.08138291067 | AK49: 0.05898162996 | AL49: 0.08153321255 | AM49: -0.01223410488 | AN49: 0.01031747771 | AO49: 48.8580895 | AP49: 48.8580895 | AQ49: 28.94817679 | AR49: 3464.238296 | AS49: 0.0429897168 | AT49: 0.0429897168 | AU49: 0.04341455564 | AV49: 0.1689345801 | AW49: -0.0001649277216 | AX49: -4.881419945e-05 | AY49: 0.008513434585 | AZ49: -0.03285714286 | BA49: -0.09142857143 | BB49: 12.44644358 | BC49: 5.741647132 | BD49: 13.1200133 | BE49: 0.01235694477 | BF49: -0.01278922916 | BG49: 5.82617344 | BH49: 4.192896 | BI49: 2.768368748 | BJ49: 1.114041411 | BK49: 0.2205769782 | BL49: -0.02627579129 | BM49: -0.1543834323 | BN49: 0.1052093253 | BO49: 4.990234375 | BP49: 0.07307731172 | BQ49: 0.02228082823 | BR49: 0.00935009528 | BS49: 0.009340657398 | BT49: 0.001577210273 | BU49: -0.1115755574 | BV49: -6.392813935 | BW49: 0.1201378062 | BX49: -0.0177966038 | BY49: 0.0519847764 | BZ49: 0.5066666667 | CA49: 1.80715 | CB49: 1.8095 | CC49: 1.802112015 | CD49: 1.803 | CE49: 0.005037984612 | CF49: 0.007387984612 | CG49: 0.4000253813 | CH49: 0.4000545823 | CI49: 0.4600253813 | CJ49: 0.06 | CK49: 0.06 | CL49: 0.4600545823 | CM49: 0.2080367846 | CN49: 2.21140979 | CO49: -0.2884105333 | CP49: -0.2884105333 | CQ49: 2.211269426 | CR49: 0.04615491066 | CS49: 0.1153799554 | CT49: 0.1153715335 | CU49: 48.8580895 | CV49: 3464.238296 | CW49: 30.023 | CX49: 30.055567 | CY49: -2.443519015 | CZ49: -0.301959923 | DA49: -0.2887042197 | DB49: -0.84 | DC49: -0.1279107432 | DD49: -0.155 | DE49: 0.05539235244 | DF49: 0.0538 | DG49: 0.4012993373 | DH49: 0.1735702926 | DI49: 13.68655076 | DJ49: -0.8218349712 | DK49: 0.007100957179 | DL49: 0.06 | DM49: 1.7 | DN49: -0.086306525 | DO49: 0.0176579 | DP49: 0.01053102429 | DQ49: 0.01 | DR49: 0.04655232784 | DS49: -0.1792322427 | DT49: -0.1600031919 | DU49: 0.5066666667 | DV49: 0.1021120154 | DW49: -0.155 | DX49: 0.0538 | DY49: 0.06 | EA49: 0.1004833857 | EB49: -0.1151357438 | EC49: 0.05446908822 | ED49: 0.9926667475 | EH49: 0.09891158901 | EI49: -0.1195473589 | EJ49: 0.05526908822 | EK49: 0.9926667475 | EN49: -0.1130785915 | ET49: -0.12 | FC49: 0.05708378171 | FD49: 0.0702513088 | FE49: -0.02476757845 | FF49: 0.009028588936 | FR49: 0.0007338278323
A50: 0.52 | B50: 2102 | C50: -2 | D50: 22 | E50: 57 | F50: 1970 | G50: 1982 | H50: -102 | I50: -110 | J50: 441 | K50: 36 | L50: 106 | M50: 768 | N50: 815 | O50: 1097 | P50: -136 | Q50: 0 | R50: 586 | S50: 1806 | T50: 33 | U50: 1956 | V50: 1903 | W50: 2 | X50: 2713 | Y50: 2043 | Z50: 0.005941447913 | AA50: 0.52 | AB50: -0.04872 | AC50: 0.2598 | AD50: 0.3404201771 | AE50: 0.005941447913 | AF50: -0.005698898932 | AG50: 3.504097112 | AH50: 4.662901244 | AI50: 0.06115798026 | AJ50: 0.08138291067 | AK50: 0.06006980511 | AL50: 0.08145806161 | AM50: -0.01117405576 | AN50: 0.01021420074 | AO50: 48.84844432 | AP50: 48.84844432 | AQ50: 28.94246207 | AR50: 3467.968467 | AS50: 0.0429897168 | AT50: 0.0429897168 | AU50: 0.04337207175 | AV50: 0.1687068146 | AW50: -0.0001423534053 | AX50: -5.816812003e-05 | AY50: -0.005757067052 | AZ50: 0.1042857143 | BA50: 0.06 | BB50: 12.44766206 | BC50: 5.742105138 | BD50: 13.11795393 | BE50: 0.1841263552 | BF50: 0.1715350213 | BG50: -3.89478656 | BH50: -3.966464 | BI50: -0.5632089058 | BJ50: -1.426211294 | BK50: 0.1150669851 | BL50: -0.02569412825 | BM50: -0.105531476 | BN50: 0.1049089196 | BO50: 4.987792969 | BP50: 0.07281354839 | BQ50: -0.02852422589 | BR50: 0.0122469606 | BS50: 0.01223408951 | BT50: 0.002437534448 | BU50: -0.1111508926 | BV50: -6.368482416 | BW50: 0.1054519937 | BX50: -0.01785462334 | BY50: 0.04970163405 | BZ50: 0.52 | CA50: 1.8048 | CB50: 1.91525 | CC50: 1.801840184 | CD50: 1.806 | CE50: 0.002959815634 | CF50: 0.1134098156 | CG50: 0.4000087605 | CH50: 0.4128617863 | CI50: 0.4600087605 | CJ50: 0.06 | CK50: 0.06 | CL50: 0.4728617863 | CM50: 0.2139205642 | CN50: 2.210455026 | CO50: -0.2804779439 | CP50: -0.2804779439 | CQ50: 2.150371855 | CR50: 0.04632046442 | CS50: 0.1157986249 | CT50: 0.1121936347 | CU50: 48.84844432 | CV50: 3467.968467 | CW50: 32.1977 | CX50: 32.23277997 | CY50: -0.230797858 | CZ50: 1.834330784 | DA50: 0.7728132824 | DB50: 0.33 | DC50: -0.1150483513 | DD50: -0.136 | DE50: 0.05762068891 | DF50: 0.0586 | DG50: 0.401306089 | DH50: 0.1735818668 | DI50: 13.68414139 | DJ50: -0.8220268611 | DK50: 0.0002786347534 | DL50: 0 | DM50: 1.7 | DN50: 0.062402475 | DO50: 0.0088689 | DP50: 0.001736798219 | DQ50: 0.002 | DR50: 0.04665473588 | DS50: -0.1546411656 | DT50: -0.09019525929 | DU50: 0.52 | DV50: 0.1018401844 | DW50: -0.136 | DX50: 0.0586 | DY50: 0 | EA50: 0.09921689178 | EB50: -0.1121249861 | EC50: 0.05753238486 | ED50: 0.9926368724 | EH50: 0.09781219367 | EI50: -0.09890891336 | EJ50: 0.05753238486 | EK50: 0.9926368724 | EN50: -0.08769393507 | ET50: 0.36 | FC50: 0.02854189085 | FD50: 0.07198118538 | FE50: 0.1676162108 | FF50: 0.009146058082 | FR50: 0.0004389715846
A51: 0.5333333333 | B51: 2100 | C51: -5 | D51: 22 | E51: 59 | F51: 1902 | G51: 1905 | H51: -86 | I51: -97 | J51: 438 | K51: 37 | L51: 118 | M51: 756 | N51: 814 | O51: 1092 | P51: -118 | Q51: 10 | R51: 579 | S51: 1808 | T51: 64 | U51: 1960 | V51: 1911 | W51: -4 | X51: 2753 | Y51: 2045 | Z51: 0.006371495131 | AA51: 0.5333333333 | AB51: -0.0464 | AC51: 0.3897 | AD51: 0.3650600886 | AE51: 0.006371495131 | AF51: -0.01581045925 | AG51: 3.504097112 | AH51: 4.718201914 | AI51: 0.06115798026 | AJ51: 0.08234808862 | AK51: 0.06061389269 | AL51: 0.08190307511 | AM51: -0.01057337655 | AN51: 0.01071580587 | AO51: 48.86785695 | AP51: 48.86785695 | AQ51: 28.95396396 | AR51: 3468.94362 | AS51: 0.0441679027 | AT51: 0.0441679027 | AU51: 0.04345165485 | AV51: 0.1691427109 | AW51: 0.0002724351934 | AX51: -2.510778869e-05 | AY51: -0.01583556704 | AZ51: 0.2014285714 | BA51: 0.17 | BB51: 12.44521033 | BC51: 5.74118359 | BD51: 13.12209877 | BE51: 0.2992419307 | BF51: 0.3011109023 | BG51: -3.27014656 | BH51: -3.458944 | BI51: -1.916677733 | BJ51: -2.442577647 | BK51: 0.07011998856 | BL51: -0.02564459121 | BM51: 0.03225354139 | BN51: 0.1119791008 | BO51: 4.992675781 | BP51: 0.0772160283 | BQ51: -0.04885155294 | BR51: 0.01633658931 | BS51: 0.01633017165 | BT51: 0.0007148056398 | BU51: -0.117918182 | BV51: -6.756219865 | BW51: 0.1021077228 | BX51: -0.01793140404 | BY51: 0.05014338568 | BZ51: 0.5333333333 | CA51: 1.7766 | CB51: 1.9129 | CC51: 1.813372808 | CD51: 1.808 | CE51: -0.03677280835 | CF51: 0.09952719165 | CG51: 0.4013522394 | CH51: 0.4099056619 | CI51: 0.4613522394 | CJ51: 0.06 | CK51: 0.06 | CL51: 0.4699056619 | CM51: 0.2131920294 | CN51: 2.204142731 | CO51: -0.2814364128 | CP51: -0.2814364128 | CQ51: 2.164021988 | CR51: 0.04630094918 | CS51: 0.1153623791 | CT51: 0.1129551345 | CU51: 48.86785695 | CV51: 3468.94362 | CW51: 31.70345 | CX51: 31.73798003 | CY51: -0.7354333328 | CZ51: 1.276507497 | DA51: 1.02466039 | DB51: 0.64 | DC51: -0.09908524571 | DD51: -0.118 | DE51: 0.05836116882 | DF51: 0.0579 | DG51: 0.4012925001 | DH51: 0.1735585717 | DI51: 13.68899067 | DJ51: -0.8216407259 | DK51: -0.006745186734 | DL51: 0.01 | DM51: 1.7 | DN51: 0.057486475 | DO51: 0.0024769 | DP51: -0.004641236176 | DQ51: -0.004 | DR51: 0.04664701143 | DS51: -0.1374877323 | DT51: 0.3873757699 | DU51: 0.5333333333 | DV51: 0.1133728084 | DW51: -0.118 | DX51: 0.0579 | DY51: 0.01 | EA51: 0.09899187842 | EB51: -0.09718660297 | EC51: 0.05778314557 | ED51: 0.9924705835 | EH51: 0.09778636887 | EI51: -0.08381025035 | EJ51: 0.0579164789 | EK51: 0.9924705835 | EN51: -0.06114742776 | ET51: -0.0525 | FC51: 0.01927094543 | FD51: 0.06140378029 | FE51: 0.05755810539 | FF51: 1.478921548e-05 | FR51: 0.0003577679298
A52: 0.5466666667 | B52: 2024 | C52: -3 | D52: 20 | E52: 58 | F52: 1989 | G52: 1996 | H52: 80 | I52: 76 | J52: 433 | K52: 36 | L52: 108 | M52: 756 | N52: 815 | O52: 1081 | P52: -105 | Q52: 26 | R52: 560 | S52: 1809 | T52: 21 | U52: 2015 | V52: 1901 | W52: 3 | X52: 2736 | Y52: 2045 | Z52: 0.005830791813 | AA52: 0.5466666667 | AB52: 0.04176 | AC52: 0.3031 | AD52: 0.3340800443 | AE52: 0.005830791813 | AF52: -0.001359536518 | AG52: 3.425673808 | AH52: 4.690564175 | AI52: 0.05978923655 | AJ52: 0.08186571947 | AK52: 0.06020156462 | AL52: 0.08188439729 | AM52: -0.010966915 | AN52: 0.01071591767 | AO52: 48.87430747 | AP52: 48.87430747 | AQ52: 28.95778586 | AR52: 3465.851258 | AS52: 0.0429897168 | AT52: 0.0429897168 | AU52: 0.04340546104 | AV52: 0.169009842 | AW52: -8.304309087e-05 | AX52: -3.09013189e-05 | AY52: -0.001390437837 | AZ52: 0.07714285714 | BA52: 0.04 | BB52: 12.44439627 | BC52: 5.740877612 | BD52: 13.12347604 | BE52: 0.1277533435 | BF52: 0.124459386 | BG52: 3.21049344 | BH52: 3.294976 | BI52: 0.6469078535 | BJ52: 0.4261991764 | BK52: 0.02942782361 | BL52: -0.02584141634 | BM52: -0.04055274889 | BN52: 0.1092615168 | BO52: 4.992675781 | BP52: 0.07563863361 | BQ52: 0.008523983529 | BR52: 0.01224385507 | BS52: 0.01223701744 | BT52: 0.0009910395213 | BU52: -0.1155245574 | BV52: -6.619075158 | BW52: 0.1141650208 | BX52: -0.01800245077 | BY52: 0.04285847096 | BZ52: 0.5466666667 | CA52: 1.7766 | CB52: 1.91525 | CC52: 1.81905158 | CD52: 1.809 | CE52: -0.04245158041 | CF52: 0.09619841959 | CG52: 0.4018021367 | CH52: 0.4092541359 | CI52: 0.4618021367 | CJ52: 0.06 | CK52: 0.06 | CL52: 0.4692541359 | CM52: 0.2131025626 | CN52: 2.20201076 | CO52: -0.2815545682 | CP52: -0.2815545682 | CQ52: 2.167041686 | CR52: 0.04629860408 | CS52: 0.1152273715 | CT52: 0.1131292271 | CU52: 48.87430747 | CV52: 3465.851258 | CW52: 30.6161 | CX52: 30.64910417 | CY52: -1.840606695 | CZ52: 0.1644807699 | DA52: 0.5945705799 | DB52: 0.21 | DC52: -0.08917593307 | DD52: -0.105 | DE52: 0.05776199477 | DF52: 0.056 | DG52: 0.4012879848 | DH52: 0.173550831 | DI52: 13.69060201 | DJ52: -0.821512487 | DK52: -0.008647331327 | DL52: 0.026 | DM52: 1.7 | DN52: -0.010108525 | DO52: 0.0104669 | DP52: 0.003338717533 | DQ52: 0.003 | DR52: 0.04640774998 | DS52: -0.135161322 | DT52: 0.4066418371 | DU52: 0.5466666667 | DV52: 0.1190515804 | DW52: -0.105 | DX52: 0.056 | DY52: 0.026 | EA52: 0.09933677254 | EB52: -0.08672050748 | EC52: 0.05661572974 | ED52: 0.9922422782 | EH52: 0.09821062488 | EI52: -0.08189858779 | EJ52: 0.05696239641 | EK52: 0.9922422782 | EN52: -0.05408379751 | ET52: -0.1425 | FC52: 0.02263547271 | FD52: 0.04587099643 | FE52: -0.04247094731 | FF52: 0.007804299022 | FR52: 0.0002504010944
A53: 0.56 | B53: 2063 | C53: -3 | D53: 21 | E53: 58 | F53: 1984 | G53: 1989 | H53: -74 | I53: 33 | J53: 436 | K53: 35 | L53: 108 | M53: 756 | N53: 797 | O53: 1098 | P53: -89 | Q53: -36 | R53: 597 | S53: 1809 | T53: 91 | U53: 1999 | V53: 1889 | W53: 13 | X53: 2741 | Y53: 2044 | Z53: 0.005560440154 | AA53: 0.56 | AB53: -0.00348 | AC53: 0.3031 | AD53: 0.3185900221 | AE53: 0.005560440154 | AF53: -0.001834047987 | AG53: 3.464932961 | AH53: 4.690564175 | AI53: 0.06047443745 | AJ53: 0.08186571947 | AK53: 0.06033800104 | AL53: 0.08187505838 | AM53: -0.01080201496 | AN53: 0.01073504239 | AO53: 48.88408397 | AP53: 48.88408397 | AQ53: 28.96357839 | AR53: 3465.450132 | AS53: 0.0418106675 | AT53: 0.0418106675 | AU53: 0.04324598169 | AV53: 0.1684659132 | AW53: -0.0003399555255 | AX53: -6.180673956e-05 | AY53: -0.001895854726 | AZ53: 0.08428571429 | BA53: 0.05 | BB53: 12.44316303 | BC53: 5.740414093 | BD53: 13.12556344 | BE53: 0.1334537331 | BF53: 0.1325746803 | BG53: -2.80166656 | BH53: 1.616256 | BI53: -1.077379353 | BJ53: 1.021227588 | BK53: -0.2798142589 | BL53: -0.02576852867 | BM53: -0.02027637444 | BN53: 0.1077752583 | BO53: 4.990234375 | BP53: 0.07484993627 | BQ53: 0.02042455176 | BR53: 0.01202775303 | BS53: 0.01201420003 | BT53: 0.0008123381113 | BU53: -0.1143428303 | BV53: -6.551367127 | BW53: 0.1125087823 | BX53: -0.01808070688 | BY53: 0.02334522393 | BZ53: 0.56 | CA53: 1.7766 | CB53: 1.87295 | CC53: 1.823853837 | CD53: 1.809 | CE53: -0.0472538368 | CF53: 0.0490961632 | CG53: 0.4022329251 | CH53: 0.4024104332 | CI53: 0.4622329251 | CJ53: 0.06 | CK53: 0.06 | CL53: 0.4624104332 | CM53: 0.2101413272 | CN53: 2.200473555 | CO53: -0.2855221332 | CP53: -0.2855221332 | CQ53: 2.199628847 | CR53: 0.04621539071 | CS53: 0.1148970853 | CT53: 0.1148464028 | CU53: 48.88408397 | CV53: 3465.450132 | CW53: 32.29655 | CX53: 32.33134704 | CY53: -0.1294464764 | CZ53: 1.800615349 | DA53: 1.197592964 | DB53: 0.91 | DC53: -0.07142450821 | DD53: -0.089 | DE53: 0.059203614 | DF53: 0.0597 | DG53: 0.4012811412 | DH53: 0.1735390992 | DI53: 13.69304418 | DJ53: -0.8213181908 | DK53: -0.01592378559 | DL53: -0.036 | DM53: 1.7 | DN53: 0.009555475 | DO53: 0.0200549 | DP53: 0.01288793738 | DQ53: 0.013 | DR53: 0.04639532777 | DS53: -0.111019784 | DT53: 0.3834055331 | DU53: 0.56 | DV53: 0.1238538368 | DW53: -0.089 | DX53: 0.0597 | DY53: -0.036 | EA53: 0.1002091233 | EB53: -0.0744210556 | EC53: 0.05882403364 | ED53: 0.9919691703 | EH53: 0.09932564518 | EI53: -0.05906895814 | EJ53: 0.05834403364 | EK53: 0.9919691703 | EN53: -0.02593306259 | ET53: 0.2775 | FC53: -0.006682263643 | FD53: 0.03538966345 | FE53: 0.1175145263 | FF53: 0.006744493106 | FR53: 0.0003088979115
A54: 0.5733333333 | B54: 2087 | C54: -5 | D54: 22 | E54: 56 | F54: 1937 | G54: 1943 | H54: 17 | I54: -55 | J54: 436 | K54: 36 | L54: 121 | M54: 762 | N54: 796 | O54: 1099 | P54: -67 | Q54: -38 | R54: 603 | S54: 1810 | T54: 132 | U54: 2006 | V54: 1903 | W54: 2 | X54: 2711 | Y54: 2045 | Z54: 0.006180991252 | AA54: 0.5733333333 | AB54: -0.03132 | AC54: 0.3897 | AD54: 0.3541450111 | AE54: 0.006180991252 | AF54: -0.009143726078 | AG54: 3.504097112 | AH54: 4.635212771 | AI54: 0.06115798026 | AJ54: 0.08089965605 | AK54: 0.06074799065 | AL54: 0.08138735722 | AM54: -0.01042731025 | AN54: 0.01021205631 | AO54: 48.87196541 | AP54: 48.87196541 | AQ54: 28.9563982 | AR54: 3465.089119 | AS54: 0.0429897168 | AT54: 0.0429897168 | AU54: 0.0432203552 | AV54: 0.1682859384 | AW54: -0.0001124842166 | AX54: -6.687448727e-05 | AY54: -0.009210600565 | AZ54: 0.1514285714 | BA54: 0.1157142857 | BB54: 12.4446918 | BC54: 5.740988693 | BD54: 13.12297598 | BE54: 0.2159754264 | BF54: 0.2131506541 | BG54: 0.75097344 | BH54: -1.819264 | BI54: -0.1632029566 | BJ54: -0.3990182059 | BK54: 0.03144203324 | BL54: -0.02531968328 | BM54: 0.04654133236 | BN54: 0.1151295701 | BO54: 4.992675781 | BP54: 0.07936781262 | BQ54: -0.007980364118 | BR54: 0.01546047803 | BS54: 0.01544385213 | BT54: -0.0003210392625 | BU54: -0.121214406 | BV54: -6.945079749 | BW54: 0.11207068 | BX54: -0.01816256767 | BY54: 0.04552556201 | BZ54: 0.5733333333 | CA54: 1.7907 | CB54: 1.8706 | CC54: 1.8231107 | CD54: 1.81 | CE54: -0.03241069964 | CF54: 0.04748930036 | CG54: 0.4010504535 | CH54: 0.4022552336 | CI54: 0.4610504535 | CJ54: 0.06 | CK54: 0.06 | CL54: 0.4622552336 | CM54: 0.2095229851 | CN54: 2.206226842 | CO54: -0.2863647632 | CP54: -0.2863647632 | CQ54: 2.200476732 | CR54: 0.04619769343 | CS54: 0.1151917247 | CT54: 0.1148467181 | CU54: 48.87196541 | CV54: 3465.089119 | CW54: 32.3954 | CX54: 32.42999606 | CY54: -0.0283693523 | CZ54: 1.825624774 | DA54: 1.511608869 | DB54: 1.32 | DC54: -0.04984123313 | DD54: -0.067 | DE54: 0.06024908179 | DF54: 0.0603 | DG54: 0.4012896242 | DH54: 0.1735536415 | DI54: 13.69001696 | DJ54: -0.8215590441 | DK54: -0.02188946429 | DL54: -0.038 | DM54: 1.7 | DN54: 0.000952475 | DO54: 0.0088689 | DP54: 0.001696831568 | DQ54: 0.002 | DR54: 0.04619073793 | DS54: -0.08654478706 | DT54: 0.1638351231 | DU54: 0.5733333333 | DV54: 0.1231106996 | DW54: -0.067 | DX54: 0.0603 | DY54: -0.038 | EA54: 0.1011644364 | EB54: -0.05340257473 | EC54: 0.05967448722 | ED54: 0.9917155982 | EH54: 0.1005810263 | EI54: -0.03518125212 | EJ54: 0.05916782055 | EK54: 0.9917155982 | EN54: -0.001889421184 | ET54: 0.045 | FC54: -0.02234113182 | FD54: 0.01946012059 | FE54: 0.08125726317 | FF54: 0.003818886831 | FR54: 0.0002944232806
A55: 0.5866666667 | B55: 2007 | C55: -16 | D55: 22 | E55: 54 | F55: 2070 | G55: 2081 | H55: 192 | I55: 47 | J55: 440 | K55: 32 | L55: 116 | M55: 763 | N55: 797 | O55: 1080 | P55: -54 | Q55: -4 | R55: 569 | S55: 1811 | T55: 49 | U55: 2043 | V55: 1889 | W55: 13 | X55: 2719 | Y55: 2044 | Z55: 0.0106477649 | AA55: 0.5866666667 | AB55: 0.06148 | AC55: 0.866 | AD55: 0.6100725055 | AE55: 0.0106477649 | AF55: 0.008618683091 | AG55: 3.504097112 | AH55: 4.579757781 | AI55: 0.06115798026 | AJ55: 0.07993178471 | AK55: 0.06095298546 | AL55: 0.08065957096 | AM55: -0.01023950194 | AN55: 0.009467083571 | AO55: 48.866066 | AP55: 48.866066 | AQ55: 28.95290283 | AR55: 3467.940207 | AS55: 0.0382683392 | AT55: 0.0382683392 | AU55: 0.0427251536 | AV55: 0.1663516268 | AW55: -0.001208944762 | AX55: -0.0001810815148 | AY55: 0.008437601576 | AZ55: -0.03857142857 | BA55: -0.08142857143 | BB55: 12.44543641 | BC55: 5.741268565 | BD55: 13.12171638 | BE55: -0.03178147154 | BF55: -0.04191692625 | BG55: 7.58297344 | BH55: 2.162816 | BI55: 3.709885242 | BJ55: 0.8818988971 | BK55: 0.377064846 | BL55: -0.02485329275 | BM55: 0.3350080239 | BN55: 0.1141806695 | BO55: 4.990234375 | BP55: 0.07973743348 | BQ55: 0.01763797794 | BR55: 0.01118159641 | BS55: 0.01114333297 | BT55: -0.005395020005 | BU55: -0.121764209 | BV55: -6.976581162 | BW55: 0.1303828921 | BX55: -0.01823615446 | BY55: 0.06228259478 | BZ55: 0.5866666667 | CA55: 1.79305 | CB55: 1.87295 | CC55: 1.824166696 | CD55: 1.811 | CE55: -0.03111669577 | CF55: 0.04878330423 | CG55: 0.4009682488 | CH55: 0.4023798108 | CI55: 0.4609682488 | CJ55: 0.06 | CK55: 0.06 | CL55: 0.4623798108 | CM55: 0.2095424116 | CN55: 2.206616824 | CO55: -0.2863382145 | CP55: -0.2863382145 | CQ55: 2.199880421 | CR55: 0.04619824506 | CS55: 0.1152167166 | CT55: 0.1148125324 | CU55: 48.866066 | CV55: 3467.940207 | CW55: 30.51725 | CX55: 30.54944277 | CY55: -1.926166346 | CZ55: -0.06928533063 | DA55: 0.7211617692 | DB55: 0.49 | DC55: -0.03922891821 | DD55: -0.054 | DE55: 0.05903540965 | DF55: 0.0569 | DG55: 0.4012937538 | DH55: 0.1735607208 | DI55: 13.68854329 | DJ55: -0.8216763368 | DK55: -0.02166223934 | DL55: -0.004 | DM55: 1.7 | DN55: -0.044520525 | DO55: 0.0200549 | DP55: 0.01284418307 | DQ55: 0.013 | DR55: 0.04590843739 | DS55: -0.08733525813 | DT55: 0.1215174163 | DU55: 0.5866666667 | DV55: 0.1241666958 | DW55: -0.054 | DX55: 0.0569 | DY55: -0.004 | EA55: 0.1022969787 | EB55: -0.03871856852 | EC55: 0.05762850869 | ED55: 0.9914623183 | EH55: 0.1018081931 | EI55: -0.03476290675 | EJ55: 0.05757517535 | EK55: 0.9914623183 | EN55: -0.002002334286 | ET55: -0.255 | FC55: -0.01317056591 | FD55: -0.0004210537336 | FE55: -0.08687136841 | FF55: 0.007473656908 | FR55: 0.0002181848573
A56: 0.6 | B56: 2089 | C56: -14 | D56: 24 | E56: 52 | F56: 2009 | G56: 2021 | H56: -149 | I56: -58 | J56: 441 | K56: 36 | L56: 124 | M56: 764 | N56: 774 | O56: 1095 | P56: -43 | Q56: -44 | R56: 601 | S56: 1810 | T56: 89 | U56: 1955 | V56: 1895 | W56: 8 | X56: 2728 | Y56: 2045 | Z56: 0.0121254248 | AA56: 0.6 | AB56: -0.03364 | AC56: 0.7794 | AD56: 0.6947362528 | AE56: 0.0121254248 | AF56: -0.001824733434 | AG56: 3.582141812 | AH56: 4.524196382 | AI56: 0.06252011609 | AJ56: 0.07896205618 | AK56: 0.06173655077 | AL56: 0.07981081357 | AM56: -0.009453641316 | AN56: 0.008620621483 | AO56: 48.86685376 | AP56: 48.86685376 | AQ56: 28.95336957 | AR56: 3471.300186 | AS56: 0.0429897168 | AT56: 0.0429897168 | AU56: 0.04275160992 | AV56: 0.1664581351 | AW56: 6.656768807e-05 | AX56: -0.0001563165945 | AY56: -0.001981050028 | AZ56: 0.04857142857 | BA56: 0.004285714286 | BB56: 12.44533697 | BC56: 5.741231187 | BD56: 13.12188457 | BE56: 0.07908955827 | BF56: 0.06815876818 | BG56: -5.72966656 | BH56: -1.936384 | BI56: -1.009890659 | BJ56: -0.5272425515 | BK56: -0.06435308102 | BL56: -0.0240371314 | BM56: 0.1108244924 | BN56: 0.1199976083 | BO56: 4.992675781 | BP56: 0.08294515163 | BQ56: -0.01054485103 | BR56: 0.01487879308 | BS56: 0.01484068294 | BT56: -0.004429142695 | BU56: -0.1266646436 | BV56: -7.25735562 | BW56: 0.1248399101 | BX56: -0.01825018426 | BY56: 0.03777884492 | BZ56: 0.6 | CA56: 1.7954 | CB56: 1.8189 | CC56: 1.825659415 | CD56: 1.81 | CE56: -0.0302594147 | CF56: -0.006759414705 | CG56: 0.4009156322 | CH56: 0.4000456897 | CI56: 0.4609156322 | CJ56: 0.06 | CK56: 0.06 | CL56: 0.4600456897 | CM56: 0.2084422499 | CN56: 2.207065458 | CO56: -0.2878495124 | CP56: -0.2878495124 | CQ56: 2.211239 | CR56: 0.04616662044 | CS56: 0.1151529567 | CT56: 0.1154033692 | CU56: 48.86685376 | CV56: 3471.300186 | CW56: 32 | CX56: 32.03404554 | CY56: -0.4197924261 | CZ56: 1.379605045 | DA56: 1.050383407 | DB56: 0.89 | DC56: -0.02443922775 | DD56: -0.043 | DE56: 0.05993818449 | DF56: 0.0601 | DG56: 0.4012932024 | DH56: 0.1735597755 | DI56: 13.68874007 | DJ56: -0.8216606728 | DK56: -0.0265687109 | DL56: -0.044 | DM56: 1.7 | DN56: 0.063631475 | DO56: 0.0152609 | DP56: 0.008026032524 | DQ56: 0.008 | DR56: 0.04610406634 | DS56: -0.06880719086 | DT56: 0.1167356684 | DU56: 0.6 | DV56: 0.1256594147 | DW56: -0.043 | DX56: 0.0601 | DY56: -0.044 | EA56: 0.1036664849 | EB56: -0.02785464177 | EC56: 0.05929213055 | ED56: 0.9912082863 | EH56: 0.1033818378 | EI56: -0.01585736667 | EJ56: 0.05870546388 | EK56: 0.9912082863 | EN56: 0.0175319622 | ET56: 0.24 | FC56: -0.02858528296 | FD56: -0.01198977014 | FE56: 0.07656431579 | FF56: 0.007841826136 | FR56: 0.0003445022666
A57: 0.6133333333 | B57: 2100 | C57: -13 | D57: 27 | E57: 58 | F57: 1944 | G57: 1935 | H57: 24 | I57: -175 | J57: 436 | K57: 37 | L57: 125 | M57: 754 | N57: 773 | O57: 1085 | P57: -40 | Q57: -18 | R57: 582 | S57: 1808 | T57: 55 | U57: 1981 | V57: 1894 | W57: 9 | X57: 2691 | Y57: 2045 | Z57: 0.01248639129 | AA57: 0.6133333333 | AB57: -0.0464 | AC57: 0.7361 | AD57: 0.7154181264 | AE57: 0.01248639129 | AF57: -0.01284368616 | AG57: 3.698505118 | AH57: 4.690564175 | AI57: 0.06455103719 | AJ57: 0.08186571947 | AK57: 0.06314379398 | AL57: 0.08083826652 | AM57: -0.008121528458 | AN57: 0.009572944083 | AO57: 48.84108841 | AP57: 48.84108841 | AQ57: 28.93810373 | AR57: 3470.354168 | AS57: 0.0441679027 | AT57: 0.0441679027 | AU57: 0.0428932392 | AV57: 0.1668272612 | AW57: 0.0002307037956 | AX57: -0.0001176145555 | AY57: -0.01296130072 | AZ57: 0.1414285714 | BA57: 0.1271428571 | BB57: 12.4485918 | BC57: 5.742454616 | BD57: 13.11638335 | BE57: 0.1961724872 | BF57: 0.2152098109 | BG57: 1.02425344 | BH57: -6.504064 | BI57: 0.007181390423 | BJ57: -3.515653276 | BK57: 0.4697112888 | BL57: -0.02384723627 | BM57: 0.02707248639 | BN57: 0.1238789542 | BO57: 4.992675781 | BP57: 0.08492687416 | BQ57: -0.07031306551 | BR57: 0.01872525536 | BS57: 0.01869308038 | BT57: -0.002637578948 | BU57: -0.1296225303 | BV57: -7.426830188 | BW57: 0.1167788441 | BX57: -0.01824451193 | BY57: 0.07526654962 | BZ57: 0.6133333333 | CA57: 1.7719 | CB57: 1.81655 | CC57: 1.821069038 | CD57: 1.808 | CE57: -0.04916903803 | CF57: -0.004519038032 | CG57: 0.4024175943 | CH57: 0.4000204217 | CI57: 0.4624175943 | CJ57: 0.06 | CK57: 0.06 | CL57: 0.4600204217 | CM57: 0.2091215367 | CN57: 2.199775446 | CO57: -0.2869144945 | CP57: -0.2869144945 | CQ57: 2.211238505 | CR57: 0.04618613414 | CS57: 0.1147716571 | CT57: 0.1154594406 | CU57: 48.84108841 | CV57: 3470.354168 | CW57: 31.0115 | CX57: 31.04455862 | CY57: -1.426094509 | CZ57: 0.358370844 | DA57: 0.7043771256 | DB57: 0.55 | DC57: -0.01455874818 | DD57: -0.04 | DE57: 0.05957060288 | DF57: 0.0582 | DG57: 0.4013112381 | DH57: 0.1735906939 | DI57: 13.68230388 | DJ57: -0.8221732572 | DK57: -0.0266556749 | DL57: -0.018 | DM57: 1.7 | DN57: 0.031677475 | DO57: 0.0160599 | DP57: 0.008798557427 | DQ57: 0.009 | DR57: 0.04614924748 | DS57: -0.06389557961 | DT57: -0.1137712911 | DU57: 0.6133333333 | DV57: 0.121069038 | DW57: -0.04 | DX57: 0.0582 | DY57: -0.018 | EA57: 0.1046991692 | EB57: -0.015909021 | EC57: 0.05836316732 | ED57: 0.9910188692 | EH57: 0.1045252639 | EI57: -0.01060192579 | EJ57: 0.05812316732 | EK57: 0.9910188692 | EN57: 0.01869213799 | ET57: -0.1425 | FC57: -0.02329264148 | FD57: -0.02213578382 | FE57: -0.0329678421 | FF57: 0.0001173334866 | FR57: 0.000647257294
A58: 0.6266666667 | B58: 1997 | C58: -20 | D58: 27 | E58: 49 | F58: 2105 | G58: 2105 | H58: 61 | I58: 155 | J58: 433 | K58: 34 | L58: 112 | M58: 754 | N58: 774 | O58: 1069 | P58: -50 | Q58: 16 | R58: 548 | S58: 1806 | T58: -47 | U58: 2040 | V58: 1877 | W58: 22 | X58: 2748 | Y58: 2045 | Z58: 0.01531191878 | AA58: 0.6266666667 | AB58: 0.07308 | AC58: 1.0392 | AD58: 0.8773090632 | AE58: 0.01531191878 | AF58: 0.008790354566 | AG58: 3.698505118 | AH58: 4.440648589 | AI58: 0.06455103719 | AJ58: 0.07750387334 | AK58: 0.06384741558 | AL58: 0.07917106993 | AM58: -0.007370879548 | AN58: 0.007952774797 | AO58: 48.85721127 | AP58: 48.85721127 | AQ58: 28.94765645 | AR58: 3467.120751 | AS58: 0.0406307548 | AT58: 0.0406307548 | AU58: 0.04266699076 | AV58: 0.1660699443 | AW58: -0.0004733230649 | AX58: -0.0001531854064 | AY58: 0.008637169159 | AZ58: -0.08857142857 | BA58: -0.1157142857 | BB58: 12.4465545 | BC58: 5.741688824 | BD58: 13.11982578 | BE58: -0.09871461404 | BF58: -0.09108024975 | BG58: 2.46873344 | BH58: 6.379136 | BI58: 1.237957415 | BJ58: 1.431741362 | BK58: -0.02583785959 | BL58: -0.02266182717 | BM58: 0.2119145617 | BN58: 0.1165752072 | BO58: 4.992675781 | BP58: 0.0810055104 | BQ58: 0.02863482724 | BR58: 0.01165062006 | BS58: 0.01161757446 | BT58: -0.004629954501 | BU58: -0.1236782292 | BV58: -7.086246538 | BW58: 0.1324685838 | BX58: -0.01823402671 | BY58: 0.03718384956 | BZ58: 0.6266666667 | CA58: 1.7719 | CB58: 1.8189 | CC58: 1.814709944 | CD58: 1.806 | CE58: -0.04280994381 | CF58: 0.004190056186 | CG58: 0.4018326913 | CH58: 0.4000175566 | CI58: 0.4618326913 | CJ58: 0.06 | CK58: 0.06 | CL58: 0.4600175566 | CM58: 0.2088511462 | CN58: 2.202609681 | CO58: -0.2872859503 | CP58: -0.2872859503 | CQ58: 2.211300726 | CR58: 0.04617838137 | CS58: 0.1149194239 | CT58: 0.1154408866 | CU58: 48.85721127 | CV58: 3467.120751 | CW58: 29.4299 | CX58: 29.4610859 | CY58: -3.030673384 | CZ58: -1.19635971 | DA58: -0.245991292 | DB58: -0.47 | DC58: -0.01754745711 | DD58: -0.05 | DE58: 0.05773142419 | DF58: 0.0548 | DG58: 0.4012999521 | DH58: 0.1735713465 | DI58: 13.68633138 | DJ58: -0.8218524403 | DK58: -0.02098911477 | DL58: 0.016 | DM58: 1.7 | DN58: -0.040833525 | DO58: 0.0296429 | DP58: 0.02231441275 | DQ58: 0.022 | DR58: 0.04601185912 | DS58: -0.07971370907 | DT58: -0.2953516787 | DU58: 0.6266666667 | DV58: 0.1147099438 | DW58: -0.05 | DX58: 0.0548 | DY58: 0.016 | EA58: 0.1052063955 | EB58: -0.01723020263 | EC58: 0.05586596951 | ED58: 0.9909084773 | EH58: 0.1049075564 | EI58: -0.02708968275 | EJ58: 0.05607930284 | EK58: 0.9909084773 | EN58: -0.002215566846 | ET58: -0.255 | FC58: -0.003646320739 | FD58: -0.02749090561 | FE58: -0.1439839211 | FF58: 0.01357062265 | FR58: 0.00105316754
A59: 0.64 | B59: 2060 | C59: -22 | D59: 27 | E59: 47 | F59: 2106 | G59: 2114 | H59: -37 | I59: 59 | J59: 437 | K59: 36 | L59: 119 | M59: 754 | N59: 782 | O59: 1070 | P59: -63 | Q59: 28 | R59: 547 | S59: 1805 | T59: -94 | U59: 1979 | V59: 1888 | W59: 13 | X59: 2761 | Y59: 2043 | Z59: 0.01748040945 | AA59: 0.64 | AB59: 0 | AC59: 1.1258 | AD59: 1.001554532 | AE59: 0.01748040945 | AF59: 0.006767570019 | AG59: 3.698505118 | AH59: 4.384808813 | AI59: 0.06455103719 | AJ59: 0.07652928621 | AK59: 0.06419922639 | AL59: 0.07785017807 | AM59: -0.006946833341 | AN59: 0.006704118343 | AO59: 48.88200762 | AP59: 48.88200762 | AQ59: 28.96234816 | AR59: 3467.386676 | AS59: 0.0429897168 | AT59: 0.0429897168 | AU59: 0.04269926336 | AV59: 0.1663590509 | AW59: 0.0001806916536 | AX59: -0.0001197977004 | AY59: 0.006647772318 | AZ59: -0.09 | BA59: -0.1285714286 | BB59: 12.44342489 | BC59: 5.740512513 | BD59: 13.12512011 | BE59: -0.09188954272 | BF59: -0.09507520622 | BG59: -1.35718656 | BH59: 2.631296 | BI59: -0.05961457239 | BJ59: 2.031518681 | BK59: -0.2788177671 | BL59: -0.02182547584 | BM59: 0.1626368005 | BN59: 0.1178232208 | BO59: 4.987792969 | BP59: 0.08168987276 | BQ59: 0.04063037362 | BR59: 0.01235998034 | BS59: 0.01233335756 | BT59: -0.004856177257 | BU59: -0.1247864057 | BV59: -7.149740427 | BW59: 0.1315539757 | BX59: -0.01818586779 | BY59: 0.02202087189 | BZ59: 0.64 | CA59: 1.7719 | CB59: 1.8377 | CC59: 1.810039987 | CD59: 1.805 | CE59: -0.03813998744 | CF59: 0.02766001256 | CG59: 0.4014546586 | CH59: 0.4007650763 | CI59: 0.4614546586 | CJ59: 0.06 | CK59: 0.06 | CL59: 0.4607650763 | CM59: 0.209022191 | CN59: 2.204383535 | CO59: -0.2870508615 | CP59: -0.2870508615 | CQ59: 2.207682622 | CR59: 0.04618332804 | CS59: 0.1150399604 | CT59: 0.1152379056 | CU59: 48.88200762 | CV59: 3467.386676 | CW59: 29.52875 | CX59: 29.56020482 | CY59: -2.931631248 | CZ59: -1.053424871 | DA59: -0.6497080816 | DB59: -0.94 | DC59: -0.02585928239 | DD59: -0.063 | DE59: 0.0567648398 | DF59: 0.0547 | DG59: 0.4012825947 | DH59: 0.1735415909 | DI59: 13.6925255 | DJ59: -0.8213594493 | DK59: -0.01645892575 | DL59: 0.028 | DM59: 1.7 | DN59: 0.034135475 | DO59: 0.0208539 | DP59: 0.01348483652 | DQ59: 0.013 | DR59: 0.04613227502 | DS59: -0.09362604068 | DT59: -0.3227992033 | DU59: 0.64 | DV59: 0.1100399874 | DW59: -0.063 | DX59: 0.0547 | DY59: 0.028 | EA59: 0.1052583447 | EB59: -0.02978714026 | EC59: 0.05514249556 | ED59: 0.9908529756 | EH59: 0.1047730518 | EI59: -0.04224089196 | EJ59: 0.05551582889 | EK59: 0.9908529756 | EN59: -0.01974154341 | ET59: -0.0075 | FC59: 0.01217683963 | FD59: -0.02193484577 | FE59: -0.07574196053 | FF59: 0.002895205599 | FR59: 0.001379432904
A60: 0.6533333333 | B60: 2060 | C60: -22 | D60: 28 | E60: 43 | F60: 2109 | G60: 2127 | H60: 13 | I60: -203 | J60: 435 | K60: 37 | L60: 129 | M60: 766 | N60: 782 | O60: 1080 | P60: -68 | Q60: 9 | R60: 566 | S60: 1806 | T60: -63 | U60: 1981 | V60: 1896 | W60: 7 | X60: 2723 | Y60: 2043 | Z60: 0.01856465479 | AA60: 0.6533333333 | AB60: 0 | AC60: 1.1258 | AD60: 1.063677266 | AE60: 0.01856465479 | AF60: 0.005261324062 | AG60: 3.737106625 | AH60: 4.27277756 | AI60: 0.06522476001 | AJ60: 0.07457397363 | AK60: 0.0647119932 | AL60: 0.07621207585 | AM60: -0.006444063439 | AN60: 0.005056019213 | AO60: 48.87857371 | AP60: 48.87857371 | AQ60: 28.96031359 | AR60: 3466.038008 | AS60: 0.0441679027 | AT60: 0.0441679027 | AU60: 0.0428461273 | AV60: 0.1668983589 | AW60: 0.0003370675044 | AX60: -7.411117994e-05 | AY60: 0.005187212882 | AZ60: -0.09428571429 | BA60: -0.1471428571 | BB60: 12.44385803 | BC60: 5.740675309 | BD60: 13.12438693 | BE60: -0.08654821403 | BF60: -0.1047654435 | BG60: 0.59481344 | BH60: -7.597184 | BI60: 0.2675994338 | BJ60: -2.782832659 | BK60: 0.4067242791 | BL60: -0.02075004133 | BM60: 0.08131840023 | BN60: 0.1253763007 | BO60: 4.987792969 | BP60: 0.08581068858 | BQ60: -0.05565665319 | BR60: 0.01444541682 | BS60: 0.0144276076 | BT60: -0.003698688632 | BU60: -0.1310720021 | BV60: -7.509878876 | BW60: 0.1363333262 | BX60: -0.01810879567 | BY60: 0.06615582624 | BZ60: 0.6533333333 | CA60: 1.8001 | CB60: 1.8377 | CC60: 1.808495056 | CD60: 1.806 | CE60: -0.008395056281 | CF60: 0.02920494372 | CG60: 0.400070477 | CH60: 0.4008529287 | CI60: 0.460070477 | CJ60: 0.06 | CK60: 0.06 | CL60: 0.4608529287 | CM60: 0.2084248267 | CN60: 2.211123003 | CO60: -0.287873575 | CP60: -0.287873575 | CQ60: 2.207368883 | CR60: 0.04616611895 | CS60: 0.1153949657 | CT60: 0.1151697185 | CU60: 48.87857371 | CV60: 3466.038008 | CW60: 30.51725 | CX60: 30.54978886 | CY60: -1.92902714 | CZ60: -0.0487879328 | DA60: -0.3492480072 | DB60: -0.63 | DC60: -0.02999873684 | DD60: -0.068 | DE60: 0.05723734401 | DF60: 0.0566 | DG60: 0.4012849984 | DH60: 0.1735457115 | DI60: 13.69166771 | DJ60: -0.821427691 | DK60: -0.01629465993 | DL60: 0.009 | DM60: 1.7 | DN60: 0.031677475 | DO60: 0.0144619 | DP60: 0.007071558007 | DQ60: 0.007 | DR60: 0.04615428846 | DS60: -0.09414321312 | DT60: -0.2193345202 | DU60: 0.6533333333 | DV60: 0.1084950563 | DW60: -0.068 | DX60: 0.0566 | DY60: 0.009 | EA60: 0.1050806616 | EB60: -0.03966089059 | EC60: 0.05625268104 | ED60: 0.9908136344 | EH60: 0.1045207832 | EI60: -0.04406469938 | EJ60: 0.05637268104 | EK60: 0.9908136344 | EN60: -0.02135333211 | ET60: 0.1425 | FC60: 0.01058841982 | FD60: -0.008012950618 | FE60: 0.03337901974 | FF60: 0.00171329521 | FR60: 0.001444096002
A61: 0.6666666667 | B61: 2034 | C61: -25 | D61: 29 | E61: 46 | F61: 2170 | G61: 2182 | H61: 200 | I61: 109 | J61: 441 | K61: 36 | L61: 112 | M61: 768 | N61: 783 | O61: 1068 | P61: -78 | Q61: 38 | R61: 539 | S61: 1806 | T61: -112 | U61: 2065 | V61: 1885 | W61: 16 | X61: 2737 | Y61: 2045 | Z61: 0.02024036785 | AA61: 0.6666666667 | AB61: 0.03016 | AC61: 1.2557 | AD61: 1.159688633 | AE61: 0.02024036785 | AF61: 0.01168839672 | AG61: 3.775615586 | AH61: 4.356845492 | AI61: 0.06589686761 | AJ61: 0.0760412346 | AK61: 0.0653044304 | AL61: 0.07612665523 | AM61: -0.005832010412 | AN61: 0.00499021441 | AO61: 48.88531237 | AP61: 48.88531237 | AQ61: 28.96430621 | AR61: 3469.588207 | AS61: 0.0429897168 | AT61: 0.0429897168 | AU61: 0.04286048625 | AV61: 0.1669985114 | AW61: 6.25952736e-05 | AX61: -6.044053459e-05 | AY61: 0.01162795619 | AZ61: -0.1814285714 | BA61: -0.2257142857 | BB61: 12.44300813 | BC61: 5.740355872 | BD61: 13.12582572 | BE61: -0.1843237156 | BF61: -0.1953729832 | BG61: 7.89529344 | BH61: 4.583296 | BI61: 4.081446437 | BJ61: 0.9002316703 | BK61: 0.4241619689 | BL61: -0.02041111241 | BM61: 0.1256784795 | BN61: 0.1179230595 | BO61: 4.992675781 | BP61: 0.08144741761 | BQ61: 0.01800463341 | BR61: 0.01129864899 | BS61: 0.01128580358 | BT61: -0.003813070558 | BU61: -0.1244244516 | BV61: -7.129001966 | BW61: 0.1361128483 | BX61: -0.01801726694 | BY61: 0.06539289479 | BZ61: 0.6666666667 | CA61: 1.8048 | CB61: 1.84005 | CC61: 1.810489851 | CD61: 1.806 | CE61: -0.005689851038 | CF61: 0.02956014896 | CG61: 0.4000323744 | CH61: 0.4008738024 | CI61: 0.4600323744 | CJ61: 0.06 | CK61: 0.06 | CL61: 0.4608738024 | CM61: 0.2084168696 | CN61: 2.211307574 | CO61: -0.2878845657 | CP61: -0.2878845657 | CQ61: 2.207270339 | CR61: 0.04616588839 | CS61: 0.1154053805 | CT61: 0.1151631464 | CU61: 48.88531237 | CV61: 3469.588207 | CW61: 29.33105 | CX61: 29.36181375 | CY61: -3.137317573 | CZ61: -1.206795231 | DA61: -0.778021619 | DB61: -1.12 | DC61: -0.03977238369 | DD61: -0.078 | DE61: 0.0562380563 | DF61: 0.0539 | DG61: 0.4012802813 | DH61: 0.1735376252 | DI61: 13.69335103 | DJ61: -0.8212937834 | DK61: -0.0129028462 | DL61: 0.038 | DM61: 1.7 | DN61: -0.071558525 | DO61: 0.0232509 | DP61: 0.01581297633 | DQ61: 0.016 | DR61: 0.04577656408 | DS61: -0.1101004829 | DT61: -0.0348624567 | DU61: 0.6666666667 | DV61: 0.110489851 | DW61: -0.078 | DX61: 0.0539 | DY61: 0.038 | EA61: 0.1049065776 | EB61: -0.04909199779 | EC61: 0.05469305705 | ED61: 0.9907487068 | EH61: 0.1041637019 | EI61: -0.06141399212 | EJ61: 0.05519972372 | EK61: 0.9907487068 | EN61: -0.0357343058 | ET61: -0.2025 | FC61: 0.02429420991 | FD61: 0.003574906349 | FE61: -0.08456049013 | FF61: 0.007767848113 | FR61: 0.001461350649
A62: 0.68 | B62: 2100 | C62: -25 | D62: 30 | E62: 47 | F62: 2084 | G62: 2089 | H62: -117 | I62: -93 | J62: 440 | K62: 36 | L62: 115 | M62: 768 | N62: 778 | O62: 1083 | P62: -83 | Q62: 5 | R62: 569 | S62: 1806 | T62: -56 | U62: 1977 | V62: 1893 | W62: 9 | X62: 2701 | Y62: 2045 | Z62: 0.02107822438 | AA62: 0.68 | AB62: -0.0464 | AC62: 1.2557 | AD62: 1.207694316 | AE62: 0.02107822438 | AF62: -0.002622920213 | AG62: 3.814032352 | AH62: 4.384808813 | AI62: 0.06656736609 | AJ62: 0.07652928621 | AK62: 0.06593589825 | AL62: 0.07632797072 | AM62: -0.005256849418 | AN62: 0.005135223052 | AO62: 48.86597667 | AP62: 48.86597667 | AQ62: 28.9528499 | AR62: 3471.989387 | AS62: 0.0429897168 | AT62: 0.0429897168 | AU62: 0.0428734093 | AV62: 0.166918315 | AW62: -5.012275307e-05 | AX62: -5.940875644e-05 | AY62: -0.002682328969 | AZ62: -0.05857142857 | BA62: -0.09285714286 | BB62: 12.44544769 | BC62: 5.741272803 | BD62: 13.12169731 | BE62: -0.01865426464 | BF62: -0.020250209 | BG62: -4.48038656 | BH62: -3.302784 | BI62: -0.1994700615 | BJ62: -1.201276165 | BK62: 0.1335741471 | BL62: -0.02019603624 | BM62: 0.06283923974 | BN62: 0.1164628299 | BO62: 4.992675781 | BP62: 0.08039937251 | BQ62: -0.0240255233 | BR62: 0.01419556889 | BS62: 0.01418141589 | BT62: -0.0028883984 | BU62: -0.1227748082 | BV62: -7.034484281 | BW62: 0.120151888 | BX62: -0.01790339537 | BY62: 0.05163358725 | BZ62: 0.68 | CA62: 1.8048 | CB62: 1.8283 | CC62: 1.812707153 | CD62: 1.806 | CE62: -0.007907152926 | CF62: 0.01559284707 | CG62: 0.4000625231 | CH62: 0.4002431369 | CI62: 0.4600625231 | CJ62: 0.06 | CK62: 0.06 | CL62: 0.4602431369 | CM62: 0.2081406188 | CN62: 2.211212495 | CO62: -0.2882666553 | CP62: -0.2882666553 | CQ62: 2.210344746 | CR62: 0.04615791385 | CS62: 0.1153767504 | CT62: 0.1153246854 | CU62: 48.86597667 | CV62: 3471.989387 | CW62: 30.8138 | CX62: 30.84623114 | CY62: -1.628026768 | CZ62: 0.2903957517 | DA62: -0.2438129337 | DB62: -0.56 | DC62: -0.04222777513 | DD62: -0.083 | DE62: 0.05720957259 | DF62: 0.0569 | DG62: 0.4012938163 | DH62: 0.173560828 | DI62: 13.68852097 | DJ62: -0.821678113 | DK62: -0.01489034996 | DL62: 0.005 | DM62: 1.7 | DN62: 0.036593475 | DO62: 0.0168589 | DP62: 0.009392713404 | DQ62: 0.009 | DR62: 0.04585588481 | DS62: -0.1060952062 | DT62: 0.06571759247 | DU62: 0.68 | DV62: 0.1127071529 | DW62: -0.083 | DX62: 0.0569 | DY62: 0.005 | EA62: 0.1048496585 | EB62: -0.0572074375 | EC62: 0.0563554818 | ED62: 0.99065806 | EH62: 0.1040768347 | EI62: -0.05860007724 | EJ62: 0.05642214847 | EK62: 0.99065806 | EN62: -0.02984204297 | ET62: 0.225 | FC62: 0.01464710495 | FD62: 0.01514085332 | FE62: 0.07021975493 | FF62: 0.003033685403 | FR62: 0.001662374321
A63: 0.6933333333 | B63: 2137 | C63: -26 | D63: 27 | E63: 48 | F63: 1929 | G63: 1938 | H63: -127 | I63: -97 | J63: 436 | K63: 35 | L63: 121 | M63: 775 | N63: 777 | O63: 1092 | P63: -76 | Q63: -17 | R63: 588 | S63: 1806 | T63: 20 | U63: 1994 | V63: 1899 | W63: 5 | X63: 2716 | Y63: 2044 | Z63: 0.0218750161 | AA63: 0.6933333333 | AB63: -0.08932 | AC63: 1.299 | AD63: 1.253347158 | AE63: 0.0218750161 | AF63: -0.02407844 | AG63: 3.698505118 | AH63: 4.412743061 | AI63: 0.06455103719 | AJ63: 0.07701683041 | AK63: 0.06524346772 | AL63: 0.07667240056 | AM63: -0.005972042931 | AN63: 0.005456889913 | AO63: 48.8581664 | AP63: 48.8581664 | AQ63: 28.94822236 | AR63: 3470.974448 | AS63: 0.0418106675 | AT63: 0.0418106675 | AU63: 0.04276713512 | AV63: 0.1664594329 | AW63: -0.000286801285 | AX63: -8.21480093e-05 | AY63: -0.02416058801 | AZ63: 0.1628571429 | BA63: 0.1228571429 | BB63: 12.44643387 | BC63: 5.741643481 | BD63: 13.12002972 | BE63: 0.2534679979 | BF63: 0.246709175 | BG63: -4.87078656 | BH63: -3.458944 | BI63: -2.535128311 | BJ63: -2.330110082 | BK63: -0.02733576378 | BL63: -0.02071446642 | BM63: 0.05975937966 | BN63: 0.1197571763 | BO63: 4.990234375 | BP63: 0.08214253075 | BQ63: -0.04660220165 | BR63: 0.02071232288 | BS63: 0.02068868451 | BT63: -0.002377939507 | BU63: -0.1254166699 | BV63: -7.185851934 | BW63: 0.1013382299 | BX63: -0.01777835237 | BY63: 0.04839646815 | BZ63: 0.6933333333 | CA63: 1.82125 | CB63: 1.82595 | CC63: 1.813030054 | CD63: 1.806 | CE63: 0.008219945501 | CF63: 0.0129199455 | CG63: 0.4000675675 | CH63: 0.400166925 | CI63: 0.4600675675 | CJ63: 0.06 | CK63: 0.06 | CL63: 0.460166925 | CM63: 0.2081078778 | CN63: 2.211194164 | CO63: -0.2883120073 | CP63: -0.2883120073 | CQ63: 2.210716732 | CR63: 0.04615696723 | CS63: 0.1153729294 | CT63: 0.1153442835 | CU63: 48.8581664 | CV63: 3470.974448 | CW63: 31.70345 | CX63: 31.73668702 | CY63: -0.7214721175 | CZ63: 1.149072386 | DA63: 0.452629726 | DB63: 0.2 | DC63: -0.03534815662 | DD63: -0.076 | DE63: 0.05864282872 | DF63: 0.0588 | DG63: 0.4012992835 | DH63: 0.1735702003 | DI63: 13.68656997 | DJ63: -0.8218334415 | DK63: -0.01912873655 | DL63: -0.017 | DM63: 1.7 | DN63: 0.015700475 | DO63: 0.0120649 | DP63: 0.004584917263 | DQ63: 0.005 | DR63: 0.04576624 | DS63: -0.0906409077 | DT63: 0.04496760521 | DU63: 0.6933333333 | DV63: 0.1130300545 | DW63: -0.076 | DX63: 0.0588 | DY63: -0.017 | EA63: 0.1048109097 | EB63: -0.05289468345 | EC63: 0.05803829528 | ED63: 0.9905633252 | EH63: 0.1041653099 | EI63: -0.04443273337 | EJ63: 0.05781162861 | EK63: 0.9905633252 | EN63: -0.01398048122 | ET63: 0.1425 | FC63: -0.001176447523 | FD63: 0.01986049603 | FE63: 0.1063598775 | FF63: 0.007482142989 | FR63: 0.00165257237
A64: 0.7066666667 | B64: 2020 | C64: -24 | D64: 25 | E64: 52 | F64: 2042 | G64: 2050 | H64: 102 | I64: 77 | J64: 432 | K64: 42 | L64: 119 | M64: 776 | N64: 777 | O64: 1078 | P64: -73 | Q64: 15 | R64: 561 | S64: 1807 | T64: -17 | U64: 2025 | V64: 1893 | W64: 9 | X64: 2745 | Y64: 2044 | Z64: 0.02151768504 | AA64: 0.7066666667 | AB64: 0.0464 | AC64: 1.2124 | AD64: 1.232873579 | AE64: 0.02151768504 | AF64: -0.006243653148 | AG64: 3.621023062 | AH64: 4.524196382 | AI64: 0.06319872135 | AJ64: 0.07896205618 | AK64: 0.06422109453 | AL64: 0.07781722837 | AM64: -0.006955690904 | AN64: 0.006640442933 | AO64: 48.87145575 | AP64: 48.87145575 | AQ64: 28.95609623 | AR64: 3466.885003 | AS64: 0.0500458812 | AT64: 0.0500458812 | AU64: 0.04349500973 | AV64: 0.1693329446 | AW64: 0.001795944804 | AX64: 0.000105661272 | AY64: -0.006137991876 | AZ64: 0.001428571429 | BA64: -0.03714285714 | BB64: 12.44475612 | BC64: 5.741012868 | BD64: 13.12286716 | BE64: 0.04413111299 | BF64: 0.03999415575 | BG64: 4.06937344 | BH64: 3.334016 | BI64: 0.7671225646 | BJ64: 0.5019529588 | BK64: 0.03535594744 | BL64: -0.02179806692 | BM64: -0.02679982975 | BN64: 0.1206310404 | BO64: 4.990234375 | BP64: 0.08225838294 | BQ64: 0.01003905918 | BR64: 0.01607038755 | BS64: 0.01609718787 | BT64: -0.0007702224138 | BU64: -0.1256277163 | BV64: -7.197944014 | BW64: 0.1193840632 | BX64: -0.01764268549 | BY64: 0.04661046643 | BZ64: 0.7066666667 | CA64: 1.8236 | CB64: 1.82595 | CC64: 1.814997347 | CD64: 1.807 | CE64: 0.008602653208 | CF64: 0.01095265321 | CG64: 0.4000740056 | CH64: 0.4001199606 | CI64: 0.4600740056 | CJ64: 0.06 | CK64: 0.06 | CL64: 0.4601199606 | CM64: 0.2080892334 | CN64: 2.21116659 | CO64: -0.2883378397 | CP64: -0.2883378397 | CQ64: 2.210945748 | CR64: 0.04615642803 | CS64: 0.115369725 | CT64: 0.1153564745 | CU64: 48.87145575 | CV64: 3466.885003 | CW64: 30.31955 | CX64: 30.35103633 | CY64: -2.145506115 | CZ64: -0.2639631471 | DA64: 0.09433328944 | DB64: -0.17 | DC64: -0.03338341629 | DD64: -0.073 | DE64: 0.05799586255 | DF64: 0.0561 | DG64: 0.401289981 | DH64: 0.1735542531 | DI64: 13.68988965 | DJ64: -0.8215691762 | DK64: -0.01862986371 | DL64: 0.015 | DM64: 1.7 | DN64: -0.022398525 | DO64: 0.0168589 | DP64: 0.009350780512 | DQ64: 0.009 | DR64: 0.04555009324 | DS64: -0.094027083 | DT64: 0.09625726361 | DU64: 0.7066666667 | DV64: 0.1149973468 | DW64: -0.073 | DX64: 0.0561 | DY64: 0.015 | EA64: 0.104936275 | EB64: -0.04751558058 | EC64: 0.05664939421 | ED64: 0.990446711 | EH64: 0.10429979 | EI64: -0.04770824237 | EJ64: 0.05684939421 | EK64: 0.990446711 | EN64: -0.01588471582 | ET64: -0.2025 | FC64: 0.006911776238 | FD64: 0.01434573126 | FE64: -0.04807006127 | FF64: 0.003895731156 | FR64: 0.001569473705
A65: 0.72 | B65: 2060 | C65: -22 | D65: 23 | E65: 54 | F65: 2045 | G65: 2054 | H65: -107 | I65: 62 | J65: 438 | K65: 36 | L65: 123 | M65: 776 | N65: 832 | O65: 1081 | P65: -55 | Q65: -6 | R65: 571 | S65: 1813 | T65: -19 | U65: 1992 | V65: 1890 | W65: 12 | X65: 2698 | Y65: 2044 | Z65: 0.02058329258 | AA65: 0.72 | AB65: 0 | AC65: 1.1258 | AD65: 1.17933679 | AE65: 0.02058329258 | AF65: -0.004476906935 | AG65: 3.543166612 | AH65: 4.579757781 | AI65: 0.0618398711 | AJ65: 0.07993178471 | AK65: 0.06303048282 | AL65: 0.07887450654 | AM65: -0.008207312388 | AN65: 0.007636711336 | AO65: 48.85052392 | AP65: 48.85052392 | AQ65: 28.94369422 | AR65: 3467.968503 | AS65: 0.0429897168 | AT65: 0.0429897168 | AU65: 0.04344448044 | AV65: 0.1689976036 | AW65: -0.0002095881279 | AX65: 7.413633205e-05 | AY65: -0.004402770603 | AZ65: -0.002857142857 | BA65: -0.04285714286 | BB65: 12.44739929 | BC65: 5.742006365 | BD65: 13.11839795 | BE65: 0.04428043665 | BF65: 0.03679506498 | BG65: -4.08998656 | BH65: 2.748416 | BI65: -1.661431998 | BJ65: 1.625184479 | BK65: -0.4382155303 | BL65: -0.02292201186 | BM65: -0.07007943446 | BN65: 0.1238760236 | BO65: 4.990234375 | BP65: 0.08382776289 | BQ65: 0.03250368959 | BR65: 0.01645544905 | BS65: 0.01647447479 | BT65: 0.0007098799565 | BU65: -0.1279696917 | BV65: -7.332129436 | BW65: 0.1234927848 | BX65: -0.01751178303 | BY65: 0.01586760492 | BZ65: 0.72 | CA65: 1.8236 | CB65: 1.9552 | CC65: 1.81680818 | CD65: 1.813 | CE65: 0.006791820229 | CF65: 0.1383918202 | CG65: 0.4000461288 | CH65: 0.4191522959 | CI65: 0.4600461288 | CJ65: 0.06 | CK65: 0.06 | CL65: 0.4791522959 | CM65: 0.2168321588 | CN65: 2.209784279 | CO65: -0.2767117217 | CP65: -0.2767117217 | CQ65: 2.121669273 | CR65: 0.04639909161 | CS65: 0.1159843535 | CT65: 0.1106974531 | CU65: 48.85052392 | CV65: 3467.968503 | CW65: 30.6161 | CX65: 30.64792114 | CY65: -1.841734937 | CZ65: 0.03821570966 | DA65: 0.06627449955 | DB65: -0.19 | DC65: -0.03183208797 | DD65: -0.055 | DE65: 0.05802627901 | DF65: 0.0571 | DG65: 0.4013046333 | DH65: 0.1735793713 | DI65: 13.68466087 | DJ65: -0.8219854813 | DK65: -0.01938180272 | DL65: -0.006 | DM65: 1.7 | DN65: 0.018158475 | DO65: 0.0192559 | DP65: 0.01171253717 | DQ65: 0.012 | DR65: 0.04556930232 | DS65: -0.09338420687 | DT65: 0.1160348685 | DU65: 0.72 | DV65: 0.1168081798 | DW65: -0.055 | DX65: 0.0571 | DY65: -0.006 | EA65: 0.1052469324 | EB65: -0.04642147954 | EC65: 0.05702046084 | ED65: 0.9903130202 | EH65: 0.1046372065 | EI65: -0.04516632022 | EJ65: 0.05694046084 | EK65: 0.9903130202 | EN65: -0.01385820113 | ET65: 0.075 | FC65: 0.0004558881192 | FD65: 0.009986363106 | FE65: 0.01346496937 | FF65: 1.210070152e-05 | FR65: 0.0005367521477
A66: 0.7333333333 | B66: 2094 | C66: -22 | D66: 25 | E66: 54 | F66: 1988 | G66: 1991 | H66: 53 | I66: -140 | J66: 435 | K66: 36 | L66: 114 | M66: 755 | N66: 831 | O66: 1087 | P66: -41 | Q66: -23 | R66: 585 | S66: 1817 | T66: 11 | U66: 2015 | V66: 1899 | W66: 4 | X66: 2748 | Y66: 2044 | Z66: 0.02011609635 | AA66: 0.7333333333 | AB66: -0.03944 | AC66: 1.1258 | AD66: 1.152568395 | AE66: 0.02011609635 | AF66: -0.01301651924 | AG66: 3.621023062 | AH66: 4.579757781 | AI66: 0.06319872135 | AJ66: 0.07993178471 | AK66: 0.06311460208 | AL66: 0.07940314563 | AM66: -0.008077292751 | AN66: 0.008211250792 | AO66: 48.86626936 | AP66: 48.86626936 | AQ66: 28.95302332 | AR66: 3466.561653 | AS66: 0.0429897168 | AT66: 0.0429897168 | AU66: 0.04339900407 | AV66: 0.168930617 | AW66: -4.186660471e-05 | AX66: 6.253603838e-05 | AY66: -0.0129539832 | AZ66: 0.07857142857 | BA66: 0.04714285714 | BB66: 12.44541074 | BC66: 5.741258915 | BD66: 13.1217598 | BE66: 0.1517142194 | BF66: 0.1534719846 | BG66: 2.15641344 | BH66: -5.137664 | BI66: 0.2474907212 | BJ66: -1.75623976 | BK66: 0.2671640642 | BL66: -0.02314427177 | BM66: -0.03503971723 | BN66: 0.1195971574 | BO66: 4.990234375 | BP66: 0.08121168169 | BQ66: -0.03512479521 | BR66: 0.01756980488 | BS66: 0.01758638724 | BT66: 0.00090243556 | BU66: -0.1240159973 | BV66: -7.105599238 | BW66: 0.110999478 | BX66: -0.01739333913 | BY66: 0.06334112321 | BZ66: 0.7333333333 | CA66: 1.77425 | CB66: 1.95285 | CC66: 1.832491119 | CD66: 1.817 | CE66: -0.05824111884 | CF66: 0.1203588812 | CG66: 0.4033920279 | CH66: 0.4144862603 | CI66: 0.4633920279 | CJ66: 0.06 | CK66: 0.06 | CL66: 0.4744862603 | CM66: 0.2162731504 | CN66: 2.193921249 | CO66: -0.2774269478 | CP66: -0.2774269478 | CQ66: 2.142623932 | CR66: 0.04638591137 | CS66: 0.1149896581 | CT66: 0.1119118191 | CU66: 48.86626936 | CV66: 3466.561653 | CW66: 31.2092 | CX66: 31.24132725 | CY66: -1.238491826 | CZ66: 0.6158004675 | DA66: 0.3410374835 | DB66: 0.11 | DC66: -0.02664827977 | DD66: -0.041 | DE66: 0.05859722612 | DF66: 0.0585 | DG66: 0.4012936114 | DH66: 0.1735604768 | DI66: 13.68859409 | DJ66: -0.821672293 | DK66: -0.02497296796 | DL66: -0.023 | DM66: 1.7 | DN66: -0.010108525 | DO66: 0.0120649 | DP66: 0.004507972559 | DQ66: 0.004 | DR66: 0.04535101948 | DS66: -0.08504020063 | DT66: 0.6461276492 | DU66: 0.7333333333 | DV66: 0.1324911188 | DW66: -0.041 | DX66: 0.0585 | DY66: -0.023 | EA66: 0.1067718908 | EB66: -0.04012148195 | EC66: 0.058001831 | ED66: 0.9900157515 | EH66: 0.1062830174 | EI66: -0.03374274216 | EJ66: 0.05769516433 | EK66: 0.9900157515 | EN66: 0.00625325808 | ET66: 0.105 | FC66: -0.01127205594 | FD66: 0.005946972871 | FE66: 0.05923248468 | FF66: 0.002839345769 | FR66: 0.0002059718737
A67: 0.7466666667 | B67: 1976 | C67: -27 | D67: 23 | E67: 54 | F67: 2186 | G67: 2193 | H67: 198 | I67: -5 | J67: 442 | K67: 39 | L67: 119 | M67: 756 | N67: 832 | O67: 1082 | P67: -29 | Q67: -21 | R67: 577 | S67: 1820 | T67: 0 | U67: 2032 | V67: 1892 | W67: 10 | X67: 2748 | Y67: 2044 | Z67: 0.02177181556 | AA67: 0.7466666667 | AB67: 0.09744 | AC67: 1.3423 | AD67: 1.247434197 | AE67: 0.02177181556 | AF67: 0.01481532873 | AG67: 3.543166612 | AH67: 4.579757781 | AI67: 0.0618398711 | AJ67: 0.07993178471 | AK67: 0.06247723659 | AL67: 0.07966746517 | AM67: -0.008670635609 | AN67: 0.008519592968 | AO67: 48.88138499 | AP67: 48.88138499 | AQ67: 28.96197925 | AR67: 3470.853487 | AS67: 0.0465216843 | AT67: 0.0465216843 | AU67: 0.0437112721 | AV67: 0.1702276412 | AW67: 0.0008106400917 | AX67: 0.0001373464437 | AY67: 0.01495267517 | AZ67: -0.2042857143 | BA67: -0.2414285714 | BB67: 12.44350342 | BC67: 5.740542029 | BD67: 13.12498717 | BE67: -0.1972437057 | BF67: -0.1992261385 | BG67: 7.81721344 | BH67: 0.132736 | BI67: 4.032352081 | BJ67: -0.8117518802 | BK67: 0.6458805281 | BL67: -0.02359511429 | BM67: 0.1241789403 | BN67: 0.1200845257 | BO67: 4.990234375 | BP67: 0.08179295841 | BQ67: -0.0162350376 | BR67: 0.01105270599 | BS67: 0.01108160383 | BT67: -0.001489078163 | BU67: -0.124942284 | BV67: -7.158671605 | BW67: 0.1397576128 | BX67: -0.01728112451 | BY67: 0.07864294994 | BZ67: 0.7466666667 | CA67: 1.7766 | CB67: 1.9552 | CC67: 1.838908263 | CD67: 1.82 | CE67: -0.06230826343 | CF67: 0.1162917366 | CG67: 0.4038823197 | CH67: 0.413523768 | CI67: 0.4638823197 | CJ67: 0.06 | CK67: 0.06 | CL67: 0.473523768 | CM67: 0.2160593039 | CN67: 2.191637941 | CO67: -0.2777015334 | CP67: -0.2777015334 | CQ67: 2.147013858 | CR67: 0.04638030456 | CS67: 0.1148361845 | CT67: 0.1121587395 | CU67: 48.88138499 | CV67: 3470.853487 | CW67: 30.71495 | CX67: 30.74622396 | CY67: -1.74916325 | CZ67: 0.1009238817 | DA67: 0.2209806826 | DB67: 0 | DC67: -0.02316890507 | DD67: -0.029 | DE67: 0.058412589 | DF67: 0.0577 | DG67: 0.4012830305 | DH67: 0.173542338 | DI67: 13.69236997 | DJ67: -0.8213718221 | DK67: -0.02667283717 | DL67: -0.021 | DM67: 1.7 | DN67: -0.031001525 | DO67: 0.0176579 | DP67: 0.01007066964 | DQ67: 0.01 | DR67: 0.04510353235 | DS67: -0.08356121554 | DT67: 0.5637067469 | DU67: 0.7466666667 | DV67: 0.1389082634 | DW67: -0.029 | DX67: 0.0577 | DY67: -0.021 | EA67: 0.1087368538 | EB67: -0.03179847424 | EC67: 0.05770053231 | ED67: 0.9896667672 | EH67: 0.1083384271 | EI67: -0.02839215575 | EJ67: 0.05742053231 | EK67: 0.9896667672 | EN67: 0.0123492357 | ET67: -0.06 | FC67: -0.01613602797 | FD67: -0.001346319071 | FE67: -0.0003837576583 | FF67: 9.265244725e-07 | FR67: 3.40016681e-05
A68: 0.76 | B68: 2082 | C68: -25 | D68: 23 | E68: 54 | F68: 2126 | G68: 2134 | H68: -109 | I68: -70 | J68: 439 | K68: 36 | L68: 113 | M68: 756 | N68: 757 | O68: 1085 | P68: -39 | Q68: -20 | R68: 581 | S68: 1816 | T68: 9 | U68: 1954 | V68: 1896 | W68: 7 | X68: 2725 | Y68: 2045 | Z68: 0.02184394823 | AA68: 0.76 | AB68: -0.02552 | AC68: 1.2557 | AD68: 1.251567099 | AE68: 0.02184394823 | AF68: 0.004949936028 | AG68: 3.543166612 | AH68: 4.579757781 | AI68: 0.0618398711 | AJ68: 0.07993178471 | AK68: 0.06215855385 | AL68: 0.07979962494 | AM68: -0.008995069173 | AN68: 0.008646001921 | AO68: 48.87940959 | AP68: 48.87940959 | AQ68: 28.96080884 | AR68: 3472.334139 | AS68: 0.0429897168 | AT68: 0.0429897168 | AU68: 0.04363911657 | AV68: 0.1699382017 | AW68: -0.0001808996655 | AX68: 0.0001055218328 | AY68: 0.00505545786 | AZ68: -0.1185714286 | BA68: -0.1571428571 | BB68: 12.44375259 | BC68: 5.740635679 | BD68: 13.1245654 | BE68: -0.07025064176 | BF68: -0.07483199774 | BG68: -4.16806656 | BH68: -2.404864 | BI68: -0.06785723971 | BJ68: -1.60830794 | BK68: 0.2053934267 | BL68: -0.02382053555 | BM68: 0.005409950588 | BN68: 0.1170145749 | BO68: 4.992675781 | BP68: 0.07981641598 | BQ68: -0.0321661588 | BR68: 0.01253484388 | BS68: 0.01255848328 | BT68: -0.0008290695594 | BU68: -0.1219181028 | BV68: -6.985398635 | BW68: 0.1268680388 | BX68: -0.01714683363 | BY68: 0.05385077501 | BZ68: 0.76 | CA68: 1.7766 | CB68: 1.77895 | CC68: 1.844487236 | CD68: 1.816 | CE68: -0.06788723605 | CF68: -0.06553723605 | CG68: 0.4046086768 | CH68: 0.4042951293 | CI68: 0.4646086768 | CJ68: 0.06 | CK68: 0.06 | CL68: 0.4642951293 | CM68: 0.2121155457 | CN68: 2.188878367 | CO68: -0.2828646991 | CP68: -0.2828646991 | CQ68: 2.190356559 | CR68: 0.0462713801 | CS68: 0.1143608201 | CT68: 0.1144495116 | CU68: 48.87940959 | CV68: 3472.334139 | CW68: 31.0115 | CX68: 31.04334301 | CY68: -1.445515415 | CZ68: 0.388388848 | DA68: 0.3046847653 | DB68: 0.09 | DC68: -0.01864306343 | DD68: -0.039 | DE68: 0.05866291025 | DF68: 0.0581 | DG68: 0.4012844133 | DH68: 0.1735447085 | DI68: 13.69187651 | DJ68: -0.8214110788 | DK68: -0.02925719162 | DL68: -0.02 | DM68: 1.7 | DN68: 0.064860475 | DO68: 0.0144619 | DP68: 0.006854045632 | DQ68: 0.007 | DR68: 0.04529370434 | DS68: -0.07824936424 | DT68: 0.4910648466 | DU68: 0.76 | DV68: 0.144487236 | DW68: -0.039 | DX68: 0.0581 | DY68: -0.02 | EA68: 0.1110744922 | EB68: -0.02477089479 | EC68: 0.05788448807 | ED68: 0.9892803859 | EH68: 0.1107728967 | EI68: -0.02089058326 | EJ68: 0.0576178214 | EK68: 0.9892803859 | EN68: 0.02158849078 | ET68: 0.03 | FC68: -0.01806801399 | FD68: -0.009678695496 | FE68: 0.01480812117 | FF68: 0.0005996041905 | FR68: 0.0004144048665
A69: 0.7733333333 | B69: 2112 | C69: -27 | D69: 22 | E69: 55 | F69: 2015 | G69: 2025 | H69: -41 | I69: -150 | J69: 435 | K69: 35 | L69: 111 | M69: 786 | N69: 757 | O69: 1084 | P69: -38 | Q69: -12 | R69: 579 | S69: 1815 | T69: 9 | U69: 1963 | V69: 1903 | W69: 1 | X69: 2729 | Y69: 2045 | Z69: 0.0226357415 | AA69: 0.7733333333 | AB69: -0.06032 | AC69: 1.3423 | AD69: 1.296933549 | AE69: 0.0226357415 | AF69: -0.01114119056 | AG69: 3.504097112 | AH69: 4.607498401 | AI69: 0.06115798026 | AJ69: 0.08041594945 | AK69: 0.06165826706 | AL69: 0.08010778719 | AM69: -0.009492529618 | AN69: 0.008956990521 | AO69: 48.8803804 | AP69: 48.8803804 | AQ69: 28.96138404 | AR69: 3470.490725 | AS69: 0.0418106675 | AT69: 0.0418106675 | AU69: 0.04345627166 | AV69: 0.1692454312 | AW69: -0.0004329815747 | AX69: 5.167149204e-05 | AY69: -0.01108951907 | AZ69: 0.04 | BA69: -0.001428571429 | BB69: 12.44363013 | BC69: 5.740589653 | BD69: 13.12477268 | BE69: 0.1326386637 | BF69: 0.1256098348 | BG69: -1.51334656 | BH69: -5.528064 | BI69: -0.7906018999 | BJ69: -3.56818597 | BK69: 0.3703445427 | BL69: -0.02422476007 | BM69: 0.05938449488 | BN69: 0.1140138578 | BO69: 4.992675781 | BP69: 0.07807241785 | BQ69: -0.0713637194 | BR69: 0.01565085491 | BS69: 0.01566378613 | BT69: -0.001342417512 | BU69: -0.1192565464 | BV69: -6.832902557 | BW69: 0.1081153558 | BX69: -0.01701158099 | BY69: 0.06958061354 | BZ69: 0.7733333333 | CA69: 1.8471 | CB69: 1.77895 | CC69: 1.828974317 | CD69: 1.815 | CE69: 0.01812568278 | CF69: -0.05002431722 | CG69: 0.4003285404 | CH69: 0.4025024323 | CI69: 0.4603285404 | CJ69: 0.06 | CK69: 0.06 | CL69: 0.4625024323 | CM69: 0.2093030696 | CN69: 2.209725988 | CO69: -0.2866656477 | CP69: -0.2866656477 | CQ69: 2.199339653 | CR69: 0.04619135636 | CS69: 0.1153836204 | CT69: 0.1147604403 | CU69: 48.8803804 | CV69: 3470.490725 | CW69: 30.91265 | CX69: 30.94447476 | CY69: -1.541875644 | CZ69: 0.2803474748 | DA69: 0.2925161201 | DB69: 0.09 | DC69: -0.01436998723 | DD69: -0.038 | DE69: 0.05872575138 | DF69: 0.0579 | DG69: 0.4012837337 | DH69: 0.1735435435 | DI69: 13.69211902 | DJ69: -0.8213917856 | DK69: -0.02674322429 | DL69: -0.012 | DM69: 1.7 | DN69: 0.053799475 | DO69: 0.0088689 | DP69: 0.001257262495 | DQ69: 0.001 | DR69: 0.04535299669 | DS69: -0.07437806457 | DT69: -0.3362020326 | DU69: 0.7733333333 | DV69: 0.1289743172 | DW69: -0.038 | DX69: 0.0579 | DY69: -0.012 | EA69: 0.1121490125 | EB69: -0.01919767713 | EC69: 0.05781070283 | ED69: 0.9890858115 | EH69: 0.1119152095 | EI69: -0.01614413616 | EJ69: 0.05765070283 | EK69: 0.9890858115 | EN69: 0.01347588309 | ET69: -0.015 | FC69: -0.01503400699 | FD69: -0.01638156933 | FE69: -9.593941458e-05 | FF69: 0.0002652217417 | FR69: 0.0005583775037
A70: 0.7866666667 | B70: 1990 | C70: -32 | D70: 23 | E70: 55 | F70: 2184 | G70: 2192 | H70: 51 | I70: 126 | J70: 435 | K70: 37 | L70: 105 | M70: 786 | N70: 757 | O70: 1069 | P70: -48 | Q70: 22 | R70: 548 | S70: 1814 | T70: -71 | U70: 2033 | V70: 1889 | W70: 12 | X70: 2699 | Y70: 2045 | Z70: 0.02492095545 | AA70: 0.7866666667 | AB70: 0.0812 | AC70: 1.5588 | AD70: 1.427866775 | AE70: 0.02492095545 | AF70: 0.01219331663 | AG70: 3.543166612 | AH70: 4.607498401 | AI70: 0.0618398711 | AJ70: 0.08041594945 | AK70: 0.06174906908 | AL70: 0.08026186832 | AM70: -0.009461655112 | AN70: 0.009051144132 | AO70: 48.85980839 | AP70: 48.85980839 | AQ70: 28.94919523 | AR70: 3468.831652 | AS70: 0.0441679027 | AT70: 0.0441679027 | AU70: 0.04352743476 | AV70: 0.1693777086 | AW70: 8.267338939e-05 | AX70: 5.477168177e-05 | AY70: 0.01224808831 | AZ70: -0.2014285714 | BA70: -0.24 | BB70: 12.4462265 | BC70: 5.741565538 | BD70: 13.1203803 | BE70: -0.171387267 | BF70: -0.1767733271 | BG70: 2.07833344 | BH70: 5.246976 | BI70: 0.6438657701 | BJ70: 0.839395015 | BK70: -0.02607056599 | BL70: -0.02425639962 | BM70: 0.1713910464 | BN70: 0.108117948 | BO70: 4.992675781 | BP70: 0.07493323799 | BQ70: 0.0167879003 | BR70: 0.009191029996 | BS70: 0.009201534903 | BT70: -0.003349193856 | BU70: -0.1144132391 | BV70: -6.555401256 | BW70: 0.1266065557 | BX70: -0.0168657711 | BY70: 0.03718399679 | BZ70: 0.7866666667 | CA70: 1.8471 | CB70: 1.77895 | CC70: 1.825133312 | CD70: 1.814 | CE70: 0.02196668838 | CF70: -0.04618331162 | CG70: 0.4004825354 | CH70: 0.4021328983 | CI70: 0.4604825354 | CJ70: 0.06 | CK70: 0.06 | CL70: 0.4621328983 | CM70: 0.2092041287 | CN70: 2.209004675 | CO70: -0.2868012232 | CP70: -0.2868012232 | CQ70: 2.201115907 | CR70: 0.04618853471 | CS70: 0.1153322071 | CT70: 0.114858881 | CU70: 48.85980839 | CV70: 3468.831652 | CW70: 29.4299 | CX70: 29.45990139 | CY70: -3.052199893 | CZ70: -1.180777704 | DA70: -0.4441307919 | DB70: -0.71 | DC70: -0.02000433137 | DD70: -0.048 | DE70: 0.05731254713 | DF70: 0.0548 | DG70: 0.4012981341 | DH70: 0.1735682299 | DI70: 13.68698014 | DJ70: -0.821800782 | DK70: -0.02199791231 | DL70: 0.022 | DM70: 1.7 | DN70: -0.032230525 | DO70: 0.0200549 | DP70: 0.01240593271 | DQ70: 0.012 | DR70: 0.04513049152 | DS70: -0.08998843396 | DT70: -0.3121387263 | DU70: 0.7866666667 | DV70: 0.1251333116 | DW70: -0.048 | DX70: 0.0548 | DY70: 0.022 | EA70: 0.112836545 | EB70: -0.02156443195 | EC70: 0.05571470353 | ED70: 0.9889431776 | EH70: 0.1124835784 | EI70: -0.03079265518 | EJ70: 0.05600803687 | EK70: 0.9889431776 | EN70: -0.005283332661 | ET70: -0.2325 | FC70: 0.003482996504 | FD70: -0.0191731632 | FE70: -0.1162979697 | FF70: 0.009433228039 | FR70: 0.0007837574618
A71: 0.8 | B71: 2058 | C71: -32 | D71: 19 | E71: 56 | F71: 2165 | G71: 2183 | H71: -15 | I71: 64 | J71: 437 | K71: 36 | L71: 118 | M71: 785 | N71: 803 | O71: 1079 | P71: -42 | Q71: -4 | R71: 570 | S71: 1818 | T71: -57 | U71: 2016 | V71: 1895 | W71: 8 | X71: 2705 | Y71: 2045 | Z71: 0.02606356242 | AA71: 0.8 | AB71: 0.00232 | AC71: 1.5588 | AD71: 1.493333387 | AE71: 0.02606356242 | AF71: 0.009985623098 | AG71: 3.386319302 | AH71: 4.635212771 | AI71: 0.05910237142 | AJ71: 0.08089965605 | AK71: 0.06042572025 | AL71: 0.08058076218 | AM71: -0.01083005566 | AN71: 0.009324986279 | AO71: 48.84436005 | AP71: 48.84436005 | AQ71: 28.94004216 | AR71: 3468.926487 | AS71: 0.0429897168 | AT71: 0.0429897168 | AU71: 0.04347366297 | AV71: 0.1690672474 | AW71: -0.0001940382268 | AX71: 2.989069092e-05 | AY71: 0.01001551379 | AZ71: -0.1742857143 | BA71: -0.2271428571 | BB71: 12.44817824 | BC71: 5.742299162 | BD71: 13.11708189 | BE71: -0.1322809466 | BF71: -0.1520230649 | BG71: -0.49830656 | BH71: 2.826496 | BI71: 0.07277960504 | BJ71: 1.832945507 | BK71: -0.234688787 | BL71: -0.02507752097 | BM71: 0.0856955232 | BN71: 0.1141699284 | BO71: 4.992675781 | BP71: 0.0782758731 | BQ71: 0.03665891015 | BR71: 0.01084814208 | BS71: 0.01085436947 | BT71: -0.003013589478 | BU71: -0.1194792165 | BV71: -6.845660629 | BW71: 0.1294648396 | BX71: -0.0166894917 | BY71: 0.02477877198 | BZ71: 0.8 | CA71: 1.84475 | CB71: 1.88705 | CC71: 1.82209549 | CD71: 1.818 | CE71: 0.02265450964 | CF71: 0.06495450964 | CG71: 0.4005132268 | CH71: 0.4042190883 | CI71: 0.4605132268 | CJ71: 0.06 | CK71: 0.06 | CL71: 0.4642190883 | CM71: 0.2101790303 | CN71: 2.208684128 | CO71: -0.2854709145 | CP71: -0.2854709145 | CQ71: 2.1910522 | CR71: 0.0462163398 | CS71: 0.1153927928 | CT71: 0.1143348771 | CU71: 48.84436005 | CV71: 3468.926487 | CW71: 30.4184 | CX71: 30.4491604 | CY71: -2.044161142 | CZ71: -0.1658293946 | DA71: -0.3049800932 | DB71: -0.57 | DC71: -0.02367064599 | DD71: -0.042 | DE71: 0.05752856986 | DF71: 0.057 | DG71: 0.401308948 | DH71: 0.1735867679 | DI71: 13.68312114 | DJ71: -0.82210814 | DK71: -0.02107516419 | DL71: -0.004 | DM71: 1.7 | DN71: -0.011337525 | DO71: 0.0152609 | DP71: 0.007589096909 | DQ71: 0.008 | DR71: 0.0449493394 | DS71: -0.09206615922 | DT71: -0.2699876604 | DU71: 0.8 | DV71: 0.1220954904 | DW71: -0.042 | DX71: 0.057 | DY71: -0.004 | EA71: 0.113231808 | EB71: -0.02806421533 | EC71: 0.05668261643 | ED71: 0.988840793 | EH71: 0.1128381427 | EI71: -0.03097811224 | EJ71: 0.0566292831 | EK71: 0.988840793 | EN71: -0.009719923874 | ET71: 0.165 | FC71: -0.0002585017481 | FD71: -0.01266381914 | FE71: 0.02435101515 | FF71: 0.001370097957 | FR71: 0.0003359652184
A72: 0.8133333333 | B72: 2057 | C72: -29 | D72: 18 | E72: 59 | F72: 2145 | G72: 2165 | H72: 0 | I72: -163 | J72: 435 | K72: 36 | L72: 115 | M72: 767 | N72: 802 | O72: 1081 | P72: -41 | Q72: -3 | R72: 574 | S72: 1820 | T72: -39 | U72: 2001 | V72: 1905 | W72: 0 | X72: 2701 | Y72: 2044 | Z72: 0.02550127552 | AA72: 0.8133333333 | AB72: 0.00348 | AC72: 1.4289 | AD72: 1.461116694 | AE72: 0.02550127552 | AF72: 0.008614230078 | AG72: 3.346869092 | AH72: 4.718201914 | AI72: 0.05841383595 | AJ72: 0.08234808862 | AK72: 0.0594197781 | AL72: 0.0814644254 | AM72: -0.01188766158 | AN72: 0.01015698572 | AO72: 48.82666245 | AP72: 48.82666245 | AQ72: 28.92955642 | AR72: 3467.423838 | AS72: 0.0429897168 | AT72: 0.0429897168 | AU72: 0.04342526835 | AV72: 0.1687623224 | AW72: -0.000190578142 | AX72: 7.843807622e-06 | AY72: 0.008622073886 | AZ72: -0.1457142857 | BA72: -0.2014285714 | BB72: 12.45041629 | BC72: 5.74314044 | BD72: 13.11330323 | BE72: -0.09791930482 | BF72: -0.1206141822 | BG72: 0.08729344 | BH72: -6.035584 | BI72: 0.08003652252 | BJ72: -2.101319246 | BK72: 0.2908474358 | BL72: -0.02602232365 | BM72: -0.04217151778 | BN72: 0.1159161712 | BO72: 4.990234375 | BP72: 0.07881360026 | BQ72: -0.04202638493 | BR72: 0.01151202331 | BS72: 0.01151370656 | BT72: -0.0008478647738 | BU72: -0.120256408 | BV72: -6.890190458 | BW72: 0.1288706381 | BX72: -0.01649797753 | BY72: 0.05852159326 | BZ72: 0.8133333333 | CA72: 1.80245 | CB72: 1.8847 | CC72: 1.831820615 | CD72: 1.82 | CE72: -0.02937061477 | CF72: 0.05287938523 | CG72: 0.400862633 | CH72: 0.4027962294 | CI72: 0.460862633 | CJ72: 0.06 | CK72: 0.06 | CL72: 0.4627962294 | CM72: 0.2096854888 | CN72: 2.207097077 | CO72: -0.2861428339 | CP72: -0.2861428339 | CQ72: 2.197875664 | CR72: 0.04620232654 | CS72: 0.1152572546 | CT72: 0.1147039698 | CU72: 48.82666245 | CV72: 3467.423838 | CW72: 30.6161 | CX72: 30.64679257 | CY72: -1.841482402 | CZ72: 0.03537537154 | DA72: -0.1348023608 | DB72: -0.39 | DC72: -0.02499459788 | DD72: -0.041 | DE72: 0.05785505288 | DF72: 0.0574 | DG72: 0.4013213363 | DH72: 0.1736080051 | DI72: 13.67870028 | DJ72: -0.8224604881 | DK72: -0.02363999197 | DL72: -0.003 | DM72: 1.7 | DN72: 0.007097475 | DO72: 0.0072709 | DP72: -0.0003997003813 | DQ72: 0 | DR72: 0.04475475074 | DS72: -0.09146115426 | DT72: 0.2296983349 | DU72: 0.8133333333 | DV72: 0.1318206148 | DW72: -0.041 | DX72: 0.0574 | DY72: -0.003 | EA72: 0.1142854741 | EB72: -0.02817574614 | EC72: 0.05715414025 | ED72: 0.9886380767 | EH72: 0.1139130829 | EI72: -0.02774255206 | EJ72: 0.05711414025 | EK72: 0.9886380767 | EN72: -0.001857209712 | ET72: 0.03 | FC72: -0.001629250874 | FD72: -0.006036205026 | FE72: 0.02717550757 | FF72: 0.001103017854 | FR72: 0.000256172897
A73: 0.8266666667 | B73: 2035 | C73: -25 | D73: 14 | E73: 66 | F73: 2157 | G73: 2175 | H73: 110 | I73: 92 | J73: 442 | K73: 36 | L73: 122 | M73: 769 | N73: 803 | O73: 1068 | P73: -47 | Q73: 23 | R73: 548 | S73: 1822 | T73: -101 | U73: 2064 | V73: 1891 | W73: 11 | X73: 2689 | Y73: 2043 | Z73: 0.02370867821 | AA73: 0.8266666667 | AB73: 0.029 | AC73: 1.2557 | AD73: 1.358408347 | AE73: 0.02370867821 | AF73: 0.01394775934 | AG73: 3.188104198 | AH73: 4.910990404 | AI73: 0.05564286815 | AJ73: 0.08571287968 | AK73: 0.05753132313 | AL73: 0.08358865254 | AM73: -0.01385092346 | AN73: 0.01220640596 | AO73: 48.80107115 | AP73: 48.80107115 | AQ73: 28.9143937 | AR73: 3471.629455 | AS73: 0.0429897168 | AT73: 0.0429897168 | AU73: 0.0433817132 | AV73: 0.168422677 | AW73: -0.0002122783903 | AX73: -1.416841217e-05 | AY73: 0.01393359093 | AZ73: -0.1628571429 | BA73: -0.2157142857 | BB73: 12.45365661 | BC73: 5.744358538 | BD73: 13.10783916 | BE73: -0.1281596279 | BF73: -0.1497156988 | BG73: 4.38169344 | BH73: 3.919616 | BI73: 2.230864981 | BJ73: 0.9091483769 | BK73: 0.1762288806 | BL73: -0.02802866471 | BM73: -0.1344447981 | BN73: 0.1218407519 | BO73: 4.987792969 | BP73: 0.08172750808 | BQ73: 0.01818296754 | BR73: 0.01164395539 | BS73: 0.01164089784 | BT73: 0.001676767583 | BU73: -0.1246371855 | BV73: -7.141190733 | BW73: 0.1385849449 | BX73: -0.01631396052 | BY73: 0.04932550162 | BZ73: 0.8266666667 | CA73: 1.80715 | CB73: 1.88705 | CC73: 1.834167652 | CD73: 1.822 | CE73: -0.02701765245 | CF73: 0.05288234755 | CG73: 0.4007299535 | CH73: 0.4027965427 | CI73: 0.4607299535 | CJ73: 0.06 | CK73: 0.06 | CL73: 0.4627965427 | CM73: 0.2096242296 | CN73: 2.207743559 | CO73: -0.2862264544 | CP73: -0.2862264544 | CQ73: 2.197885017 | CR73: 0.0462005676 | CS73: 0.1152910263 | CT73: 0.1146995138 | CU73: 48.80107115 | CV73: 3471.629455 | CW73: 29.33105 | CX73: 29.3598888 | CY73: -3.148051075 | CZ73: -1.220345569 | DA73: -0.6775739649 | DB73: -1.01 | DC73: -0.03352902545 | DD73: -0.047 | DE73: 0.05674590504 | DF73: 0.0548 | DG73: 0.4013392502 | DH73: 0.1736387146 | DI73: 13.67230757 | DJ73: -0.8229704467 | DK73: -0.02033647159 | DL73: 0.023 | DM73: 1.7 | DN73: -0.070329525 | DO73: 0.0184569 | DP73: 0.01075394072 | DQ73: 0.011 | DR73: 0.04432271524 | DS73: -0.1075990952 | DT73: 0.2028630804 | DU73: 0.8266666667 | DV73: 0.1341676524 | DW73: -0.047 | DX73: 0.0548 | DY73: 0.023 | EA73: 0.1153773239 | EB73: -0.03157810922 | EC73: 0.05554314493 | ED73: 0.9884204088 | EH73: 0.1148939999 | EI73: -0.0403282224 | EJ73: 0.05584981159 | EK73: 0.9884204088 | EN73: -0.01634963361 | ET73: -0.195 | FC73: 0.01068537456 | FD73: -0.002766817146 | FE73: -0.08391224621 | FF73: 0.006584580659 | FR73: 0.0001814671552
A74: 0.84 | B74: 2102 | C74: -20 | D74: 12 | E74: 66 | F74: 2024 | G74: 2048 | H74: -92 | I74: -95 | J74: 439 | K74: 36 | L74: 116 | M74: 769 | N74: -928 | O74: 1080 | P74: -55 | Q74: 5 | R74: 570 | S74: 1821 | T74: -67 | U74: 1943 | V74: 1905 | W74: 0 | X74: 2751 | Y74: 2045 | Z74: 0.02092306224 | AA74: 0.84 | AB74: -0.04872 | AC74: 1.0392 | AD74: 1.198804173 | AE74: 0.02092306224 | AF74: -0.001509949872 | AG74: 3.108138407 | AH74: 4.910990404 | AI74: 0.05424720298 | AJ74: 0.08571287968 | AK74: 0.05588926305 | AL74: 0.08465076611 | AM74: -0.01543487901 | AN74: 0.01332662404 | AO74: 48.82094511 | AP74: 48.82094511 | AQ74: 28.92616892 | AR74: 3473.032509 | AS74: 0.0429897168 | AT74: 0.0429897168 | AU74: 0.04334251356 | AV74: 0.1684076694 | AW74: -9.379746591e-06 | AX74: -1.368954562e-05 | AY74: -0.001523639417 | AZ74: 0.02714285714 | BA74: -0.03428571429 | BB74: 12.45113979 | BC74: 5.743412412 | BD74: 13.1120825 | BE74: 0.101184679 | BF74: 0.07354106595 | BG74: -3.50438656 | BH74: -3.380864 | BI74: -0.6367607894 | BJ74: -1.235857812 | BK74: 0.07987960296 | BL74: -0.02938075153 | BM74: -0.208921198 | BN74: 0.1214013714 | BO74: 4.992675781 | BP74: 0.08091728121 | BQ74: -0.02471715623 | BR74: 0.01511055828 | BS74: 0.0151071929 | BT74: 0.00410277751 | BU74: -0.123451817 | BV74: -7.073274062 | BW74: 0.1219418671 | BX74: -0.01615384482 | BY74: 0.04784924811 | BZ74: 0.84 | CA74: 1.80715 | CB74: -2.1808 | CC74: 1.836671285 | CD74: 1.821 | CE74: -0.02952128545 | CF74: -4.017471285 | CG74: 0.4008715063 | CH74: 16.54007553 | CI74: 0.4608715063 | CJ74: 0.06 | CK74: 0.06 | CL74: 16.60007553 | CM74: 7.646901814 | CN74: 2.170823679 | CO74: -0.007846314947 | CP74: -0.007846314947 | CQ74: 0.06026904981 | CR74: 0.05202455964 | CS74: 0.1297786419 | CT74: 0.003145364092 | CU74: 48.82094511 | CV74: 3473.032509 | CW74: 30.51725 | CX74: 30.5474785 | CY74: -1.940298862 | CZ74: -0.01208962207 | DA74: -0.3448317935 | DB74: -0.67 | DC74: -0.03745620219 | DD74: -0.055 | DE74: 0.05722861551 | DF74: 0.057 | DG74: 0.4013253384 | DH74: 0.1736148659 | DI74: 13.67727209 | DJ74: -0.8225743715 | DK74: -0.02112951946 | DL74: 0.005 | DM74: 1.7 | DN74: 0.078379475 | DO74: 0.0072709 | DP74: -0.0004307631023 | DQ74: 0 | DR74: 0.04448725553 | DS74: -0.1076269568 | DT74: 0.1953177778 | DU74: 0.84 | DV74: 0.1366712854 | DW74: -0.055 | DX74: 0.057 | DY74: 0.005 | EA74: 0.1165612153 | EB74: -0.03653439094 | EC74: 0.05663267013 | ED74: 0.9881879623 | EH74: 0.1160639785 | EI74: -0.03793486931 | EJ74: 0.05669933679 | EK74: 0.9881879623 | EN74: -0.01446960748 | ET74: 0.165 | FC74: 0.007842687281 | FD74: 0.00281897165 | FE74: 0.04054387689 | FF74: 0.001423168476 | FR74: 0.0003077848415
A75: 0.8533333333 | B75: 2130 | C75: -21 | D75: 9 | E75: 70 | F75: 1862 | G75: 1889 | H75: -119 | I75: -118 | J75: 436 | K75: 37 | L75: 111 | M75: 749 | N75: -930 | O75: 1093 | P75: -58 | Q75: -25 | R75: 595 | S75: 1819 | T75: 20 | U75: 1959 | V75: 1908 | W75: -2 | X75: 2731 | Y75: 2043 | Z75: 0.01990811772 | AA75: 0.8533333333 | AB75: -0.0812 | AC75: 1.0825 | AD75: 1.140652087 | AE75: 0.01990811772 | AF75: -0.02123338123 | AG75: 2.987452644 | AH75: 5.020655418 | AI75: 0.05214084084 | AJ75: 0.08762689364 | AK75: 0.05401505195 | AL75: 0.08613882987 | AM75: -0.01729523374 | AN75: 0.01482854419 | AO75: 48.8256881 | AP75: 48.8256881 | AQ75: 28.92897913 | AR75: 3471.913258 | AS75: 0.0441679027 | AT75: 0.0441679027 | AU75: 0.04342505247 | AV75: 0.1687548901 | AW75: 0.000217012946 | AX75: 9.380703543e-06 | AY75: -0.02122400052 | AZ75: 0.2585714286 | BA75: 0.1928571429 | BB75: 12.45053957 | BC75: 5.743186782 | BD75: 13.11309519 | BE75: 0.3767082661 | BF75: 0.3443623313 | BG75: -4.55846656 | BH75: -4.278784 | BI75: -2.597613675 | BJ75: -2.757320906 | BK75: 0.02129429748 | BL75: -0.03106188896 | BM75: -0.0761208392 | BN75: 0.1173465882 | BO75: 4.987792969 | BP75: 0.07862285046 | BQ75: -0.05514641812 | BR75: 0.01920180805 | BS75: 0.01920440791 | BT75: 0.003240776867 | BU75: -0.1199629617 | BV75: -6.873377209 | BW75: 0.09872958047 | BX75: -0.01603087065 | BY75: 0.05034412043 | BZ75: 0.8533333333 | CA75: 1.76015 | CB75: -2.1855 | CC75: 1.819704227 | CD75: 1.819 | CE75: -0.05955422717 | CF75: -4.005204227 | CG75: 0.403546706 | CH75: 16.4416609 | CI75: 0.463546706 | CJ75: 0.06 | CK75: 0.06 | CL75: 16.5016609 | CM75: 7.645690554 | CN75: 2.158295681 | CO75: -0.007847557991 | CP75: -0.007847557991 | CQ75: 0.06062849427 | CR75: 0.05206837539 | CS75: 0.1290268874 | CT75: 0.003166856177 | CU75: 48.8256881 | CV75: 3471.913258 | CW75: =$CW$5*(O75-$CW$6)+32 -> 31.8023 | CX75: =CW75/(1-DR75*DR75/2) -> 31.83384897 | CY75: -0.6358980066 | CZ75: 1.240618784 | DA75: 0.4478934953 | DB75: =T75/100 -> 0.2 | DC75: -0.03073516488 | DD75: -0.058 | DE75: =DC75/AP75+(DA75+32)/($DE$5*AP75*AP75) -> 0.05880715651 | DF75: 0.0595 | DG75: =$DG$8*($DG$6+$DG$7*CU75) -> 0.4013220183 | DH75: =$DH$8*($DH$6+$DH$7*CU75) -> 0.1736091743 | DI75: =$DI$8*($DI$6+$DI$7*CU75) -> 13.67845689 | DJ75: =$DJ$8*($DJ$6+$DJ$7/CU75) -> -0.8224798942 | DK75: -0.02179906751 | DL75: =Q75/1000 -> -0.025 | DM75: =IF(CU75<25,$DK$6*(CU75-10)/15,$DK$6) -> 1.7 | DN75: =$DN$4*(U75-$DN$5) -> 0.058715475 | DO75: =$DO$4*(V75-$DO$5) -> 0.0048739 | DP75: -0.002819279813 | DQ75: =W75/1000 -> -0.002 | DR75: 0.04452080623 | DS75: -0.09095203969 | DT75: -0.5386057966 | DU75: 0.8533333333 | DV75: 0.1197042272 | DW75: -0.058 | DX75: 0.0595 | DY75: -0.025 | EA75: 0.1164092656 | EB75: -0.03162425238 | EC75: 0.05860241393 | ED75: 0.9881502437 | EH75: 0.1160581513 | EI75: -0.02169703378 | EJ75: 0.05826908059 | EK75: 0.9881502437 | EN75: -0.01050862133 | ET75: 0.1875 | FC75: -0.008578656359 | FD75: 0.006955307921 | FE75: 0.1140219384 | FF75: 0.01146326337 | FR75: =(DC75-DD75)^2 -> 0.0007433712343
A76: 0.8666666667 | B76: 2017 | C76: -20 | D76: 4 | E76: 71 | F76: 1950 | G76: 1993 | H76: 60 | I76: 70 | J76: 432 | K76: 37 | L76: 112 | M76: 749 | N76: -930 | O76: 1076 | P76: -67 | Q76: 13 | R76: 559 | S76: 1816 | T76: -27 | U76: 2030 | V76: 1892 | W76: 10 | X76: 2733 | Y76: 2045 | Z76: =$Z$6*(Z75+AE76-AE75) -> 0.01902278199 | AA76: =A76 -> 0.8666666667 | AB76: =$AB$5*(B76-$AB$6) -> 0.04988 | AC76: =$AC$4*(AC75+$AC$5*(C76-C75)) -> 1.0392 | AD76: =$AD$6*(AC76-AD75)+AD75 -> 1.089926043 | AE76: =AD76*3.14159/180 -> 0.01902278199 | AF76: -0.0032648081 | AG76: =AG$3+AG$4*D76/1000+AG$5*(D76/1000)*(D76/1000)+AG$6*(D76/1000)*(D76/1000)*(D76/1000) -> 2.784320782 | AH76: 5.048018401 | AI76: =AG76*3.14159/180 -> 0.04859552404 | AJ76: 0.08810446739 | AK76: 0.05130528799 | AL76: 0.08712164863 | AM76: =IF(AP76<$AM$5,AK76-($AM$3/$AM$5^2+AM$4),AK76-($AM$3/AP76^2+AM$4)) -> -0.01998751315 | AN76: =IF(AP76<$AM$5,AL76-($AM$3/$AM$5^2+$AM$4),AL76-($AM$3/AP76^2+$AM$4)) -> 0.01582884749 | AO76: =$AO$6*($AO$5*X76-AO75)+AO75 -> 48.83167498 | AP76: =IF(AO76<$AP$6,$AP$6,AO76) -> 48.83167498 | AQ76: =AO76*3600/6076 -> 28.93252632 | AR76: =$AR$5*($AR$4*J76-AR75)+AR75 -> 3467.729932 | AS76: =$AS$4*(K76/1000)+$AS$5*(K76/1000)*(K76/1000) -> 0.0441679027 | AT76: =AS76 -> 0.0441679027 | AU76: 0.04349933749 | AV76: =ATAN(AO76*AO76*TAN(AU76)/(19*32)) -> 0.1690791356 | AW76: 0.0002026534381 | AX76: =$AX$6*(AW76-AX75)+AX75 -> 2.8707977e-05 | AY76: -0.003236100123 | AZ76: =(F76-$AZ$6)/$AZ$5 -> 0.1328571429 | BA76: =(G76-$BA$6)/$BA$5 -> 0.04428571429 | BB76: =$BB$8*($BB$5+$BB$6*AP76+$BB$7/AP76) -> 12.44978217 | BC76: =$BC$8*($BC$5+$BC$6*AP76+$BC$7/AP76) -> 5.742902072 | BD76: =$BD$8*($BD$5+$BD$6*AP76) -> 13.11437346 | BE76: =-($BB76*AY76+$BC76*AE76+$BD76*AM76) -> 0.1931664796 | BF76: =-($BB76*AY76+$BC76*AE76-$BD76*AN76) -> 0.1386281849 | BG76: =$BG$6*32*(H76-$BG$5) -> 2.42969344 | BH76: =$BH$6*32*(I76-$BH$5) -> 3.060736 | BI76: =$BI$6*(BG76-BI75)+BI75 -> -0.08396011734 | BJ76: =$BJ$6*(BH76-BJ75)+BJ75 -> 0.1517075471 | BK76: =(BI76-BJ76)/$BK$7 -> -0.03142235526 | BL76: =(AK76-AL76)/2-$BL$6 -> -0.03290818032 | BM76: -0.06640017939 | BN76: =$BO$4*BX76+$BO$5*BT76+$BO$6*BU76 -> 0.115996083 | BO76: =10*Y76/4096 -> 4.992675781 | BP76: =$BP$6*($BP$4*(L76-$BP$5)-BP75)+BP75 -> 0.07785349855 | BQ76: =$BQ$6*BJ76 -> 0.003034150942 | BR76: =(AY76-BN76)^2 -> 0.0142163135 | BS76: =(BN76-AF76)^2 -> 0.01422316016 | BT76: =$BT$6*(-$BT$5*((AE76-AE75)/$D$1)/32-BT75)+BT75 -> 0.002657891237 | BU76: =-AP76*BP76/32 -> -0.118803648 | BV76: =BU76*(180/3.14159) -> -6.806953372 | BW76: =AF76-BU76 -> 0.1155388399 | BX76: -0.01592142908 | BY76: =$BY$5+(BK76+$BY$6*AE76-$BY$7*AF76)/$BY$8 -> 0.04112680978 | BZ76: =AA76 -> 0.8666666667 | CA76: =$CA$5*M76+$CA$4 -> 1.76015 | CB76: -2.1855 | CC76: =CS75*CE75+CT75*CF75+CC75+$CC$5*DC75 -> 1.798926423 | CD76: =S76/1000 -> 1.816 | CE76: -0.03877642266 | CF76: -3.984426423 | CG76: =CE76*CE76+$CG$6 -> 0.401503611 | CH76: 16.27565392 | CI76: =CG76+$CI$6 -> 0.461503611 | CJ76: =$CI$6 -> 0.06 | CK76: 0.06 | CL76: =CH76+$CI$6 -> 16.33565392 | CM76: 7.53536327 | CN76: 2.167865481 | CO76: -0.007962456201 | CP76: -0.007962456201 | CQ76: 0.06124503815 | CR76: =$CI$6*(1-$CI$6*SUM(CN76:CQ76)) -> 0.05203253182 | CS76: 0.1295941815 | CT76: 0.003196954917 | CU76: =IF(AO76<$CU$6,$CU$6,AO76) -> 48.83167498 | CV76: =$CV$5*($CV$4*J76-CV75)+CV75 -> 3467.729932 | CW76: 30.12185 | CX76: 30.15141984 | CY76: =(CX76*CX76-(CU76*CU76*AU76/19)^2)^0.5-32 -> -2.346925903 | CZ76: -0.4515927478 | DA76: -0.001849626227 | DB76: -0.27 | DC76: -0.03014512326 | DD76: =P76/1000 -> -0.067 | DE76: 0.05798112566 | DF76: =R76/10000 -> 0.0559 | DG76: 0.4013178275 | DH76: 0.17360199 | DI76: 13.67995241 | DJ76: -0.8223606659 | DK76: -0.01564310113 | DL76: 0.013 | DM76: 1.7 | DN76: -0.028543525 | DO76: 0.0176579 | DP76: 0.009934826026 | DQ76: 0.01 | DR76: =$DR$4*(DN76-DR75)+DR75+DP76*$D$1 -> 0.04428794892 | DS76: -0.09683994299 | DT76: -1.048470567 | DU76: 0.8666666667 | DV76: =CC76-DM76 -> 0.09892642266 | DW76: =DD76 -> -0.067 | DX76: 0.0559 | DY76: =DL76 -> 0.013 | EA76: 0.1147092025 | EB76: -0.02786809187 | EC76: 0.05665837095 | ED76: 0.9883324663 | EH76: 0.1143217665 | EI76: -0.02998305369 | EJ76: =$EH$4*$EA76+$EI$4*$EB76+$EJ$4*$EC76+$EK$4*$ED76+$EL$4*$DY76 -> 0.05683170428 | EK76: 0.9883324663 | EN76: -0.03200812513 | ET76: =(DF76-DF75)/$D$1 -> -0.27 | FC76: =$FC$7*(DL76-FC75)+FC75 -> 0.00221067182 | FD76: 0.002815978452 | FE76: -0.07798903078 | FF76: =(FD76-FE76)^2 -> 0.006529449516 | FR76: 0.001358281939
A77: 0.88 | B77: 2062 | C77: -19 | D77: 7 | E77: 73 | F77: 1946 | G77: 1982 | H77: -105 | I77: 95 | J77: 437 | K77: 36 | L77: 107 | M77: 749 | N77: 821 | O77: 1073 | P77: -69 | Q77: 19 | R77: 552 | S77: 1818 | T77: -68 | U77: 1981 | V77: 1889 | W77: 12 | X77: 2745 | Y77: 2044 | Z77: 0.01820225067 | AA77: 0.88 | AB77: -0.00232 | AC77: 0.9959 | AD77: 1.042913022 | AE77: 0.01820225067 | AF77: =$AF$5*(AB77-(AF76+$AF$6*AE77))+AF76+$AF$6*AE77 -> -0.002846583568 | AG77: 2.906499992 | AH77: 5.102682915 | AI77: 0.05072795173 | AJ77: 0.08905854233 | AK77: =$AK$6*(AI77-AK76)+AK76 -> 0.05101661986 | AL77: =$AL$6*(AJ77-AL76)+AL76 -> 0.08809009548 | AM77: -0.02023430151 | AN77: 0.01683917411 | AO77: 48.84602398 | AP77: 48.84602398 | AQ77: 28.94102803 | AR77: 3467.934939 | AS77: 0.0429897168 | AT77: 0.0429897168 | AU77: =$AU$6*(AT77-AU76)+AU76 -> 0.04344837542 | AV77: 0.16898194 | AW77: =0.01*(AV77-AV76)/0.016 -> -6.074727793e-05 | AX77: 1.976245151e-05 | AY77: =AF77+AX77 -> -0.002826821117 | AZ77: 0.1385714286 | BA77: 0.06 | BB77: 12.44796794 | BC77: 5.742220111 | BD77: 13.11743716 | BE77: 0.1960890272 | BF77: 0.1515536569 | BG77: -4.01190656 | BH77: 4.036736 | BI77: -2.047933339 | BJ77: 2.094221774 | BK77: -0.5522873483 | BL77: -0.03353673781 | BM77: =(AE77-AE76)/$D$1 -> -0.06153984949 | BN77: 0.1121146076 | BO77: 4.990234375 | BP77: 0.07557950527 | BQ77: 0.04188443547 | BR77: 0.01321153203 | BS77: 0.01321607547 | BT77: 0.002290505767 | BU77: -0.1153674477 | BV77: -6.61007343 | BW77: 0.1125208641 | BX77: =BX76+$BX$4*(Z76+$BX$5) -> -0.01582379199 | BY77: 0.007827203391 | BZ77: 0.88 | CA77: 1.76015 | CB77: =$CB$5*N77+$CB$4 -> 1.92935 | CC77: 1.780761257 | CD77: 1.818 | CE77: =CA77-CC77 -> -0.02061125729 | CF77: =CB77-CC77 -> 0.1485887427 | CG77: 0.4004248239 | CH77: 0.4220786145 | CI77: 0.4604248239 | CJ77: 0.06 | CK77: 0.06 | CL77: 0.4820786145 | CM77: =CI77*CL77-CJ77*CK77 -> 0.2183609612 | CN77: =CL77/CM77 -> 2.20771429 | CO77: =-CK77/CM77 -> -0.2747743904 | CP77: =-CJ77/CM77 -> -0.2747743904 | CQ77: =CI77/CM77 -> 2.108549172 | CR77: 0.04643982715 | CS77: =CR77/CG77 -> 0.115976394 | CT77: =CR77/CH77 -> 0.1100264869 | CU77: 48.84602398 | CV77: 3467.934939 | CW77: 29.8253 | CX77: 29.85471239 | CY77: -2.64807732 | CZ77: =$CZ$6*(CY77-CY76+CZ76) -> -0.7226343984 | DA77: =$DA$6*(CZ77-DA76)+DA76 -> -0.3622420123 | DB77: -0.68 | DC77: =$DC$6*DC76+$D$1*DA77 -> -0.0343721143 | DD77: -0.069 | DE77: 0.05720074568 | DF77: 0.0552 | DG77: 0.4013077832 | DH77: 0.1735847712 | DI77: 13.68353679 | DJ77: -0.8220750254 | DK77: =-($DG$5*(CC77-DM77)+$DH$5*DC77+$DI$5*DE77+$DJ$5) -> -0.009259107936 | DL77: 0.019 | DM77: 1.7 | DN77: 0.031677475 | DO77: 0.0200549 | DP77: =$DP$4*(DP76+DO77-DO76) -> 0.01229483055 | DQ77: 0.012 | DR77: 0.04438882762 | DS77: =DS76+(CZ77+$DS$5)*$D$1 -> -0.106341735 | DT77: =$DT$7*((DV77-DV76)/$D$1-DT76)+DT76 -> -1.205428985 | DU77: 0.88 | DV77: 0.08076125729 | DW77: -0.069 | DX77: 0.0552 | DY77: 0.019 | EA77: 0.111756052 | EB77: -0.03552317707 | EC77: 0.05572093897 | ED77: 0.988690746 | EH77: =$EH$2*$EA77+$EI$2*$EB77+$EJ$2*$EC77+$EK$2*$ED77+$EL$2*$DY77 -> 0.1112305597 | EI77: =$EH$3*$EA77+$EI$3*$EB77+$EJ$3*$EC77+$EK$3*$ED77+$EL$3*$DY77 -> -0.04280994782 | EJ77: 0.05597427231 | EK77: =$EH$5*$EA77+$EI$5*$EB77+$EJ$5*$EC77+$EK$5*$ED77+$EL$5*$DY77 -> 0.988690746 | EN77: =$EN$7*((DV77-DV76)/$D$1-EN76)+EN76+$D$1*CZ77 -> -0.05494704323 | ET77: -0.0525 | FC77: 0.01060533591 | FD77: 0.0007179231018 | FE77: -0.06524451539 | FF77: 0.004351043292 | FR77: 0.001199090468
A78: 0.8933333333 | B78: 2104 | C78: -21 | D78: 8 | E78: 73 | F78: 1865 | G78: 1895 | H78: -26 | I78: -20 | J78: 435 | K78: 36 | L78: 116 | M78: 784 | N78: 821 | O78: 1075 | P78: -61 | Q78: 19 | R78: 558 | S78: 1823 | T78: -77 | U78: 1998 | V78: 1903 | W78: 1 | X78: 2711 | Y78: 2045 | Z78: 0.01854771193 | AA78: 0.8933333333 | AB78: -0.05104 | AC78: 1.0825 | AD78: 1.062706511 | AE78: 0.01854771193 | AF78: -0.01470946056 | AG78: 2.9470261 | AH78: 5.102682915 | AI78: 0.05143526514 | AJ78: 0.08905854233 | AK78: 0.0512259425 | AL78: 0.0885743189 | AM78: -0.02005590183 | AN78: 0.01729247457 | AO78: 48.83542782 | AP78: 48.83542782 | AQ78: 28.93474986 | AR78: 3466.531445 | AS78: 0.0429897168 | AT78: 0.0429897168 | AU78: 0.04340250956 | AV78: 0.1687348589 | AW78: -0.0001544256901 | AX78: 2.343637348e-06 | AY78: -0.01470711692 | AZ78: 0.2542857143 | BA78: 0.1842857143 | BB78: 12.44930753 | BC78: 5.742723655 | BD78: 13.11517474 | BE78: 0.3396156945 | BF78: 0.3033728631 | BG78: -0.92774656 | BH78: -0.452864 | BI78: -1.487839949 | BJ78: 0.8206788868 | BK78: -0.3078025115 | BL78: -0.0336741882 | BM78: 0.02590959484 | BN78: 0.1156529566 | BO78: 4.992675781 | BP78: 0.07784327981 | BQ78: 0.01641357774 | BR78: 0.01699374877 | BS78: 0.01699435981 | BT78: 0.0007404154639 | BU78: -0.1187971835 | BV78: -6.806582982 | BW78: 0.104087723 | BX78: -0.01573709531 | BY78: 0.02719803228 | BZ78: 0.8933333333 | CA78: 1.8424 | CB78: 1.92935 | CC78: 1.79426124 | CD78: 1.823 | CE78: 0.04813875951 | CF78: 0.1350887595 | CG78: 0.4023173402 | CH78: 0.4182489729 | CI78: 0.4623173402 | CJ78: 0.06 | CK78: 0.06 | CL78: 0.4782489729 | CM78: 0.2175027931 | CN78: 2.198817616 | CO78: -0.2758585264 | CP78: -0.2758585264 | CQ78: 2.12556967 | CR78: 0.04641838716 | CS78: 0.1153775454 | CT78: 0.1109826686 | CU78: 48.83542782 | CV78: 3466.531445 | CW78: 30.023 | CX78: 30.05240302 | CY78: -2.445524448 | CZ78: -0.4992782653 | DA78: -0.4307601388 | DB78: -0.77 | DC78: -0.03942814053 | DD78: -0.061 | DE78: 0.05699673316 | DF78: 0.0558 | DG78: 0.4013152005 | DH78: 0.1735974866 | DI78: 13.68088987 | DJ78: -0.8222859432 | DK78: -0.01089692931 | DL78: 0.019 | DM78: 1.7 | DN78: 0.010784475 | DO78: 0.0088689 | DP78: 0.001105504057 | DQ78: 0.001 | DR78: 0.04423554591 | DS78: -0.1128654452 | DT78: -0.09646512256 | DU78: 0.8933333333 | DV78: 0.09426124049 | DW78: -0.061 | DX78: 0.0558 | DY78: 0.019 | EA78: 0.1099498641 | EB78: -0.04419499793 | EC78: 0.05585478392 | ED78: 0.9888721878 | EH78: 0.1093226999 | EI78: -0.0494397684 | EJ78: 0.05610811725 | EK78: 0.9888721878 | EN78: -0.05092962893 | ET78: 0.045 | FC78: 0.01480266796 | FD78: 0.004071952941 | FE78: =$FC$7*(ET78-FE77)+FE77 -> -0.01012225769 | FF78: 0.0002014756156 | FR78: 0.0004653451211
A79: 0.9066666667 | B79: 2006 | C79: -12 | D79: 9 | E79: 73 | F79: 1986 | G79: 2010 | H79: 136 | I79: 32 | J79: 441 | K79: 36 | L79: 111 | M79: 784 | N79: 820 | O79: 1078 | P79: -54 | Q79: -3 | R79: 566 | S79: 1827 | T79: -65 | U79: 2051 | V79: 1891 | W79: 11 | X79: 2720 | Y79: 2044 | Z79: 0.01531967139 | AA79: 0.9066666667 | AB79: 0.06264 | AC79: 0.6928 | AD79: 0.8777532554 | AE79: 0.01531967139 | AF79: 0.004781101296 | AG79: 2.987452644 | AH79: 5.102682915 | AI79: 0.05214084084 | AJ79: 0.08905854233 | AK79: 0.05168339167 | AL79: 0.08881643062 | AM79: -0.01960931683 | AN79: 0.01752372212 | AO79: 48.83170671 | AP79: 48.83170671 | AQ79: 28.93254512 | AR79: 3470.032301 | AS79: 0.0429897168 | AT79: 0.0429897168 | AU79: 0.04336123029 | AV79: 0.168552 | AW79: -0.0001142867797 | AX79: -9.319404355e-06 | AY79: 0.004771781892 | AZ79: 0.08142857143 | BA79: 0.02 | BB79: 12.44977815 | BC79: 5.742900563 | BD79: 13.11438024 | BE79: 0.1097770617 | BF79: 0.08242577964 | BG79: 5.39673344 | BH79: 1.577216 | BI79: 1.954446745 | BJ79: 1.198947443 | BK79: 0.1007332403 | BL79: -0.03356651947 | BM79: -0.2421030407 | BN79: 0.1154412597 | BO79: 4.990234375 | BP79: 0.07708584976 | BQ79: 0.02397894887 | BR79: 0.01224773332 | BS79: 0.01224567066 | BT79: 0.004153067743 | BU79: -0.1176323002 | BV79: -6.739840029 | BW79: 0.1224134015 | BX79: -0.01564579249 | BY79: 0.0465080372 | BZ79: 0.9066666667 | CA79: 1.8424 | CB79: 1.927 | CC79: 1.814282175 | CD79: 1.827 | CE79: 0.02811782511 | CF79: 0.1127178251 | CG79: 0.4007906121 | CH79: 0.4127053081 | CI79: 0.4607906121 | CJ79: 0.06 | CK79: 0.06 | CL79: 0.4727053081 | CM79: 0.2142181683 | CN79: 2.206653674 | CO79: -0.280088288 | CP79: -0.280088288 | CQ79: 2.151034228 | CR79: 0.04632895923 | CS79: 0.1155939232 | CT79: 0.1122567564 | CU79: 48.83170671 | CV79: 3470.032301 | CW79: 30.31955 | CX79: 30.34877393 | CY79: -2.143114137 | CZ79: -0.1889932358 | DA79: -0.3098766873 | DB79: -0.65 | DC79: -0.04277126688 | DD79: -0.054 | DE79: 0.05715839392 | DF79: 0.0566 | DG79: 0.4013178053 | DH79: 0.173601952 | DI79: 13.67996034 | DJ79: -0.8223600341 | DK79: -0.01503501623 | DL79: -0.003 | DM79: 1.7 | DN79: -0.054352525 | DO79: 0.0184569 | DP79: 0.01066142354 | DQ79: 0.011 | DR79: 0.04388475787 | DS79: -0.1152520217 | DT79: 0.7025524787 | DU79: 0.9066666667 | DV79: 0.1142821749 | DW79: -0.054 | DX79: 0.0566 | DY79: -0.003 | EA79: 0.1097082561 | EB79: -0.04807536911 | EC79: 0.05644263199 | ED79: 0.9888193515 | EH79: 0.1090558842 | EI79: -0.04978662476 | EJ79: 0.05640263199 | EK79: 0.9888193515 | EN79: -0.03792454165 | ET79: 0.06 | FC79: 0.005901333978 | FD79: 0.01003974223 | FE79: 0.02493887115 | FF79: 0.0002219840426 | FR79: 0.0001260844475
A80: 0.92 | B80: 2100 | C80: -8 | D80: 11 | E80: 67 | F80: 1894 | G80: 1922 | H80: -196 | I80: -39 | J80: 439 | K80: 36 | L80: 104 | M80: 785 | N80: 797 | O80: 1085 | P80: -48 | Q80: -19 | R80: 581 | S80: 1829 | T80: -22 | U80: 1977 | V80: 1899 | W80: 4 | X80: 2707 | Y80: 2044 | Z80: 0.01219419726 | AA80: 0.92 | AB80: -0.0464 | AC80: 0.5196 | AD80: 0.6986766277 | AE80: 0.01219419726 | AF80: -0.007892232055 | AG80: 3.068008447 | AH80: 4.938439325 | AI80: 0.05354680364 | AJ80: 0.08619195333 | AK80: 0.05261509766 | AL80: 0.08750419197 | AM80: -0.01871526567 | AN80: 0.01617382865 | AO80: 48.81881604 | AP80: 48.81881604 | AQ80: 28.92490746 | AR80: 3471.595071 | AS80: 0.0429897168 | AT80: 0.0429897168 | AU80: 0.04332407894 | AV80: 0.1683228931 | AW80: -0.000143191823 | AX80: -2.270664622e-05 | AY80: -0.007914938702 | AZ80: 0.2128571429 | BA80: 0.1457142857 | BB80: 12.45140928 | BC80: 5.743513715 | BD80: 13.11162792 | BE80: 0.2739022018 | BF80: 0.2405798252 | BG80: -7.56454656 | BH80: -1.194624 | BI80: -2.805049907 | BJ80: 0.002161721694 | BK80: -0.3742948839 | BL80: -0.03244454716 | BM80: -0.2344105595 | BN80: 0.110701937 | BO80: 4.990234375 | BP80: 0.07406209048 | BQ80: 4.323443389e-05 | BR80: 0.0140699632 | BS80: 0.01406457693 | BT80: 0.005739198864 | BU80: -0.1129882366 | BV80: -6.473754559 | BW80: 0.1050960045 | BX80: -0.0155975302 | BY80: 0.02005568887 | BZ80: 0.92 | CA80: 1.84475 | CB80: 1.87295 | CC80: 1.829615478 | CD80: 1.829 | CE80: 0.01513452152 | CF80: 0.04333452152 | CG80: 0.4002290537 | CH80: 0.4018778808 | CI80: 0.4602290537 | CJ80: 0.06 | CK80: 0.06 | CL80: 0.4618778808 | CM80: 0.20896962 | CN80: 2.210263294 | CO80: -0.2871230756 | CP80: -0.2871230756 | CQ80: 2.202373023 | CR80: 0.0461817954 | CS80: 0.1153884131 | CT80: 0.1149149968 | CU80: 48.81881604 | CV80: 3471.595071 | CW80: 31.0115 | CX80: 31.04141856 | CY80: -1.437978631 | CZ80: 0.4954965796 | DA80: 0.09280994616 | DB80: -0.22 | DC80: -0.04067837559 | DD80: -0.048 | DE80: 0.05796951692 | DF80: 0.0581 | DG80: 0.4013268288 | DH80: 0.1736174208 | DI80: 13.67674025 | DJ80: -0.822616787 | DK80: -0.02045509476 | DL80: -0.019 | DM80: 1.7 | DN80: 0.036593475 | DO80: 0.0120649 | DP80: 0.004256615274 | DQ80: 0.004 | DR80: 0.04390505633 | DS80: -0.1085120673 | DT80: 0.926275124 | DU80: 0.92 | DV80: 0.1296154785 | DW80: -0.048 | DX80: 0.0581 | DY80: -0.019 | EA80: 0.110645489 | EB80: -0.04487418538 | EC80: 0.05755718112 | ED80: 0.9886001689 | EH80: 0.1100817745 | EI80: -0.04011087067 | EJ80: 0.05730384778 | EK80: 0.9886001689 | EN80: -0.01943869748 | ET80: 0.1125 | FC80: -0.006549333011 | FD80: 0.01142327376 | FE80: 0.06871943558 | FF80: 0.003282850159 | FR80: 5.360618393e-05
A81: 0.9333333333 | B81: 2112 | C81: -5 | D81: 14 | E81: 67 | F81: 1803 | G81: 1824 | H81: -50 | I81: -124 | J81: 435 | K81: 37 | L81: 102 | M81: 801 | N81: 797 | O81: 1085 | P81: -36 | Q81: -15 | R81: 584 | S81: 1833 | T81: 0 | U81: 1945 | V81: 1913 | W81: -6 | X81: 2693 | Y81: 2044 | Z81: 0.009497869805 | AA81: 0.9333333333 | AB81: -0.06032 | AC81: 0.3897 | AD81: 0.5441883139 | AE81: 0.009497869805 | AF81: -0.02090419534 | AG81: 3.188104198 | AH81: 4.938439325 | AI81: 0.05564286815 | AJ81: 0.08619195333 | AK81: 0.05412898291 | AL81: 0.08684807265 | AM81: -0.01726691384 | AN81: 0.01545217591 | AO81: 48.7964058 | AP81: 48.7964058 | AQ81: 28.9116295 | AR81: 3469.825564 | AS81: 0.0441679027 | AT81: 0.0441679027 | AU81: 0.04340846131 | AV81: 0.1684930822 | AW81: 0.0001063681835 | AX81: -9.799163248e-06 | AY81: -0.02091399451 | AZ81: 0.3428571429 | BA81: 0.2857142857 | BB81: 12.45424784 | BC81: 5.744580803 | BD81: 13.10684305 | BE81: 0.4322215201 | BF81: 0.4084360348 | BG81: -1.86470656 | BH81: -4.513024 | BI81: -2.334878234 | BJ81: -2.255431139 | BK81: -0.01059294594 | BL81: -0.03135954487 | BM81: -0.2022245591 | BN81: 0.1068184547 | BO81: 4.990234375 | BP81: 0.07179448392 | BQ81: -0.04510862278 | BR81: 0.01631557858 | BS81: 0.01631307533 | BT81: 0.006029358168 | BU81: -0.1094785241 | BV81: -6.272662677 | BW81: 0.08857432876 | BX81: -0.01559094091 | BY81: 0.04701420252 | BZ81: 0.9333333333 | CA81: 1.88235 | CB81: 1.87295 | CC81: 1.835799235 | CD81: 1.833 | CE81: 0.04655076504 | CF81: 0.03715076504 | CG81: 0.4021669737 | CH81: 0.4013801793 | CI81: 0.4621669737 | CJ81: 0.06 | CK81: 0.06 | CL81: 0.4613801793 | CM81: 0.2096346812 | CN81: 2.200877148 | CO81: -0.2862121842 | CP81: -0.2862121842 | CQ81: 2.204630317 | CR81: 0.04620090085 | CS81: 0.1148798978 | CT81: 0.115105088 | CU81: 48.7964058 | CV81: 3469.825564 | CW81: 31.0115 | CX81: 31.04151135 | CY81: -1.438878302 | CZ81: 0.4748130316 | DA81: 0.2838114889 | DB81: 0 | DC81: -0.0360806549 | DD81: -0.036 | DE81: 0.05846766907 | DF81: 0.0584 | DG81: 0.4013425159 | DH81: 0.173644313 | DI81: 13.67114217 | DJ81: -0.8230634711 | DK81: -0.02368542009 | DL81: -0.015 | DM81: 1.7 | DN81: 0.075921475 | DO81: 0.0008789 | DP81: -0.006908596572 | DQ81: -0.006 | DR81: 0.0439730238 | DS81: -0.1020478935 | DT81: 0.6950284302 | DU81: 0.9333333333 | DV81: 0.135799235 | DW81: -0.036 | DX81: 0.0584 | DY81: -0.015 | EA81: 0.112043947 | EB81: -0.03620109402 | EC81: 0.0580502442 | ED81: 0.9883255515 | EH81: 0.1116121213 | EI81: -0.02899633315 | EJ81: 0.0578502442 | EK81: 0.9883255515 | EN81: -0.008275652721 | ET81: 0.0225 | FC81: -0.01077466651 | FD81: 0.005531653184 | FE81: 0.04560971779 | FF81: 0.001606251262 | FR81: 6.505212512e-09
A82: 0.9466666667 | B82: 1989 | C82: -8 | D82: 17 | E82: 63 | F82: 1992 | G82: 2008 | H82: 58 | I82: 82 | J82: 434 | K82: 36 | L82: 114 | M82: 802 | N82: 796 | O82: 1074 | P82: -30 | Q82: -5 | R82: 563 | S82: 1837 | T82: -48 | U82: 2031 | V82: 1892 | W82: 10 | X82: 2752 | Y82: 2045 | Z82: 0.009283296469 | AA82: 0.9466666667 | AB82: 0.08236 | AC82: 0.5196 | AD82: 0.5318941569 | AE82: 0.009283296469 | AF82: 0.005004686457 | AG82: 3.307322828 | AH82: 4.828508026 | AI82: 0.05772362401 | AJ82: 0.08427329183 | AK82: 0.05592630346 | AL82: 0.08556068224 | AM82: -0.01540883177 | AN82: 0.01422554701 | AO82: 48.81718316 | AP82: 48.81718316 | AQ82: 28.92393999 | AR82: 3467.439007 | AS82: 0.0429897168 | AT82: 0.0429897168 | AU82: 0.04336658686 | AV82: 0.1684740834 | AW82: -1.187423392e-05 | AX82: -1.000667032e-05 | AY82: 0.004994679787 | AZ82: 0.07285714286 | BA82: 0.02285714286 | BB82: 12.45161598 | BC82: 5.743591418 | BD82: 13.11127928 | BE82: 0.08651820011 | BF82: 0.07100382325 | BG82: 2.35161344 | BH82: 3.529216 | BI82: 0.008367603167 | BJ82: 0.6368924304 | BK82: -0.0838033103 | BL82: -0.02981718939 | BM82: -0.01609300019 | BN82: 0.1119056114 | BO82: 4.992675781 | BP82: 0.0751950422 | BQ82: 0.01273784861 | BR82: 0.01142994731 | BS82: 0.01142780776 | BT82: 0.003266132212 | BU82: -0.1147128171 | BV82: -6.57256583 | BW82: 0.1197175036 | BX82: -0.01562030264 | BY82: 0.03402403608 | BZ82: 0.9466666667 | CA82: 1.8847 | CB82: 1.8706 | CC82: 1.844942149 | CD82: 1.837 | CE82: 0.03975785123 | CF82: 0.02565785123 | CG82: 0.4015806867 | CH82: 0.4006583253 | CI82: 0.4615806867 | CJ82: 0.06 | CK82: 0.06 | CL82: 0.4606583253 | CM82: 0.2090309862 | CN82: 2.203780089 | CO82: -0.2870387836 | CP82: -0.2870387836 | CQ82: 2.208192648 | CR82: 0.04618357739 | CS82: 0.1150044783 | CT82: 0.1152692318 | CU82: 48.81718316 | CV82: 3467.439007 | CW82: 29.92415 | CX82: 29.95279677 | CY82: -2.545229645 | CZ82: -0.606276779 | DA82: -0.1612326451 | DB82: -0.48 | DC82: -0.0375088104 | DD82: -0.03 | DE82: 0.05757284375 | DF82: 0.0563 | DG82: 0.4013279718 | DH82: 0.1736193802 | DI82: 13.67633235 | DJ82: -0.8226493198 | DK82: -0.02364499951 | DL82: -0.005 | DM82: 1.7 | DN82: -0.029772525 | DO82: 0.0176579 | DP82: 0.009840792218 | DQ82: 0.01 | DR82: 0.04373550662 | DS82: -0.1099982506 | DT82: 0.690373483 | DU82: 0.9466666667 | DV82: 0.1449421488 | DW82: -0.03 | DX82: 0.0563 | DY82: -0.005 | EA82: 0.1140792589 | EB82: -0.03039448496 | EC82: 0.05679909471 | ED82: 0.9879683506 | EH82: 0.1136642971 | EI82: -0.03189380924 | EJ82: 0.05673242804 | EK82: 0.9879683506 | EN82: -0.009419401222 | ET82: -0.1575 | FC82: -0.007887333253 | FD82: -0.002759425984 | FE82: -0.05594514111 | FF82: 0.002828720293 | FR82: 5.638223363e-05
A83: 0.96 | B83: 2035 | C83: -6 | D83: 22 | E83: 59 | F83: 2056 | G83: 2062 | H83: 17 | I83: 31 | J83: 437 | K83: 34 | L83: 109 | M83: 802 | N83: 776 | O83: 1068 | P83: -40 | Q83: 15 | R83: 549 | S83: 1838 | T83: -105 | U83: 2007 | V83: 1894 | W83: 8 | X83: 2760 | Y83: 2045 | Z83: 0.008420282874 | AA83: 0.96 | AB83: 0.029 | AC83: 0.433 | AD83: 0.4824470785 | AE83: 0.008420282874 | AF83: 0.01108771767 | AG83: 3.504097112 | AH83: 4.718201914 | AI83: 0.06115798026 | AJ83: 0.08234808862 | AK83: 0.05854214186 | AL83: 0.08395438543 | AM83: -0.0127179997 | AN83: 0.01269424387 | AO83: 48.84286384 | AP83: 48.84286384 | AQ83: 28.93915566 | AR83: 3467.673106 | AS83: 0.0406307548 | AT83: 0.0406307548 | AU83: 0.04309300366 | AV83: 0.1676026834 | AW83: -0.0005446250325 | AX83: -6.346850654e-05 | AY83: 0.01102424917 | AZ83: -0.01857142857 | BA83: -0.05428571429 | BB83: 12.44836736 | BC83: 5.742370252 | BD83: 13.11676243 | BE83: -0.01876730482 | BF83: -0.01907890438 | BG83: 0.75097344 | BH83: 1.538176 | BI83: 0.3796705216 | BJ83: 1.087534215 | BK83: -0.09438182582 | BL83: -0.02770612178 | BM83: -0.06472601968 | BN83: 0.1114262509 | BO83: 4.992675781 | BP83: 0.07500600403 | BQ83: 0.0217506843 | BR83: 0.01008056196 | BS83: 0.01006782126 | BT83: 0.002644410164 | BU83: -0.1144846263 | BV83: -6.559491447 | BW83: 0.125572344 | BX83: -0.01565252536 | BY83: 0.03130018268 | BZ83: 0.96 | CA83: 1.8847 | CB83: 1.8236 | CC83: 1.851971923 | CD83: 1.838 | CE83: 0.03272807696 | CF83: -0.02837192304 | CG83: 0.401071127 | CH83: 0.400804966 | CI83: 0.461071127 | CJ83: 0.06 | CK83: 0.06 | CL83: 0.460804966 | CM83: 0.208863865 | CN83: 2.206245518 | CO83: -0.2872684559 | CP83: -0.2872684559 | CQ83: 2.207519845 | CR83: 0.04617877758 | CS83: 0.1151386237 | CT83: 0.1152150834 | CU83: 48.84286384 | CV83: 3467.673106 | CW83: 29.33105 | CX83: 29.35898717 | CY83: -3.143905497 | CZ83: -1.156754526 | DA83: -0.6589935854 | DB83: -1.05 | DC83: -0.04554521533 | DD83: -0.04 | DE83: 0.05643624276 | DF83: 0.0549 | DG83: 0.4013099953 | DH83: 0.1735885634 | DI83: 13.68274739 | DJ83: -0.8221379188 | DK83: -0.02141688961 | DL83: 0.015 | DM83: 1.7 | DN83: -0.000276525 | DO83: 0.0160599 | DP83: 0.008218063841 | DQ83: 0.008 | DR83: 0.04362502065 | DS83: -0.1252883109 | DT83: 0.6088032766 | DU83: 0.96 | DV83: 0.151971923 | DW83: -0.04 | DX83: 0.0549 | DY83: 0.015 | EA83: 0.1164985902 | EB83: -0.03361102536 | EC83: 0.0554898731 | ED83: 0.9875577823 | EH83: 0.1159882808 | EI83: -0.04247058596 | EJ83: 0.0556898731 | EK83: 0.9875577823 | EN83: -0.01947627019 | ET83: -0.105 | FC83: 0.003556333374 | FD83: -0.007770185134 | FE83: -0.08047257055 | FF83: 0.005285636846 | FR83: 3.074941307e-05
A84: 0.9733333333 | B84: 2016 | C84: -11 | D84: 22 | E84: 55 | F84: 2152 | G84: 2162 | H84: 52 | I84: -223 | J84: 434 | K84: 39 | L84: 119 | M84: 785 | N84: 777 | O84: 1077 | P84: -52 | Q84: 5 | R84: 564 | S84: 1837 | T84: -85 | U84: 1989 | V84: 1905 | W84: 0 | X84: 2730 | Y84: 2044 | Z84: 0.009878093395 | AA84: 0.9733333333 | AB84: 0.05104 | AC84: 0.6495 | AD84: 0.5659735392 | AE84: 0.009878093395 | AF84: 0.02117456919 | AG84: 3.504097112 | AH84: 4.607498401 | AI84: 0.06115798026 | AJ84: 0.08041594945 | AK84: 0.05985006106 | AL84: 0.08218516744 | AM84: -0.01140089151 | AN84: 0.01093421487 | AO84: 48.84601328 | AP84: 48.84601328 | AQ84: 28.9410217 | AR84: 3465.501796 | AS84: 0.0465216843 | AT84: 0.0465216843 | AU84: 0.04343587172 | AV84: 0.1689340973 | AW84: 0.0008321337018 | AX84: 2.60917143e-05 | AY84: 0.0212006609 | AZ84: -0.1557142857 | BA84: -0.1971428571 | BB84: 12.44796929 | BC84: 5.742220619 | BD84: 13.11743487 | BE84: -0.1710769155 | BF84: -0.1771985159 | BG84: 2.11737344 | BH84: -8.377984 | BI84: 1.248521981 | BJ84: -3.645224892 | BK84: 0.6524995831 | BL84: -0.02616755319 | BM84: 0.1093357891 | BN84: 0.1168672138 | BO84: 4.990234375 | BP84: 0.07869011958 | BQ84: -0.07290449785 | BR84: 0.009152089339 | BS84: 0.009157082228 | BT84: -0.0003861666232 | BU84: -0.1201155821 | BV84: -6.882121719 | BW84: 0.1412901513 | BX84: -0.01569625492 | BY84: 0.07565118038 | BZ84: 0.9733333333 | CA84: 1.84475 | CB84: 1.82595 | CC84: 1.851864046 | CD84: 1.837 | CE84: -0.007114045764 | CF84: -0.02591404576 | CG84: 0.4000506096 | CH84: 0.4006715378 | CI84: 0.4600506096 | CJ84: 0.06 | CK84: 0.06 | CL84: 0.4606715378 | CM84: 0.2083322218 | CN84: 2.211235179 | CO84: -0.2880015366 | CP84: -0.2880015366 | CQ84: 2.208254708 | CR84: 0.04616344747 | CS84: 0.1153940185 | CT84: 0.1152151903 | CU84: 48.84601328 | CV84: 3465.501796 | CW84: 30.2207 | CX84: 30.24933088 | CY84: -2.246501227 | CZ84: -0.2489762448 | DA84: -0.4539849151 | DB84: -0.85 | DC84: -0.05068744323 | DD84: -0.052 | DE84: 0.05669884447 | DF84: 0.0564 | DG84: 0.4013077907 | DH84: 0.1735847841 | DI84: 13.68353412 | DJ84: -0.8220752382 | DK84: -0.02096172799 | DL84: 0.005 | DM84: 1.7 | DN84: 0.021845475 | DO84: 0.0072709 | DP84: -0.0005692233504 | DQ84: 0 | DR84: 0.04350853327 | DS84: -0.1284746608 | DT84: 0.3003562404 | DU84: 0.9733333333 | DV84: 0.1518640458 | DW84: -0.052 | DX84: 0.0564 | DY84: 0.005 | EA84: 0.1187045934 | EB84: -0.03879878756 | EC84: 0.05617464211 | ED84: 0.9871743351 | EH84: 0.1181607869 | EI84: -0.04259621638 | EJ84: 0.05624130877 | EK84: 0.9871743351 | EN84: -0.02268209871 | ET84: 0.1125 | FC84: 0.004278166687 | FD84: -0.005379142506 | FE84: 0.01601371472 | FF84: 0.0004576543404 | FR84: 1.722805284e-06
A85: 0.9866666667 | B85: 2007 | C85: -28 | D85: 28 | E85: 50 | F85: 2287 | G85: 2291 | H85: 161 | I85: 59 | J85: 441 | K85: 37 | L85: 115 | M85: 785 | N85: 776 | O85: 1071 | P85: -67 | Q85: 19 | R85: 549 | S85: 1836 | T85: -107 | U85: 2037 | V85: 1893 | W85: 9 | X85: 2737 | Y85: 2044 | Z85: 0.01703067754 | AA85: 0.9866666667 | AB85: 0.06148 | AC85: 1.3856 | AD85: 0.9757867696 | AE85: 0.01703067754 | AF85: 0.03142123367 | AG85: 3.737106625 | AH85: 4.46852575 | AI85: 0.06522476001 | AJ85: 0.07799042117 | AK85: 0.06253741054 | AL85: 0.08008779431 | AM85: -0.008690089048 | AN85: 0.008860294719 | AO85: 48.85405435 | AP85: 48.85405435 | AQ85: 28.94578599 | AR85: 3469.105616 | AS85: 0.0441679027 | AT85: 0.0441679027 | AU85: 0.04350907482 | AV85: 0.1692684163 | AW85: 0.0002089494153 | AX85: 4.43774844e-05 | AY85: 0.03146561115 | AZ85: -0.3485714286 | BA85: -0.3814285714 | BB85: 12.44695326 | BC85: 5.741838711 | BD85: 13.11915174 | BE85: -0.375431798 | BF85: -0.373198844 | BG85: 6.37273344 | BH85: 2.631296 | BI85: 3.81062771 | BJ85: -0.5069644462 | BK85: 0.5756789542 | BL85: -0.02377519188 | BM85: 0.536443811 | BN85: 0.1150397137 | BO85: 4.990234375 | BP85: 0.0790207235 | BQ85: -0.01013928892 | BR85: 0.006984630609 | BS85: 0.006992050196 | BT85: -0.008575017859 | BU85: -0.120640085 | BV85: -6.91217355 | BW85: 0.1520613187 | BX85: -0.01572054701 | BY85: 0.06830858837 | BZ85: 0.9866666667 | CA85: 1.84475 | CB85: 1.8236 | CC85: 1.847381603 | CD85: 1.836 | CE85: -0.002631603144 | CF85: -0.02378160314 | CG85: 0.4000069253 | CH85: 0.4005655646 | CI85: 0.4600069253 | CJ85: 0.06 | CK85: 0.06 | CL85: 0.4605655646 | CM85: 0.2082633493 | CN85: 2.21145759 | CO85: -0.2880967784 | CP85: -0.2880967784 | CQ85: 2.208775221 | CR85: 0.04616145868 | CS85: 0.1154016487 | CT85: 0.1152407065 | CU85: 48.85405435 | CV85: 3469.105616 | CW85: 29.6276 | CX85: 29.65530418 | CY85: -2.852689488 | CZ85: -0.8209579264 | DA85: -0.6374714208 | DB85: -1.07 | DC85: -0.05817331331 | DD85: -0.067 | DE85: 0.05619106901 | DF85: 0.0549 | DG85: 0.401302162 | DH85: 0.1735751348 | DI85: 13.68554278 | DJ85: -0.8219152408 | DK85: -0.01755015084 | DL85: 0.019 | DM85: 1.7 | DN85: -0.037146525 | DO85: 0.0168589 | DP85: 0.00899172032 | DQ85: 0.009 | DR85: 0.04322514759 | DS85: -0.1392874332 | DT85: -0.01791347804 | DU85: 0.9866666667 | DV85: 0.1473816031 | DW85: -0.067 | DX85: 0.0549 | DY85: 0.019 | EA85: 0.1203242093 | EB85: -0.04378323786 | EC85: 0.05533185325 | ED85: 0.9868611807 | EH85: 0.119683305 | EI85: -0.05184243871 | EJ85: 0.05558518658 | EK85: 0.9868611807 | EN85: -0.03676321537 | ET85: -0.1125 | FC85: 0.01163908334 | FD85: -0.0006934005223 | FE85: -0.04824314264 | FF85: 0.002260977975 | FR85: 7.791039801e-05
